Workbook

Sheet Picture (hidden)

Sheet Sheet3 (hidden)

Sheet Wire (hidden)
A2: AWG Wire Size | B2: Cir Mils | C2: Wire O.D. (cm) Heavy Build | D2: Wire Area sq. cm (x0.001) | F2: Current Capacity, Amps (listed by columns of amps/sq.cm.) | K2: Copper info | L2: Copper info | M2: Bare Wire OD (Inches) | N2: Bare Wire Radius (mm) | O2: Aluminum info | P2: Aluminum info
F3: 200 | G3: 400 | H3: 500 | I3: 600 | J3: 800 | K3: Feet per Pound | L3: $/pound | O3: Feet per Pound | P3: $/pound
A4: 6 | B4: 26240 | C4: 0.421 | D4: 139.2 | E4: =D4*0.001 -> 0.1392 | F4: 26.59606216 | G4: 53.19212433 | H4: 66.49015541 | I4: 79.78818649 | J4: 106.3842487 | K4: 12.5 | L4: 10.06 | M4: 0.162 | N4: =M4*25.4*0.5 -> 2.0574
A5: 7 | B5: 20820 | C5: 0.376 | D5: 111 | E5: =D5*0.001 -> 0.111 | F5: 21.10182283 | G5: 42.20364567 | H5: 52.75455708 | I5: 63.3054685 | J5: 84.40729133 | K5: 15.75 | L5: 10.15 | M5: 0.1443 | N5: =M5*25.4*0.5 -> 1.83261
A6: 8 | B6: 16510 | C6: 0.336 | D6: 88.7 | E6: 0.0887 | F6: 16.73376114 | G6: 33.46752229 | H6: 41.83440286 | I6: 50.20128343 | J6: 66.93504457 | K6: 19.85 | L6: 10.27 | M6: 0.1285 | N6: =M6*25.4*0.5 -> 1.63195 | O6: 65.8
A7: 9 | B7: 13090 | C7: 0.299 | D7: 70.2 | E7: 0.0702 | F7: 13.26292639 | G7: 26.52585277 | H7: 33.15731597 | I7: 39.78877916 | J7: 53.05170555 | K7: 25 | L7: 10.31 | M7: 0.1144 | N7: 1.45288 | O7: 83
A8: 10 | B8: 10380 | C8: 0.267 | D8: 56 | E8: 0.056 | F8: 10.52290569 | G8: 21.04581139 | H8: 26.30726424 | I8: 31.56871708 | J8: 42.09162278 | K8: 31.5 | L8: 7.57 | M8: 0.1019 | N8: 1.29413 | O8: 104
A9: 11 | B9: 8226 | C9: 0.238 | D9: 44.5 | E9: 0.0445 | F9: 8.336848019 | G9: 16.67369604 | H9: 20.84212005 | I9: 25.01054406 | J9: 33.34739208 | K9: 39 | L9: 7.58 | M9: 0.0907 | N9: 1.15189 | O9: 132
A10: 12 | B10: 6529 | C10: 0.213 | D10: 35.6 | E10: 0.0356 | F10: 6.616221433 | G10: 13.23244287 | H10: 16.54055358 | I10: 19.8486643 | J10: 26.46488573 | K10: 49.9 | L10: 7.59 | M10: 0.0808 | N10: 1.02616 | O10: 166
A11: 13 | B11: 5184 | C11: 0.1902 | D11: 28.4 | E11: 0.0284 | F11: 5.253543143 | G11: 10.50708629 | H11: 13.13385786 | I11: 15.76062943 | J11: 21.01417257 | K11: 62.9 | L11: 7.6 | M11: 0.072 | N11: =M11*25.4*0.5 -> 0.9144 | O11: 210
A12: 14 | B12: 4109 | C12: 0.1715 | D12: 23.1 | E12: 0.0231 | F12: 4.163929514 | G12: 8.327859029 | H12: 10.40982379 | I12: 12.49178854 | J12: 16.65571806 | K12: 79.18 | L12: 7.94 | M12: 0.0641 | N12: 0.81407 | O12: 264
A13: 15 | B13: 3260 | C13: 0.1529 | D13: 18.4 | E13: 0.0184 | F13: 3.304148264 | G13: 6.608296528 | H13: 8.26037066 | I13: 9.912444792 | J13: 13.21659306 | K13: 99.7 | L13: 7.98 | M13: 0.0571 | N13: 0.72517 | O13: 333
A14: 16 | B14: 2581 | C14: 0.1369 | D14: 14.72 | E14: 0.01472 | F14: 2.615259178 | G14: 5.230518355 | H14: 6.538147944 | I14: 7.845777533 | J14: 10.46103671 | K14: 125.6 | L14: 8.08 | M14: 0.0508 | N14: 0.64516 | O14: 421
A15: 17 | B15: 2052 | C15: 0.1224 | D15: 11.77 | E15: 0.01177 | F15: 2.079618702 | G15: 4.159237403 | H15: 5.199046754 | I15: 6.238856105 | J15: 8.318474806 | K15: 157.7 | L15: 8.19 | M15: 0.0453 | N15: 0.57531 | O15: 529
A16: 18 | B16: 1624 | C16: 0.1095 | D16: 9.42 | E16: 0.00942 | F16: 1.645877099 | G16: 3.291754199 | H16: 4.114692749 | I16: 4.937631298 | J16: 6.583508398 | K16: 199.2 | L16: 8.3 | M16: 0.0403 | N16: 0.51181 | O16: 669
A17: 19 | B17: 1289 | C17: 0.098 | D17: 7.54 | E17: 0.00754 | F17: 1.306099332 | G17: 2.612198665 | H17: 3.265248331 | I17: 3.918297997 | J17: 5.224397329 | K17: 250.6 | L17: 8.38 | M17: 0.0359 | N17: 0.45593 | O17: 843
A18: 20 | B18: 1024 | C18: 0.0879 | D18: 6.07 | E18: 0.00607 | F18: 1.037736917 | G18: 2.075473834 | H18: 2.594342293 | I18: 3.113210752 | J18: 4.150947669 | K18: 314.5 | L18: 8.27 | M18: 0.032 | N18: 0.4064 | O18: 1060
A19: 21 | B19: 812.3 | C19: 0.0785 | D19: 4.84 | E19: 0.00484 | F19: 0.8231462998 | G19: 1.6462926 | H19: 2.057865749 | I19: 2.469438899 | J19: 3.292585199 | K19: 395.3 | L19: 8.37 | M19: 0.0285 | N19: 0.36195 | O19: 1340
A20: 22 | B20: 640.1 | C20: 0.0701 | D20: 3.86 | E20: 0.00386 | F20: 0.6486767806 | G20: 1.297353561 | H20: 1.621691951 | I20: 1.946030342 | J20: 2.594707122 | K20: 502.5 | L20: 8.53 | M20: 0.0253 | N20: 0.32131 | O20: 1700
A21: 23 | B21: 510.8 | C21: 0.0632 | D21: 3.14 | E21: 0.00314 | F21: 0.517611824 | G21: 1.035223648 | H21: 1.29402956 | I21: 1.552835472 | J21: 2.070447296 | K21: 625 | L21: 8.8 | M21: 0.0226 | N21: 0.28702 | O21: 2130
A22: 24 | B22: 404 | C22: 0.0566 | D22: 2.52 | E22: 0.00252 | F22: 0.4094297773 | G22: 0.8188595545 | H22: 1.023574443 | I22: 1.228289332 | J22: 1.637719109 | K22: 790.5 | L22: 9.01 | M22: 0.0201 | N22: 0.25527 | O22: 2690
A23: 25 | B23: 320.4 | C23: 0.0505 | D23: 2 | E23: 0.002 | F23: 0.3247082868 | G23: 0.6494165735 | H23: 0.8117707169 | I23: 0.9741248603 | J23: 1.298833147 | K23: 992.1 | L23: 9.32 | M23: 0.0179 | N23: 0.22733 | O23: 3390
A24: 26 | B24: 252.8 | C24: 0.0452 | D24: 1.6 | E24: 0.0016 | F24: 0.2562014356 | G24: 0.5124028712 | H24: 0.640503589 | I24: 0.7686043067 | J24: 1.024805742 | K24: 1254 | L24: 9.06 | M24: 0.0159 | N24: 0.20193 | O24: 4300
A25: 27 | B25: 201.6 | C25: 0.0409 | D25: 1.31 | E25: 0.00131 | F25: 0.2043449922 | G25: 0.4086899843 | H25: 0.5108624804 | I25: 0.6130349765 | J25: 0.8173799687 | K25: 1571 | L25: 9 | M25: 0.0142 | N25: 0.18034 | O25: 5390
A26: 28 | B26: 158.8 | C26: 0.0366 | D26: 1.05 | E26: 0.00105 | F26: 0.1608897588 | G26: 0.3217795175 | H26: 0.4022243969 | I26: 0.4826692763 | J26: 0.6435590351 | K26: 1987 | L26: 9 | M26: 0.0126 | N26: 0.16002 | O26: 6845
A27: 29 | B27: 127.7 | C27: 0.033 | D27: 0.855 | E27: 0.000855 | F27: 0.129402956 | G27: 0.258805912 | H27: 0.32350739 | I27: 0.388208868 | J27: 0.517611824 | K27: 2463 | L27: 9 | M27: 0.0113 | N27: 0.14351 | O27: 8503
A28: 30 | B28: 100 | C28: 0.0295 | D28: 0.683 | E28: 0.000683 | F28: 0.1013414958 | G28: 0.2026829916 | H28: 0.2533537395 | I28: 0.3040244875 | J28: 0.4053659833 | K28: 3136 | L28: 9 | M28: 0.01 | N28: 0.127 | O28: 10870
A29: 31 | B29: 79.21 | C29: 0.0267 | D29: 0.56 | E29: 0.00056 | F29: 0.08027259884 | G29: 0.1605451977 | H29: 0.2006814971 | I29: 0.2408177965 | J29: 0.3210903954 | K29: 3948 | L29: 9 | M29: 0.0089 | N29: 0.11303 | O29: 13717
A30: 32 | B30: 64 | C30: 0.0241 | D30: 0.456 | E30: 0.000456 | F30: 0.06485855732 | G30: 0.1297171146 | H30: 0.1621463933 | I30: 0.194575672 | J30: 0.2594342293 | K30: 4873 | L30: 9 | M30: 0.008 | N30: 0.1016 | O30: 16978
A31: 33 | B31: 50.41 | C31: 0.0216 | D31: 0.366 | E31: 0.000366 | F31: 0.05108624804 | G31: 0.1021724961 | H31: 0.1277156201 | I31: 0.1532587441 | J31: 0.2043449922 | K31: 6161 | L31: 9 | M31: 0.0071 | N31: 0.09017 | O31: 21552
A32: 34 | B32: 39.69 | C32: 0.01905 | D32: 0.285 | E32: 0.000285 | F32: 0.04022243969 | G32: 0.08044487938 | H32: 0.1005560992 | I32: 0.1206673191 | J32: 0.1608897588 | K32: 7837 | L32: 9 | M32: 0.0063 | N32: 0.08001 | O32: 27397
A33: 35 | B33: 31.36 | C33: 0.01702 | D33: 0.228 | E33: 0.000228 | F33: 0.03178069309 | G33: 0.06356138618 | H33: 0.07945173272 | I33: 0.09534207927 | J33: 0.1271227724 | K33: 9891 | L33: 9 | M33: 0.0056 | N33: 0.07112 | O33: 34602
A34: 36 | B34: 25 | C34: 0.01524 | D34: 0.182 | E34: 0.000182 | F34: 0.02533537395 | G34: 0.05067074791 | H34: 0.06333843489 | I34: 0.07600612186 | J34: 0.1013414958 | K34: 12380 | L34: 9 | M34: 0.005 | N34: 0.0635 | O34: 43478
A35: 37 | B35: 20.25 | C35: 0.01397 | D35: 0.153 | E35: 0.000153 | F35: 0.0205216529 | G35: 0.04104330581 | H35: 0.05130413226 | I35: 0.06156495871 | J35: 0.08208661161 | K35: 15290 | L35: 9 | M35: 0.0045 | N35: 0.05715 | O35: 53763
A36: 38 | B36: 16 | C36: 0.01245 | D36: 0.122 | E36: 0.000122 | F36: 0.01621463933 | G36: 0.03242927866 | H36: 0.04053659833 | I36: 0.04864391799 | J36: 0.06485855732 | K36: 19360 | L36: 9 | M36: 0.004 | N36: 0.0508 | O36: 68027
A37: 39 | B37: 12.25 | C37: 0.01092 | D37: 0.094 | E37: 9.4e-05 | F37: 0.01241433324 | G37: 0.02482866648 | H37: 0.03103583309 | I37: 0.03724299971 | J37: 0.04965733295 | K37: 25270 | L37: 9 | M37: 0.0035 | N37: 0.04445 | O37: 88496
A38: 40 | B38: 9.61 | C38: 0.00965 | D38: 0.073 | E38: 7.3e-05 | F38: 0.009738917748 | G38: 0.0194778355 | H38: 0.02434729437 | I38: 0.02921675324 | J38: 0.03895567099 | K38: 31940 | L38: 9 | M38: 0.0031 | N38: 0.03937 | O38: 113636
A39: 41 | B39: 7.84 | C39: 0.00864 | D39: 0.059 | E39: 5.9e-05 | F39: 0.007945173272 | G39: 0.01589034654 | H39: 0.01986293318 | I39: 0.02383551982 | J39: 0.03178069309 | K39: 39340 | L39: 9 | M39: 0.0028 | N39: 0.03556 | O39: 138889
A40: 42 | B40: 6.25 | C40: 0.00762 | D40: 0.046 | E40: 4.6e-05 | F40: 0.006333843489 | G40: 0.01266768698 | H40: 0.01583460872 | I40: 0.01900153047 | J40: 0.02533537395 | K40: 49600 | L40: 9 | M40: 0.0025 | N40: 0.03175 | O40: 172414
A41: 43 | B41: 4.84 | C41: 0.00686 | D41: 0.037 | E41: 3.7e-05 | F41: 0.004904928398 | G41: 0.009809856795 | H41: 0.01226232099 | I41: 0.01471478519 | J41: 0.01961971359 | K41: 63170 | L41: 9 | M41: 0.0022 | N41: 0.02794 | O41: 22222
A42: 44 | B42: 4 | C42: 0.00635 | D42: 0.032 | E42: 3.2e-05 | F42: 0.004053659833 | G42: 0.008107319666 | H42: 0.01013414958 | I42: 0.0121609795 | J42: 0.01621463933 | K42: 76160 | L42: 9 | M42: 0.002 | N42: 0.0254 | O42: 270270
A43: 45 | B43: 3.1 | C43: 0.00546 | D43: 0.023 | E43: 2.3e-05 | F43: 0.003139154175 | G43: 0.006278308349 | H43: 0.007847885436 | I43: 0.009417462524 | J43: 0.0125566167 | K43: 99110 | L43: 9 | M43: 0.00176 | N43: 0.022352
A44: 46 | B44: 2.47 | C44: 0.00498 | D44: 0.019 | E44: 1.9e-05 | F44: 0.00249796653 | G44: 0.004995933061 | H44: 0.006244916326 | I44: 0.007493899591 | J44: 0.009991866122 | K44: 123800 | L44: 9 | M44: 0.00157 | N44: 0.019939
A45: 47 | B45: 1.96 | C45: 0.00452 | D45: 0.016 | E45: 1.6e-05 | F45: 0.001986293318 | G45: 0.003972586636 | H45: 0.004965733295 | I45: 0.005958879954 | J45: 0.007945173272 | K45: 154600 | L45: 9 | M45: 0.0014 | N45: 0.01778
A46: 48 | B46: 1.54 | C46: 0.00394 | D46: 0.012 | E46: 1.2e-05 | F46: 0.00155822684 | G46: 0.003116453679 | H46: 0.003895567099 | I46: 0.004674680519 | J46: 0.006232907359 | K46: 196600 | L46: 9 | M46: 0.00124 | N46: 0.015748
A47: 49 | B47: 1.23 | C47: 0.00353 | D47: 0.01 | E47: 1e-05 | F47: 0.00124862857 | G47: 0.00249725714 | H47: 0.003121571425 | I47: 0.00374588571 | J47: 0.00499451428 | K47: 247500 | L47: 9 | M47: 0.00111 | N47: 0.014097

Sheet Powder Core Detail (hidden)
A1: Part # | B1: Sales Part Number | C1: Base Part Number | D1: Perm | E1: Material | F1: AL [nH/T2] | G1: Shape | H1: Le [cm] | I1: Le [mm] | J1: ID min [inches] | K1: ID min [mm] | L1: OD max [inches] | M1: OD max [mm] | N1: HT max [inches] | O1: HT max [mm] | P1: Ae [cm2] | Q1: Ae [mm2] | R1: Ve [cm3] | S1: Ve [mm3] | T1: WA (cm2) | U1: Base Part Number | V1: Unfinished OD
A2: 4741 | B2: 00K4741B026 | C2: 4741 | D2: 26 | E2: Kool Mu | F2: 0 | G2: Block | H2: 0 | I2: 0 | J2: 1.634 | K2: 41.5 | L2: 1.894 | M2: 48.11 | N2: 1.099 | O2: 27.91 | P2: 0 | Q2: 0 | R2: 53.6 | S2: 53600
A3: 4741 | B3: 00K4741B02603 | C3: 4741 | D3: 26 | E3: Kool Mu | F3: 0 | G3: Block | H3: 0 | I3: 0 | J3: 1.634 | K3: 41.5 | L3: 1.894 | M3: 48.11 | N3: 0.806 | O3: 20.5 | P3: 0 | Q3: 0 | R3: 39.9 | S3: 39900
A4: 4741 | B4: 00K4741B060 | C4: 4741 | D4: 60 | E4: Kool Mu | F4: 0 | G4: Block | H4: 0 | I4: 0 | J4: 1.634 | K4: 41.5 | L4: 1.894 | M4: 48.11 | N4: 1.099 | O4: 27.91 | P4: 0 | Q4: 0 | R4: 53.6 | S4: 53600
A5: 5528 | B5: 00K5528B026 | C5: 5528 | D5: 26 | E5: Kool Mu | F5: 0 | G5: Block | H5: 0 | I5: 0 | J5: 1.101 | K5: 27.97 | L5: 2.185 | M5: 55.5 | N5: 0.827 | O5: 21 | P5: 0 | Q5: 0 | R5: 31.2 | S5: 31200
A6: 5528 | B6: 00K5528B040 | C6: 5528 | D6: 40 | E6: Kool Mu | F6: 0 | G6: Block | H6: 0 | I6: 0 | J6: 1.101 | K6: 27.97 | L6: 2.185 | M6: 55.5 | N6: 0.827 | O6: 21 | P6: 0 | Q6: 0 | R6: 31.2 | S6: 31200
A7: 5528 | B7: 00K5528B060 | C7: 5528 | D7: 60 | E7: Kool Mu | F7: 0 | G7: Block | H7: 0 | I7: 0 | J7: 1.101 | K7: 27.97 | L7: 2.185 | M7: 55.5 | N7: 0.827 | O7: 21 | P7: 0 | Q7: 0 | R7: 31.2 | S7: 31200
A8: 6030 | B8: 00K6030B090 | C8: 6030 | D8: 90 | E8: Kool Mu | F8: 0 | G8: Block | H8: 0 | I8: 0 | J8: 1.191 | K8: 30.25 | L8: 2.372 | M8: 60.25 | N8: 0.601 | O8: 15.25 | P8: 0 | Q8: 0 | R8: 27 | S8: 27000
A9: 6030 | B9: 00K6030B060 | C9: 6030 | D9: 60 | E9: Kool Mu | F9: 0 | G9: Block | H9: 0 | I9: 0 | J9: 1.191 | K9: 30.25 | L9: 2.372 | M9: 60.25 | N9: 0.591 | O9: 15.25 | P9: 0 | Q9: 0 | R9: 27 | S9: 27000
A10: 6030 | B10: 00K6030B026 | C10: 6030 | D10: 26 | E10: Kool Mu | F10: 0 | G10: Block | H10: 0 | I10: 0 | J10: 1.191 | K10: 30.25 | L10: 2.372 | M10: 60.25 | N10: 0.591 | O10: 15.25 | P10: 0 | Q10: 0 | R10: 27 | S10: 27000
A11: 8020 | B11: 00K8020E02601 | C11: 8020 | D11: 26 | E11: Kool Mu | F11: 155 | G11: E Core | H11: 18.5 | I11: 185 | J11: 1.525 | K11: 38.74 | L11: 3.197 | M11: 81.21 | N11: 1.265 | O11: 32.13 | P11: 6.29 | Q11: 629 | R11: 116 | S11: 116000
A12: 8020 | B12: 00K8020E02602 | C12: 8020 | D12: 26 | E12: Kool Mu | F12: 145 | G12: E Core | H12: 18.5 | I12: 185 | J12: 1.525 | K12: 38.74 | L12: 3.197 | M12: 81.21 | N12: 1.185 | O12: 30.1 | P12: 5.84 | Q12: 584 | R12: 108 | S12: 108000
A13: 8030 | B13: 00K8030E026 | C13: 8030 | D13: 26 | E13: Kool Mu | F13: 0 | G13: Block | H13: 0 | I13: 0 | J13: 1.213 | K13: 30.81 | L13: 3.189 | M13: 81 | N13: 1.382 | O13: 35.1 | P13: 0 | Q13: 0 | R13: 85.4 | S13: 85400
A14: 8030 | B14: 00K8030E040 | C14: 8030 | D14: 40 | E14: Kool Mu | F14: 0 | G14: Block | H14: 0 | I14: 0 | J14: 1.213 | K14: 30.81 | L14: 3.189 | M14: 81 | N14: 1.382 | O14: 35.1 | P14: 0 | Q14: 0 | R14: 85.4 | S14: 85400
A15: 8044 | B15: 00K8044E02601 | C15: 8044 | D15: 26 | E15: Kool Mu | F15: 137 | G15: E Core | H15: 20.8 | I15: 208 | J15: 1.78 | K15: 45.21 | L15: 3.197 | M15: 81.2 | N15: 1.185 | O15: 30.1 | P15: 5.84 | Q15: 584 | R15: 121 | S15: 121000
A16: 55098 | B16: 0055098A2 | C16: 102 | D16: 125 | E16: MPP | F16: 232 | G16: Toroid | H16: 24.3 | I16: 243 | J16: 2.195 | K16: 55.75 | L16: 4.055 | M16: 103 | N16: 0.705 | O16: 17.9 | P16: 3.58 | Q16: 358 | R16: 86.9 | S16: 86900 | T16: 24.7 | U16: =C16*1 -> 102 | V16: =VLOOKUP(U16,'Powder Core Toroid OD'!$A$2:$B$36,2,FALSE) -> 101.6
A17: 55099 | B17: 0055099A2 | C17: 102 | D17: 60 | E17: MPP | F17: 111 | G17: Toroid | H17: 24.3 | I17: 243 | J17: 2.195 | K17: 55.75 | L17: 4.055 | M17: 103 | N17: 0.705 | O17: 17.9 | P17: 3.58 | Q17: 358 | R17: 86.9 | S17: 86900 | T17: 24.7 | U17: =C17*1 -> 102 | V17: =VLOOKUP(U17,'Powder Core Toroid OD'!$A$2:$B$36,2,FALSE) -> 101.6
A18: 55101 | B18: 0055101A2 | C18: 102 | D18: 14 | E18: MPP | F18: 26 | G18: Toroid | H18: 24.3 | I18: 243 | J18: 2.195 | K18: 55.75 | L18: 4.055 | M18: 103 | N18: 0.705 | O18: 17.9 | P18: 3.58 | Q18: 358 | R18: 86.9 | S18: 86900 | T18: 24.7 | U18: 102 | V18: =VLOOKUP(U18,'Powder Core Toroid OD'!$A$2:$B$36,2,FALSE) -> 101.6
A19: 55102 | B19: 0055102A2 | C19: 102 | D19: 26 | E19: MPP | F19: 48 | G19: Toroid | H19: 24.3 | I19: 243 | J19: 2.195 | K19: 55.75 | L19: 4.055 | M19: 103 | N19: 0.705 | O19: 17.9 | P19: 3.58 | Q19: 358 | R19: 86.9 | S19: 86900 | T19: 24.7 | U19: 102 | V19: =VLOOKUP(U19,'Powder Core Toroid OD'!$A$2:$B$36,2,FALSE) -> 101.6
A20: 55164 | B20: 0055164A2 | C20: 165 | D20: 14 | E20: MPP | F20: 42 | G20: Toroid | H20: 41.2 | I20: 412 | J20: 3.977 | K20: 101 | L20: 6.555 | M20: 166.5 | N20: 1.305 | O20: 33.15 | P20: 9.87 | Q20: 987 | R20: 407 | S20: 407000 | T20: 80.3 | U20: 165 | V20: =VLOOKUP(U20,'Powder Core Toroid OD'!$A$2:$B$36,2,FALSE) -> 165.1
A21: 55165 | B21: 0055165A2 | C21: 165 | D21: 26 | E21: MPP | F21: 78 | G21: Toroid | H21: 41.2 | I21: 412 | J21: 3.977 | K21: 101 | L21: 6.555 | M21: 166.5 | N21: 1.305 | O21: 33.15 | P21: 9.87 | Q21: 987 | R21: 407 | S21: 407000 | T21: 80.3 | U21: 165 | V21: =VLOOKUP(U21,'Powder Core Toroid OD'!$A$2:$B$36,2,FALSE) -> 165.1
A22: 55167 | B22: 0055167A2 | C22: 165 | D22: 60 | E22: MPP | F22: 180 | G22: Toroid | H22: 41.2 | I22: 412 | J22: 3.977 | K22: 101 | L22: 6.555 | M22: 166.5 | N22: 1.305 | O22: 33.15 | P22: 9.87 | Q22: 987 | R22: 407 | S22: 407000 | T22: 80.3 | U22: 165 | V22: =VLOOKUP(U22,'Powder Core Toroid OD'!$A$2:$B$36,2,FALSE) -> 165.1
A23: 55195 | B23: C055195A2 | C23: 195 | D23: 125 | E23: MPP | F23: 287 | G23: Toroid | H23: 12.5 | I23: 125 | J23: 1.007 | K23: 25.57 | L23: 2.285 | M23: 58.04 | N23: 0.635 | O23: 16.2 | P23: 2.29 | Q23: 229 | R23: 28.6 | S23: 28600 | T23: 5.14 | U23: 195 | V23: =VLOOKUP(U23,'Powder Core Toroid OD'!$A$2:$B$36,2,FALSE) -> 57.2
A24: 55336 | B24: 0055336A2 | C24: 337 | D24: 14 | E24: MPP | F24: 37 | G24: Toroid | H24: 32.4 | I24: 324 | J24: 3.039 | K24: 77.19 | L24: 5.274 | M24: 134 | N24: 1.055 | O24: 26.8 | P24: 6.78 | Q24: 678 | R24: 220 | S24: 220000 | T24: 47.1 | U24: 337 | V24: =VLOOKUP(U24,'Powder Core Toroid OD'!$A$2:$B$36,2,FALSE) -> 132.6
A25: 55337 | B25: 0055337A2 | C25: 337 | D25: 26 | E25: MPP | F25: 68 | G25: Toroid | H25: 32.4 | I25: 324 | J25: 3.039 | K25: 77.19 | L25: 5.274 | M25: 134 | N25: 1.055 | O25: 26.8 | P25: 6.78 | Q25: 678 | R25: 220 | S25: 220000 | T25: 47.1 | U25: 337 | V25: =VLOOKUP(U25,'Powder Core Toroid OD'!$A$2:$B$36,2,FALSE) -> 132.6
A26: 55339 | B26: 0055339A2 | C26: 337 | D26: 60 | E26: MPP | F26: 158 | G26: Toroid | H26: 32.4 | I26: 324 | J26: 3.039 | K26: 77.19 | L26: 5.274 | M26: 134 | N26: 1.055 | O26: 26.8 | P26: 6.78 | Q26: 678 | R26: 220 | S26: 220000 | T26: 47.1 | U26: 337 | V26: =VLOOKUP(U26,'Powder Core Toroid OD'!$A$2:$B$36,2,FALSE) -> 132.6
A27: 55340 | B27: 0055340A2 | C27: 337 | D27: 125 | E27: MPP | F27: 329 | G27: Toroid | H27: 32.4 | I27: 324 | J27: 3.039 | K27: 77.19 | L27: 5.274 | M27: 134 | N27: 1.055 | O27: 26.8 | P27: 6.78 | Q27: 678 | R27: 220 | S27: 220000 | T27: 47.1 | U27: 337 | V27: =VLOOKUP(U27,'Powder Core Toroid OD'!$A$2:$B$36,2,FALSE) -> 132.6
A28: 55614 | B28: 0055614A2 | C28: 620 | D28: 14 | E28: MPP | F28: 44 | G28: Toroid | H28: 14.4 | I28: 144 | J28: 1.248 | K28: 31.69 | L28: 2.477 | M28: 62.91 | N28: 1.02 | O28: 25.91 | P28: 3.6 | Q28: 360 | R28: 51.8 | S28: 51800 | T28: 7.89 | U28: 620 | V28: =VLOOKUP(U28,'Powder Core Toroid OD'!$A$2:$B$36,2,FALSE) -> 62
A29: 55615 | B29: 0055615A2 | C29: 620 | D29: 26 | E29: MPP | F29: 82 | G29: Toroid | H29: 14.4 | I29: 144 | J29: 1.248 | K29: 31.69 | L29: 2.477 | M29: 62.91 | N29: 1.02 | O29: 25.91 | P29: 3.6 | Q29: 360 | R29: 51.8 | S29: 51800 | T29: 7.89 | U29: 620 | V29: =VLOOKUP(U29,'Powder Core Toroid OD'!$A$2:$B$36,2,FALSE) -> 62
A30: 55617 | B30: C055617A2 | C30: 620 | D30: 60 | E30: MPP | F30: 189 | G30: Toroid | H30: 14.4 | I30: 144 | J30: 1.248 | K30: 31.69 | L30: 2.477 | M30: 62.91 | N30: 1.02 | O30: 25.91 | P30: 3.6 | Q30: 360 | R30: 51.8 | S30: 51800 | T30: 7.89 | U30: 620 | V30: =VLOOKUP(U30,'Powder Core Toroid OD'!$A$2:$B$36,2,FALSE) -> 62
A31: 55620 | B31: C055620A2 | C31: 620 | D31: 125 | E31: MPP | F31: 394 | G31: Toroid | H31: 14.4 | I31: 144 | J31: 1.248 | K31: 31.69 | L31: 2.477 | M31: 62.91 | N31: 1.02 | O31: 25.91 | P31: 3.6 | Q31: 360 | R31: 51.8 | S31: 51800 | T31: 7.89 | U31: 620 | V31: =VLOOKUP(U31,'Powder Core Toroid OD'!$A$2:$B$36,2,FALSE) -> 62
A32: 55734 | B32: 0055734A2 | C32: 740 | D32: 14 | E32: MPP | F32: 48 | G32: Toroid | H32: 18.4 | I32: 184 | J32: 1.748 | K32: 44.39 | L32: 2.953 | M32: 75.01 | N32: 1.414 | O32: 35.92 | P32: 4.97 | Q32: 497 | R32: 91.4 | S32: 91400 | T32: 15.5 | U32: 740 | V32: =VLOOKUP(U32,'Powder Core Toroid OD'!$A$2:$B$36,2,FALSE) -> 74.1
A33: 55735 | B33: 0055735A2 | C33: 740 | D33: 26 | E33: MPP | F33: 88 | G33: Toroid | H33: 18.4 | I33: 184 | J33: 1.748 | K33: 44.39 | L33: 2.953 | M33: 75.01 | N33: 1.414 | O33: 35.92 | P33: 4.97 | Q33: 497 | R33: 91.4 | S33: 91400 | T33: 15.5 | U33: 740 | V33: =VLOOKUP(U33,'Powder Core Toroid OD'!$A$2:$B$36,2,FALSE) -> 74.1
A34: 55737 | B34: C055737A2 | C34: 740 | D34: 60 | E34: MPP | F34: 204 | G34: Toroid | H34: 18.4 | I34: 184 | J34: 1.748 | K34: 44.39 | L34: 2.953 | M34: 75.01 | N34: 1.414 | O34: 35.92 | P34: 4.97 | Q34: 497 | R34: 91.4 | S34: 91400 | T34: 15.5 | U34: 740 | V34: =VLOOKUP(U34,'Powder Core Toroid OD'!$A$2:$B$36,2,FALSE) -> 74.1
A35: 55740 | B35: C055740A2 | C35: 740 | D35: 125 | E35: MPP | F35: 425 | G35: Toroid | H35: 18.4 | I35: 184 | J35: 1.748 | K35: 44.39 | L35: 2.953 | M35: 75.01 | N35: 1.414 | O35: 35.92 | P35: 4.97 | Q35: 497 | R35: 91.4 | S35: 91400 | T35: 15.5 | U35: 740 | V35: =VLOOKUP(U35,'Powder Core Toroid OD'!$A$2:$B$36,2,FALSE) -> 74.1
A36: 58098 | B36: 0058098A2 | C36: 102 | D36: 125 | E36: High Flux | F36: 232 | G36: Toroid | H36: 24.3 | I36: 243 | J36: 2.195 | K36: 55.75 | L36: 4.055 | M36: 103 | N36: 0.705 | O36: 17.9 | P36: 3.58 | Q36: 358 | R36: 86.9 | S36: 86900 | T36: 24.7 | U36: 102 | V36: =VLOOKUP(U36,'Powder Core Toroid OD'!$A$2:$B$36,2,FALSE) -> 101.6
A37: 58099 | B37: 0058099A2 | C37: 102 | D37: 60 | E37: High Flux | F37: 111 | G37: Toroid | H37: 24.3 | I37: 243 | J37: 2.195 | K37: 55.75 | L37: 4.055 | M37: 103 | N37: 0.705 | O37: 17.9 | P37: 3.58 | Q37: 358 | R37: 86.9 | S37: 86900 | T37: 24.7 | U37: 102 | V37: =VLOOKUP(U37,'Powder Core Toroid OD'!$A$2:$B$36,2,FALSE) -> 101.6
A38: 58101 | B38: 0058101A2 | C38: 102 | D38: 14 | E38: High Flux | F38: 26 | G38: Toroid | H38: 24.3 | I38: 243 | J38: 2.195 | K38: 55.75 | L38: 4.055 | M38: 103 | N38: 0.705 | O38: 17.9 | P38: 3.58 | Q38: 358 | R38: 86.9 | S38: 86900 | T38: 24.7 | U38: 102 | V38: =VLOOKUP(U38,'Powder Core Toroid OD'!$A$2:$B$36,2,FALSE) -> 101.6
A39: 58102 | B39: 0058102A2 | C39: 102 | D39: 26 | E39: High Flux | F39: 48 | G39: Toroid | H39: 24.3 | I39: 243 | J39: 2.195 | K39: 55.75 | L39: 4.055 | M39: 103 | N39: 0.705 | O39: 17.9 | P39: 3.58 | Q39: 358 | R39: 86.9 | S39: 86900 | T39: 24.7 | U39: 102 | V39: =VLOOKUP(U39,'Powder Core Toroid OD'!$A$2:$B$36,2,FALSE) -> 101.6
A40: 58164 | B40: 0058164A2 | C40: 165 | D40: 14 | E40: High Flux | F40: 42 | G40: Toroid | H40: 41.2 | I40: 412 | J40: 3.977 | K40: 101 | L40: 6.555 | M40: 166.5 | N40: 1.305 | O40: 33.15 | P40: 9.87 | Q40: 987 | R40: 407 | S40: 407000 | T40: 80.3 | U40: 165 | V40: =VLOOKUP(U40,'Powder Core Toroid OD'!$A$2:$B$36,2,FALSE) -> 165.1
A41: 58165 | B41: 0058165A2 | C41: 165 | D41: 26 | E41: High Flux | F41: 78 | G41: Toroid | H41: 41.2 | I41: 412 | J41: 3.977 | K41: 101 | L41: 6.555 | M41: 166.5 | N41: 1.305 | O41: 33.15 | P41: 9.87 | Q41: 987 | R41: 407 | S41: 407000 | T41: 80.3 | U41: 165 | V41: =VLOOKUP(U41,'Powder Core Toroid OD'!$A$2:$B$36,2,FALSE) -> 165.1
A42: 58167 | B42: 0058167A2 | C42: 165 | D42: 60 | E42: High Flux | F42: 180 | G42: Toroid | H42: 41.2 | I42: 412 | J42: 3.977 | K42: 101 | L42: 6.555 | M42: 166.5 | N42: 1.305 | O42: 33.15 | P42: 9.87 | Q42: 987 | R42: 407 | S42: 407000 | T42: 80.3 | U42: 165 | V42: =VLOOKUP(U42,'Powder Core Toroid OD'!$A$2:$B$36,2,FALSE) -> 165.1
A43: 58336 | B43: 0058336A2 | C43: 337 | D43: 14 | E43: High Flux | F43: 37 | G43: Toroid | H43: 32.4 | I43: 324 | J43: 3.039 | K43: 77.19 | L43: 5.274 | M43: 134 | N43: 1.055 | O43: 26.8 | P43: 6.78 | Q43: 678 | R43: 220 | S43: 220000 | T43: 47.1 | U43: 337 | V43: =VLOOKUP(U43,'Powder Core Toroid OD'!$A$2:$B$36,2,FALSE) -> 132.6
A44: 58337 | B44: 0058337A2 | C44: 337 | D44: 26 | E44: High Flux | F44: 68 | G44: Toroid | H44: 32.4 | I44: 324 | J44: 3.039 | K44: 77.19 | L44: 5.274 | M44: 134 | N44: 1.055 | O44: 26.8 | P44: 6.78 | Q44: 678 | R44: 220 | S44: 220000 | T44: 47.1 | U44: 337 | V44: =VLOOKUP(U44,'Powder Core Toroid OD'!$A$2:$B$36,2,FALSE) -> 132.6
A45: 58339 | B45: 0058339A2 | C45: 337 | D45: 60 | E45: High Flux | F45: 158 | G45: Toroid | H45: 32.4 | I45: 324 | J45: 3.039 | K45: 77.19 | L45: 5.274 | M45: 134 | N45: 1.055 | O45: 26.8 | P45: 6.78 | Q45: 678 | R45: 220 | S45: 220000 | T45: 47.1 | U45: 337 | V45: =VLOOKUP(U45,'Powder Core Toroid OD'!$A$2:$B$36,2,FALSE) -> 132.6
A46: 58340 | B46: 0058340A2 | C46: 337 | D46: 125 | E46: High Flux | F46: 329 | G46: Toroid | H46: 32.4 | I46: 324 | J46: 3.039 | K46: 77.19 | L46: 5.274 | M46: 134 | N46: 1.055 | O46: 26.8 | P46: 6.78 | Q46: 678 | R46: 220 | S46: 220000 | T46: 47.1 | U46: 337 | V46: =VLOOKUP(U46,'Powder Core Toroid OD'!$A$2:$B$36,2,FALSE) -> 132.6
A47: 58587 | B47: 0058587A2 | C47: 585 | D47: 26 | E47: High Flux | F47: 16 | G47: Toroid | H47: 8.95 | I47: 89.5 | J47: 0.888 | K47: 22.5 | L47: 1.385 | M47: 35.18 | N47: 0.385 | O47: 9.78 | P47: 0.464 | Q47: 46.4 | R47: 4.15 | S47: 4150 | T47: 3.99 | U47: 585 | V47: =VLOOKUP(U47,'Powder Core Toroid OD'!$A$2:$B$36,2,FALSE) -> 34.3
A48: 58614 | B48: 0058614A2 | C48: 620 | D48: 14 | E48: High Flux | F48: 44 | G48: Toroid | H48: 14.4 | I48: 144 | J48: 1.248 | K48: 31.69 | L48: 2.477 | M48: 62.91 | N48: 1.02 | O48: 25.91 | P48: 3.6 | Q48: 360 | R48: 51.8 | S48: 51800 | T48: 7.89 | U48: 620 | V48: =VLOOKUP(U48,'Powder Core Toroid OD'!$A$2:$B$36,2,FALSE) -> 62
A49: 58615 | B49: 0058615A2 | C49: 620 | D49: 26 | E49: High Flux | F49: 82 | G49: Toroid | H49: 14.4 | I49: 144 | J49: 1.248 | K49: 31.69 | L49: 2.477 | M49: 62.91 | N49: 1.02 | O49: 25.91 | P49: 3.6 | Q49: 360 | R49: 51.8 | S49: 51800 | T49: 7.89 | U49: 620 | V49: =VLOOKUP(U49,'Powder Core Toroid OD'!$A$2:$B$36,2,FALSE) -> 62
A50: 58617 | B50: C058617A2 | C50: 620 | D50: 60 | E50: High Flux | F50: 189 | G50: Toroid | H50: 14.4 | I50: 144 | J50: 1.248 | K50: 31.69 | L50: 2.477 | M50: 62.91 | N50: 1.02 | O50: 25.91 | P50: 3.6 | Q50: 360 | R50: 51.8 | S50: 51800 | T50: 7.89 | U50: 620 | V50: =VLOOKUP(U50,'Powder Core Toroid OD'!$A$2:$B$36,2,FALSE) -> 62
A51: 58620 | B51: C058620A2 | C51: 620 | D51: 125 | E51: High Flux | F51: 394 | G51: Toroid | H51: 14.4 | I51: 144 | J51: 1.248 | K51: 31.69 | L51: 2.477 | M51: 62.91 | N51: 1.02 | O51: 25.91 | P51: 3.6 | Q51: 360 | R51: 51.8 | S51: 51800 | T51: 7.89 | U51: 620 | V51: =VLOOKUP(U51,'Powder Core Toroid OD'!$A$2:$B$36,2,FALSE) -> 62
A52: 58734 | B52: 0058734A2 | C52: 740 | D52: 14 | E52: High Flux | F52: 48 | G52: Toroid | H52: 18.4 | I52: 184 | J52: 1.748 | K52: 44.39 | L52: 2.953 | M52: 75.01 | N52: 1.414 | O52: 35.92 | P52: 4.97 | Q52: 497 | R52: 91.4 | S52: 91400 | T52: 15.5 | U52: 740 | V52: =VLOOKUP(U52,'Powder Core Toroid OD'!$A$2:$B$36,2,FALSE) -> 74.1
A53: 58735 | B53: 0058735A2 | C53: 740 | D53: 26 | E53: High Flux | F53: 88 | G53: Toroid | H53: 18.4 | I53: 184 | J53: 1.748 | K53: 44.39 | L53: 2.953 | M53: 75.01 | N53: 1.414 | O53: 35.92 | P53: 4.97 | Q53: 497 | R53: 91.4 | S53: 91400 | T53: 15.5 | U53: 740 | V53: =VLOOKUP(U53,'Powder Core Toroid OD'!$A$2:$B$36,2,FALSE) -> 74.1
A54: 58737 | B54: C058737A2 | C54: 740 | D54: 60 | E54: High Flux | F54: 204 | G54: Toroid | H54: 18.4 | I54: 184 | J54: 1.748 | K54: 44.39 | L54: 2.953 | M54: 75.01 | N54: 1.414 | O54: 35.92 | P54: 4.97 | Q54: 497 | R54: 91.4 | S54: 91400 | T54: 15.5 | U54: 740 | V54: =VLOOKUP(U54,'Powder Core Toroid OD'!$A$2:$B$36,2,FALSE) -> 74.1
A55: 58740 | B55: C058740A2 | C55: 740 | D55: 125 | E55: High Flux | F55: 425 | G55: Toroid | H55: 18.4 | I55: 184 | J55: 1.748 | K55: 44.39 | L55: 2.953 | M55: 75.01 | N55: 1.414 | O55: 35.92 | P55: 4.97 | Q55: 497 | R55: 91.4 | S55: 91400 | T55: 15.5 | U55: 740 | V55: =VLOOKUP(U55,'Powder Core Toroid OD'!$A$2:$B$36,2,FALSE) -> 74.1
A56: 77098 | B56: 0077098A7 | C56: 102 | D56: 125 | E56: Kool Mu | F56: 232 | G56: Toroid | H56: 24.3 | I56: 243 | J56: 2.195 | K56: 55.75 | L56: 4.055 | M56: 103 | N56: 0.705 | O56: 17.9 | P56: 3.58 | Q56: 358 | R56: 86.9 | S56: 86900 | T56: 24.7 | U56: 102 | V56: =VLOOKUP(U56,'Powder Core Toroid OD'!$A$2:$B$36,2,FALSE) -> 101.6
A57: 77099 | B57: 0077099A7 | C57: 102 | D57: 60 | E57: Kool Mu | F57: 111 | G57: Toroid | H57: 24.3 | I57: 243 | J57: 2.195 | K57: 55.75 | L57: 4.055 | M57: 103 | N57: 0.705 | O57: 17.9 | P57: 3.58 | Q57: 358 | R57: 86.9 | S57: 86900 | T57: 24.7 | U57: 102 | V57: =VLOOKUP(U57,'Powder Core Toroid OD'!$A$2:$B$36,2,FALSE) -> 101.6
A58: 77100 | B58: 0077100A7 | C58: 102 | D58: 40 | E58: Kool Mu | F58: 74 | G58: Toroid | H58: 24.3 | I58: 243 | J58: 2.195 | K58: 55.75 | L58: 4.055 | M58: 103 | N58: 0.705 | O58: 17.9 | P58: 3.58 | Q58: 358 | R58: 86.9 | S58: 86900 | T58: 24.7 | U58: 102 | V58: =VLOOKUP(U58,'Powder Core Toroid OD'!$A$2:$B$36,2,FALSE) -> 101.6
A59: 77102 | B59: 0077102A7 | C59: 102 | D59: 26 | E59: Kool Mu | F59: 48 | G59: Toroid | H59: 24.3 | I59: 243 | J59: 2.195 | K59: 55.75 | L59: 4.055 | M59: 103 | N59: 0.705 | O59: 17.9 | P59: 3.58 | Q59: 358 | R59: 86.9 | S59: 86900 | T59: 24.7 | U59: 102 | V59: =VLOOKUP(U59,'Powder Core Toroid OD'!$A$2:$B$36,2,FALSE) -> 101.6
A60: 77165 | B60: 0077165A7 | C60: 165 | D60: 26 | E60: Kool Mu | F60: 78 | G60: Toroid | H60: 41.2 | I60: 412 | J60: 3.977 | K60: 101 | L60: 6.555 | M60: 166.5 | N60: 1.305 | O60: 33.15 | P60: 9.87 | Q60: 987 | R60: 407 | S60: 407000 | T60: 80.3 | U60: 165 | V60: =VLOOKUP(U60,'Powder Core Toroid OD'!$A$2:$B$36,2,FALSE) -> 165.1
A61: 77337 | B61: 0077337A7 | C61: 337 | D61: 26 | E61: Kool Mu | F61: 68 | G61: Toroid | H61: 32.4 | I61: 324 | J61: 3.039 | K61: 77.19 | L61: 5.274 | M61: 134 | N61: 1.055 | O61: 26.8 | P61: 6.78 | Q61: 678 | R61: 220 | S61: 220000 | T61: 47.1 | U61: 337 | V61: =VLOOKUP(U61,'Powder Core Toroid OD'!$A$2:$B$36,2,FALSE) -> 132.6
A62: 77615 | B62: 0077615A7 | C62: 620 | D62: 26 | E62: Kool Mu | F62: 82 | G62: Toroid | H62: 14.4 | I62: 144 | J62: 1.248 | K62: 31.69 | L62: 2.477 | M62: 62.91 | N62: 1.02 | O62: 25.91 | P62: 3.6 | Q62: 360 | R62: 51.8 | S62: 51800 | T62: 7.89 | U62: 620 | V62: =VLOOKUP(U62,'Powder Core Toroid OD'!$A$2:$B$36,2,FALSE) -> 62
A63: 77616 | B63: 0077616A7 | C63: 620 | D63: 40 | E63: Kool Mu | F63: 126 | G63: Toroid | H63: 14.4 | I63: 144 | J63: 1.248 | K63: 31.69 | L63: 2.477 | M63: 62.91 | N63: 1.02 | O63: 25.91 | P63: 3.6 | Q63: 360 | R63: 51.8 | S63: 51800 | T63: 7.89 | U63: 620 | V63: =VLOOKUP(U63,'Powder Core Toroid OD'!$A$2:$B$36,2,FALSE) -> 62
A64: 77617 | B64: 0077617A7 | C64: 620 | D64: 60 | E64: Kool Mu | F64: 189 | G64: Toroid | H64: 14.4 | I64: 144 | J64: 1.248 | K64: 31.69 | L64: 2.477 | M64: 62.91 | N64: 1.02 | O64: 25.91 | P64: 3.6 | Q64: 360 | R64: 51.8 | S64: 51800 | T64: 7.89 | U64: 620 | V64: =VLOOKUP(U64,'Powder Core Toroid OD'!$A$2:$B$36,2,FALSE) -> 62
A65: 77618 | B65: 0077618A7 | C65: 620 | D65: 75 | E65: Kool Mu | F65: 237 | G65: Toroid | H65: 14.4 | I65: 144 | J65: 1.248 | K65: 31.69 | L65: 2.477 | M65: 62.91 | N65: 1.02 | O65: 25.91 | P65: 3.6 | Q65: 360 | R65: 51.8 | S65: 51800 | T65: 7.89 | U65: 620 | V65: =VLOOKUP(U65,'Powder Core Toroid OD'!$A$2:$B$36,2,FALSE) -> 62
A66: 77619 | B66: 0077619A7 | C66: 620 | D66: 90 | E66: Kool Mu | F66: 284 | G66: Toroid | H66: 14.4 | I66: 144 | J66: 1.248 | K66: 31.69 | L66: 2.477 | M66: 62.91 | N66: 1.02 | O66: 25.91 | P66: 3.6 | Q66: 360 | R66: 51.8 | S66: 51800 | T66: 7.89 | U66: 620 | V66: =VLOOKUP(U66,'Powder Core Toroid OD'!$A$2:$B$36,2,FALSE) -> 62
A67: 77620 | B67: 0077620A7 | C67: 620 | D67: 125 | E67: Kool Mu | F67: 394 | G67: Toroid | H67: 14.4 | I67: 144 | J67: 1.248 | K67: 31.69 | L67: 2.477 | M67: 62.91 | N67: 1.02 | O67: 25.91 | P67: 3.6 | Q67: 360 | R67: 51.8 | S67: 51800 | T67: 7.89 | U67: 620 | V67: =VLOOKUP(U67,'Powder Core Toroid OD'!$A$2:$B$36,2,FALSE) -> 62
A68: 77735 | B68: 0077735A7 | C68: 740 | D68: 26 | E68: Kool Mu | F68: 88 | G68: Toroid | H68: 18.4 | I68: 184 | J68: 1.748 | K68: 44.39 | L68: 2.953 | M68: 75.01 | N68: 1.414 | O68: 35.92 | P68: 4.97 | Q68: 497 | R68: 91.4 | S68: 91400 | T68: 15.5 | U68: 740 | V68: =VLOOKUP(U68,'Powder Core Toroid OD'!$A$2:$B$36,2,FALSE) -> 74.1
A69: 77736 | B69: 0077736A7 | C69: 740 | D69: 40 | E69: Kool Mu | F69: 136 | G69: Toroid | H69: 18.4 | I69: 184 | J69: 1.748 | K69: 44.39 | L69: 2.953 | M69: 75.01 | N69: 1.414 | O69: 35.92 | P69: 4.97 | Q69: 497 | R69: 91.4 | S69: 91400 | T69: 15.5 | U69: 740 | V69: =VLOOKUP(U69,'Powder Core Toroid OD'!$A$2:$B$36,2,FALSE) -> 74.1
A70: 77737 | B70: 0077737A7 | C70: 740 | D70: 60 | E70: Kool Mu | F70: 204 | G70: Toroid | H70: 18.4 | I70: 184 | J70: 1.748 | K70: 44.39 | L70: 2.953 | M70: 75.01 | N70: 1.414 | O70: 35.92 | P70: 4.97 | Q70: 497 | R70: 91.4 | S70: 91400 | T70: 15.5 | U70: 740 | V70: =VLOOKUP(U70,'Powder Core Toroid OD'!$A$2:$B$36,2,FALSE) -> 74.1
A71: 77738 | B71: 0077738A7 | C71: 740 | D71: 75 | E71: Kool Mu | F71: 255 | G71: Toroid | H71: 18.4 | I71: 184 | J71: 1.748 | K71: 44.39 | L71: 2.953 | M71: 75.01 | N71: 1.414 | O71: 35.92 | P71: 4.97 | Q71: 497 | R71: 91.4 | S71: 91400 | T71: 15.5 | U71: 740 | V71: =VLOOKUP(U71,'Powder Core Toroid OD'!$A$2:$B$36,2,FALSE) -> 74.1
A72: 77739 | B72: 0077739A7 | C72: 740 | D72: 90 | E72: Kool Mu | F72: 306 | G72: Toroid | H72: 18.4 | I72: 184 | J72: 1.748 | K72: 44.39 | L72: 2.953 | M72: 75.01 | N72: 1.414 | O72: 35.92 | P72: 4.97 | Q72: 497 | R72: 91.4 | S72: 91400 | T72: 15.5 | U72: 740 | V72: =VLOOKUP(U72,'Powder Core Toroid OD'!$A$2:$B$36,2,FALSE) -> 74.1
A73: 77740 | B73: 0077740A7 | C73: 740 | D73: 125 | E73: Kool Mu | F73: 425 | G73: Toroid | H73: 18.4 | I73: 184 | J73: 1.748 | K73: 44.39 | L73: 2.953 | M73: 75.01 | N73: 1.414 | O73: 35.92 | P73: 4.97 | Q73: 497 | R73: 91.4 | S73: 91400 | T73: 15.5 | U73: 740 | V73: =VLOOKUP(U73,'Powder Core Toroid OD'!$A$2:$B$36,2,FALSE) -> 74.1
A74: 301 | B74: 00M0301T125 | C74: 0301 | D74: 125 | E74: MPP | F74: 8.4 | G74: Thinz | H74: 0.704 | I74: 7.04 | J74: 0.067 | K74: 1.7 | L74: 0.125 | M74: 3.18 | N74: 0.035 | O74: 0.89 | P74: 0.004 | Q74: 0.4 | R74: 0.0028 | S74: 2.8
A75: 301 | B75: 00M0301T160 | C75: 0301 | D75: 160 | E75: MPP | F75: 10.8 | G75: Thinz | H75: 0.704 | I75: 7.04 | J75: 0.067 | K75: 1.7 | L75: 0.125 | M75: 3.18 | N75: 0.035 | O75: 0.89 | P75: 0.004 | Q75: 0.4 | R75: 0.0028 | S75: 2.8
A76: 301 | B76: 00M0301T200 | C76: 0301 | D76: 200 | E76: MPP | F76: 13.5 | G76: Thinz | H76: 0.704 | I76: 7.04 | J76: 0.067 | K76: 1.7 | L76: 0.125 | M76: 3.18 | N76: 0.035 | O76: 0.89 | P76: 0.004 | Q76: 0.4 | R76: 0.0028 | S76: 2.8
A77: 301 | B77: 00M0301T250 | C77: 0301 | D77: 250 | E77: MPP | F77: 16.9 | G77: Thinz | H77: 0.704 | I77: 7.04 | J77: 0.067 | K77: 1.7 | L77: 0.125 | M77: 3.18 | N77: 0.035 | O77: 0.89 | P77: 0.004 | Q77: 0.4 | R77: 0.0028 | S77: 2.8
A78: 302 | B78: 00M0302T125 | C78: 0302 | D78: 125 | E78: MPP | F78: 11.6 | G78: Thinz | H78: 0.806 | I78: 8.06 | J78: 0.067 | K78: 1.7 | L78: 0.145 | M78: 3.69 | N78: 0.035 | O78: 0.89 | P78: 0.006 | Q78: 0.6 | R78: 0.0048 | S78: 4.8
A79: 302 | B79: 00M0302T160 | C79: 0302 | D79: 160 | E79: MPP | F79: 14.8 | G79: Thinz | H79: 0.806 | I79: 8.06 | J79: 0.067 | K79: 1.7 | L79: 0.145 | M79: 3.69 | N79: 0.035 | O79: 0.89 | P79: 0.006 | Q79: 0.6 | R79: 0.0048 | S79: 4.8
A80: 302 | B80: 00M0302T200 | C80: 0302 | D80: 200 | E80: MPP | F80: 18.7 | G80: Thinz | H80: 0.806 | I80: 8.06 | J80: 0.067 | K80: 1.7 | L80: 0.145 | M80: 3.69 | N80: 0.035 | O80: 0.89 | P80: 0.006 | Q80: 0.6 | R80: 0.0048 | S80: 4.8
A81: 302 | B81: 00M0302T250 | C81: 0302 | D81: 250 | E81: MPP | F81: 23.4 | G81: Thinz | H81: 0.806 | I81: 8.06 | J81: 0.067 | K81: 1.7 | L81: 0.145 | M81: 3.69 | N81: 0.035 | O81: 0.89 | P81: 0.006 | Q81: 0.6 | R81: 0.0048 | S81: 4.8
A82: 402 | B82: 00M0402T125 | C82: 0402 | D82: 125 | E82: MPP | F82: 9.6 | G82: Thinz | H82: 0.944 | I82: 9.44 | J82: 0.084 | K82: 2.13 | L82: 0.16 | M82: 4.07 | N82: 0.035 | O82: 0.89 | P82: 0.0058 | Q82: 0.58 | R82: 0.0055 | S82: 5.5
A83: 402 | B83: 00M0402T160 | C83: 0402 | D83: 160 | E83: MPP | F83: 12.3 | G83: Thinz | H83: 0.944 | I83: 9.44 | J83: 0.084 | K83: 2.13 | L83: 0.16 | M83: 4.07 | N83: 0.035 | O83: 0.89 | P83: 0.0058 | Q83: 0.58 | R83: 0.0055 | S83: 5.5
A84: 402 | B84: 00M0402T200 | C84: 0402 | D84: 200 | E84: MPP | F84: 15.4 | G84: Thinz | H84: 0.944 | I84: 9.44 | J84: 0.084 | K84: 2.13 | L84: 0.16 | M84: 4.07 | N84: 0.035 | O84: 0.89 | P84: 0.0058 | Q84: 0.58 | R84: 0.0055 | S84: 5.5
A85: 402 | B85: 00M0402T250 | C85: 0402 | D85: 250 | E85: MPP | F85: 19.3 | G85: Thinz | H85: 0.944 | I85: 9.44 | J85: 0.084 | K85: 2.13 | L85: 0.16 | M85: 4.07 | N85: 0.035 | O85: 0.89 | P85: 0.0058 | Q85: 0.58 | R85: 0.0055 | S85: 5.5
A86: 502 | B86: 00M0502T125 | C86: 0502 | D86: 125 | E86: MPP | F86: 11.7 | G86: Thinz | H86: 1.06 | I86: 10.6 | J86: 0.089 | K86: 2.26 | L86: 0.186 | M86: 4.73 | N86: 0.035 | O86: 0.89 | P86: 0.0079 | Q86: 0.79 | R86: 0.0083 | S86: 8.3
A87: 502 | B87: 00M0502T160 | C87: 0502 | D87: 160 | E87: MPP | F87: 15 | G87: Thinz | H87: 1.06 | I87: 10.6 | J87: 0.089 | K87: 2.26 | L87: 0.186 | M87: 4.73 | N87: 0.035 | O87: 0.89 | P87: 0.0079 | Q87: 0.79 | R87: 0.0083 | S87: 8.3
A88: 502 | B88: 00M0502T200 | C88: 0502 | D88: 200 | E88: MPP | F88: 18.7 | G88: Thinz | H88: 1.06 | I88: 10.6 | J88: 0.089 | K88: 2.26 | L88: 0.186 | M88: 4.73 | N88: 0.035 | O88: 0.89 | P88: 0.0079 | Q88: 0.79 | R88: 0.0083 | S88: 8.3
A89: 502 | B89: 00M0502T250 | C89: 0502 | D89: 250 | E89: MPP | F89: 23.4 | G89: Thinz | H89: 1.06 | I89: 10.6 | J89: 0.089 | K89: 2.26 | L89: 0.186 | M89: 4.73 | N89: 0.035 | O89: 0.89 | P89: 0.0079 | Q89: 0.79 | R89: 0.0083 | S89: 8.3
A90: 603 | B90: 00M0603T125 | C90: 0603 | D90: 125 | E90: MPP | F90: 14.9 | G90: Thinz | H90: 1.36 | I90: 13.6 | J90: 0.105 | K90: 2.67 | L90: 0.255 | M90: 6.48 | N90: 0.035 | O90: 0.89 | P90: 0.013 | Q90: 1.3 | R90: 0.0177 | S90: 17.7
A91: 603 | B91: 00M0603T160 | C91: 0603 | D91: 160 | E91: MPP | F91: 19.1 | G91: Thinz | H91: 1.36 | I91: 13.6 | J91: 0.105 | K91: 2.67 | L91: 0.255 | M91: 6.48 | N91: 0.035 | O91: 0.89 | P91: 0.013 | Q91: 1.3 | R91: 0.0177 | S91: 17.7
A92: 603 | B92: 00M0603T200 | C92: 0603 | D92: 200 | E92: MPP | F92: 24 | G92: Thinz | H92: 1.36 | I92: 13.6 | J92: 0.105 | K92: 2.67 | L92: 0.255 | M92: 6.48 | N92: 0.035 | O92: 0.89 | P92: 0.013 | Q92: 1.3 | R92: 0.0177 | S92: 17.7
A93: 603 | B93: 00M0603T250 | C93: 0603 | D93: 250 | E93: MPP | F93: 30 | G93: Thinz | H93: 1.36 | I93: 13.6 | J93: 0.105 | K93: 2.67 | L93: 0.255 | M93: 6.48 | N93: 0.035 | O93: 0.89 | P93: 0.013 | Q93: 1.3 | R93: 0.0177 | S93: 17.7
A94: 804 | B94: 00M0804T125 | C94: 0804 | D94: 125 | E94: MPP | F94: 12.6 | G94: Thinz | H94: 1.79 | I94: 17.9 | J94: 0.151 | K94: 3.83 | L94: 0.316 | M94: 8.03 | N94: 0.035 | O94: 0.89 | P94: 0.0145 | Q94: 1.45 | R94: 0.0259 | S94: 25.9
A95: 804 | B95: 00M0804T160 | C95: 0804 | D95: 160 | E95: MPP | F95: 16.2 | G95: Thinz | H95: 1.79 | I95: 17.9 | J95: 0.151 | K95: 3.83 | L95: 0.316 | M95: 8.03 | N95: 0.035 | O95: 0.89 | P95: 0.0145 | Q95: 1.45 | R95: 0.0259 | S95: 25.9
A96: 804 | B96: 00M0804T200 | C96: 0804 | D96: 200 | E96: MPP | F96: 20.2 | G96: Thinz | H96: 1.79 | I96: 17.9 | J96: 0.151 | K96: 3.83 | L96: 0.316 | M96: 8.03 | N96: 0.035 | O96: 0.89 | P96: 0.0145 | Q96: 1.45 | R96: 0.0259 | S96: 25.9
A97: 804 | B97: 00M0804T250 | C97: 0804 | D97: 250 | E97: MPP | F97: 25.3 | G97: Thinz | H97: 1.79 | I97: 17.9 | J97: 0.151 | K97: 3.83 | L97: 0.316 | M97: 8.03 | N97: 0.035 | O97: 0.89 | P97: 0.0145 | Q97: 1.45 | R97: 0.0259 | S97: 25.9
A98: 102RT | B98: 00K102RT026 | C98: 102RT | D98: 26 | E98: Kool Mu | F98: 30 | G98: Segment | H98: 35.7 | I98: 357 | J98: 2.25 | K98: 57.2 | L98: 6.25 | M98: 159 | N98: 0.65 | O98: 16.5 | P98: 3.56 | Q98: 356 | R98: 127 | S98: 127000
A99: 130LE | B99: 00K130LE026 | C99: 130LE | D99: 26 | E99: Kool Mu | F99: 254 | G99: E Core | H99: 21.9 | I99: 219 | J99: 1.292 | K99: 32.82 | L99: 5.28 | M99: 134.1 | N99: 2.17 | O99: 55.12 | P99: 10.8 | Q99: 1080 | R99: 237 | S99: 237000
A100: 133RT | B100: 00K133RT026 | C100: 133RT | D100: 26 | E100: Kool Mu | F100: 46 | G100: Segment | H100: 47.7 | I100: 477 | J100: 3.09 | K100: 78.6 | L100: 8.22 | M100: 209 | N100: 1 | O100: 25.4 | P100: 6.69 | Q100: 669 | R100: 319 | S100: 319000
A101: 160LE | B101: 00K160LE026 | C101: 160LE | D101: 26 | E101: Kool Mu | F101: 180 | G101: E Core | H101: 27.3 | I101: 273 | J101: 1.525 | K101: 38.74 | L101: 6.4 | M101: 162.6 | N101: 1.61 | O101: 40.89 | P101: 7.78 | Q101: 778 | R101: 212 | S101: 212000
A102: 1808 | B102: 00K1808E026 | C102: 1808 | D102: 26 | E102: Kool Mu | F102: 26 | G102: E Core | H102: 4.01 | I102: 40.1 | J102: 0.326 | K102: 8.28 | L102: 0.772 | M102: 19.6 | N102: 0.194 | O102: 4.93 | P102: 0.228 | Q102: 22.8 | R102: 0.914 | S102: 914
A103: 1808 | B103: 00K1808E040 | C103: 1808 | D103: 40 | E103: Kool Mu | F103: 35 | G103: E Core | H103: 4.01 | I103: 40.1 | J103: 0.326 | K103: 8.28 | L103: 0.772 | M103: 19.6 | N103: 0.194 | O103: 4.93 | P103: 0.228 | Q103: 22.8 | R103: 0.914 | S103: 914
A104: 1808 | B104: 00K1808E060 | C104: 1808 | D104: 60 | E104: Kool Mu | F104: 48 | G104: E Core | H104: 4.01 | I104: 40.1 | J104: 0.326 | K104: 8.28 | L104: 0.772 | M104: 19.6 | N104: 0.194 | O104: 4.93 | P104: 0.228 | Q104: 22.8 | R104: 0.914 | S104: 914
A105: 1808 | B105: 00K1808E090 | C105: 1808 | D105: 90 | E105: Kool Mu | F105: 69 | G105: E Core | H105: 4.01 | I105: 40.1 | J105: 0.326 | K105: 8.28 | L105: 0.772 | M105: 19.6 | N105: 0.194 | O105: 4.93 | P105: 0.228 | Q105: 22.8 | R105: 0.914 | S105: 914
A106: 2510 | B106: 00K2510E026 | C106: 2510 | D106: 26 | E106: Kool Mu | F106: 39 | G106: E Core | H106: 4.85 | I106: 48.5 | J106: 0.382 | K106: 9.7 | L106: 1.015 | M106: 25.78 | N106: 0.254 | O106: 6.45 | P106: 0.385 | Q106: 38.5 | R106: 1.87 | S106: 1870
A107: 2510 | B107: 00K2510E040 | C107: 2510 | D107: 40 | E107: Kool Mu | F107: 52 | G107: E Core | H107: 4.85 | I107: 48.5 | J107: 0.382 | K107: 9.7 | L107: 1.015 | M107: 25.78 | N107: 0.254 | O107: 6.45 | P107: 0.385 | Q107: 38.5 | R107: 1.87 | S107: 1870
A108: 2510 | B108: 00K2510E060 | C108: 2510 | D108: 60 | E108: Kool Mu | F108: 70 | G108: E Core | H108: 4.85 | I108: 48.5 | J108: 0.382 | K108: 9.7 | L108: 1.015 | M108: 25.78 | N108: 0.254 | O108: 6.45 | P108: 0.385 | Q108: 38.5 | R108: 1.87 | S108: 1870
A109: 2510 | B109: 00K2510E090 | C109: 2510 | D109: 90 | E109: Kool Mu | F109: 100 | G109: E Core | H109: 4.85 | I109: 48.5 | J109: 0.382 | K109: 9.7 | L109: 1.015 | M109: 25.78 | N109: 0.254 | O109: 6.45 | P109: 0.385 | Q109: 38.5 | R109: 1.87 | S109: 1870
A110: 3007 | B110: 00K3007E026 | C110: 3007 | D110: 26 | E110: Kool Mu | F110: 33 | G110: E Core | H110: 6.56 | I110: 65.6 | J110: 0.6 | K110: 15.3 | L110: 1.203 | M110: 30.56 | N110: 0.284 | O110: 7.21 | P110: 0.601 | Q110: 60.1 | R110: 3.94 | S110: 3940
A111: 3007 | B111: 00K3007E040 | C111: 3007 | D111: 40 | E111: Kool Mu | F111: 46 | G111: E Core | H111: 6.56 | I111: 65.6 | J111: 0.6 | K111: 15.3 | L111: 1.203 | M111: 30.56 | N111: 0.284 | O111: 7.21 | P111: 0.601 | Q111: 60.1 | R111: 3.94 | S111: 3940
A112: 3007 | B112: 00K3007E060 | C112: 3007 | D112: 60 | E112: Kool Mu | F112: 71 | G112: E Core | H112: 6.56 | I112: 65.6 | J112: 0.6 | K112: 15.3 | L112: 1.203 | M112: 30.56 | N112: 0.284 | O112: 7.21 | P112: 0.601 | Q112: 60.1 | R112: 3.94 | S112: 3940
A113: 3007 | B113: 00K3007E090 | C113: 3007 | D113: 90 | E113: Kool Mu | F113: 92 | G113: E Core | H113: 6.56 | I113: 65.6 | J113: 0.6 | K113: 15.3 | L113: 1.203 | M113: 30.56 | N113: 0.284 | O113: 7.21 | P113: 0.601 | Q113: 60.1 | R113: 3.94 | S113: 3940
A114: 3112 | B114: 00K3112U060 | C114: 3112 | D114: 60 | E114: Kool Mu | F114: 111 | G114: U Core | H114: 6.56 | I114: 65.6 | J114: 0.45 | K114: 11.4 | L114: 1.25 | M114: =L114*25.4 -> 31.75 | N114: 0.49 | O114: 12.5 | P114: 1.01 | Q114: 101 | R114: 6.63 | S114: 6630
A115: 3112 | B115: 00K3112U040 | C115: 3112 | D115: 40 | E115: Kool Mu | F115: 92 | G115: U Core | H115: 6.56 | I115: 65.6 | J115: 0.45 | K115: 11.4 | L115: 1.25 | M115: =L115*25.4 -> 31.75 | N115: 0.49 | O115: 12.5 | P115: 1.01 | Q115: 101 | R115: 6.63 | S115: 6630
A116: 3112 | B116: 00K3112U090 | C116: 3112 | D116: 90 | E116: Kool Mu | F116: 179 | G116: U Core | H116: 6.56 | I116: 65.6 | J116: 0.45 | K116: 11.4 | L116: 1.25 | M116: =L116*25.4 -> 31.75 | N116: 0.49 | O116: 12.5 | P116: 1.01 | Q116: 101 | R116: 6.63 | S116: 6630
A117: 3515 | B117: 00K3515E026 | C117: 3515 | D117: 26 | E117: Kool Mu | F117: 56 | G117: E Core | H117: 6.94 | I117: 69.4 | J117: 0.566 | K117: 14.4 | L117: 1.38 | M117: 35.05 | N117: 0.375 | O117: 9.53 | P117: 0.84 | Q117: 84 | R117: 5.83 | S117: 5830
A118: 3515 | B118: 00K3515E040 | C118: 3515 | D118: 40 | E118: Kool Mu | F118: 75 | G118: E Core | H118: 6.94 | I118: 69.4 | J118: 0.566 | K118: 14.4 | L118: 1.38 | M118: 35.05 | N118: 0.375 | O118: 9.53 | P118: 0.84 | Q118: 84 | R118: 5.83 | S118: 5830
A119: 3515 | B119: 00K3515E060 | C119: 3515 | D119: 60 | E119: Kool Mu | F119: 102 | G119: E Core | H119: 6.94 | I119: 69.4 | J119: 0.566 | K119: 14.4 | L119: 1.38 | M119: 35.05 | N119: 0.375 | O119: 9.53 | P119: 0.84 | Q119: 84 | R119: 5.83 | S119: 5830
A120: 3515 | B120: 00K3515E090 | C120: 3515 | D120: 90 | E120: Kool Mu | F120: 146 | G120: E Core | H120: 6.94 | I120: 69.4 | J120: 0.566 | K120: 14.4 | L120: 1.38 | M120: 35.05 | N120: 0.375 | O120: 9.53 | P120: 0.84 | Q120: 84 | R120: 5.83 | S120: 5830
A121: 4017 | B121: 00K4017E026 | C121: 4017 | D121: 26 | E121: Kool Mu | F121: 56 | G121: E Core | H121: 9.84 | I121: 98.4 | J121: 0.842 | K121: 21.4 | L121: 1.712 | M121: 43.48 | N121: 0.434 | O121: 11 | P121: 1.28 | Q121: 128 | R121: 12.6 | S121: 12600
A122: 4017 | B122: 00K4017E040 | C122: 4017 | D122: 40 | E122: Kool Mu | F122: 76 | G122: E Core | H122: 9.84 | I122: 98.4 | J122: 0.842 | K122: 21.4 | L122: 1.712 | M122: 43.48 | N122: 0.434 | O122: 11 | P122: 1.28 | Q122: 128 | R122: 12.6 | S122: 12600
A123: 4017 | B123: 00K4017E060 | C123: 4017 | D123: 60 | E123: Kool Mu | F123: 105 | G123: E Core | H123: 9.84 | I123: 98.4 | J123: 0.842 | K123: 21.4 | L123: 1.712 | M123: 43.48 | N123: 0.434 | O123: 11 | P123: 1.28 | Q123: 128 | R123: 12.6 | S123: 12600
A124: 4017 | B124: 00K4017E090 | C124: 4017 | D124: 90 | E124: Kool Mu | F124: 151 | G124: E Core | H124: 9.84 | I124: 98.4 | J124: 0.842 | K124: 21.4 | L124: 1.712 | M124: 43.48 | N124: 0.434 | O124: 11 | P124: 1.28 | Q124: 128 | R124: 12.6 | S124: 12600
A125: 4020 | B125: 00K4020E026 | C125: 4020 | D125: 26 | E125: Kool Mu | F125: 80 | G125: E Core | H125: 9.84 | I125: 98.4 | J125: 0.843 | K125: 21.4 | L125: 1.712 | M125: 43.49 | N125: 0.618 | O125: 15.7 | P125: 1.83 | Q125: 183 | R125: 18 | S125: 18000
A126: 4020 | B126: 00K4020E040 | C126: 4020 | D126: 40 | E126: Kool Mu | F126: 108 | G126: E Core | H126: 9.84 | I126: 98.4 | J126: 0.843 | K126: 21.4 | L126: 1.712 | M126: 43.49 | N126: 0.618 | O126: 15.7 | P126: 1.83 | Q126: 183 | R126: 18 | S126: 18000
A127: 4020 | B127: 00K4020E060 | C127: 4020 | D127: 60 | E127: Kool Mu | F127: 150 | G127: E Core | H127: 9.84 | I127: 98.4 | J127: 0.843 | K127: 21.4 | L127: 1.712 | M127: 43.49 | N127: 0.618 | O127: 15.7 | P127: 1.83 | Q127: 183 | R127: 18 | S127: 18000
A128: 4020 | B128: 00K4020E090 | C128: 4020 | D128: 90 | E128: Kool Mu | F128: 217 | G128: E Core | H128: 9.84 | I128: 98.4 | J128: 0.843 | K128: 21.4 | L128: 1.712 | M128: 43.49 | N128: 0.618 | O128: 15.7 | P128: 1.83 | Q128: 183 | R128: 18 | S128: 18000
A129: 4022 | B129: 00K4022E026 | C129: 4022 | D129: 26 | E129: Kool Mu | F129: 104 | G129: E Core | H129: 9.84 | I129: 98.4 | J129: 0.843 | K129: 21.4 | L129: 1.712 | M129: 43.49 | N129: 0.798 | O129: 20.3 | P129: 2.37 | Q129: 237 | R129: 23.3 | S129: 23300
A130: 4022 | B130: 00K4022E040 | C130: 4022 | D130: 40 | E130: Kool Mu | F130: 140 | G130: E Core | H130: 9.84 | I130: 98.4 | J130: 0.843 | K130: 21.4 | L130: 1.712 | M130: 43.49 | N130: 0.798 | O130: 20.3 | P130: 2.37 | Q130: 237 | R130: 23.3 | S130: 23300
A131: 4022 | B131: 00K4022E060 | C131: 4022 | D131: 60 | E131: Kool Mu | F131: 194 | G131: E Core | H131: 9.84 | I131: 98.4 | J131: 0.843 | K131: 21.4 | L131: 1.712 | M131: 43.49 | N131: 0.798 | O131: 20.3 | P131: 2.37 | Q131: 237 | R131: 23.3 | S131: 23300
A132: 4022 | B132: 00K4022E090 | C132: 4022 | D132: 90 | E132: Kool Mu | F132: 281 | G132: E Core | H132: 9.84 | I132: 98.4 | J132: 0.843 | K132: 21.4 | L132: 1.712 | M132: 43.49 | N132: 0.798 | O132: 20.3 | P132: 2.37 | Q132: 237 | R132: 23.3 | S132: 23300
A133: 4110 | B133: 00K4110U060 | C133: 4110 | D133: 60 | E133: Kool Mu | F133: 78 | G133: U Core | H133: 8.52 | I133: 85.2 | J133: 0.46 | K133: 11.7 | L133: 1.62 | M133: 41.15 | N133: 0.39 | O133: 9.91 | P133: 0.8 | Q133: 80 | R133: 6.82 | S133: 6820
A134: 4110 | B134: 00K4110U040 | C134: 4110 | D134: 40 | E134: Kool Mu | F134: 56 | G134: U Core | H134: 8.52 | I134: 85.2 | J134: 0.46 | K134: 11.7 | L134: 1.62 | M134: 41.15 | N134: 0.39 | O134: 9.91 | P134: 0.8 | Q134: 80 | R134: 6.82 | S134: 6820
A135: 4110 | B135: 00K4110U090 | C135: 4110 | D135: 90 | E135: Kool Mu | F135: 109 | G135: U Core | H135: 8.52 | I135: 85.2 | J135: 0.46 | K135: 11.7 | L135: 1.62 | M135: 41.15 | N135: 0.39 | O135: 9.91 | P135: 0.8 | Q135: 80 | R135: 6.82 | S135: 6820
A136: 4111 | B136: 00K4111U060 | C136: 4111 | D136: 60 | E136: Kool Mu | F136: 95 | G136: U Core | H136: 8.52 | I136: 85.2 | J136: 0.46 | K136: 11.7 | L136: 1.62 | M136: 41.15 | N136: 0.49 | O136: 12.5 | P136: 1.01 | Q136: 101 | R136: 8.6 | S136: 8600
A137: 4111 | B137: 00K4111U040 | C137: 4111 | D137: 40 | E137: Kool Mu | F137: 72 | G137: U Core | H137: 8.52 | I137: 85.2 | J137: 0.46 | K137: 11.7 | L137: 1.62 | M137: 41.15 | N137: 0.49 | O137: 12.5 | P137: 1.01 | Q137: 101 | R137: 8.6 | S137: 8600
A138: 4111 | B138: 00K4111U090 | C138: 4111 | D138: 90 | E138: Kool Mu | F138: 138 | G138: U Core | H138: 8.52 | I138: 85.2 | J138: 0.46 | K138: 11.7 | L138: 1.62 | M138: 41.15 | N138: 0.49 | O138: 12.5 | P138: 1.01 | Q138: 101 | R138: 8.6 | S138: 8600
A139: 4119 | B139: 00K4119U040 | C139: 4119 | D139: 40 | E139: Kool Mu | F139: 110 | G139: U Core | H139: 8.52 | I139: 85.2 | J139: 0.46 | K139: 11.7 | L139: 1.62 | M139: 41.15 | N139: 0.765 | O139: 19.5 | P139: 1.59 | Q139: 159 | R139: 13.6 | S139: 13600
A140: 4119 | B140: 00K4119U060 | C140: 4119 | D140: 60 | E140: Kool Mu | F140: 151 | G140: U Core | H140: 8.52 | I140: 85.2 | J140: 0.46 | K140: 11.7 | L140: 1.62 | M140: 41.15 | N140: 0.765 | O140: 19.5 | P140: 1.59 | Q140: 159 | R140: 13.6 | S140: 13600
A141: 4119 | B141: 00K4119U090 | C141: 4119 | D141: 90 | E141: Kool Mu | F141: 218 | G141: U Core | H141: 8.52 | I141: 85.2 | J141: 0.46 | K141: 11.7 | L141: 1.62 | M141: 41.15 | N141: 0.765 | O141: 19.5 | P141: 1.59 | Q141: 159 | R141: 13.6 | S141: 13600
A142: 4317 | B142: 00K4317E026 | C142: 4317 | D142: 26 | E142: Kool Mu | F142: 88 | G142: E Core | H142: 7.75 | I142: 77.5 | J142: 0.661 | K142: 16.8 | L142: 1.633 | M142: 41.48 | N142: 0.5 | O142: 12.7 | P142: 1.52 | Q142: 152 | R142: 11.8 | S142: 11800
A143: 4317 | B143: 00K4317E040 | C143: 4317 | D143: 40 | E143: Kool Mu | F143: 119 | G143: E Core | H143: 7.75 | I143: 77.5 | J143: 0.661 | K143: 16.8 | L143: 1.633 | M143: 41.48 | N143: 0.5 | O143: 12.7 | P143: 1.52 | Q143: 152 | R143: 11.8 | S143: 11800
A144: 4317 | B144: 00K4317E060 | C144: 4317 | D144: 60 | E144: Kool Mu | F144: 163 | G144: E Core | H144: 7.75 | I144: 77.5 | J144: 0.661 | K144: 16.8 | L144: 1.633 | M144: 41.48 | N144: 0.5 | O144: 12.7 | P144: 1.52 | Q144: 152 | R144: 11.8 | S144: 11800
A145: 4317 | B145: 00K4317E090 | C145: 4317 | D145: 90 | E145: Kool Mu | F145: 234 | G145: E Core | H145: 7.75 | I145: 77.5 | J145: 0.661 | K145: 16.8 | L145: 1.633 | M145: 41.48 | N145: 0.5 | O145: 12.7 | P145: 1.52 | Q145: 152 | R145: 11.8 | S145: 11800
A146: 55014 | B146: C055014A2 | C146: 020 | D146: 173 | E146: MPP | F146: 69 | G146: Toroid | H146: 1.36 | I146: 13.6 | J146: 0.09 | K146: 2.28 | L146: 0.275 | M146: 6.99 | N146: 0.135 | O146: 3.43 | P146: 0.047 | Q146: 4.7 | R146: 0.064 | S146: 64 | T146: 0.0408 | U146: =C146*1 -> 20 | V146: =VLOOKUP(U146,'Powder Core Toroid OD'!$A$2:$B$36,2,FALSE) -> 6.35
A147: 55015 | B147: C055015A2 | C147: 020 | D147: 300 | E147: MPP | F147: 120 | G147: Toroid | H147: 1.36 | I147: 13.6 | J147: 0.09 | K147: 2.28 | L147: 0.275 | M147: 6.99 | N147: 0.135 | O147: 3.43 | P147: 0.047 | Q147: 4.7 | R147: 0.064 | S147: 64 | T147: 0.0408 | U147: 20 | V147: =VLOOKUP(U147,'Powder Core Toroid OD'!$A$2:$B$36,2,FALSE) -> 6.35
A148: 78737 | B148: 0078737A7 | C148: 740 | D148: 60 | E148: Xflux | F148: 204 | G148: Toroid | H148: 18.4 | I148: 184 | J148: 1.748 | K148: 44.39 | L148: 2.953 | M148: 75.01 | N148: 1.414 | O148: 35.92 | P148: 4.97 | Q148: 497 | R148: 91.4 | S148: 91400 | T148: 15.5 | U148: 740 | V148: =VLOOKUP(U148,'Powder Core Toroid OD'!$A$2:$B$36,2,FALSE) -> 74.1
A149: 55017 | B149: C055017A2 | C149: 020 | D149: 200 | E149: MPP | F149: 80 | G149: Toroid | H149: 1.36 | I149: 13.6 | J149: 0.09 | K149: 2.28 | L149: 0.275 | M149: 6.99 | N149: 0.135 | O149: 3.43 | P149: 0.047 | Q149: 4.7 | R149: 0.064 | S149: 64 | T149: 0.0408 | U149: 20 | V149: =VLOOKUP(U149,'Powder Core Toroid OD'!$A$2:$B$36,2,FALSE) -> 6.35
A150: 55018 | B150: C055018A2 | C150: 020 | D150: 160 | E150: MPP | F150: 64 | G150: Toroid | H150: 1.36 | I150: 13.6 | J150: 0.09 | K150: 2.28 | L150: 0.275 | M150: 6.99 | N150: 0.135 | O150: 3.43 | P150: 0.047 | Q150: 4.7 | R150: 0.064 | S150: 64 | T150: 0.0408 | U150: 20 | V150: =VLOOKUP(U150,'Powder Core Toroid OD'!$A$2:$B$36,2,FALSE) -> 6.35
A151: 55019 | B151: C055019A2 | C151: 020 | D151: 147 | E151: MPP | F151: 59 | G151: Toroid | H151: 1.36 | I151: 13.6 | J151: 0.09 | K151: 2.28 | L151: 0.275 | M151: 6.99 | N151: 0.135 | O151: 3.43 | P151: 0.047 | Q151: 4.7 | R151: 0.064 | S151: 64 | T151: 0.0408 | U151: 20 | V151: =VLOOKUP(U151,'Powder Core Toroid OD'!$A$2:$B$36,2,FALSE) -> 6.35
A152: 55020 | B152: C055020A2 | C152: 020 | D152: 125 | E152: MPP | F152: 50 | G152: Toroid | H152: 1.36 | I152: 13.6 | J152: 0.09 | K152: 2.28 | L152: 0.275 | M152: 6.99 | N152: 0.135 | O152: 3.43 | P152: 0.047 | Q152: 4.7 | R152: 0.064 | S152: 64 | T152: 0.0408 | U152: 20 | V152: =VLOOKUP(U152,'Powder Core Toroid OD'!$A$2:$B$36,2,FALSE) -> 6.35
A153: 55021 | B153: C055021A2 | C153: 020 | D153: 60 | E153: MPP | F153: 24 | G153: Toroid | H153: 1.36 | I153: 13.6 | J153: 0.09 | K153: 2.28 | L153: 0.275 | M153: 6.99 | N153: 0.135 | O153: 3.43 | P153: 0.047 | Q153: 4.7 | R153: 0.064 | S153: 64 | T153: 0.0408 | U153: 20 | V153: =VLOOKUP(U153,'Powder Core Toroid OD'!$A$2:$B$36,2,FALSE) -> 6.35
A154: 55022 | B154: 0055022A2 | C154: 020 | D154: 26 | E154: MPP | F154: 10 | G154: Toroid | H154: 1.36 | I154: 13.6 | J154: 0.09 | K154: 2.28 | L154: 0.275 | M154: 6.99 | N154: 0.135 | O154: 3.43 | P154: 0.047 | Q154: 4.7 | R154: 0.064 | S154: 64 | T154: 0.0408 | U154: 20 | V154: =VLOOKUP(U154,'Powder Core Toroid OD'!$A$2:$B$36,2,FALSE) -> 6.35
A155: 55023 | B155: 0055023A2 | C155: 020 | D155: 14 | E155: MPP | F155: 6 | G155: Toroid | H155: 1.36 | I155: 13.6 | J155: 0.09 | K155: 2.28 | L155: 0.275 | M155: 6.99 | N155: 0.135 | O155: 3.43 | P155: 0.047 | Q155: 4.7 | R155: 0.064 | S155: 64 | T155: 0.0408 | U155: 20 | V155: =VLOOKUP(U155,'Powder Core Toroid OD'!$A$2:$B$36,2,FALSE) -> 6.35
A156: 55024 | B156: C055024A2 | C156: 030 | D156: 173 | E156: MPP | F156: 73 | G156: Toroid | H156: 1.79 | I156: 17.9 | J156: 0.136 | K156: 3.45 | L156: 0.335 | M156: 8.51 | N156: 0.15 | O156: 3.81 | P156: 0.0599 | Q156: 5.99 | R156: 0.107 | S156: 107 | T156: 0.0935 | U156: 30 | V156: =VLOOKUP(U156,'Powder Core Toroid OD'!$A$2:$B$36,2,FALSE) -> 7.87
A157: 55025 | B157: C055025A2 | C157: 030 | D157: 300 | E157: MPP | F157: 124 | G157: Toroid | H157: 1.79 | I157: 17.9 | J157: 0.136 | K157: 3.45 | L157: 0.335 | M157: 8.51 | N157: 0.15 | O157: 3.81 | P157: 0.0599 | Q157: 5.99 | R157: 0.107 | S157: 107 | T157: 0.0935 | U157: 30 | V157: =VLOOKUP(U157,'Powder Core Toroid OD'!$A$2:$B$36,2,FALSE) -> 7.87
A158: 78617 | B158: 0078617A7 | C158: 620 | D158: 60 | E158: XFlux | F158: 189 | G158: Toroid | H158: 14.4 | I158: 144 | J158: 1.248 | K158: 31.69 | L158: 2.477 | M158: 62.91 | N158: 1.02 | O158: 25.91 | P158: 3.6 | Q158: 360 | R158: 51.8 | S158: 51800 | T158: 7.89 | U158: 620 | V158: =VLOOKUP(U158,'Powder Core Toroid OD'!$A$2:$B$36,2,FALSE) -> 62
A159: 55027 | B159: C055027A2 | C159: 030 | D159: 200 | E159: MPP | F159: 83 | G159: Toroid | H159: 1.79 | I159: 17.9 | J159: 0.136 | K159: 3.45 | L159: 0.335 | M159: 8.51 | N159: 0.15 | O159: 3.81 | P159: 0.0599 | Q159: 5.99 | R159: 0.107 | S159: 107 | T159: 0.0935 | U159: 30 | V159: =VLOOKUP(U159,'Powder Core Toroid OD'!$A$2:$B$36,2,FALSE) -> 7.87
A160: 55028 | B160: C055028A2 | C160: 030 | D160: 160 | E160: MPP | F160: 66 | G160: Toroid | H160: 1.79 | I160: 17.9 | J160: 0.136 | K160: 3.45 | L160: 0.335 | M160: 8.51 | N160: 0.15 | O160: 3.81 | P160: 0.0599 | Q160: 5.99 | R160: 0.107 | S160: 107 | T160: 0.0935 | U160: 30 | V160: =VLOOKUP(U160,'Powder Core Toroid OD'!$A$2:$B$36,2,FALSE) -> 7.87
A161: 55029 | B161: C055029A2 | C161: 030 | D161: 147 | E161: MPP | F161: 62 | G161: Toroid | H161: 1.79 | I161: 17.9 | J161: 0.136 | K161: 3.45 | L161: 0.335 | M161: 8.51 | N161: 0.15 | O161: 3.81 | P161: 0.0599 | Q161: 5.99 | R161: 0.107 | S161: 107 | T161: 0.0935 | U161: 30 | V161: =VLOOKUP(U161,'Powder Core Toroid OD'!$A$2:$B$36,2,FALSE) -> 7.87
A162: 55030 | B162: C055030A2 | C162: 030 | D162: 125 | E162: MPP | F162: 52 | G162: Toroid | H162: 1.79 | I162: 17.9 | J162: 0.136 | K162: 3.45 | L162: 0.335 | M162: 8.51 | N162: 0.15 | O162: 3.81 | P162: 0.0599 | Q162: 5.99 | R162: 0.107 | S162: 107 | T162: 0.0935 | U162: 30 | V162: =VLOOKUP(U162,'Powder Core Toroid OD'!$A$2:$B$36,2,FALSE) -> 7.87
A163: 55031 | B163: C055031A2 | C163: 030 | D163: 60 | E163: MPP | F163: 25 | G163: Toroid | H163: 1.79 | I163: 17.9 | J163: 0.136 | K163: 3.45 | L163: 0.335 | M163: 8.51 | N163: 0.15 | O163: 3.81 | P163: 0.0599 | Q163: 5.99 | R163: 0.107 | S163: 107 | T163: 0.0935 | U163: 30 | V163: =VLOOKUP(U163,'Powder Core Toroid OD'!$A$2:$B$36,2,FALSE) -> 7.87
A164: 55032 | B164: 0055032A2 | C164: 030 | D164: 26 | E164: MPP | F164: 11 | G164: Toroid | H164: 1.79 | I164: 17.9 | J164: 0.136 | K164: 3.45 | L164: 0.335 | M164: 8.51 | N164: 0.15 | O164: 3.81 | P164: 0.0599 | Q164: 5.99 | R164: 0.107 | S164: 107 | T164: 0.0935 | U164: 30 | V164: =VLOOKUP(U164,'Powder Core Toroid OD'!$A$2:$B$36,2,FALSE) -> 7.87
A165: 55033 | B165: 0055033A2 | C165: 030 | D165: 14 | E165: MPP | F165: 6 | G165: Toroid | H165: 1.79 | I165: 17.9 | J165: 0.136 | K165: 3.45 | L165: 0.335 | M165: 8.51 | N165: 0.15 | O165: 3.81 | P165: 0.0599 | Q165: 5.99 | R165: 0.107 | S165: 107 | T165: 0.0935 | U165: 30 | V165: =VLOOKUP(U165,'Powder Core Toroid OD'!$A$2:$B$36,2,FALSE) -> 7.87
A166: 55034 | B166: C055034A2 | C166: 040 | D166: 173 | E166: MPP | F166: 92 | G166: Toroid | H166: 2.3 | I166: 23 | J166: 0.18 | K166: 4.57 | L166: 0.425 | M166: 10.8 | N166: 0.181 | O166: 4.6 | P166: 0.0957 | Q166: 9.57 | R166: 0.22 | S166: 220 | T166: 0.164 | U166: 40 | V166: =VLOOKUP(U166,'Powder Core Toroid OD'!$A$2:$B$36,2,FALSE) -> 10.2
A167: 55035 | B167: C055035A2 | C167: 040 | D167: 300 | E167: MPP | F167: 159 | G167: Toroid | H167: 2.3 | I167: 23 | J167: 0.18 | K167: 4.57 | L167: 0.425 | M167: 10.8 | N167: 0.181 | O167: 4.6 | P167: 0.0957 | Q167: 9.57 | R167: 0.22 | S167: 220 | T167: 0.164 | U167: 40 | V167: =VLOOKUP(U167,'Powder Core Toroid OD'!$A$2:$B$36,2,FALSE) -> 10.2
A168: 55036 | B168: C055036A2 | C168: 040 | D168: 550 | E168: MPP | F168: 290 | G168: Toroid | H168: 2.3 | I168: 23 | J168: 0.18 | K168: 4.57 | L168: 0.425 | M168: 10.8 | N168: 0.181 | O168: 4.6 | P168: 0.0957 | Q168: 9.57 | R168: 0.22 | S168: 220 | T168: 0.164 | U168: 40 | V168: =VLOOKUP(U168,'Powder Core Toroid OD'!$A$2:$B$36,2,FALSE) -> 10.2
A169: 55037 | B169: C055037A2 | C169: 040 | D169: 200 | E169: MPP | F169: 105 | G169: Toroid | H169: 2.3 | I169: 23 | J169: 0.18 | K169: 4.57 | L169: 0.425 | M169: 10.8 | N169: 0.181 | O169: 4.6 | P169: 0.0957 | Q169: 9.57 | R169: 0.22 | S169: 220 | T169: 0.164 | U169: 40 | V169: =VLOOKUP(U169,'Powder Core Toroid OD'!$A$2:$B$36,2,FALSE) -> 10.2
A170: 55038 | B170: C055038A2 | C170: 040 | D170: 160 | E170: MPP | F170: 84 | G170: Toroid | H170: 2.3 | I170: 23 | J170: 0.18 | K170: 4.57 | L170: 0.425 | M170: 10.8 | N170: 0.181 | O170: 4.6 | P170: 0.0957 | Q170: 9.57 | R170: 0.22 | S170: 220 | T170: 0.164 | U170: 40 | V170: =VLOOKUP(U170,'Powder Core Toroid OD'!$A$2:$B$36,2,FALSE) -> 10.2
A171: 55039 | B171: C055039A2 | C171: 040 | D171: 147 | E171: MPP | F171: 78 | G171: Toroid | H171: 2.3 | I171: 23 | J171: 0.18 | K171: 4.57 | L171: 0.425 | M171: 10.8 | N171: 0.181 | O171: 4.6 | P171: 0.0957 | Q171: 9.57 | R171: 0.22 | S171: 220 | T171: 0.164 | U171: 40 | V171: =VLOOKUP(U171,'Powder Core Toroid OD'!$A$2:$B$36,2,FALSE) -> 10.2
A172: 55040 | B172: C055040A2 | C172: 040 | D172: 125 | E172: MPP | F172: 66 | G172: Toroid | H172: 2.3 | I172: 23 | J172: 0.18 | K172: 4.57 | L172: 0.425 | M172: 10.8 | N172: 0.181 | O172: 4.6 | P172: 0.0957 | Q172: 9.57 | R172: 0.22 | S172: 220 | T172: 0.164 | U172: 40 | V172: =VLOOKUP(U172,'Powder Core Toroid OD'!$A$2:$B$36,2,FALSE) -> 10.2
A173: 55041 | B173: C055041A2 | C173: 040 | D173: 60 | E173: MPP | F173: 32 | G173: Toroid | H173: 2.3 | I173: 23 | J173: 0.18 | K173: 4.57 | L173: 0.425 | M173: 10.8 | N173: 0.181 | O173: 4.6 | P173: 0.0957 | Q173: 9.57 | R173: 0.22 | S173: 220 | T173: 0.164 | U173: 40 | V173: =VLOOKUP(U173,'Powder Core Toroid OD'!$A$2:$B$36,2,FALSE) -> 10.2
A174: 55042 | B174: 0055042A2 | C174: 040 | D174: 26 | E174: MPP | F174: 14 | G174: Toroid | H174: 2.3 | I174: 23 | J174: 0.18 | K174: 4.57 | L174: 0.425 | M174: 10.8 | N174: 0.181 | O174: 4.6 | P174: 0.0957 | Q174: 9.57 | R174: 0.22 | S174: 220 | T174: 0.164 | U174: 40 | V174: =VLOOKUP(U174,'Powder Core Toroid OD'!$A$2:$B$36,2,FALSE) -> 10.2
A175: 55043 | B175: 0055043A2 | C175: 040 | D175: 14 | E175: MPP | F175: 7 | G175: Toroid | H175: 2.3 | I175: 23 | J175: 0.18 | K175: 4.57 | L175: 0.425 | M175: 10.8 | N175: 0.181 | O175: 4.6 | P175: 0.0957 | Q175: 9.57 | R175: 0.22 | S175: 220 | T175: 0.164 | U175: 40 | V175: =VLOOKUP(U175,'Powder Core Toroid OD'!$A$2:$B$36,2,FALSE) -> 10.2
A176: 55044 | B176: C055044A2 | C176: 050 | D176: 173 | E176: MPP | F176: 79 | G176: Toroid | H176: 3.12 | I176: 31.2 | J176: 0.275 | K176: 6.98 | L176: 0.53 | M176: 13.5 | N176: 0.217 | O176: 5.52 | P176: 0.109 | Q176: 10.9 | R176: 0.34 | S176: 340 | T176: 0.383 | U176: 50 | V176: =VLOOKUP(U176,'Powder Core Toroid OD'!$A$2:$B$36,2,FALSE) -> 12.7
A177: 55045 | B177: C055045A2 | C177: 050 | D177: 300 | E177: MPP | F177: 134 | G177: Toroid | H177: 3.12 | I177: 31.2 | J177: 0.275 | K177: 6.98 | L177: 0.53 | M177: 13.5 | N177: 0.217 | O177: 5.52 | P177: 0.109 | Q177: 10.9 | R177: 0.34 | S177: 340 | T177: 0.383 | U177: 50 | V177: =VLOOKUP(U177,'Powder Core Toroid OD'!$A$2:$B$36,2,FALSE) -> 12.7
A178: 55046 | B178: C055046A2 | C178: 050 | D178: 550 | E178: MPP | F178: 255 | G178: Toroid | H178: 3.12 | I178: 31.2 | J178: 0.275 | K178: 6.98 | L178: 0.53 | M178: 13.5 | N178: 0.217 | O178: 5.52 | P178: 0.109 | Q178: 10.9 | R178: 0.34 | S178: 340 | T178: 0.383 | U178: 50 | V178: =VLOOKUP(U178,'Powder Core Toroid OD'!$A$2:$B$36,2,FALSE) -> 12.7
A179: 55047 | B179: C055047A2 | C179: 050 | D179: 200 | E179: MPP | F179: 90 | G179: Toroid | H179: 3.12 | I179: 31.2 | J179: 0.275 | K179: 6.98 | L179: 0.53 | M179: 13.5 | N179: 0.217 | O179: 5.52 | P179: 0.109 | Q179: 10.9 | R179: 0.34 | S179: 340 | T179: 0.383 | U179: 50 | V179: =VLOOKUP(U179,'Powder Core Toroid OD'!$A$2:$B$36,2,FALSE) -> 12.7
A180: 55048 | B180: C055048A2 | C180: 050 | D180: 160 | E180: MPP | F180: 72 | G180: Toroid | H180: 3.12 | I180: 31.2 | J180: 0.275 | K180: 6.98 | L180: 0.53 | M180: 13.5 | N180: 0.217 | O180: 5.52 | P180: 0.109 | Q180: 10.9 | R180: 0.34 | S180: 340 | T180: 0.383 | U180: 50 | V180: =VLOOKUP(U180,'Powder Core Toroid OD'!$A$2:$B$36,2,FALSE) -> 12.7
A181: 55049 | B181: C055049A2 | C181: 050 | D181: 147 | E181: MPP | F181: 67 | G181: Toroid | H181: 3.12 | I181: 31.2 | J181: 0.275 | K181: 6.98 | L181: 0.53 | M181: 13.5 | N181: 0.217 | O181: 5.52 | P181: 0.109 | Q181: 10.9 | R181: 0.34 | S181: 340 | T181: 0.383 | U181: 50 | V181: =VLOOKUP(U181,'Powder Core Toroid OD'!$A$2:$B$36,2,FALSE) -> 12.7
A182: 55050 | B182: C055050A2 | C182: 050 | D182: 125 | E182: MPP | F182: 56 | G182: Toroid | H182: 3.12 | I182: 31.2 | J182: 0.275 | K182: 6.98 | L182: 0.53 | M182: 13.5 | N182: 0.217 | O182: 5.52 | P182: 0.109 | Q182: 10.9 | R182: 0.34 | S182: 340 | T182: 0.383 | U182: 50 | V182: =VLOOKUP(U182,'Powder Core Toroid OD'!$A$2:$B$36,2,FALSE) -> 12.7
A183: 55051 | B183: C055051A2 | C183: 050 | D183: 60 | E183: MPP | F183: 27 | G183: Toroid | H183: 3.12 | I183: 31.2 | J183: 0.275 | K183: 6.98 | L183: 0.53 | M183: 13.5 | N183: 0.217 | O183: 5.52 | P183: 0.109 | Q183: 10.9 | R183: 0.34 | S183: 340 | T183: 0.383 | U183: 50 | V183: =VLOOKUP(U183,'Powder Core Toroid OD'!$A$2:$B$36,2,FALSE) -> 12.7
A184: 55052 | B184: 0055052A2 | C184: 050 | D184: 26 | E184: MPP | F184: 12 | G184: Toroid | H184: 3.12 | I184: 31.2 | J184: 0.275 | K184: 6.98 | L184: 0.53 | M184: 13.5 | N184: 0.217 | O184: 5.52 | P184: 0.109 | Q184: 10.9 | R184: 0.34 | S184: 340 | T184: 0.383 | U184: 50 | V184: =VLOOKUP(U184,'Powder Core Toroid OD'!$A$2:$B$36,2,FALSE) -> 12.7
A185: 55053 | B185: 0055053A2 | C185: 050 | D185: 14 | E185: MPP | F185: 6.4 | G185: Toroid | H185: 3.12 | I185: 31.2 | J185: 0.275 | K185: 6.98 | L185: 0.53 | M185: 13.5 | N185: 0.217 | O185: 5.52 | P185: 0.109 | Q185: 10.9 | R185: 0.34 | S185: 340 | T185: 0.383 | U185: 50 | V185: =VLOOKUP(U185,'Powder Core Toroid OD'!$A$2:$B$36,2,FALSE) -> 12.7
A186: 55059 | B186: C055059A2 | C186: 310 | D186: 60 | E186: MPP | F186: 43 | G186: Toroid | H186: 5.67 | I186: 56.7 | J186: 0.525 | K186: 13.3 | L186: 0.93 | M186: 23.7 | N186: 0.33 | O186: 8.39 | P186: 0.317 | Q186: 31.7 | R186: 1.8 | S186: 1800 | T186: 1.39 | U186: 310 | V186: =VLOOKUP(U186,'Powder Core Toroid OD'!$A$2:$B$36,2,FALSE) -> 22.9
A187: 55071 | B187: C055071A2 | C187: 548 | D187: 60 | E187: MPP | F187: 61 | G187: Toroid | H187: 8.14 | I187: 81.4 | J187: 0.766 | K187: 19.4 | L187: 1.325 | M187: 33.66 | N187: 0.45 | O187: 11.5 | P187: 0.656 | Q187: 65.6 | R187: 5.34 | S187: 5340 | T187: 2.97 | U187: 548 | V187: =VLOOKUP(U187,'Powder Core Toroid OD'!$A$2:$B$36,2,FALSE) -> 32.8
A188: 55076 | B188: C055076A2 | C188: 324 | D188: 60 | E188: MPP | F188: 56 | G188: Toroid | H188: 8.98 | I188: 89.8 | J188: 0.848 | K188: 21.5 | L188: 1.445 | M188: 36.71 | N188: 0.447 | O188: 11.4 | P188: 0.678 | Q188: 67.8 | R188: 6.09 | S188: 6090 | T188: 3.64 | U188: 324 | V188: =VLOOKUP(U188,'Powder Core Toroid OD'!$A$2:$B$36,2,FALSE) -> 35.8
A189: 55083 | B189: C055083A2 | C189: 254 | D189: 60 | E189: MPP | F189: 81 | G189: Toroid | H189: 9.84 | I189: 98.4 | J189: 0.918 | K189: 23.3 | L189: 1.605 | M189: 40.77 | N189: 0.605 | O189: 15.4 | P189: 1.07 | Q189: 107 | R189: 10.6 | S189: 10600 | T189: 4.27 | U189: 254 | V189: =VLOOKUP(U189,'Powder Core Toroid OD'!$A$2:$B$36,2,FALSE) -> 39.9
A190: 55084 | B190: C055084A2 | C190: 089 | D190: 300 | E190: MPP | F190: 427 | G190: Toroid | H190: 11.6 | I190: 116 | J190: 1.098 | K190: 27.88 | L190: 1.875 | M190: 47.63 | N190: 0.635 | O190: 16.1 | P190: 1.34 | Q190: 134 | R190: 15.6 | S190: 15600 | T190: 6.1 | U190: 89 | V190: =VLOOKUP(U190,'Powder Core Toroid OD'!$A$2:$B$36,2,FALSE) -> 46.7
A191: 55086 | B191: C055086A2 | C191: 089 | D191: 200 | E191: MPP | F191: 285 | G191: Toroid | H191: 11.6 | I191: 116 | J191: 1.098 | K191: 27.88 | L191: 1.875 | M191: 47.63 | N191: 0.635 | O191: 16.1 | P191: 1.34 | Q191: 134 | R191: 15.6 | S191: 15600 | T191: 6.1 | U191: 89 | V191: =VLOOKUP(U191,'Powder Core Toroid OD'!$A$2:$B$36,2,FALSE) -> 46.7
A192: 55087 | B192: C055087A2 | C192: 089 | D192: 160 | E192: MPP | F192: 228 | G192: Toroid | H192: 11.6 | I192: 116 | J192: 1.098 | K192: 27.88 | L192: 1.875 | M192: 47.63 | N192: 0.635 | O192: 16.1 | P192: 1.34 | Q192: 134 | R192: 15.6 | S192: 15600 | T192: 6.1 | U192: 89 | V192: =VLOOKUP(U192,'Powder Core Toroid OD'!$A$2:$B$36,2,FALSE) -> 46.7
A193: 55088 | B193: C055088A2 | C193: 089 | D193: 147 | E193: MPP | F193: 210 | G193: Toroid | H193: 11.6 | I193: 116 | J193: 1.098 | K193: 27.88 | L193: 1.875 | M193: 47.63 | N193: 0.635 | O193: 16.1 | P193: 1.34 | Q193: 134 | R193: 15.6 | S193: 15600 | T193: 6.1 | U193: 89 | V193: =VLOOKUP(U193,'Powder Core Toroid OD'!$A$2:$B$36,2,FALSE) -> 46.7
A194: 55089 | B194: C055089A2 | C194: 089 | D194: 125 | E194: MPP | F194: 178 | G194: Toroid | H194: 11.6 | I194: 116 | J194: 1.098 | K194: 27.88 | L194: 1.875 | M194: 47.63 | N194: 0.635 | O194: 16.1 | P194: 1.34 | Q194: 134 | R194: 15.6 | S194: 15600 | T194: 6.1 | U194: 89 | V194: =VLOOKUP(U194,'Powder Core Toroid OD'!$A$2:$B$36,2,FALSE) -> 46.7
A195: 55090 | B195: C055090A2 | C195: 089 | D195: 60 | E195: MPP | F195: 86 | G195: Toroid | H195: 11.6 | I195: 116 | J195: 1.098 | K195: 27.88 | L195: 1.875 | M195: 47.63 | N195: 0.635 | O195: 16.1 | P195: 1.34 | Q195: 134 | R195: 15.6 | S195: 15600 | T195: 6.1 | U195: 89 | V195: =VLOOKUP(U195,'Powder Core Toroid OD'!$A$2:$B$36,2,FALSE) -> 46.7
A196: 55091 | B196: 0055091A2 | C196: 089 | D196: 26 | E196: MPP | F196: 37 | G196: Toroid | H196: 11.6 | I196: 116 | J196: 1.098 | K196: 27.88 | L196: 1.875 | M196: 47.63 | N196: 0.635 | O196: 16.1 | P196: 1.34 | Q196: 134 | R196: 15.6 | S196: 15600 | T196: 6.1 | U196: 89 | V196: =VLOOKUP(U196,'Powder Core Toroid OD'!$A$2:$B$36,2,FALSE) -> 46.7
A197: 55092 | B197: 0055092A2 | C197: 089 | D197: 14 | E197: MPP | F197: 20 | G197: Toroid | H197: 11.6 | I197: 116 | J197: 1.098 | K197: 27.88 | L197: 1.875 | M197: 47.63 | N197: 0.635 | O197: 16.1 | P197: 1.34 | Q197: 134 | R197: 15.6 | S197: 15600 | T197: 6.1 | U197: 89 | V197: =VLOOKUP(U197,'Powder Core Toroid OD'!$A$2:$B$36,2,FALSE) -> 46.7
A198: 55103 | B198: C055103A2 | C198: 109 | D198: 173 | E198: MPP | F198: 218 | G198: Toroid | H198: 14.3 | I198: 143 | J198: 1.368 | K198: 34.74 | L198: 2.285 | M198: 58.04 | N198: 0.585 | O198: 14.9 | P198: 1.44 | Q198: 144 | R198: 20.7 | S198: 20700 | T198: 9.48 | U198: 109 | V198: =VLOOKUP(U198,'Powder Core Toroid OD'!$A$2:$B$36,2,FALSE) -> 57.2
A199: 55104 | B199: C055104A2 | C199: 109 | D199: 300 | E199: MPP | F199: 374 | G199: Toroid | H199: 14.3 | I199: 143 | J199: 1.368 | K199: 34.74 | L199: 2.285 | M199: 58.04 | N199: 0.585 | O199: 14.9 | P199: 1.44 | Q199: 144 | R199: 20.7 | S199: 20700 | T199: 9.48 | U199: 109 | V199: =VLOOKUP(U199,'Powder Core Toroid OD'!$A$2:$B$36,2,FALSE) -> 57.2
A200: 55106 | B200: C055106A2 | C200: 109 | D200: 200 | E200: MPP | F200: 250 | G200: Toroid | H200: 14.3 | I200: 143 | J200: 1.368 | K200: 34.74 | L200: 2.285 | M200: 58.04 | N200: 0.585 | O200: 14.9 | P200: 1.44 | Q200: 144 | R200: 20.7 | S200: 20700 | T200: 9.48 | U200: 109 | V200: =VLOOKUP(U200,'Powder Core Toroid OD'!$A$2:$B$36,2,FALSE) -> 57.2
... 938 more rows

Sheet Toroid Design (hidden)
G1: MPP | J1: HF | N1: Design #1 | S1: Design #2
B2: Inductor Requirements | H2: 55339 | K2: 58907 | L2: 58777 | N2: Core Selection | R2: 9 | S2: Core Selection | AD2: STEP 1 | AH2: STEP 2 | AL2: STEP 3 | AP2: STEP 4
B3: Inductance Required (mH) | E3: =AE14 -> 10 | H3: 55337 | I3: 55167 | L3: 58776 | N3: Part Number | Q3: =AM4 -> 79097 | S3: Part Number | V3: 75439 | AD3: Design Input | AL3: Input a Part Number
B4: DC or AC RMS (Amps) | E4: =AE6 -> 5 | H4: 55336 | I4: 55165 | N4: Number of Cores (Stack) | Q4: =AE17 -> 1 | S4: Number of Cores (Stack) | V4: 1 | AC4: Material Selection | AE4: Kool Mu Max | AH4: 79777 | AI4: 79737 | AJ4: 79100 | AM4: 79097 | AP4: Inductance at Full Load | AS4: 9.318151014 | AT4: mH
B5: RMS Ripple Current (Amps) | E5: =E6/2/1.732 -> 1.443418014 | I5: 55164 | N5: Material | Q5: =VLOOKUP(Q3,'Powder Core Detail'!$A$2:$T$1546,5,FALSE) -> KMM | R5: =VLOOKUP(Q5,'CL Sum'!L2:M7,2,FALSE) -> 6 | S5: Material | V5: =VLOOKUP(V3,'Powder Core Detail'!$A$2:$T$1026,5,FALSE) -> MIX | AH5: 79776 | AI5: 79736 | AJ5: 79102
B6: Pk-Pk Ripple Current (Amps) | E6: =AE8 -> 5 | F6: freq index | N6: Permeability | Q6: =VLOOKUP(Q3,'Powder Core Detail'!$A$2:$T$1546,4,FALSE) -> 19 | S6: Permeability | V6: =VLOOKUP(V3,'Powder Core Detail'!$A$2:$T$1026,4,FALSE) -> 60 | AC6: DC Current | AE6: 5 | AF6: Amps | AI6: 79735 | AJ6: 79097
B7: PK-Pk Frequency (kHz) | E7: =AE11 -> 10 | F7: =IF(E7<9,0,IF(E7<10,1,IF(E7<25,2,3))) -> 2 | N7: AL (nH/T2) +/- 8% | Q7: =(VLOOKUP(Q3,'Powder Core Detail'!$A$2:$T$1546,6,FALSE))*Q4 -> 35 | S7: AL (nH/T2) +/- 8% | V7: =(VLOOKUP(V3,'Powder Core Detail'!$A$2:$T$1026,6,FALSE))*V4 -> 135 | AP7: Inductance at No Load | AS7: 13.54094 | AT7: mH
B8: Specified Current (Amps) | E8: =AE19 -> 0 | N8: Specified Current Inductance MIN(mH) | Q8: =IF(E8=0,"No Value",(Q43*Q54)*Q49^2/10^6) -> No Value | S8: Specified Current Inductance MIN(mH) | V8: =IF(E8=0,"No Value",(V43*V54)*V49^2/10^6) -> No Value | X8: 0.01 | Y8: =IF(X8=0,"No Value",(1/($Q$97+$Q$98*(X8*$Q$22/$Q$45*1.26)^$Q$99))*0.01) -> 0.9999997123 | AC8: Ripple Current | AE8: 5 | AF8: Amps (peak to peak)
B9: Add. Lead Length/ end (mm) | N9: Max Current L MIN (mH) | Q9: =(Q43*Q51)*Q49^2/10^6 -> 9.318151014 | S9: Max Current L MIN (mH) | V9: =(V43*V51)*V49^2/10^6 -> 0 | X9: =1/1.26*Q$45/Q$22 -> 0.03100597152 | Y9: 0.9999968644
B10: Ambient Temperature (°C) | E10: 25 | N10: Average Current Inductance MIN (mH) | Q10: =(Q43*Q50)*Q49^2/10^6 -> 10.89748352 | S10: Average Current Inductance MIN (mH) | V10: =(V43*V50)*V49^2/10^6 -> 0 | X10: =2/1.26*Q$45/Q$22 -> 0.06201194304 | Y10: 0.9999864569 | AP10: Specified Current Inductance | AS10: No Value | AT10: mH
B11: Number of Cores | E11: =AE17 -> 1 | N11: Min Current L MIN (mH) | Q11: =(Q43*Q52)*Q49^2/10^6 -> 12.05797278 | S11: Min Current L MIN (mH) | V11: =(V43*V52)*V49^2/10^6 -> 0 | X11: =3/1.26*Q$45/Q$22 -> 0.09301791456 | Y11: 0.9999681291 | AC11: Frequency | AE11: 10 | AF11: KHz
N12: No Load Inductance (mH) +/- 8% | Q12: =(Q7)*Q49^2/10^6 -> 13.54094 | S12: No Load Inductance (mH) +/- 8% | V12: =(V7)*V49^2/10^6 -> 0.147015 | X12: =4/1.26*Q$45/Q$22 -> 0.1240238861 | Y12: 0.999941508
N13: L +/- 8% if Max Current is low f AC | Q13: =(Q7*Q53)*Q49^2/10^6 -> 8.659474064 | S13: L +/- 8% if Max Current is low f AC | V13: =(V7*V53)*V49^2/10^6 -> 0 | X13: =5/1.26*Q$45/Q$22 -> 0.1550298576 | Y13: 0.9999063229 | AP13: Total Loss | AS13: 30.52792915 | AT13: W
C14: Design Criteria | G14: Kool Mu | J14: XFLUX | N14: Leakage Inductance (uH) | Q14: =0.292*(Q22^1.065)*Q94/Q45 -> 40.64867224 | S14: Leakage Inductance (uH) | V14: =0.292*(V22^1.065)*V94/V45 -> 2.24941453 | X14: =6/1.26*Q$45/Q$22 -> 0.1860358291 | Y14: 0.9998623597 | AC14: Full Load L | AE14: 10 | AF14: mH
B15: LI2 (DC + Peak Ripple) | E15: 562.5 | G15: 77735 | H15: 77102 | I15: 77339 | J15: 78912 | K15: 78776 | L15: 78738 | N15: Core Loss (W) | Q15: =(Q62*Q46)/1000 -> 4.432624884 | S15: Core Loss (W) | V15: =(V62*V46)/1000 ->  | X15: =7/1.26*Q$45/Q$22 -> 0.2170418006 | Y15: 0.9998094406 | AH15: Core OD (mm) | AP15: Temp Rise | AS15: 64.05449192 | AT15: °C
B16: DC + AC Ripple Current | E16: =IF(E4=0,E6/2,E4+(0.5*E6)) -> 7.5 | I16: 77338 | L16: 78736 | N16: Copper Loss (W) | Q16: =E4^2*Q38/1000+E5^2*Q39/1000 -> 26.09530426 | S16: Copper Loss (W) | V16: =IF(V29=1,#REF!+#REF!,#REF!+#REF!) ->  | X16: =8/1.26*Q$45/Q$22 -> 0.2480477722 | Y16: 0.9997474138 | AH16: 77.8 | AI16: 74.1 | AJ16: 101.6
B17: DC-AC Ripple Current | E17: =IF(E4=0,E6/2,E4-(0.5*E6)) -> 2.5 | I17: 77337 | L17: 78735 | N17: Total Loss (W) | Q17: =Q15+Q16 -> 30.52792915 | S17: Total Loss (W) | V17: =V15+V16 ->  | X17: =9/1.26*Q$45/Q$22 -> 0.2790537437 | Y17: 0.9996761464 | AC17: Stack Cores | AE17: 1 | AP17: Number of Turns | AS17: 622
B18: DC or fundamental AC rms Current | E18: =E4 -> 5 | I18: 77336 | L18: 78067 | N18: Approximate Fill Factor | Q18: =Q33*Q49/Q44 -> 0.296394332 | S18: Approximate Fill Factor | V18: =V33*V49/V44 -> 2.5735363 | X18: =10/1.26*Q$45/Q$22 -> 0.3100597152 | Y18: 0.9995955209
B19: Fundamental AC, peak Current | E19: =(E4*SQRT(2))+(E6/2) -> 9.571067812 | N19: DCR (mΩ, 20° C) | Q19: =Q38 -> 863.8358168 | S19: DCR (mΩ) | V19: =V38 -> -1.077342447 | X19: =20/1.26*Q$45/Q$22 -> 0.6201194304 | Y19: 0.9982553389 | AC19: Specified Current | AF19: Amps | AP19: Wire Size | AS19: 17 | AT19: AWG
B20: Specified Current | E20: =E8 -> 0 | N20: Temp Rise (C°) | Q20: =(Q17*1000/Q40)^0.833 -> 64.05449192 | S20: Temp Rise (C°) | V20: =V21-E10 ->  | X20: =30/1.26*Q$45/Q$22 -> 0.9301791456 | Y20: 0.9959038989
B21: Wire size | E21: 17 | N21: Operating Temperature (C°) | Q21: =Q20+$E$10 -> 89.05449192 | S21: Operating Temperature (C°) | V21: =IF(V29=1,#REF!,#REF!) ->  | X21: =40/1.26*Q$45/Q$22 -> 1.240238861 | Y21: 0.9925079427 | AC21: Temp Rise | AF21: °C | AP21: Winding Factor | AS21: 0.296394332
N22: Number of Turns | Q22: =Q49 -> 622 | S22: Number of Turns | V22: =V49 -> 33 | X22: =50/1.26*Q$45/Q$22 -> 1.550298576 | Y22: 0.988054608
N23: Number of Layers | Q23: =COUNTIF(Q73:Q76,">0") -> 4 | S23: Number of Layers | V23: =COUNTIF(V73:V76,">0") -> 2 | X23: =60/1.26*Q$45/Q$22 -> 1.860358291 | Y23: 0.9825456514 | AP23: DC Resistance of Winding | AS23: 863.8358168 | AT23: mΩ
N24: Wire Length (mm) | Q24: =(2*E9*Q29)+(Q81*Q29) -> 52093.27947 | S24: Wire Length (mm) | V24: =(2*E9*V29)+(V81*V29) -> -5932.669309 | X24: =70/1.26*Q$45/Q$22 -> 2.170418006 | Y24: 0.9759947618
X25: =80/1.26*Q$45/Q$22 -> 2.480477722 | Y25: 0.9684258872
G26: 75 Material | J26: 79 Material | X26: =90/1.26*Q$45/Q$22 -> 2.790537437 | Y26: 0.9598719535 | AC26: INSTRUCTIONS: | AP26: Finished OD | AS26: 113.7727347 | AT26: mm
H27: 75338 | I27: - | J27: 79777 | K27: 79737 | L27: 79100 | N27: Winding Selection | S27: Winding Selection | X27: =100/1.26*Q$45/Q$22 -> 3.100597152 | Y27: 0.9503737392 | AC27: 1. Enter the input parameters in STEP 1.
H28: 75337 | I28: - | J28: 79776 | K28: 79736 | L28: 79102 | N28: Wire AWG | Q28: =IF(AS32=0,E21,AS32) -> 17 | S28: Wire AWG | V28: 7 | X28: =150/1.26*Q$45/Q$22 -> 4.650895728 | Y28: 0.8905626851 | AC28: - Full Load DC Current is the full load or peak bias current. Enter zero if there is no bias current. | AP28: Finished HT | AS28: 28.67273466 | AT28: mm
K29: 79735 | L29: 79097 | N29: # of Strands | Q29: =IF(AS34=0,1,AS34) -> 1 | S29: # of Strands | V29: 3 | X29: =200/1.26*Q$45/Q$22 -> 6.201194304 | Y29: 0.8159698757 | AC29: - Full Load L is the inductance required with full load bias current plus ripple current.
N30: Current Skin Depth (mm) | Q30: =66.3/SQRT(E7*1000) -> 0.663 | S30: Skin Depth (mm) | V30: =66.3/SQRT(E7*1000) -> 0.663 | X30: =250/1.26*Q$45/Q$22 -> 7.75149288 | Y30: 0.7346371867 | AC30: - Specified Current is any RMS or bias current of interest. | AP30: Adjust Turns
N31: Bare Wire Radius (mm) | Q31: =VLOOKUP(Q28, 'Wire Table'!$A$4:$N$47,14,FALSE) -> 0.57531 | S31: Wire Radius (mm) | V31: =VLOOKUP(V28, 'Wire Table'!$A$4:$N$47,14,FALSE) -> 1.83261 | X31: =300/1.26*Q$45/Q$22 -> 9.301791456 | Y31: 0.6532700535
N32: Wire Area/ Strand (cm2) | Q32: =VLOOKUP(Q28, 'Wire Table'!$A$4:$J$47,5,FALSE) -> 0.01177 | S32: Wire Area/ Strand (cm2) | V32: =VLOOKUP(V28, 'Wire Table'!$A$4:$J$47,5,FALSE) -> 0.111 | X32: =400/1.26*Q$45/Q$22 -> 12.40238861 | Y32: 0.5065548186 | AC32: 2. Click "Suggested Part Numbers" to find toroids that fit the input parameters. | AP32: Adjust AWG
N33: Wire Area/ All Strands | Q33: =Q32*Q29 -> 0.01177 | S33: Wire Area/ All Strands | V33: =V32*V29 -> 0.333 | X33: =500/1.26*Q$45/Q$22 -> 15.50298576 | Y33: 0.3906029536
N34: Circ Mills/strand | Q34: =VLOOKUP(Q28, 'Wire Table'!$A$4:$J$47,2,FALSE) -> 2052 | S34: Circ Mills/strand | V34: =VLOOKUP(V28, 'Wire Table'!$A$4:$J$47,2,FALSE) -> 20820 | X34: =600/1.26*Q$45/Q$22 -> 18.60358291 | Y34: 0.3037269435 | AC34: 3. Enter one of the Suggested Part Numbers (or any part number) in STEP 3. | AP34: Adjust Strand
N35: Resistance (Ω/m) (@20 °C) all strands | Q35: =10.371/Q34*3.281/Q29 -> 0.01658248099 | S35: Resistance/m (20 °C) | V35: =10.371/V34*3.281/V29 -> 0.0005447846782 | X35: =700/1.26*Q$45/Q$22 -> 21.70418006 | Y35: 0.2395796117
N36: Resistance (Ω/mm) (@20 °C) | Q36: =Q35/1000 -> 1.658248099e-05 | S36: Resistance/mm (20 °C) | V36: =V35/1000 -> 5.447846782e-07 | X36: =800/1.26*Q$45/Q$22 -> 24.80477722 | Y36: 0.192035725 | AC36: 4. Click "Design Output" to see the result.
N37: MLT (mm) | Q37: =Q82 -> 83.75125317 | S37: MLT (mm) | V37: =V82 -> -59.92595262 | X37: =900/1.26*Q$45/Q$22 -> 27.90537437 | Y37: 0.1563756196
N38: DCR (mΩ, @ 20° C) | Q38: =Q37*Q49*Q36*1000 -> 863.8358168 | S38: DCR (mΩ, @ 20° C) | V38: =V37*V49*V36*1000 -> -1.077342447 | X38: =1000/1.26*Q$45/Q$22 -> 31.00597152 | Y38: 0.1292242024 | AC38: 5. Adjust turns if desired by entering new turns in the input box in STEP 4, and re-clicking "Design Output."
N39: ACR (mΩ, @ 20° C) | Q39: =Q38*2.5 -> 2159.589542
N40: Wound Surface Area (cm2) | Q40: =0.01*(Q91) -> 207 | S40: Wound Surface Area (cm2) | V40: =0.01*(V91) -> 231.1327869
N41: Adjust Turns | Q41: =AS30 -> 0 | S41: Adjust Turns | V41: 33 | AC41: 6. To return to STEP 3, clear the "Adjust Turns" box, enter a new part number, and click "Design Output".
N43: AL (nH/T2) MIN | Q43: =Q7*0.92 -> 32.2 | S43: AL (nH/T2) MIN | V43: =V7*0.92 -> 124.2 | AC43: 7. Software is based on current density of 500 Amps/cm^2, when the current is larger than 66.5 Amps, no wire selection is available in the
N44: Window Area (cm2) | Q44: =VLOOKUP(Q3,'Powder Core Detail'!$A$2:$T$1546,20,FALSE) -> 24.7 | S44: Window Area (cm2) | V44: =VLOOKUP(V3,'Powder Core Detail'!$A$2:$T$1026,20,FALSE) -> 4.27 | AC44: program. Please consider using multiple wires in a practical application.
N45: Path Length (cm) | Q45: =VLOOKUP(Q3,'Powder Core Detail'!$A$2:$T$1546,8,FALSE) -> 24.3 | S45: Path Length (cm) | V45: =VLOOKUP(V3,'Powder Core Detail'!$A$2:$T$1026,8,FALSE) -> 10.7
N46: Volume (cm3) | Q46: =(VLOOKUP(Q3,'Powder Core Detail'!$A$2:$T$1546,18,FALSE))*Q4 -> 86.9 | S46: Volume (cm3) | V46: =(VLOOKUP(V3,'Powder Core Detail'!$A$2:$T$1026,18,FALSE))*V4 -> 21.3
N47: No Load Turns | Q47: =IF(Q41=0,ROUNDUP(SQRT((E3*10^6)/Q43),0),Q41) -> 558 | S47: No Load Turns | V47: =IF(V41=0,ROUNDUP(SQRT((E3*10^6)/V43),0),V41) -> 33
N48: % Initial Perm at AVG Current | Q48: =0.01*(1/(Q97+Q98*(Q113^Q99))) -> 0.8977909474 | S48: % Initial Perm at AVG Current | V48: =V97+(V98*V113)+(V99*V113^2)+(V100*V113^3)+(V101*V113^4) -> 0
N49: Adjusted Turns | Q49: =IF(Q41=0,ROUNDUP(Q47/Q48,0),Q41) -> 622 | S49: Adjusted Turns | V49: =IF(V41=0,ROUNDUP(V47/V48,0),V41) -> 33
N50: % Initial Perm Adj. Turns AVG | Q50: =0.01*(1/(Q97+Q98*(Q115^Q99))) -> 0.8747613374 | S50: % Initial Perm Adj. Turns AVG | V50: =V97+(V98*V115)+(V99*V115^2)+(V100*V115^3)+(V101*V115^4) -> 0
N51: % Initial Perm Max Rip Current | Q51: =0.01*(1/(Q97+Q98*(Q111^Q99))) -> 0.7479853699 | S51: % Initial Perm Max Rip Current | V51: =V97+(V98*V111)+(V99*V111^2)+(V100*V111^3)+(V101*V111^4) -> 0
N52: % Initial Perm Min Rip Current | Q52: =0.01*(1/(Q97+Q98*(Q112^Q99))) -> 0.967915976 | S52: % Initial Perm Min Rip Current | V52: =V97+(V98*V112)+(V99*V112^2)+(V100*V112^3)+(V101*V112^4) -> 0
N53: % Intial Perm MAX Current AC low f | Q53: =0.01*(1/(Q97+Q98*(Q114^Q99))) -> 0.6395031707 | S53: % Intial Perm MAX Current AC low f | V53: =V97+(V98*V114)+(V99*V114^2)+(V100*V114^3)+(V101*V114^4) -> 0
N54: % Intial Perm Spec. Current | Q54: =0.01*(1/(Q97+Q98*(Q116^Q99))) -> 1 | S54: % Intial Perm Spec. Current | V54: =V97+(V98*V116)+(V99*V116^2)+(V100*V116^3)+(V101*V116^4) -> 0
N55: Core Loss | S55: Core Loss
N56: HAC MAX | Q56: =(Q49/Q45)*(E16) -> 191.9753086 | S56: HAC MAX | V56: =(V49/V45)*(E16) -> 23.13084112
N57: HAC MIN | Q57: =(Q49/Q45)*(E17) -> 63.99176955 | S57: HAC MIN | V57: =(V49/V45)*(E17) -> 7.710280374
N58: ABS HAC MIN | Q58: =ABS(Q57) -> 63.99176955 | S58: ABS HAC MIN | V58: =ABS(V57) -> 7.710280374
N59: BAC MAX | Q59: =((Q102+(Q103*Q56)+(Q104*Q56^2))/(1+(Q105*Q56)+(Q106*Q56^2)))^Q107 -> 0.3445598327 | S59: BAC MAX | V59: =((V102+(V103*V111)+(V104*V111^2))/(1+(V105*V111)+(V106*V111^2)))^V107 -> 
N60: BAC MIN | Q60: =IF(Q57<0,-(((Q102+(Q103*Q58)+(Q104*Q58^2))/(1+(Q105*Q58)+(Q106*Q58^2)))^Q107),((Q102+(Q103*Q57)+(Q104*Q57^2))/(1+(Q105*Q57)+(Q106*Q57^2)))^Q107) -> 0.119324702 | S60: BAC MIN | V60: =IF(V57<0,-(((V102+(V103*V58)+(V104*V58^2))/(1+(V105*V58)+(V106*V58^2)))^V107),((V102+(V103*V57)+(V104*V57^2))/(1+(V105*V57)+(V106*V57^2)))^V107) -> 
N61: B Peak (DeltaB/2) | Q61: =(Q59-Q60)/2 -> 0.1126175654 | S61: B Peak (DeltaB/2) | V61: =(V59-V60)/2 -> 
N62: Core Loss (mW/cm3) | Q62: =Q108*(Q61^Q109)*($E$7^Q110) -> 51.00834159 | S62: Core Loss (mW/cm3) | V62: =V108*(V61^V109)*($E$7^V110) -> 
N64: Core Info
N65: OD MAX (mm) | Q65: =VLOOKUP(Q3,'Powder Core Detail'!$A$2:$T$1546,13,FALSE) -> 103 | S65: OD MAX (mm) | V65: =VLOOKUP(V3,'Powder Core Detail'!$A$2:$T$1026,13,FALSE) -> 47.63
N66: ID MIN (mm) | Q66: =VLOOKUP(Q3,'Powder Core Detail'!$A$2:$T$1546,11,FALSE) -> 55.75 | S66: ID MIN (mm) | V66: =VLOOKUP(V3,'Powder Core Detail'!$A$2:$T$1026,11,FALSE) -> 23.3
N67: Stacked HT MAX (mm) | Q67: =Q4*(VLOOKUP(Q3,'Powder Core Detail'!$A$2:$T$1546,15,FALSE)) -> 17.9 | R67: =(VLOOKUP(Q3,'Powder Core Detail'!$A$2:$T$1546,15,FALSE)) -> 17.9 | S67: HT MAX (mm) | V67: =V4*(VLOOKUP(V3,'Powder Core Detail'!$A$2:$T$1026,15,FALSE)) -> 19
N68: Window Area (mm2) | Q68: =100*(VLOOKUP(Q3,'Powder Core Detail'!$A$2:$T$1546,20,FALSE)) -> 2470 | S68: Window Area (mm2) | V68: =100*(VLOOKUP(V3,'Powder Core Detail'!$A$2:$T$1026,20,FALSE)) -> 427
N69: Core Winding Circumference (mm) | Q69: =Q65-Q66+(2*Q67) -> 83.05 | S69: Core Winding Circumference (mm) | V69: =V65-V66+(2*V67) -> 62.33
N70: First Layer Circumference (mm) | Q70: =2*PI()*((Q66/2)-(Q71/2)) -> 171.2979332 | S70: First Layer Circumference (mm) | V70: =2*PI()*((V66/2)-(V71/2)) -> 52.7428105
N71: Wire OD (mm) | Q71: =SQRT((4*Q33*100)/PI()) -> 1.224174393 | S71: Wire OD (mm) | V71: =SQRT((4*V33*100)/PI()) -> 6.511441994
N72: # of Turns possible on layer 1 | Q72: =ROUNDDOWN(Q70/Q71,0) -> 139 | S72: # of Turns possible on layer 1 | V72: =ROUNDDOWN(V70/V71,0) -> 8
N73: Turns on Layer 1 | Q73: =IF(Q72>Q49, Q49,Q72) -> 139 | S73: Turns on Layer 1 | V73: =IF(V72>V49, V49,V72) -> 8
N74: Turns on Layer 2 | Q74: =IF(Q49-(Q73)<=0,0,IF(Q49-(Q73)>=Q73-6,Q73-6,(Q49-(Q73)))) -> 133 | S74: Turns on Layer 2 | V74: =IF(V49-(V73)<=0,0,IF(V49-(V73)>=V73-6,V73-6,(V49-(V73)))) -> 2
N75: Turns on Layer 3 | Q75: =IF(Q49-(Q74+Q73)<=0,0,IF(Q49-(Q74+Q73)>=Q74-6,Q74-6,(Q49-(Q73+Q74)))) -> 127 | S75: Turns on Layer 3 | V75: =IF(V49-(V74+V73)<=0,0,IF(V49-(V74+V73)>=V74-6,V74-6,(V49-(V73+V74)))) -> -4
N76: Turns on Layer 4 | Q76: =IF(Q49-(Q75+Q74+Q73)<=0,0,IF(Q49-(Q75+Q74+Q73)>=Q75-6,Q75-6,(Q49-(Q74+Q75+Q73)))) -> 121 | S76: Turns on Layer 4 | V76: =IF(V49-(V75+V74+V73)<=0,0,IF(V49-(V75+V74+V73)>=V75-6,V75-6,(V49-(V74+V75+V73)))) -> -10
N77: Length per turn Layer 1 (mm) | Q77: =Q69+(8*Q71/2) -> 87.94669757 | S77: Length per turn Layer 1 (mm) | V77: =V69+(8*V71/2) -> 88.37576798
N78: Length per turn Layer 2 | Q78: =Q69+8*((Q71/2)+(SQRT(3)*(Q71/2))) -> 96.42802655 | S78: Length per turn Layer 2 | V78: =V69+8*((V71/2)+(SQRT(3)*(V71/2))) -> 133.4883614
N79: Length per turn Layer 3 | Q79: =Q69+(8*(Q71/2)+(16*(SQRT(3)*(Q71/2)))) -> 104.9093555 | S79: Length per turn Layer 3 | V79: =V69+(8*(V71/2)+(16*(SQRT(3)*(V71/2)))) -> 178.6009549
N80: Length per turn Layer 4 | Q80: =Q69+(8*(Q71/2)+(24*(SQRT(3)*(Q71/2)))) -> 113.3906845 | S80: Length per turn Layer 4 | V80: =V69+(8*(V71/2)+(24*(SQRT(3)*(V71/2)))) -> 223.7135483
N81: Total wire length (mm) | Q81: =(Q73*Q77)+(Q74*Q78)+(Q75*Q79)+(Q76*Q80) -> 52093.27947 | S81: Total wire length (mm) | V81: =(V73*V77)+(V74*V78)+(V75*V79)+(V76*V80) -> -1977.556436
N82: MLT (mm) | Q82: =Q81/Q49 -> 83.75125317 | S82: MLT (mm) | V82: =V81/V49 -> -59.92595262
N83: Feet/Pound | Q83: =VLOOKUP(Q28, 'Wire Table'!$A$4:$K$47,11,FALSE) -> 157.7 | S83: Feet/Pound | V83: =VLOOKUP(V28, 'Wire Table'!$A$4:$K$47,11,FALSE) -> 15.75
N84: Pounds of Wire | Q84: =(Q24/304.8)/Q83 -> 1.083764804 | S84: Pounds of Wire | V84: =(V24/304.8)/V83 -> -1.235818295
N86: Surface Area | S86: Surface Area
N87: Base Part Number | Q87: =VLOOKUP(Q3,'Powder Core Detail'!$A$2:$T$1546,3,FALSE) -> 102 | S87: Base Part Number | V87: =VLOOKUP(V3,'Powder Core Detail'!$A$2:$T$1026,3,FALSE) -> 438
N88: Single Toroid Surface Area | Q88: =VLOOKUP(Q87,'Surface Area'!$A$2:$F$50,6,FALSE) -> 20700 | S88: Single Toroid Surface Area | V88: =VLOOKUP(--V87,'Surface Area'!$A$2:$G$37,7,FALSE) -> 23113.27869
N89: Stacking Surface Area | Q89: =(Q90*PI()*(Q65+Q66)) -> 8927.228224 | S89: Stacking Surface Area | V89: =(V90*PI()*(V65+V66)) -> 4233.830171
N90: Core Ht for SA | Q90: =(VLOOKUP(Q3,'Powder Core Detail'!$A$2:$T$1546,15,FALSE)) -> 17.9 | S90: Core Ht for SA | V90: =(VLOOKUP(V3,'Powder Core Detail'!$A$2:$T$1026,15,FALSE)) -> 19
N91: Total Surface Area | Q91: =Q88+(Q4-1)*(Q89) -> 20700 | S91: Total Surface Area | V91: =V88+(V4-1)*(V89) -> 23113.27869
N93: Part Number | Q93: =VLOOKUP(Q3,'Powder Core Detail'!$A$2:$T$1546,2,FALSE) -> 0079097A7 | S93: Part Number | V93: =VLOOKUP(V3,'Powder Core Detail'!$A$2:$T$1026,2,FALSE) -> 0075439A7
N94: Cross Section (cm2) | Q94: =VLOOKUP(Q3,'Powder Core Detail'!$A$2:$T$1546,16,FALSE)*Q4 -> 3.58 | S94: Cross Section (cm2) | V94: =VLOOKUP(V3,'Powder Core Detail'!$A$2:$T$1026,16,FALSE)*V4 -> 1.99
N96: Equations | S96: Equations
N97: DC A | Q97: =IF($Q$5="Kool Mu",VLOOKUP($Q$6,'Kool Mu CF Constants'!$A$3:$F$9,2,FALSE),IF($Q$5="MPP",VLOOKUP($Q$6,'MPP CF'!$A$3:$F$12,2,FALSE),IF($Q$5="High Flux",VLOOKUP($Q$6,'HF CF'!$A$3:$F$9,2,FALSE),IF($Q$5="XFlux",VLOOKUP($Q$6,'XF CF'!$A$3:$D$8,2,FALSE),IF($Q$5="MIX", VLOOKUP($Q$6,'75 CF'!A2:D6,2,FALSE),IF($Q$5="KMM",VLOOKUP($Q$6,'79 CF'!$A$3:$D$6,2,FALSE))))))) -> 0.01 | S97: DC A | V97: =IF($V$5="Kool Mu",VLOOKUP($V$6,#REF!,2,FALSE),IF($V$5="MPP",VLOOKUP($V$6,#REF!,2,FALSE),IF($V$5="High Flux",VLOOKUP($V$6,#REF!,2,FALSE),IF($V$5="XFlux",VLOOKUP($V$6,#REF!,2,FALSE))))) -> FALSE
N98: DC B | Q98: =IF($Q$5="Kool Mu",VLOOKUP($Q$6,'Kool Mu CF Constants'!$A$3:$F$9,3,FALSE),IF($Q$5="MPP",VLOOKUP($Q$6,'MPP CF'!$A$3:$F$12,3,FALSE),IF($Q$5="High Flux",VLOOKUP($Q$6,'HF CF'!$A$3:$F$9,3,FALSE),IF($Q$5="XFlux",VLOOKUP($Q$6,'XF CF'!$A$3:$D$8,3,FALSE),IF($Q$5="MIX",VLOOKUP($Q$6,'75 CF'!A2:D6,3,FALSE),IF($Q$5="KMM",VLOOKUP($Q$6,'79 CF'!$A$3:$D$6,3,FALSE))))))) -> 3.135641472e-08 | S98: DC B | V98: =IF($V$5="Kool Mu",VLOOKUP($V$6,#REF!,3,FALSE),IF($V$5="MPP",VLOOKUP($V$6,#REF!,3,FALSE),IF($V$5="High Flux",VLOOKUP($V$6,#REF!,3,FALSE),IF($V$5="XFlux",VLOOKUP($V$6,#REF!,3,FALSE))))) -> FALSE
N99: DC C | Q99: =IF($Q$5="Kool Mu",VLOOKUP($Q$6,'Kool Mu CF Constants'!$A$3:$F$9,4,FALSE),IF($Q$5="MPP",VLOOKUP($Q$6,'MPP CF'!$A$3:$F$12,4,FALSE),IF($Q$5="High Flux",VLOOKUP($Q$6,'HF CF'!$A$3:$F$9,4,FALSE),IF($Q$5="XFlux",VLOOKUP($Q$6,'XF CF'!$A$3:$D$8,4,FALSE),IF($Q$5="MIX", VLOOKUP($Q$6,'75 CF'!A2:D6,4,FALSE),IF($Q$5="KMM",VLOOKUP($Q$6,'79 CF'!$A$3:$D$6,4,FALSE))))))) -> 2.110745363 | S99: DC C | V99: =IF($V$5="Kool Mu",VLOOKUP($V$6,#REF!,4,FALSE),IF($V$5="MPP",VLOOKUP($V$6,#REF!,4,FALSE),IF($V$5="High Flux",VLOOKUP($V$6,#REF!,4,FALSE),IF($V$5="XFlux",VLOOKUP($V$6,#REF!,4,FALSE))))) -> FALSE
N100: DC D | S100: DC D | V100: =IF($V$5="Kool Mu",VLOOKUP($V$6,#REF!,5,FALSE),IF($V$5="MPP",VLOOKUP($V$6,#REF!,5,FALSE),IF($V$5="High Flux",VLOOKUP($V$6,#REF!,5,FALSE),IF($V$5="XFlux",VLOOKUP($V$6,#REF!,5,FALSE))))) -> FALSE
N101: DC E | S101: DC E | V101: =IF($V$5="Kool Mu",VLOOKUP($V$6,#REF!,6,FALSE),IF($V$5="MPP",VLOOKUP($V$6,#REF!,6,FALSE),IF($V$5="High Flux",VLOOKUP($V$6,#REF!,6,FALSE),IF($V$5="XFlux",VLOOKUP($V$6,#REF!,6,FALSE))))) -> FALSE
N102: NM A | Q102: =IF($Q$5="Kool Mu",VLOOKUP($Q$6,'Kool Mu CF Constants'!$A$16:$G$22,2,FALSE),IF($Q$5="MPP",VLOOKUP($Q$6,'MPP CF'!$A$14:$G$23,2,FALSE),IF($Q$5="High Flux",VLOOKUP($Q$6,'HF CF'!$A$11:$G$17,2,FALSE),IF($Q$5="XFlux",VLOOKUP($Q$6,'XF CF'!$A$15:$G$20,2,FALSE),IF($Q$5="MIX",VLOOKUP($Q$6,'75 CF'!A10:G14,2,FALSE),IF($Q$5="KMM",VLOOKUP($Q$6,'79 CF'!$A$11:$G$14,2,FALSE))))))) -> 0.05663546668 | S102: NM A | V102: =IF($V$5="Kool Mu",VLOOKUP($V$6,#REF!,2,FALSE),IF($V$5="MPP",VLOOKUP($V$6,#REF!,2,FALSE),IF($V$5="High Flux",VLOOKUP($V$6,#REF!,2,FALSE),IF($V$5="XFlux",VLOOKUP($V$6,#REF!,2,FALSE))))) -> FALSE
N103: NM B | Q103: =IF($Q$5="Kool Mu",VLOOKUP($Q$6,'Kool Mu CF Constants'!$A$16:$G$22,3,FALSE),IF($Q$5="MPP",VLOOKUP($Q$6,'MPP CF'!$A$14:$G$23,3,FALSE),IF($Q$5="High Flux",VLOOKUP($Q$6,'HF CF'!$A$11:$G$17,3,FALSE),IF($Q$5="XFlux",VLOOKUP($Q$6,'XF CF'!$A$15:$G$20,3,FALSE),IF($Q$5="MIX",VLOOKUP($Q$6,'75 CF'!A10:G14,3,FALSE),IF($Q$5="KMM",VLOOKUP($Q$6,'79 CF'!$A$11:$G$14,3,FALSE))))))) -> 0.0209126774 | S103: NM B | V103: =IF($V$5="Kool Mu",VLOOKUP($V$6,#REF!,3,FALSE),IF($V$5="MPP",VLOOKUP($V$6,#REF!,3,FALSE),IF($V$5="High Flux",VLOOKUP($V$6,#REF!,3,FALSE),IF($V$5="XFlux",VLOOKUP($V$6,#REF!,3,FALSE))))) -> FALSE
N104: NM C | Q104: =IF($Q$5="Kool Mu",VLOOKUP($Q$6,'Kool Mu CF Constants'!$A$16:$G$22,4,FALSE),IF($Q$5="MPP",VLOOKUP($Q$6,'MPP CF'!$A$14:$G$23,4,FALSE),IF($Q$5="High Flux",VLOOKUP($Q$6,'HF CF'!$A$11:$G$17,4,FALSE),IF($Q$5="XFlux",VLOOKUP($Q$6,'XF CF'!$A$15:$G$20,4,FALSE),IF($Q$5="MIX",VLOOKUP($Q$6,'75 CF'!A10:G14,4,FALSE),IF($Q$5="KMM",VLOOKUP($Q$6,'79 CF'!$A$11:$G$14,4,FALSE))))))) -> 0.0006075345284 | S104: NM C | V104: =IF($V$5="Kool Mu",VLOOKUP($V$6,#REF!,4,FALSE),IF($V$5="MPP",VLOOKUP($V$6,#REF!,4,FALSE),IF($V$5="High Flux",VLOOKUP($V$6,#REF!,4,FALSE),IF($V$5="XFlux",VLOOKUP($V$6,#REF!,4,FALSE))))) -> FALSE
N105: NM D | Q105: =IF($Q$5="Kool Mu",VLOOKUP($Q$6,'Kool Mu CF Constants'!$A$16:$G$22,5,FALSE),IF($Q$5="MPP",VLOOKUP($Q$6,'MPP CF'!$A$14:$G$23,5,FALSE),IF($Q$5="High Flux",VLOOKUP($Q$6,'HF CF'!$A$11:$G$17,5,FALSE),IF($Q$5="XFlux",VLOOKUP($Q$6,'XF CF'!$A$15:$G$20,5,FALSE),IF($Q$5="MIX",VLOOKUP($Q$6,'75 CF'!A10:G14,5,FALSE),IF($Q$5="KMM",VLOOKUP($Q$6,'79 CF'!$A$11:$G$14,5,FALSE))))))) -> 0.1437311263 | S105: NM D | V105: =IF($V$5="Kool Mu",VLOOKUP($V$6,#REF!,5,FALSE),IF($V$5="MPP",VLOOKUP($V$6,#REF!,5,FALSE),IF($V$5="High Flux",VLOOKUP($V$6,#REF!,5,FALSE),IF($V$5="XFlux",VLOOKUP($V$6,#REF!,5,FALSE))))) -> FALSE
N106: NM E | Q106: =IF($Q$5="Kool Mu",VLOOKUP($Q$6,'Kool Mu CF Constants'!$A$16:$G$22,6,FALSE),IF($Q$5="MPP",VLOOKUP($Q$6,'MPP CF'!$A$14:$G$23,6,FALSE),IF($Q$5="High Flux",VLOOKUP($Q$6,'HF CF'!$A$11:$G$17,6,FALSE),IF($Q$5="XFlux",VLOOKUP($Q$6,'XF CF'!$A$15:$G$20,6,FALSE),IF($Q$5="MIX",VLOOKUP($Q$6,'75 CF'!A10:G14,6,FALSE),IF($Q$5="KMM",VLOOKUP($Q$6,'79 CF'!$A$11:$G$14,6,FALSE))))))) -> 0.0005012855395 | S106: NM E | V106: =IF($V$5="Kool Mu",VLOOKUP($V$6,#REF!,6,FALSE),IF($V$5="MPP",VLOOKUP($V$6,#REF!,6,FALSE),IF($V$5="High Flux",VLOOKUP($V$6,#REF!,6,FALSE),IF($V$5="XFlux",VLOOKUP($V$6,#REF!,6,FALSE))))) -> FALSE
N107: NM X | Q107: =IF($Q$5="Kool Mu",VLOOKUP($Q$6,'Kool Mu CF Constants'!$A$16:$G$22,7,FALSE),IF($Q$5="MPP",VLOOKUP($Q$6,'MPP CF'!$A$14:$G$23,7,FALSE),IF($Q$5="High Flux",VLOOKUP($Q$6,'HF CF'!$A$11:$G$17,7,FALSE),IF($Q$5="XFlux",VLOOKUP($Q$6,'XF CF'!$A$15:$G$20,7,FALSE),IF($Q$5="MIX",VLOOKUP($Q$6,'75 CF'!A11:G15,7,FALSE),IF($Q$5="KMM",VLOOKUP($Q$6,'79 CF'!$A$11:$G$14,7,FALSE))))))) -> 1.850184244 | S107: NM X | V107: =IF($V$5="Kool Mu",VLOOKUP($V$6,#REF!,7,FALSE),IF($V$5="MPP",VLOOKUP($V$6,#REF!,7,FALSE),IF($V$5="High Flux",VLOOKUP($V$6,#REF!,7,FALSE),IF($V$5="XFlux",VLOOKUP($V$6,#REF!,7,FALSE))))) -> FALSE
L108: Index | M108: =R5*10000+Q6*10+F7 -> 60192 | N108: CL A | Q108: =VLOOKUP(M108,'CL Sum'!C1:I156,4,0) -> 468.978 | S108: CL A | V108: =IF($V$5="Kool Mu",VLOOKUP($V$6,#REF!,2,FALSE),IF($V$5="MPP",VLOOKUP($V$6,#REF!,2,FALSE),IF($V$5="High Flux",VLOOKUP($V$6,#REF!,2,FALSE),IF($V$5="XFlux",VLOOKUP($V$6,#REF!,2,FALSE))))) -> FALSE
N109: CL B | Q109: =VLOOKUP(M108,'CL Sum'!C2:I157,5,0) -> 2.141 | S109: CL B | V109: =IF($V$5="Kool Mu",VLOOKUP($V$6,#REF!,3,FALSE),IF($V$5="MPP",VLOOKUP($V$6,#REF!,3,FALSE),IF($V$5="High Flux",VLOOKUP($V$6,#REF!,3,FALSE),IF($V$5="XFlux",VLOOKUP($V$6,#REF!,3,FALSE))))) -> FALSE
N110: CL C | Q110: =VLOOKUP(M108,'CL Sum'!C3:I158,6,0) -> 1.067 | S110: CL C | V110: =IF($V$5="Kool Mu",VLOOKUP($V$6,#REF!,4,FALSE),IF($V$5="MPP",VLOOKUP($V$6,#REF!,4,FALSE),IF($V$5="High Flux",VLOOKUP($V$6,#REF!,4,FALSE),IF($V$5="XFlux",VLOOKUP($V$6,#REF!,4,FALSE))))) -> FALSE
N111: DC + AC Ripple Drive | Q111: =1.26*($E$16*Q49/Q45) -> 241.8888889 | S111: DC + AC Ripple Drive | V111: =$E$16*V49/V45 -> 23.13084112
N112: DC-AC Ripple Drive | Q112: =1.26*($E$17*Q49/Q45) -> 80.62962963 | S112: DC-AC Ripple Drive | V112: =$E$17*V49/V45 -> 7.710280374
N113: DC or low f AC RMS Drive Init | Q113: =IF($E$18=0,1.26*($E19*Q47/Q45),1.26*($E$18*Q47/Q45)) -> 144.6666667 | S113: DC or low f AC RMS Drive Init | V113: =$E$18*V47/V45 -> 15.42056075
N114: If low f AC Drive | Q114: =1.26*($E$19*Q49/Q45) -> 308.6846611 | S114: If low f AC Drive | V114: =$E$19*V49/V45 -> 29.51824652
N115: DC or low f AC RMS Drive 2nd | Q115: =IF($E$18=0,1.26*($E$19*Q49/Q45),1.26*($E$18*Q49/Q45)) -> 161.2592593 | S115: DC or low f AC RMS Drive 2nd | V115: =$E$18*V49/V45 -> 15.42056075
N116: Specified Current Drive | Q116: =1.26*($E$20*Q49/Q45) -> 0 | S116: Specified Current Drive | V116: =$E$20*V49/V45 -> 0
N120: Finished OD(mm) | Q120: =Q65+Q71*2*Q23*1.1 -> 113.7727347
N121: Finished HT(mm) | Q121: =Q67+Q71*2*Q23*1.1 -> 28.67273466

Sheet Curve (hidden)
A3: 1 | B3: 1
A4: 2 | B4: 2
A5: 3 | B5: 3
A6: 4 | B6: 4

Sheet Sheet2 (hidden)

Sheet Welcome

Sheet Sheet1 (hidden)

Sheet MPP CF (hidden)
A1: MPP
A2: DC Bias | B2: a | C2: b | D2: c | E2: d | F2: e
A3: 14 | B3: 0.01 | C3: 1.346107191e-09 | D3: 2.595830041
A4: 26 | B4: 0.01 | C4: 1.089667765e-08 | D4: 2.505116265
A5: 60 | B5: 0.01 | C5: 1.165267943e-07 | D5: 2.435965
A6: 125 | B6: 0.01 | C6: 1.173034632e-06 | D6: 2.253456962
A7: 147 | B7: 0.01 | C7: 9.117511035e-07 | D7: 2.42977277
A8: 160 | B8: 0.01 | C8: 9.524580748e-07 | D8: 2.477225252
A9: 173 | B9: 0.01 | C9: 8.078101471e-07 | D9: 2.563383528
A10: 200 | B10: 0.01 | C10: 1.49622067e-06 | D10: 2.477225252
A11: 300 | B11: 0.01 | C11: 1.116583359e-05 | D11: 2.215568627
A12: 550 | B12: 0.01 | C12: 0.0005597119739 | D12: 1.709511291
A13: Norm Mag | B13: a | C13: b | D13: c | E13: d | F13: e | G13: x
A14: 14 | B14: 0.07878963353 | C14: 0.0180385806 | D14: 0.0005650387474 | E14: 0.1341570356 | F14: 0.0005397623313 | G14: 2.044730651
A15: 26 | B15: 0.09580613822 | C15: 0.01683038482 | D15: 0.0007151623522 | E15: 0.09679941696 | F15: 0.0006831720513 | G15: 2.024139946
A16: 60 | B16: 0.08635556967 | C16: 0.01685853235 | D16: 0.0008890622508 | E16: 0.06395220873 | F16: 0.000844695094 | G16: 1.78085491
A17: 125 | B17: 0.02732160136 | C17: 0.01557724958 | D17: 0.001148290461 | E17: 0.05512084458 | F17: 0.001003491773 | G17: 1.23577069
A18: 147 | B18: 0.0188153418 | C18: 0.0146231918 | D18: 0.001100884141 | E18: 0.04438522006 | F18: 0.001008929107 | G18: 1.124797158
A19: 160 | B19: 0.0105150576 | C19: 0.01990025402 | D19: 4.397432169e-05 | E19: 0.007994009209 | F19: 0.0001381703637 | G19: 1.128399806
A20: 173 | B20: 0.01357498267 | C20: 0.01388910392 | D20: 0.001203435245 | E20: 0.03816038629 | F20: 0.00113806564 | G20: 1.04318213
A21: 200 | B21: 0.007631031744 | C21: 0.01375719922 | D21: 0.001218080181 | E21: 0.03263276929 | F21: 0.001160458389 | G21: 0.9657203737
A22: 300 | B22: 0.01481372364 | C22: 0.04154948875 | D22: 0.001028634248 | E22: 0.04015355817 | F22: 0.001182278074 | G22: 1.197824427
A23: 550 | B23: 0 | C23: 0.07160730371 | D23: 0.0002190572216 | E23: 0.0948201809 | F23: 0.002038524329 | G23: 1.070325672
B24: Core Loss | C24: a | D24: b | E24: c
A25: >10KHz | B25: 14 | C25: 21.06 | D25: 1.074 | E25: 1.38
A26: >10KHz | B26: 26 | C26: 109.17 | D26: 2 | E26: 1.37
A27: >10KHz | B27: 60 | C27: 31.32 | D27: 1.585 | E27: 1.37
A28: >10KHz | B28: 125 | C28: 87.07 | D28: 2.222 | E28: 1.56
A29: >10KHz | B29: 147 | C29: 87.07 | D29: 2.222 | E29: 1.56
A30: >10KHz | B30: 160 | C30: 87.07 | D30: 2.222 | E30: 1.56
A31: >10KHz | B31: 173 | C31: 87.07 | D31: 2.222 | E31: 1.56
A32: >10KHz | B32: 200 | C32: 115.52 | D32: 2.322 | E32: 1.59
A33: >10KHz | B33: 300 | C33: 115.52 | D33: 2.322 | E33: 1.59
A34: >10KHz | B34: 550 | C34: 96.89 | D34: 1.999 | E34: 1.54
A35: <10KHz | B35: 14 | C35: 64.02 | D35: 1.074 | E35: 1.11
A36: <10KHz | B36: 26 | C36: 361.62 | D36: 2 | E36: 1.08
A37: <10KHz | B37: 60 | C37: 80.12 | D37: 1.585 | E37: 1.04
A38: <10KHz | B38: 125 | C38: 254.26 | D38: 2.222 | E38: 1.17
A39: <10KHz | B39: 147 | C39: 254.26 | D39: 2.222 | E39: 1.17
A40: <10KHz | B40: 160 | C40: 254.26 | D40: 2.222 | E40: 1.17
A41: <10KHz | B41: 173 | C41: 254.26 | D41: 2.222 | E41: 1.17
A42: <10KHz | B42: 200 | C42: 320.32 | D42: 2.322 | E42: 1.19
A43: <10KHz | B43: 300 | C43: 320.32 | D43: 2.322 | E43: 1.19
A44: <10KHz | B44: 550 | C44: 303.43 | D44: 1.999 | E44: 1.09

Sheet HF CF (hidden)
A1: High Flux
A2: DC Bias | B2: a | C2: b | D2: c | E2: d | F2: e
A3: 14 | B3: 0.01 | C3: 3.389412379e-08 | D3: 1.922913742
A4: 26 | B4: 0.01 | C4: 4.204656612e-09 | D4: 2.425923117
A5: 40 | B5: 0.01 | C5: 1.841066313e-08 | D5: 2.40942084
A6: 60 | B6: 0.01 | C6: 6.412573254e-08 | D6: 2.290504771
A7: 125 | B7: 0.01 | C7: 1.402709576e-07 | D7: 2.465366663
A8: 147 | B8: 0.01 | C8: 1.207027362e-06 | D8: 2.130834392
A9: 160 | B9: 0.01 | C9: 1.703729773e-06 | D9: 2.09443359
A10: Norm Mag | B10: a | C10: b | D10: c | E10: d | F10: e | G10: x
A11: 14 | B11: 0 | C11: 0.01892055204 | D11: 0.0004130812184 | E11: 0.1501660267 | F11: 0.0002981421751 | G11: 1.737098662
A12: 26 | B12: 0.08530745449 | C12: 0.02246400177 | D12: 0.0005733006274 | E12: 0.1026139609 | F12: 0.0004159094522 | G12: 2.095871461
A13: 40 | B13: 0.1019703081 | C13: 0.01936378409 | D13: 0.000817692008 | E13: 0.09357922224 | F13: 0.0006220085019 | G13: 1.933433378
A14: 60 | B14: 0.08648887142 | C14: 0.02029294072 | D14: 0.0008974200253 | E14: 0.08293867817 | F14: 0.0006033739342 | G14: 1.766241342
A15: 125 | B15: 0.08477817089 | C15: 0.01799248058 | D15: 4.777883707e-05 | E15: 0.009055027252 | F15: 4.796273443e-05 | G15: 1.48374151
A16: 147 | B16: 0.03663160234 | C16: 0.01834574621 | D16: 0.001328094931 | E16: 0.05938015748 | F16: 0.000838826534 | G16: 1.257295645
A17: 160 | B17: 0.02895591245 | C17: 0.01795857639 | D17: 0.001388798712 | E17: 0.05843931932 | F17: 0.0008590638439 | G17: 1.19136776
B18: Core Loss | C18: a | D18: b | E18: c
A19: >25KHz | B19: 14 | C19: 181.14 | D19: 1.386 | E19: 1.21
A20: >25KHz | B20: 26 | C20: 532.55 | D20: 2.17 | E20: 1.35
A21: >25KHz | B21: 40 | C21: 1707.09 | D21: 2.28 | E21: 1.14
A22: >25KHz | B22: 60 | C22: 47.51 | D22: 1.585 | E22: 1.43
A23: >25KHz | B23: 125 | C23: 47.51 | D23: 1.585 | E23: 1.43
A24: >25KHz | B24: 147 | C24: 203.61 | D24: 2.163 | E24: 1.52
A25: >25KHz | B25: 160 | C25: 203.61 | D25: 2.163 | E25: 1.52
A26: <25KHz | B26: 14 | C26: 181.14 | D26: 1.386 | E26: 1.21
A27: <25KHz | B27: 26 | C27: 1550.54 | D27: 2.17 | E27: 1.05
A28: <25KHz | B28: 40 | C28: 2021.58 | D28: 2.28 | E28: 1.05
A29: <25KHz | B29: 60 | C29: 151.44 | D29: 1.585 | E29: 1.09
A30: <25KHz | B30: 125 | C30: 151.44 | D30: 1.585 | E30: 1.09
A31: <25KHz | B31: 147 | C31: 883.51 | D31: 2.163 | E31: 1.52
A32: <25KHz | B32: 160 | C32: 883.51 | D32: 2.163 | E32: 1.52

Sheet XF CF (hidden)
A1: Xflux
A2: DC Bias | B2: a | C2: b | D2: c | E2: d | F2: e
A3: 19 | B3: 0.01 | C3: 2.997158385e-09 | D3: 2.339039948 | E3: Toroid
A4: 26 | B4: 0.01 | C4: 6.783708136e-08 | D4: 1.966426196
A5: 40 | B5: 0.01 | C5: 5.93758831e-08 | D5: 2.187537297
A6: 60 | B6: 0.01 | C6: 2.702068631e-08 | D6: 2.511090842
A7: 75 | B7: 0.01 | C7: 1.224017331e-07 | D7: 2.305841697
A8: 90 | B8: 0.01 | C8: 4.908851465e-07 | D8: 2.14986487
A9: 26 | B9: 0.01 | C9: 5.560205915e-08 | D9: 2.053888129 | E9: Shape
A10: 40 | B10: 0.01 | C10: 3.206261749e-07 | D10: 1.931739884
A11: 60 | B11: 0.01 | C11: 3.569599995e-07 | D11: 2.047001505
A12: 90
A14: Norm Mag | B14: a | C14: b | D14: c | E14: d | F14: e | G14: x
A15: 19 | B15: 0.07580987404 | C15: 0.01848338268 | D15: 0.0004982370753 | E15: 0.1458266848 | F15: 0.0003089727934 | G15: 1.684021074 | H15: Toroid
A16: 26 | B16: 0.03963506313 | C16: 0.02067858022 | D16: 0.0005678912468 | E16: 0.1172003465 | F16: 0.0003879802228 | G16: 1.81155173
A17: 40 | B17: 0.08710957553 | C17: 0.02005212399 | D17: 0.0007948955374 | E17: 0.09694320728 | F17: 0.0005919055723 | G17: 1.88084588
A18: 60 | B18: 0.121112911 | C18: 0.01353135758 | D18: 0 | E18: 0.00962637498 | F18: 1.525878906e-06 | G18: 1.88133247
A19: 75 | B19: 0.09900955964 | C19: 0.01357397981 | D19: 0.0001749850685 | E19: 0.01816504064 | F19: 0.0001292661669 | G19: 1.661936688
A20: 90 | B20: 0.06268867857 | C20: 0.01798218445 | D20: 0.001032259829 | E20: 0.06639357226 | F20: 0.0007551568171 | G20: 1.522458176
A21: Core Loss | C21: a | D21: b | E21: c
A22: >25kHz | B22: 26 | C22: 761.36 | D22: 1.977 | E22: 1.21
A23: <25kHz | B23: 26 | C23: 1187.96 | D23: 1.977 | E23: 1.05
A24: >9kHz | B24: 40 | C24: 804.88 | D24: 1.934 | E24: 1.14
A25: <9kHz | B25: 40 | C25: 1274.93 | D25: 1.934 | E25: 1.06
A26: >10kHz | B26: 60 | C26: 454.56 | D26: 1.909 | E26: 1.19
A27: <10kHz | B27: 60 | C27: 670.26 | D27: 1.909 | E27: 1.06
A28: >9kHz | B28: 75 | C28: 566.54 | D28: 2.018 | E28: 1.17
A29: <9kHz | B29: 75 | C29: 862.34 | D29: 2.018 | E29: 1.02
A30: >9kHz | B30: 90 | C30: 566.54 | D30: 2.018 | E30: 1.17
A31: <9kHz | B31: 90 | C31: 862.34 | D31: 2.018 | E31: 1.02

Sheet 79 CF (hidden)
A1: 79
A2: DC Bias | B2: a | C2: b | D2: c
A3: 19 | B3: 0.01 | C3: 3.135641472e-08 | D3: 2.110745363
A4: 26 | B4: 0.01 | C4: 3.444380841e-08 | D4: 2.205337678
A5: 40 | B5: 0.01 | C5: 5.919249167e-07 | D5: 1.855283246
A6: 60 | B6: 0.01 | C6: 5.917159763e-07 | D6: 2
A10: Norm Mag | B10: a | C10: b | D10: c | E10: d | F10: e | G10: x
A11: 19 | B11: 0.05663546668 | C11: 0.0209126774 | D11: 0.0006075345284 | E11: 0.1437311263 | F11: 0.0005012855395 | G11: 1.850184244
A12: 26 | B12: 0.0776386247 | C12: 0.02080535974 | D12: 0.0006894920795 | E12: 0.1098899759 | F12: 0.000587048947 | G12: 2.009291538
A13: 40 | B13: 0.06100734114 | C13: 0.02279092285 | D13: 0.0007267035957 | E13: 0.09500427755 | F13: 0.0005978842829 | G13: 1.870322045
A14: 60 | B14: 0.07334909816 | C14: 0.01873279776 | D14: 0.000850210419 | E14: 0.07412055371 | F14: 0.0007006904815 | G14: 1.722652008
A18: Core Loss | B18: a | C18: b | D18: c
A20: 26 | B20: 271 | C20: 2.031 | D20: 1.44
A21: 40 | B21: 309 | C21: 2.14 | D21: 1.46
A22: 60 | B22: 251.4 | C22: 2.066 | D22: 1.41

Sheet 75 CF (hidden)
A1: 75
A2: DC Bias | B2: a | C2: b | D2: c
A4: 26 | B4: 0.01 | C4: 5.822172316e-07 | D4: 1.658586668
A5: 40 | B5: 0.01 | C5: 1.358419331e-06 | D5: 1.650840465
A6: 60 | B6: 0.01 | C6: 1.101031192e-06 | D6: 1.818949624
A10: Norm Mag | B10: a | C10: b | D10: c | E10: d | F10: e | G10: x
A12: 26 | B12: 0.01934693009 | C12: 0.01820599684 | D12: 0.0004073560067 | E12: 0.09161989746 | F12: 0.0002951743705 | G12: 1.748493146
A13: 40 | B13: 0.0362732489 | C13: 0.02148408735 | D13: 0.0006971800552 | E13: 0.102899637 | F13: 0.0005175292917 | G13: 1.718413238
A14: 60 | B14: 0.06047308777 | C14: 0.02081066719 | D14: 0.0008582474671 | E14: 0.08427234311 | F14: 0.0006352207852 | G14: 1.686360871
A18: Core Loss | B18: a | C18: b | D18: c
A20: 26 | B20: 271 | C20: 2.031 | D20: 1.44
A21: 40 | B21: 309 | C21: 2.14 | D21: 1.46
A22: 60 | B22: 251.4 | C22: 2.066 | D22: 1.41

Sheet PN_75 (hidden)
B1: Size | G1: 60µ | H1: 40µ | I1: 26µ
B2: 140 | G2: 0 | H2: 0 | I2: 0
B3: 150 | G3: 0 | H3: 0 | I3: 0
B4: 180 | G4: 0 | H4: 0 | I4: 0
B5: 20 | G5: 0 | H5: 0 | I5: 0
B6: 240 | G6: 0 | H6: 0 | I6: 0
B7: 270 | G7: 0 | H7: 0 | I7: 0
B8: 410 | G8: 0 | H8: 0 | I8: 0
B9: 30 | G9: 0 | H9: 0 | I9: 0
B10: 280 | G10: 0 | H10: 0 | I10: 0
B11: 290 | G11: 0 | H11: 0 | I11: 0
B12: 40 | G12: 0 | H12: 0 | I12: 0
B13: 130 | G13: 0 | H13: 0 | I13: 0
B14: 50 | G14: 0 | H14: 0 | I14: 0
B15: 120 | G15: 0 | H15: 0 | I15: 0
B16: 380 | G16: 0 | H16: 0 | I16: 0
B17: 206 | G17: 0 | H17: 0 | I17: 0
B18: 310 | G18: 75059 | H18: 75316 | I18: 75312
B19: 350 | G19: 75351 | H19: 75356 | I19: 75352
B20: 930 | G20: 75894 | H20: 75936 | I20: 75932
B21: 585 | G21: 75586 | H21: 75591 | I21: 75587
B22: 548 | G22: 75071 | H22: 75555 | I22: 75550
B23: 324 | G23: 75076 | H23: 75330 | I23: 75326
B24: 254 | G24: 75083 | H24: 75260 | I24: 75256
B25: 089 | G25: 75090 | H25: 75095 | I25: 75091
B26: 438 | G26: 75439 | H26: 75431 | I26: 75440
B27: 715 | G27: 75716 | H27: 75721 | I27: 75717
B28: 195 | G28: 75192 | H28: 75189 | I28: 75191
B29: 109 | G29: 75110 | H29: 75212 | I29: 75111
B30: 620 | G30: 75617 | H30: 75616 | I30: 75615
B31: 740 | G31: 75737 | H31: 75736 | I31: 75735
B32: 866 | G32: 75867 | H32: 75872 | I32: 75868
B33: 906 | G33: 75907 | H33: 75912 | I33: 75908
B34: 102 | G34: 75099 | H34: 75100 | I34: 75102
B35: 337 | G35: 75339 | H35: 75338 | I35: 75337
B36: 165 | G36: - | H36: - | I36: -

Sheet LI_75 (hidden)
A1: Catalog page | B1: Size Code | C1: Max | D1: 125u | E1: 90u | F1: 75u | G1: 60u | H1: 40u | I1: 26u | J1: LI^2 max %ui=0.5min
A2: 1 | B2: 140 | C2: =MAX(G2:I2) -> 0 | D2: 0 | E2: 0 | F2: 0 | G2: 0 | H2: 0 | I2: 0
A3: 2 | B3: 150 | C3: =MAX(G3:I3) -> 0 | D3: 0 | E3: 0 | F3: 0 | G3: 0 | H3: 0 | I3: 0
A4: 3 | B4: 180 | C4: 0 | D4: 0 | E4: 0 | F4: 0 | G4: 0 | H4: 0 | I4: 0
A5: 4 | B5: 020 | C5: 0 | D5: 0 | E5: 0 | F5: 0 | G5: 0 | H5: 0 | I5: 0
A6: 5 | B6: 240 | C6: 0 | D6: 0 | E6: 0 | F6: 0 | G6: 0 | H6: 0 | I6: 0
A7: 6 | B7: 270 | C7: 0 | D7: 0 | E7: 0 | F7: 0 | G7: 0 | H7: 0 | I7: 0
A8: 8 | B8: 030 | C8: 0 | D8: 0 | E8: 0 | F8: 0 | G8: 0 | H8: 0 | I8: 0
A9: 7 | B9: 410 | C9: 0 | D9: 0 | E9: 0 | F9: 0 | G9: 0 | H9: 0 | I9: 0
A10: 9 | B10: 280 | C10: 0 | D10: 0 | E10: 0 | F10: 0 | G10: 0 | H10: 0 | I10: 0
A11: 10 | B11: 290 | C11: 0 | D11: 0 | E11: 0 | F11: 0 | G11: 0 | H11: 0 | I11: 0
A12: 11 | B12: 040 | C12: 0 | D12: 0 | E12: 0 | F12: 0 | G12: 0 | H12: 0 | I12: 0
A13: 12 | B13: 130 | C13: 0 | D13: 0 | E13: 0 | F13: 0 | G13: 0 | H13: 0 | I13: 0
A14: 13 | B14: 050 | C14: 0 | D14: 0 | E14: 0 | F14: 0 | G14: 0 | H14: 0 | I14: 0
A15: 15 | B15: 380 | C15: 0 | D15: 0 | E15: 0 | F15: 0 | G15: 0 | H15: 0 | I15: 0
A16: 14 | B16: 120 | C16: 0 | D16: 0 | E16: 0 | F16: 0 | G16: 0 | H16: 0 | I16: 0
A17: 16 | B17: 206 | C17: 0 | D17: 0 | E17: 0 | F17: 0 | G17: 0 | H17: 0 | I17: 0
A18: 17 | B18: 310 | C18: 1.60800617 | D18: 0 | E18: 0 | F18: 0 | G18: 1.60800617 | H18: 1.247713282 | I18: 0.8891778711 | J18: 1.868963377
A19: 18 | B19: 350 | C19: 2.116989734 | D19: 0 | E19: 0 | F19: 0 | G19: 2.116989734 | H19: 1.630272833 | I19: 1.149840991 | J19: 2.410199129
A20: 19 | B20: 930 | C20: 3.461378583 | D20: 0 | E20: 0 | F20: 0 | G20: 3.461378583 | H20: 2.649677796 | I20: 1.842620638 | J20: 4.022731518
A21: 21 | B21: 585 | C21: 7.965756998 | D21: 0 | E21: 0 | F21: 0 | G21: 7.965756998 | H21: 7.173321507 | I21: 5.487953105 | J21: 7.965756998
A22: 20 | B22: 548 | C22: 8.093719642 | D22: 0 | E22: 0 | F22: 0 | G22: 8.093719642 | H22: 6.881781027 | I22: 5.375188515 | J22: 8.093719642
A23: 22 | B23: 324 | C23: 10.52218344 | D23: 0 | E23: 0 | F23: 0 | G23: 10.52218344 | H23: 9.162071184 | I23: 6.951285688 | J23: 10.52218344
A24: 23 | B24: 254 | C24: 19.81300076 | D24: 0 | E24: 0 | F24: 0 | G24: 19.81300076 | H24: 17.86095711 | I24: 13.74026706 | J24: 19.81300076
A25: 25 | B25: 089 | C25: 34.81235658 | D25: 0 | E25: 0 | F25: 0 | G25: 31.09973552 | H25: 34.81235658 | I25: 28.15832783 | J25: 34.81235658
A26: 24 | B26: 438 | C26: 35.46486416 | D26: 0 | E26: 0 | F26: 0 | G26: 35.46486416 | H26: 30.94956479 | I26: 23.6425852 | J26: 35.46486416
A27: 26 | B27: 715 | C27: 41.7740132 | D27: 0 | E27: 0 | F27: 0 | G27: 31.62849175 | H27: 41.7740132 | I27: 35.22701561 | J27: 41.7740132
A28: 27 | B28: 195 | C28: 51.08386266 | D28: 0 | E28: 0 | F28: 0 | G28: 51.08386266 | H28: 45.10862998 | I28: 34.50767024 | J28: 51.08386266
A29: 28 | B29: 109 | C29: 64.77581693 | D29: 0 | E29: 0 | F29: 0 | G29: 41.00455974 | H29: 64.77581693 | I29: 58.42902058 | J29: 64.77581693
A30: 29 | B30: 620 | C30: 124.9398868 | D30: 0 | E30: 0 | F30: 0 | G30: 104.7817394 | H30: 124.9398868 | I30: 102.587583 | J30: 124.9398868
A31: 31 | B31: 866 | C31: 151.3024059 | D31: 0 | E31: 0 | F31: 0 | G31: 72.35916186 | H31: 119.0986846 | I31: 151.3024059 | J31: 151.3024059
A32: 32 | B32: 906 | C32: 187.0394394 | D32: 0 | E32: 0 | F32: 0 | G32: 90.90289868 | H32: 151.6154636 | I32: 187.0394394 | J32: 187.0394394
A33: 30 | B33: 740 | C33: 344.6854613 | D33: 0 | E33: 0 | F33: 0 | G33: 184.6565123 | H33: 306.1845028 | I33: 344.6854613 | J33: 344.6854613
A34: 33 | B34: 102 | C34: 416.7383512 | D34: 0 | E34: 0 | F34: 0 | G34: 175.2404424 | H34: 290.5714349 | I34: 416.7383512 | J34: 416.7383512
A35: 34 | B35: 337 | C35: 1196.562056 | D35: 0 | E35: 0 | F35: 0 | G35: 443.4512898 | H35: 732.972989 | I35: 1196.562056 | J35: 1196.562056
A36: 35 | B36: 165 | C36: 2219.347604 | D36: 0 | E36: 0 | F36: 0 | G36: 0 | H36: 1354.516592 | I36: 2219.347604 | J36: 2219.347604

Sheet Kool Mu CF Constants (hidden)
A1: Kool Mu
A2: DC Bias | B2: a | C2: b | D2: c
A3: 14 | B3: 0.01 | C3: 5.217765921e-08 | D3: 1.989835134 | E3: Toroid
A4: 26 | B4: 0.01 | C4: 5.266213876e-07 | D4: 1.818949624
A5: 40 | B5: 0.01 | C5: 2.177268845e-06 | D5: 1.703915585
A6: 60 | B6: 0.01 | C6: 3.476996288e-06 | D6: 1.748877226
A7: 75 | B7: 0.01 | C7: 8.697984972e-06 | D7: 1.664400501
A8: 90 | B8: 0.01 | C8: 1.890281802e-05 | D8: 1.557883594
A9: 125 | B9: 0.01 | C9: 4.543052133e-05 | D9: 1.462275004
A11: 26 | B11: 0.01 | C11: 6.615109836e-07 | D11: 1.873583905 | E11: Shape
A12: 40 | B12: 0.01 | C12: 3.626905037e-06 | D12: 1.656298091
A13: 60 | B13: 0.01 | C13: 1.108080536e-05 | D13: 1.554842177
A14: 90 | B14: 0.01 | C14: 1.114874059e-05 | D14: 1.743920319
A15: Norm Mag | B15: a | C15: b | D15: c | E15: d | F15: e | G15: x
A16: 14 | B16: 0.02391632557 | C16: 0.01850328772 | D16: 0.0005207210305 | E16: 0.1504385292 | F16: 0.0004860334163 | G16: 1.838987227
A17: 26 | B17: 0.04443806817 | C17: 0.02044419671 | D17: 0.0006855736397 | E17: 0.1142091303 | F17: 0.0006599852025 | G17: 1.878899935
A18: 40 | B18: 0.0521946662 | C18: 0.02108482056 | D18: 0.0007703812637 | E18: 0.09489145769 | F18: 0.0007456707351 | G18: 1.812441891
A19: 60 | B19: 0.05347702247 | C19: 0.02113469756 | D19: 0.0008316156316 | E19: 0.07738810857 | F19: 0.0007994452396 | G19: 1.701430649
A20: 75 | B20: 0.04621977328 | C20: 0.02278405364 | D20: 0.0007899531467 | E20: 0.06920028765 | F20: 0.000791413151 | G20: 1.628038354
A21: 90 | B21: 0.0429640718 | C21: 0.02582039459 | D21: 0.0007872167138 | E21: 0.06831065963 | F21: 0.0007802866201 | G21: 1.596022856
A22: 125 | B22: 0.01450363253 | C22: 0.02399284626 | D22: 0.001105992014 | E22: 0.07997102772 | F22: 0.00106911381 | G22: 1.290721176
B23: Core Loss | C23: a | D23: b | E23: c
A24: >10KHz | B24: 14 | C24: 21.49 | D24: 1 | E24: 1.33
A25: >10KHz | B25: 26 | C25: 45.48 | D25: 1.774 | E25: 1.46
A26: >10KHz | B26: 40 | C26: 45.48 | D26: 1.774 | E26: 1.46
A27: >9KHz | B27: 60 | C27: 62.65 | D27: 1.781 | E27: 1.36
A28: >10KHz | B28: 75 | C28: 146.81 | D28: 2.022 | E28: 1.33
A29: >10KHz | B29: 90 | C29: 146.81 | D29: 2.022 | E29: 1.33
A30: >10KHz | B30: 125 | C30: 71.93 | D30: 1.928 | E30: 1.47
A31: <10KHz | B31: 14 | C31: 40.18 | D31: 1 | E31: 1.22
A32: <10KHz | B32: 26 | C32: 170.17 | D32: 1.774 | E32: 1.03
A33: <10KHz | B33: 40 | C33: 170.17 | D33: 1.774 | E33: 1.03
A34: <9KHz | B34: 60 | C34: 136.93 | D34: 1.781 | E34: 1.12
A35: <10KHz | B35: 75 | C35: 338.51 | D35: 2.022 | E35: 1.05
A36: <10KHz | B36: 90 | C36: 338.51 | D36: 2.022 | E36: 1.05
A37: <10KHz | B37: 125 | C37: 228.46 | D37: 1.928 | E37: 1.05

Sheet All Material CL CF (hidden)

Sheet E Core Design (hidden)
B1: Select your Inductor Type | E1: DC w/ ripple | G1: Kool Mu E | J1: Xflux E | N1: Design #1
B2: Inductor Requirements | H2: 00K8044E026 | I2: 00K130LE026 | L2: 00X8024E060 | N2: Core Selection | AD2: STEP 1 | AH2: STEP 2 | AL2: STEP 3 | AP2: STEP 4
B3: Inductance Required (mH) | E3: =AE14 -> 0 | L3: 00X8024E040 | N3: Part Number | Q3: =AM4 -> 0 | AD3: Design Input | AL3: Input a Part Number
B4: =IF(E1="DC w/ ripple","DC Amps", IF(E1="Low AC w/ ripple","AC RMS Amps", IF(E1="pure AC no ripple", "AC RMS Amps"))) -> DC Amps | E4: =AE6 -> 0 | N4: Number of Cores (Stack-per set) | Q4: =AE17 -> 1 | AC4: Material Selection | AP4: Inductance at Full Load | AT4: mH
B5: =IF(E1="Pure AC no ripple", 0,"RMS Ripple Current (Amps)") -> RMS Ripple Current (Amps) | E5: =E6/2/1.732 -> 0 | N5: Material | Q5: =VLOOKUP(Q3,'E Core Detail'!$A$2:$D$100,4,FALSE) ->  | R5: =VLOOKUP(Q5,'CL Sum'!L2:M7,2,0) -> 
B6: =IF(E1="Pure AC no ripple",0,"Pk-Pk Ripple Current (Amps)") -> Pk-Pk Ripple Current (Amps) | E6: =AE8 -> 0 | N6: Permeability | Q6: =VLOOKUP(Q3,'E Core Detail'!$A$2:$C$100,3,FALSE) ->  | AC6: DC Current | AF6: Amps
B7: Specified Current | E7: =AE19 -> 0 | N7: AL (nH/T2) +/- 8% | Q7: =VLOOKUP(Q3,'E Core Detail'!$A$2:$E$100,5,FALSE)*Q4 ->  | S7: 0.01 | T7: =IF(S7=0,"No Value",(1/($Q$105+$Q$106*(S7*$Q$54/$Q$49)^$Q$107))*0.01) ->  | AP7: Inductance at No Load | AT7: mH
B8: =IF(E1="Pure AC no ripple", "AC Frequency (kHz)","PK-Pk Frequency (kHz)") -> PK-Pk Frequency (kHz) | E8: =AE11 -> 0 | F8: =IF(E8<9,0,IF(E8<10,1,IF(E8<25,2,3))) -> 0 | N8: Specified Current Inductance MIN(mH) | Q8: =IF($E$7=0,"No Value",(Q47*Q59)*Q54^2/10^6) -> No Value | S8: =1/1.26*Q$49/Q$54 ->  | T8: =IF(S8=0,"No Value",(1/($Q$105+$Q$106*(S8*$Q$54/$Q$49)^$Q$107))*0.01) ->  | AC8: Ripple Current | AF8: Amps (peak to peak)
B9: Add. Lead Length/ end (mm) | N9: Max Current L MIN (mH) | Q9: =(Q47*Q56)*Q54^2/10^6 ->  | S9: =2/1.26*Q$49/Q$54 ->  | T9: =IF(S9=0,"No Value",(1/($Q$105+$Q$106*(S9*$Q$54/$Q$49)^$Q$107))*0.01) -> 
B10: Ambient Temperature(°C) | E10: 25 | N10: Average Current Inductance MIN (mH) | Q10: =(Q47*Q55)*Q54^2/10^6 ->  | S10: =3/1.26*Q$49/Q$54 ->  | AP10: Specified Current Inductance | AT10: mH
B11: Type of Wire | E11: copper | N11: Min Current L MIN (mH) | Q11: =(Q47*Q57)*Q54^2/10^6 ->  | S11: =4/1.26*Q$49/Q$54 ->  | AC11: Frequency | AF11: KHz
B12: Number of cores | E12: =AE17 -> 1 | N12: No Load Inductance (mH) +/- 8% | Q12: =(Q7)*Q54^2/10^6 ->  | S12: =5/1.26*Q$49/Q$54 -> 
N13: L +/- 8% if Max Current is low f AC | Q13: =(Q7*Q58)*Q54^2/10^6 ->  | S13: =6/1.26*Q$49/Q$54 ->  | AP13: Total Loss | AT13: W
N14: Core Loss (W) | Q14: =(Q66*Q50)/1000 ->  | S14: =7/1.26*Q$49/Q$54 ->  | AC14: Full Load L | AF14: mH
N15: Copper Loss (W) | Q15: =E4^2*Q42/1000+E5^2*Q43/1000 ->  | S15: =8/1.26*Q$49/Q$54 ->  | AH15: Core A Dimension (mm) | AP15: Temp Rise | AT15: °C
N16: Total Loss (W) | Q16: =Q14+Q15 ->  | S16: =9/1.26*Q$49/Q$54 -> 
N17: Approximate Fill Factor | Q17: =Q36*Q54/Q48 ->  | S17: =10/1.26*Q$49/Q$54 ->  | AC17: Stack Cores | AE17: 1 | AP17: Number of Turns
N18: DCR(mΩ, 20° C) | Q18: =Q42 ->  | S18: =20/1.26*Q$49/Q$54 -> 
N19: Temp Rise (C°) | Q19: =(Q16*1000/Q44)^0.833 ->  | S19: =30/1.26*Q$49/Q$54 ->  | AC19: Specified Current | AF19: Amps | AP19: Wire Size | AT19: AWG
N20: Operating Temperature (C°) | Q20: =Q19+$E$10 ->  | S20: =40/1.26*Q$49/Q$54 -> 
B21: Wire Size | N21: Number of Turns | Q21: =Q54 ->  | S21: =50/1.26*Q$49/Q$54 ->  | AC21: Temp Rise | AF21: °C | AP21: Winding Factor
N22: Number of Layers Possible | Q22: =ROUNDDOWN((((2*Q73)-(2*Q78))/Q81), 0) ->  | S22: =60/1.26*Q$49/Q$54 -> 
N23: Layers Needed | Q23: =COUNTIF(Q83:Q91,">0") -> 0 | S23: =70/1.26*Q$49/Q$54 ->  | AP23: DC Resistance of Winding | AT23: mΩ
N24: Wire Length (mm) | Q24: =(2*E9*Q32)+(Q97*Q32) ->  | S24: =80/1.26*Q$49/Q$54 -> 
N25: Wire Cost | S25: =90/1.26*Q$49/Q$54 -> 
N26: Per Core Cost | S26: =100/1.26*Q$49/Q$54 ->  | AC26: INSTRUCTIONS: | AP26: Finished A | AT26: mm
N27: Total Cost | S27: =150/1.26*Q$49/Q$54 ->  | AC27: 1. Enter the input parameters in STEP 1.
S28: =200/1.26*Q$49/Q$54 ->  | AC28: - Full Load DC Current is the full load or peak bias current. Enter zero if there is no bias current. | AP28: Finished HT | AT28: mm
S29: =250/1.26*Q$49/Q$54 ->  | AC29: - Full Load L is the inductance required with full load bias current plus ripple current.
B30: Design Criteria | N30: Winding Selection | S30: =300/1.26*Q$49/Q$54 ->  | AC30: - Specified Current is any RMS or bias current of interest. | AP30: Adjust Turns
B31: LI2 (Peak Current) | E31: 400 | N31: Wire AWG | Q31: =IF(AS32=0,E21,AS32) -> 0 | S31: =400/1.26*Q$49/Q$54 -> 
B32: =IF(E1="DC w/ ripple","DC + AC Ripple Current",(IF(E1="Low AC w/ ripple","low AC+AC Ripple Current",IF(E1="Pure AC no ripple","AC max current(Sine)")))) -> DC + AC Ripple Current | E32: =IF(E1="DC w/ ripple",E4+(0.5*E6),IF(E1="Low AC w/ ripple",E4*SQRT(2)+(0.5*E6),IF(E1="Pure AC no ripple",E4*SQRT(2)))) -> 0 | N32: # of Strands | Q32: =IF(AS34=0,1,AS34) -> 1 | S32: =500/1.26*Q$49/Q$54 ->  | AC32: 2. Click "Suggested Part Numbers" to find toroids that fit the input parameters. | AP32: Adjust Wire AWG
B33: =IF(E1="DC w/ ripple","DC - AC Ripple Current",(IF(E1="Low AC w/ ripple","low AC-AC Ripple Current",IF(E1="Pure AC no ripple","AC min current(Sine)")))) -> DC - AC Ripple Current | E33: =IF(E1="DC w/ ripple",E4-(0.5*E6),IF(E1="Low AC w/ ripple",E4*SQRT(2)-(0.5*E6),IF(E1="Pure AC no ripple",-E4*SQRT(2)))) -> 0 | N33: Current Skin Depth(mm) | Q33: =66.3/SQRT($E$8*1000) ->  | S33: =600/1.26*Q$49/Q$54 -> 
B34: DC or fundamental AC rms Current | E34: =E4 -> 0 | N34: Bare Wire Radius (mm) | Q34: =VLOOKUP(Q31, 'Wire Table'!$A$4:$N$47,14,FALSE) ->  | S34: =700/1.26*Q$49/Q$54 ->  | AC34: 3. Enter one of the Suggested Part Numbers (or any part number) in STEP 3. | AP34: Adjust Wire Strand
B35: Fundamental AC, peak Current | E35: =IF(E1="Low AC w/ ripple",(E4*SQRT(2))+(E6/2),"") ->  | N35: Wire Area/ Strand (cm2) | Q35: =VLOOKUP(Q31, 'Wire Table'!$A$4:$J$47,5,FALSE) ->  | S35: =800/1.26*Q$49/Q$54 -> 
B36: Specified Current | E36: =E7 -> 0 | N36: Wire Area/ All Strands | Q36: =Q35*Q32 ->  | S36: =900/1.26*Q$49/Q$54 ->  | AC36: 4. Click "Design Output" to see the result.
N37: Circ Mils/ All Strands | Q37: =VLOOKUP(Q31, 'Wire Table'!$A$4:$J$47,2,FALSE) ->  | S37: =1000/1.26*Q$49/Q$54 -> 
N38: Resistivity(Ω-Circ Mills/FT) | Q38: =VLOOKUP($E$11,'Wire Resistivity'!$A$2:$C$4,3,FALSE) -> 10.371 | AC38: 5. Adjust turns if desired by entering new turns in the input box in STEP 4, and re-clicking "Design Output."
N39: Resistance (Ω/m) (@20 °C) all strands | Q39: =Q38/Q37*3.281/Q32 -> 
N40: Resistance/mm | Q40: =Q39*0.001 ->  | AC40: 6. To return to STEP 3, clear the "Adjust Turns" box, enter a new part number, and click "Design Output".
N41: MLT (mm) | Q41: =Q98 -> 
N42: DCR (mΩ, @ 20° C) | Q42: =Q41*Q54*Q40*1000 ->  | AC42: 7. Software is based on current density of 500 Amps/cm^2, when the current is larger than 66.5 Amps, no wire selection is available in the
N43: ACR (mΩ, @ 20° C) | Q43: =2.5*Q42 ->  | AC43: program. Please consider using multiple wires in a practical application.
N44: Wound Surface Area (cm2) | Q44: =(2*Q70*Q72*Q4+4*Q70*Q71+4*Q71*Q72*Q4)*0.01 -> 
C45: Leave Blank When starting new design -------------------> | N45: Adjust Turns | Q45: =IF(AS30=0,0,AS30) -> 0
N47: AL (nH/T2) MIN | Q47: =Q7*0.92 -> 
N48: Bobbin Window Area(cm2) | Q48: =MIN(VLOOKUP(Q3,'E Core Detail'!$A$2:$Z$100,22,FALSE),VLOOKUP(Q3,'E Core Detail'!$A$2:$Z$100,23,FALSE),VLOOKUP(Q3,'E Core Detail'!$A$2:$Z$100,24,FALSE)) -> 
N49: Path Length (cm) | Q49: =VLOOKUP(Q3,'E Core Detail'!$A$2:$H$100,7,FALSE) -> 
N50: Volume (cm3) | Q50: =Q49*Q51 -> 
N51: Cross Section (cm2) | Q51: =Q4*(VLOOKUP(Q3,'E Core Detail'!$A$2:$R$100,17,FALSE)) -> 
N52: No Load Turns | Q52: =IF(Q45=0,ROUNDUP(SQRT((E3*10^6)/Q47),0),Q45) -> 
N53: % Initial Perm at AVG Current | Q53: =0.01*(1/(Q105+Q106*(Q121^Q107))) -> 
N54: Adjusted Turns | Q54: =IF(Q45=0,ROUNDUP(Q52/Q53,0),Q45) -> 
N55: % Initial Perm Adj. Turns AVG | Q55: =0.01*(1/(Q105+Q106*(Q123^Q107))) -> 
N56: % Initial Perm Max Rip Current | Q56: =0.01*(1/(Q105+Q106*(Q119^Q107))) -> 
N57: % Initial Perm Min Rip Current | Q57: =0.01*(1/(Q105+Q106*(Q120^Q107))) -> 
N58: % Intial Perm MAX Current AC low f | Q58: =0.01*(1/(Q105+Q106*(Q122^Q107))) -> 
N59: % Intial Perm Spec. Current | Q59: =0.01*(1/(Q105+Q106*(Q124^Q107))) -> 
N60: Core Loss
N61: HAC MAX | Q61: =(Q54/Q49)*(E32) -> 
N62: HAC MIN | Q62: =(Q54/Q49)*(E33) -> 
N63: BAC MAX | Q63: =((Q110+(Q111*Q119)+(Q112*Q119^2))/(1+(Q113*Q119)+(Q114*Q119^2)))^Q115 -> 
N64: BAC MIN | Q64: =IF(Q62<0,-(((Q110+(Q111*ABS(Q120))+(Q112*ABS(Q120)^2))/(1+(Q113*ABS(Q120))+(Q114*ABS(Q120)^2)))^Q115),(((Q110+(Q111*Q120)+(Q112*Q120^2))/(1+(Q113*Q120)+(Q114*Q120^2)))^Q115)) -> 
N65: B Peak (DeltaB/2) | Q65: =(Q63-Q64)/2 -> 
N66: Core Loss (mW/cm3) | Q66: =Q116*(Q65^Q117)*($E$8^Q118) -> 
N69: Core Info
N70: A (mm) | Q70: =VLOOKUP(Q3,'E Core Detail'!$A$2:$X$100,9,FALSE) -> 
N71: B (mm) | Q71: =VLOOKUP(Q3,'E Core Detail'!$A$2:$X$100,10,FALSE) -> 
N72: C (mm) | Q72: =VLOOKUP(Q3,'E Core Detail'!$A$2:$X$100,11,FALSE) -> 
N73: D (mm) | Q73: =VLOOKUP(Q3,'E Core Detail'!$A$2:$X$100,12,FALSE) -> 
N74: E (mm) | Q74: =VLOOKUP(Q3,'E Core Detail'!$A$2:$X$100,13,FALSE) -> 
N75: F (mm) | Q75: =VLOOKUP(Q3,'E Core Detail'!$A$2:$X$100,14,FALSE) -> 
N76: L (mm) | Q76: =VLOOKUP(Q3,'E Core Detail'!$A$2:$X$100,15,FALSE) -> 
N77: M (mm) | Q77: =VLOOKUP(Q3,'E Core Detail'!$A$2:$X$100,16,FALSE) -> 
N78: Bobbin Thickness (mm) | Q78: =IF(Q70>35,1.78, 0.89) -> 
N79: C +F+4Bob | Q79: =(Q72*Q4+Q75+4*Q78) -> 
N80: Bobbin Width (mm) | Q80: =VLOOKUP(Q3,'E Core Detail'!$A$2:$Z$100,25,FALSE) -> 
N81: Wire OD (mm) | Q81: =SQRT((4*Q36*100)/PI()) -> 
N82: # of Turns possible per layer | Q82: =ROUNDDOWN((Q80*0.9)/Q81,0) -> 
N83: Turns on Layer 1 | Q83: =IF(Q82>Q54, Q54,Q82) -> 
N84: Turns on Layer 2 | Q84: =IF(Q21-Q83=Q21,0,IF(Q21-Q83-Q82>0,Q82,Q21-Q83)) -> 
N85: Turns on Layer 3 | Q85: =IF(Q21-Q83-Q84=Q21,0,IF(Q21-Q83-Q84-Q82>0,Q82,Q21-Q83-Q84)) -> 
N86: Turns on Layer 4 | Q86: =IF(Q$21-Q$83-Q$84-Q$85=Q$21,0,IF(Q$21-Q$83-Q$84-Q$85-Q$82>0,Q$82,Q$21-Q$83-Q$84-Q$85)) -> 
N87: Turns on Layer 5 | Q87: =IF(Q$21-Q$83-Q$84-Q$85-Q$86=Q$21,0,IF(Q$21-Q$83-Q$84-Q$85-Q$86-Q$82>0,Q$82,Q$21-Q$83-Q$84-Q$85-Q$86)) -> 
N88: Turns on Layer 6 | Q88: =IF(Q$21-Q$83-Q$84-Q$85-Q$86-Q$87=Q$21,0,IF(Q$21-Q$83-Q$84-Q$85-Q$86-Q$87-Q$82>0,Q$82,Q$21-Q$83-Q$84-Q$85-Q$86-Q$87)) -> 
N89: Turns on Layer 7 | Q89: =IF(Q$21-Q$83-Q$84-Q$85-Q$86-Q$87-Q$88=Q$21,0,IF(Q$21-Q$83-Q$84-Q$85-Q$86-Q$87-Q$88-Q$82>0,Q$82,Q$21-Q$83-Q$84-Q$85-Q$86-Q$87-Q$88)) -> 
N90: Turns on Layer 8 | Q90: =IF(Q$21-Q$83-Q$84-Q$85-Q$86-Q$87-Q$88-Q$89=Q$21,0,IF(Q$21-Q$83-Q$84-Q$85-Q$86-Q$87-Q$88-Q$89-Q$82>0,Q$82,Q$21-Q$83-Q$84-Q$85-Q$86-Q$87-Q$88-Q$89)) -> 
N91: Turns on Layer 9 | Q91: =IF(Q$21-Q$83-Q$84-Q$85-Q$86-Q$87-Q$88-Q$89-Q$90=Q$21,0,IF(Q$21-Q$83-Q$84-Q$85-Q$86-Q$87-Q$88-Q$89-Q$90-Q$82>0,Q$82,Q$21-Q$83-Q$84-Q$85-Q$86-Q$87-Q$88-Q$89-Q$90)) -> 
N92: Length per turn Layer 1 (mm) | Q92: =2*Q79+(6.28*Q81/2) -> 
N93: Length per turn Layer 2 (mm) | Q93: =2*Q79+6.28*(1.5*Q81) -> 
N94: Length per turn Layer 3 | Q94: =Q79*2+6.28*2.5*Q81 -> 
N95: Length per turn Layer 4 | Q95: =2*Q79+6.28*3.5*Q81 -> 
N96: Length per turn Layer 5 | Q96: =2*Q79+6.28*4.5*Q81 -> 
N97: Total wire length (mm) | Q97: =(Q83*Q92)+(Q84*Q93)+(Q85*Q94)+(Q86*Q95)+(Q87*Q96) -> 
N98: MLT (mm) | Q98: =Q97/Q54 -> 
N99: Feet/Pound
N100: Pounds of Wire | Q100: =(Q24/304.8)/Q99 -> 
N101: Wire Price Per Pound
N102: Kgs of Wire | Q102: =Q100*0.4536 -> 
N104: Equations
N105: DC A | Q105: =IF($Q$5="Kool Mu",VLOOKUP($Q$6,'Kool Mu CF Constants'!A11:D14,2,FALSE),IF($Q$5="MPP",VLOOKUP($Q$6,'MPP CF'!$A$3:$F$12,2,FALSE),IF($Q$5="High Flux",VLOOKUP($Q$6,'HF CF'!$A$3:$F$9,2,FALSE),IF($Q$5="XFlux",VLOOKUP($Q$6,'XF CF'!A9:D11,2,FALSE))))) -> 
N106: DC B | Q106: =IF($Q$5="Kool Mu",VLOOKUP($Q$6,'Kool Mu CF Constants'!A11:D14,3,FALSE),IF($Q$5="MPP",VLOOKUP($Q$6,'MPP CF'!$A$3:$F$12,3,FALSE),IF($Q$5="High Flux",VLOOKUP($Q$6,'HF CF'!$A$3:$F$9,3,FALSE),IF($Q$5="XFlux",VLOOKUP($Q$6,'XF CF'!A9:D11,3,FALSE))))) -> 
N107: DC C | Q107: =IF($Q$5="Kool Mu",VLOOKUP($Q$6,'Kool Mu CF Constants'!A11:D14,4,FALSE),IF($Q$5="MPP",VLOOKUP($Q$6,'MPP CF'!$A$3:$F$12,4,FALSE),IF($Q$5="High Flux",VLOOKUP($Q$6,'HF CF'!$A$3:$F$9,4,FALSE),IF($Q$5="XFlux",VLOOKUP($Q$6,'XF CF'!A9:D11,4,FALSE))))) -> 
N108: DC D
N109: DC E
N110: NM A | Q110: =IF($Q$5="Kool Mu",VLOOKUP($Q$6,'Kool Mu CF Constants'!A16:G22,2,FALSE),IF($Q$5="MPP",VLOOKUP($Q$6,'MPP CF'!$A$14:$G$23,2,FALSE),IF($Q$5="High Flux",VLOOKUP($Q$6,'HF CF'!$A$11:$G$17,2,FALSE),IF($Q$5="XFlux",VLOOKUP($Q$6,'XF CF'!A16:G20,2,FALSE))))) -> 
N111: NM B | Q111: =IF($Q$5="Kool Mu",VLOOKUP($Q$6,'Kool Mu CF Constants'!$A$16:$G$22,3,FALSE),IF($Q$5="MPP",VLOOKUP($Q$6,'MPP CF'!$A$14:$G$23,3,FALSE),IF($Q$5="High Flux",VLOOKUP($Q$6,'HF CF'!$A$11:$G$17,3,FALSE),IF($Q$5="XFlux",VLOOKUP($Q$6,'XF CF'!A16:G20,3,FALSE))))) -> 
N112: NM C | Q112: =IF($Q$5="Kool Mu",VLOOKUP($Q$6,'Kool Mu CF Constants'!$A$16:$G$22,4,FALSE),IF($Q$5="MPP",VLOOKUP($Q$6,'MPP CF'!$A$14:$G$23,4,FALSE),IF($Q$5="High Flux",VLOOKUP($Q$6,'HF CF'!$A$11:$G$17,4,FALSE),IF($Q$5="XFlux",VLOOKUP($Q$6,'XF CF'!A16:G20,4,FALSE))))) -> 
N113: NM D | Q113: =IF($Q$5="Kool Mu",VLOOKUP($Q$6,'Kool Mu CF Constants'!$A$16:$G$22,5,FALSE),IF($Q$5="MPP",VLOOKUP($Q$6,'MPP CF'!$A$14:$G$23,5,FALSE),IF($Q$5="High Flux",VLOOKUP($Q$6,'HF CF'!$A$11:$G$17,5,FALSE),IF($Q$5="XFlux",VLOOKUP($Q$6,'XF CF'!A16:G20,5,FALSE))))) -> 
N114: NM E | Q114: =IF($Q$5="Kool Mu",VLOOKUP($Q$6,'Kool Mu CF Constants'!$A$16:$G$22,6,FALSE),IF($Q$5="MPP",VLOOKUP($Q$6,'MPP CF'!$A$14:$G$23,6,FALSE),IF($Q$5="High Flux",VLOOKUP($Q$6,'HF CF'!$A$11:$G$17,6,FALSE),IF($Q$5="XFlux",VLOOKUP($Q$6,'XF CF'!A16:G20,6,FALSE))))) -> 
N115: NM X | Q115: =IF($Q$5="Kool Mu",VLOOKUP($Q$6,'Kool Mu CF Constants'!$A$16:$G$22,7,FALSE),IF($Q$5="MPP",VLOOKUP($Q$6,'MPP CF'!$A$14:$G$23,7,FALSE),IF($Q$5="High Flux",VLOOKUP($Q$6,'HF CF'!$A$11:$G$17,7,FALSE),IF($Q$5="XFlux",VLOOKUP($Q$6,'XF CF'!A16:G20,7,FALSE))))) -> 
L116: Index | M116: =R5*10000+Q6*10+F8 ->  | N116: CL A | Q116: =VLOOKUP(M116,'CL Sum'!C9:I164,4,0) -> 
N117: CL B | Q117: =VLOOKUP(M116,'CL Sum'!C10:I165,5,0) -> 
N118: CL C | Q118: =VLOOKUP(M116,'CL Sum'!C11:I166,6,0) -> 
N119: DC + AC Ripple Drive | Q119: =$E$32*Q54/Q49 -> 
N120: DC-AC Ripple Drive | Q120: =$E$33*Q54/Q49 -> 
N121: DC or low f AC RMS Drive Init | Q121: =$E$34*Q52/Q49 -> 
N122: If low f AC Drive | Q122: =$E$35*Q54/Q49 -> 
N123: DC or low f AC RMS Drive 2nd | Q123: =$E$34*Q54/Q49 -> 
N124: Specified Current Drive | Q124: =$E$36*Q54/Q49 -> 
N126: Finished A(mm) | Q126: =Q70 -> 
N127: Finished W (mm) | Q127: =Q71*2 -> 
N128: Finished HT (mm) | Q128: =Q72*Q4+Q23*Q81*2*1.1 -> 
N129: Single Core Weight(KG) | Q129: =VLOOKUP(Q3,'Shape Core Weight'!$A$2:$D$107,4,FALSE)/1000 -> 
N130: Total Core Weight(KG) | Q130: =Q4*Q129*2 -> 
N131: Finished Weight(kG) | Q131: =Q130+Q102 -> 

Sheet CL Sum (hidden)
A1: 1 | B1: MPP | D1: feq | E1: Core Loss | F1: a | G1: b | H1: c
C2: =C13+1 -> 10143 | D2: >25KHz | E2: 14 | F2: 21.06 | G2: 1.074 | H2: 1.38 | L2: MPP | M2: 1
C3: =C14+1 -> 10263 | D3: >25KHz | E3: 26 | F3: 109.17 | G3: 2 | H3: 1.37 | L3: High Flux | M3: 2
C4: 10603 | D4: >25KHz | E4: 60 | F4: 31.32 | G4: 1.585 | H4: 1.37 | L4: XFlux | M4: 3
C5: 11253 | D5: >25KHz | E5: 125 | F5: 87.07 | G5: 2.222 | H5: 1.56 | L5: MIX | M5: 4
C6: 11473 | D6: >25KHz | E6: 147 | F6: 87.07 | G6: 2.222 | H6: 1.56 | L6: Kool Mu | M6: 5
C7: 11603 | D7: >25KHz | E7: 160 | F7: 87.07 | G7: 2.222 | H7: 1.56 | L7: KMM | M7: 6
C8: 11733 | D8: >25KHz | E8: 173 | F8: 87.07 | G8: 2.222 | H8: 1.56
C9: 12003 | D9: >25KHz | E9: 200 | F9: 115.52 | G9: 2.322 | H9: 1.59
C10: 13003 | D10: >25KHz | E10: 300 | F10: 115.52 | G10: 2.322 | H10: 1.59
C11: 15503 | D11: >25KHz | E11: 550 | F11: 96.89 | G11: 1.999 | H11: 1.54
C13: =C24+1 -> 10142 | D13: 10-25KHz | E13: 14 | F13: 21.06 | G13: 1.074 | H13: 1.38
C14: =C25+1 -> 10262 | D14: 10-25KHz | E14: 26 | F14: 109.17 | G14: 2 | H14: 1.37
C15: 10602 | D15: 10-25KHz | E15: 60 | F15: 31.32 | G15: 1.585 | H15: 1.37
C16: 11252 | D16: 10-25KHz | E16: 125 | F16: 87.07 | G16: 2.222 | H16: 1.56
C17: 11472 | D17: 10-25KHz | E17: 147 | F17: 87.07 | G17: 2.222 | H17: 1.56
C18: 11602 | D18: 10-25KHz | E18: 160 | F18: 87.07 | G18: 2.222 | H18: 1.56
C19: 11732 | D19: 10-25KHz | E19: 173 | F19: 87.07 | G19: 2.222 | H19: 1.56
C20: 12002 | D20: 10-25KHz | E20: 200 | F20: 115.52 | G20: 2.322 | H20: 1.59
C21: 13002 | D21: 10-25KHz | E21: 300 | F21: 115.52 | G21: 2.322 | H21: 1.59
C22: 15502 | D22: 10-25KHz | E22: 550 | F22: 96.89 | G22: 1.999 | H22: 1.54
C24: =C35+1 -> 10141 | D24: 9-10KHz | E24: 14 | F24: 64.02 | G24: 1.074 | H24: 1.113
C25: =C36+1 -> 10261 | D25: 9-10KHz | E25: 26 | F25: 361.618 | G25: 2 | H25: 1.08
C26: 10601 | D26: 9-10KHz | E26: 60 | F26: 80.12 | G26: 1.585 | H26: 1.043
C27: 11251 | D27: 9-10KHz | E27: 125 | F27: 254.264 | G27: 2.222 | H27: 1.171
C28: 11471 | D28: 9-10KHz | E28: 147 | F28: 254.264 | G28: 2.222 | H28: 1.171
C29: 11601 | D29: 9-10KHz | E29: 160 | F29: 254.264 | G29: 2.222 | H29: 1.171
C30: 11731 | D30: 9-10KHz | E30: 173 | F30: 254.264 | G30: 2.222 | H30: 1.171
C31: 12001 | D31: 9-10KHz | E31: 200 | F31: 320.321 | G31: 2.322 | H31: 1.187
C32: 13001 | D32: 9-10KHz | E32: 300 | F32: 320.321 | G32: 2.322 | H32: 1.187
C33: 15501 | D33: 9-10KHz | E33: 550 | F33: 303.426 | G33: 1.999 | H33: 1.085
C35: 10140 | D35: <9KHz | E35: 14 | F35: 64.02 | G35: 1.074 | H35: 1.113
C36: 10260 | D36: <9KHz | E36: 26 | F36: 361.618 | G36: 2 | H36: 1.08
C37: 10600 | D37: <9KHz | E37: 60 | F37: 80.12 | G37: 1.585 | H37: 1.043
C38: 11250 | D38: <9KHz | E38: 125 | F38: 254.264 | G38: 2.222 | H38: 1.171
C39: 11470 | D39: <9KHz | E39: 147 | F39: 254.264 | G39: 2.222 | H39: 1.171
C40: 11600 | D40: <9KHz | E40: 160 | F40: 254.264 | G40: 2.222 | H40: 1.171
C41: 11730 | D41: <9KHz | E41: 173 | F41: 254.264 | G41: 2.222 | H41: 1.171
C42: 12000 | D42: <9KHz | E42: 200 | F42: 320.321 | G42: 2.322 | H42: 1.187
C43: 13000 | D43: <9KHz | E43: 300 | F43: 320.321 | G43: 2.322 | H43: 1.187
C44: 15500 | D44: <9KHz | E44: 550 | F44: 303.426 | G44: 1.999 | H44: 1.085
A45: 2 | B45: High Flux | E45: Core Loss | F45: a | G45: b | H45: c
C46: =C53+1 -> 20143 | D46: >25KHz | E46: 14 | F46: 181.144 | G46: 1.386 | H46: 1.215
C47: =C54+1 -> 20263 | D47: >25KHz | E47: 26 | F47: 198.275 | G47: 2.042 | H47: 1.349
C48: =C55+1 -> 20403 | D48: >25KHz | E48: 40 | F48: 137.691 | G48: 2.042 | H48: 1.349
C49: 20603 | D49: >25KHz | E49: 60 | F49: 137.691 | G49: 2.042 | H49: 1.349
C50: 21253 | D50: >25KHz | E50: 125 | F50: 53.723 | G50: 2.178 | H50: 1.676
C51: 21473 | D51: >25KHz | E51: 147 | F51: 203.606 | G51: 2.163 | H51: 1.515
C52: 21603 | D52: >25KHz | E52: 160 | F52: 203.606 | G52: 2.163 | H52: 1.515
C53: =C60+1 -> 20142 | D53: 10-25KHz | E53: 14 | F53: 181.144 | G53: 1.386 | H53: 1.215
C54: =C61+1 -> 20262 | D54: 10-25KHz | E54: 26 | F54: 595.864 | G54: 2.042 | H54: 1.052
C55: 20402 | D55: 10-25KHz | E55: 40 | F55: 398.896 | G55: 2.042 | H55: 1.052
C56: 20602 | D56: 10-25KHz | E56: 60 | F56: 398.896 | G56: 2.042 | H56: 1.052
C57: 21252 | D57: 10-25KHz | E57: 125 | F57: 321.281 | G57: 2.178 | H57: 1.177
C58: 21472 | D58: 10-25KHz | E58: 147 | F58: 883.51 | G58: 2.163 | H58: 1.086
C59: 21602 | D59: 10-25KHz | E59: 160 | F59: 883.51 | G59: 2.163 | H59: 1.086
C60: =C67+1 -> 20141 | D60: 9-10Khz | E60: 14 | F60: 181.144 | G60: 1.386 | H60: 1.215
C61: =C68+1 -> 20261 | D61: 9-10Khz | E61: 26 | F61: 595.864 | G61: 2.042 | H61: 1.052
C62: 20401 | D62: 9-10Khz | E62: 40 | F62: 398.896 | G62: 2.042 | H62: 1.052
C63: 20601 | D63: 9-10Khz | E63: 60 | F63: 398.896 | G63: 2.042 | H63: 1.052
C64: 21251 | D64: 9-10Khz | E64: 125 | F64: 321.281 | G64: 2.178 | H64: 1.177
C65: 21471 | D65: 9-10Khz | E65: 147 | F65: 883.51 | G65: 2.163 | H65: 1.086
C66: 21601 | D66: 9-10Khz | E66: 160 | F66: 883.51 | G66: 2.163 | H66: 1.086
C67: 20140 | D67: 0-9KHz | E67: 14 | F67: 181.144 | G67: 1.386 | H67: 1.215
C68: 20260 | D68: 0-9KHz | E68: 26 | F68: 595.864 | G68: 2.042 | H68: 1.052
C69: 20400 | D69: 0-9KHz | E69: 40 | F69: 398.896 | G69: 2.042 | H69: 1.052
C70: 20600 | D70: 0-9KHz | E70: 60 | F70: 398.896 | G70: 2.042 | H70: 1.052
C71: 21250 | D71: 0-9KHz | E71: 125 | F71: 321.281 | G71: 2.178 | H71: 1.177
C72: 21470 | D72: 0-9KHz | E72: 147 | F72: 883.51 | G72: 2.163 | H72: 1.086
C73: 21600 | D73: 0-9KHz | E73: 160 | F73: 883.51 | G73: 2.163 | H73: 1.086
A74: 3 | B74: XFlux | E74: Core Loss | F74: a | G74: b | H74: c
C75: 30193 | D75: >25KHz | E75: 19 | F75: 703.395 | G75: 2.103 | H75: 1.198
C76: =C82+1 -> 30263 | E76: 26 | F76: 493.853 | G76: 1.977 | H76: 1.213
C77: =C83+1 -> 30403 | E77: 40 | F77: 603.659 | G77: 1.934 | H77: 1.137
C78: 30603 | E78: 60 | F78: 454.562 | G78: 1.909 | H78: 1.19
C79: 30753 | E79: 75 | F79: 566.539 | G79: 2.018 | H79: 1.169
C80: 30903 | E80: 90 | F80: 566.539 | G80: 2.018 | H80: 1.169
C81: 30192 | D81: 10-25KHz | E81: 19 | F81: 756.312 | G81: 2.103 | H81: 1.182
C82: =C88+1 -> 30262 | E82: 26 | F82: 771.126 | G82: 1.977 | H82: 1.048
C83: =C89+1 -> 30402 | E83: 40 | F83: 603.659 | G83: 1.934 | H83: 1.137
C84: 30602 | E84: 60 | F84: 454.562 | G84: 1.909 | H84: 1.19
C85: 30752 | E85: 75 | F85: 566.539 | G85: 2.018 | H85: 1.169
C86: 30902 | E86: 90 | F86: 566.539 | G86: 2.018 | H86: 1.169
C87: 30191 | D87: 9-10KHz | E87: 19 | F87: 756.312 | G87: 2.103 | H87: 1.182
C88: =C94+1 -> 30261 | E88: 26 | F88: 771.126 | G88: 1.977 | H88: 1.048
C89: =C95+1 -> 30401 | E89: 40 | F89: 603.659 | G89: 1.934 | H89: 1.137
C90: 30601 | E90: 60 | F90: 454.562 | G90: 1.909 | H90: 1.19
C91: 30751 | E91: 75 | F91: 566.539 | G91: 2.018 | H91: 1.169
C92: 30901 | E92: 90 | F92: 566.539 | G92: 2.018 | H92: 1.169
C93: 30190 | D93: 0-9KHz | E93: 19 | F93: 756.312 | G93: 2.103 | H93: 1.182
C94: 30260 | E94: 26 | F94: 771.126 | G94: 1.977 | H94: 1.048
C95: 30400 | E95: 40 | F95: 956.195 | G95: 1.934 | H95: 1.062
C96: 30600 | E96: 60 | F96: 670.263 | G96: 1.909 | H96: 1.064
C97: 30750 | E97: 75 | F97: 862.341 | G97: 2.018 | H97: 1.025
C98: 30900 | E98: 90 | F98: 862.341 | G98: 2.018 | H98: 1.025
A100: 4 | B100: 75 | E100: Core Loss | F100: a | G100: b | H100: c
C101: =C104+1 -> 40263 | D101: >25KHz | E101: 26 | F101: 271 | G101: 2.031 | H101: 1.44
C102: =C105+1 -> 40403 | E102: 40 | F102: 309 | G102: 2.14 | H102: 1.46
C103: 40603 | E103: 60 | F103: 251.4 | G103: 2.066 | H103: 1.41
C104: =C107+1 -> 40262 | D104: 10-25KHz | E104: 26 | F104: 271 | G104: 2.031 | H104: 1.44
C105: =C108+1 -> 40402 | E105: 40 | F105: 309 | G105: 2.14 | H105: 1.46
C106: 40602 | E106: 60 | F106: 251.4 | G106: 2.066 | H106: 1.41
C107: =C110+1 -> 40261 | D107: 9-10KHz | E107: 26 | F107: 271 | G107: 2.031 | H107: 1.44
C108: =C111+1 -> 40401 | E108: 40 | F108: 309 | G108: 2.14 | H108: 1.46
C109: 40601 | E109: 60 | F109: 251.4 | G109: 2.066 | H109: 1.41
C110: 40260 | D110: 0-9KHz | E110: 26 | F110: 271 | G110: 2.031 | H110: 1.44
C111: 40400 | E111: 40 | F111: 309 | G111: 2.14 | H111: 1.46
C112: 40600 | E112: 60 | F112: 251.4 | G112: 2.066 | H112: 1.41
A113: 5 | B113: Kool Mu | C113: =C120+1 -> 50143 | D113: >25KHz | E113: 14 | F113: 21.491 | G113: 1 | H113: 1.334
C114: =C121+1 -> 50263 | E114: 26 | F114: 45.479 | G114: 1.774 | H114: 1.465
C115: 50403 | E115: 40 | F115: 45.479 | G115: 1.774 | H115: 1.465
C116: 50603 | E116: 60 | F116: 62.65 | G116: 1.781 | H116: 1.362
C117: 50753 | E117: 75 | F117: 146.806 | G117: 2.022 | H117: 1.334
C118: 50903 | E118: 90 | F118: 146.806 | G118: 2.022 | H118: 1.334
C119: 51253 | E119: 125 | F119: 71.93 | G119: 1.928 | H119: 1.473
C120: =C127+1 -> 50142 | D120: 10-25KHz | E120: 14 | F120: 21.491 | G120: 1 | H120: 1.334
C121: =C128+1 -> 50262 | E121: 26 | F121: 45.479 | G121: 1.774 | H121: 1.465
C122: 50402 | E122: 40 | F122: 45.479 | G122: 1.774 | H122: 1.465
C123: 50602 | E123: 60 | F123: 62.65 | G123: 1.781 | H123: 1.362
C124: 50752 | E124: 75 | F124: 146.806 | G124: 2.022 | H124: 1.334
C125: 50902 | E125: 90 | F125: 146.806 | G125: 2.022 | H125: 1.334
C126: 51252 | E126: 125 | F126: 71.93 | G126: 1.928 | H126: 1.473
C127: =C134+1 -> 50141 | D127: 9-10KKHz | E127: 14 | F127: 40.184 | G127: 1 | H127: 1.215
C128: =C135+1 -> 50261 | E128: 26 | F128: 170.171 | G128: 1.774 | H128: 1.028
C129: 50401 | E129: 40 | F129: 170.171 | G129: 1.774 | H129: 1.028
C130: 50601 | E130: 60 | F130: 62.65 | G130: 1.781 | H130: 1.362
C131: 50751 | E131: 75 | F131: 338.511 | G131: 2.022 | H131: 1.049
C132: 50901 | E132: 90 | F132: 338.511 | G132: 2.022 | H132: 1.049
C133: 51251 | E133: 125 | F133: 228.462 | G133: 1.928 | H133: 1.046
C134: 50140 | D134: 0-9KHz | E134: 14 | F134: 40.184 | G134: 1 | H134: 1.215
C135: 50260 | E135: 26 | F135: 170.171 | G135: 1.774 | H135: 1.028
C136: 50400 | E136: 40 | F136: 170.171 | G136: 1.774 | H136: 1.028
C137: 50600 | E137: 60 | F137: 136.931 | G137: 1.781 | H137: 1.123
C138: 50750 | E138: 75 | F138: 338.511 | G138: 2.022 | H138: 1.049
C139: 50900 | E139: 90 | F139: 338.511 | G139: 2.022 | H139: 1.049
C140: 51250 | E140: 125 | F140: 228.462 | G140: 1.928 | H140: 1.046
A141: 6 | B141: 79 | C141: 60193 | D141: >25KHz | E141: 19 | F141: 149.797 | G141: 2.141 | H141: 1.381
C142: =C146+1 -> 60263 | E142: 26 | F142: 86.005 | G142: 1.998 | H142: 1.402
C143: 60403 | E143: 40 | F143: 86.005 | G143: 1.998 | H143: 1.402
C144: =C148+1 -> 60603 | E144: 60 | F144: 86.005 | G144: 1.998 | H144: 1.402
C145: 60192 | D145: 10-25KHz | E145: 19 | F145: 468.978 | G145: 2.141 | H145: 1.067
C146: =C150+1 -> 60262 | E146: 26 | F146: 86.005 | G146: 1.998 | H146: 1.402
C147: 60402 | E147: 40 | F147: 86.005 | G147: 1.998 | H147: 1.402
C148: =C152+1 -> 60602 | E148: 60 | F148: 86.005 | G148: 1.998 | H148: 1.402
C149: 60191 | D149: 9-10KHz | E149: 19 | F149: 468.978 | G149: 2.141 | H149: 1.067
C150: =C154+1 -> 60261 | E150: 26 | F150: 94.674 | G150: 1.998 | H150: 1.402
C151: 60401 | E151: 40 | F151: 94.674 | G151: 1.998 | H151: 1.402
C152: =C156+1 -> 60601 | E152: 60 | F152: 94.674 | G152: 1.998 | H152: 1.402
C153: 60190 | D153: 0-9KHz | E153: 19 | F153: 468.978 | G153: 2.141 | H153: 1.067
C154: 60260 | E154: 26 | F154: 94.674 | G154: 1.998 | H154: 1.402
C155: 60400 | E155: 40 | F155: 94.674 | G155: 1.998 | H155: 1.402
C156: 60600 | E156: 60 | F156: 94.674 | G156: 1.998 | H156: 1.402

Sheet LI_79 (hidden)
B1: Size Code | C1: Max | D1: 125u | E1: 90u | F1: 75u | G1: 60u | H1: 40u | I1: 26u | J1: 19u
B2: 140 | C2: 0 | E2: 0
B3: 150 | C3: 0 | E3: 0
B4: 180 | C4: 0 | E4: 0
B5: 020 | C5: 0 | E5: 0
B6: 240 | C6: 0 | E6: 0
B7: 270 | C7: 0 | E7: 0
B8: 410 | C8: 0 | E8: 0
B9: 030 | C9: 0 | E9: 0
B10: 280 | C10: 0 | E10: 0
B11: 290 | C11: 0 | E11: 0
B12: 040 | C12: 0 | E12: 0
B13: 130 | C13: 0 | E13: 0
B14: 050 | C14: 0.1524903816 | G14: 0.1524903816 | H14: 0.1044953025 | I14: 0.07076798988 | J14: 0.05210278687
B15: 380 | C15: 0.5511393054 | G15: 0.5511393054 | H15: 0.3650661917 | I15: 0.2534491059 | J15: 0.1870837649
B16: 120 | C16: 0.6705109462 | G16: 0.6705109462 | H16: 0.472464194 | I16: 0.3052929025 | J16: 0.2245488827
B17: 206 | C17: 1.505641221 | G17: 1.505641221 | H17: 1.035266969 | I17: 0.7269028056 | J17: 0.5220759225
B18: 310 | C18: 3.012963747 | G18: 3.012963747 | H18: 2.152106174 | I18: 1.499597273 | J18: 1.112721849
B19: 350 | C19: 3.978681649 | G19: 3.978681649 | H19: 2.815758773 | I19: 1.941749303 | J19: 1.422566511
B20: 930 | C20: 6.475846033 | G20: 6.475846033 | H20: 4.567175927 | I20: 3.10554127 | J20: 2.247407348
B21: 548 | C21: 16.18790831 | G21: 16.18790831 | H21: 12.21947249 | I21: 9.332390347 | J21: 6.776494902
B22: 585 | C22: 16.72136051 | G22: 16.72136051 | H22: 13.03079735 | I22: 9.74380193 | J22: 7.50753334
B23: 324 | C23: 21.58880754 | G23: 21.58880754 | H23: 16.46012478 | I23: 12.21067771 | J23: 9.357554284
B24: 254 | C24: 41.28923696 | G24: 41.28923696 | H24: 32.32863918 | I24: 24.31200748 | J24: 18.52020198
B25: 438 | C25: 72.46460345 | G25: 72.46460345 | H25: 35.14685307 | I25: 41.45159213 | J25: 19.36546135
B26: 715 | C26: 90.89164897 | G26: 90.89164897 | H26: 78.93645946 | I26: 64.69791149 | J26: 48.84159819
B27: 089 | C27: 101.9725999 | G27: 78.36282076 | H27: 101.9725999 | I27: 50.94941603 | J27: 61.5256341
B28: 195 | C28: 105.1344699 | G28: 105.1344699 | H28: 81.15783965 | I28: 60.70296134 | J28: 45.51640267
B29: 725 | C29: 105.1481931 | G29: 105.1481931 | H29: 80.78540289 | I29: 59.80988142 | J29: 44.99395191
B30: 109 | C30: 128.9057351 | G30: 128.9057351 | H30: 126.2139518 | I30: 109.688145 | J30: 85.38541333
B31: 620 | C31: 277.4537343 | G31: 277.4537343 | H31: 233.2647109 | I31: 186.6140928 | J31: 142.4035308
B32: 070 | C32: 278.6994676 | G32: 278.6994676 | H32: 253.5248412 | I32: 207.7233994 | J32: 161.3676035
B33: 866 | C33: 308.1020528 | G33: 227.4749689 | H33: 308.1020528 | I33: 296.2999325 | J33: 244.0452299
B34: 906 | C34: 391.3135331 | G34: 285.770779 | H34: 391.3135331 | I34: 366.1605858 | J34: 299.9669593
B35: 778 | C35: 497.9555824 | G35: 497.9555824 | H35: 471.0532663 | I35: 402.1768241 | J35: 312.3573836
B36: 740 | C36: 732.1957828 | G36: 580.5033296 | H36: 732.1957828 | I36: 667.5312063 | J36: 537.5120704
B37: 102 | C37: 832.3894907 | G37: 550.9020997 | H37: 791.4153956 | I37: 832.3894907 | J37: 701.6029986
B38: 337 | C38: 4064.46759 | I38: 3143.957139 | J38: 4064.46759

Sheet PN_79 (hidden)
B1: Size Code | C1: Max | D1: 125u | E1: 90u | F1: 75u | G1: 60u | H1: 40u | I1: 26u | J1: 19u
B2: 140 | D2: 0 | E2: 0 | F2: 0 | G2: 0 | H2: 0 | I2: 0
B3: 150 | D3: 0 | E3: 0 | F3: 0 | G3: 0 | H3: 0 | I3: 0
B4: 180 | D4: 0 | E4: 0 | F4: 0 | G4: 0 | H4: 0 | I4: 0
B5: 020 | D5: 0 | E5: 0 | F5: 0 | G5: 0 | H5: 0 | I5: 0
B6: 240 | D6: 0 | E6: 0 | F6: 0 | G6: 0 | H6: 0 | I6: 0
B7: 270 | D7: 0 | E7: 0 | F7: 0 | G7: 0 | H7: 0 | I7: 0
B8: 030 | D8: 0 | E8: 0 | F8: 0 | G8: 0 | H8: 0 | I8: 0
B9: 410 | D9: 0 | E9: 0 | F9: 0 | G9: 0 | H9: 0 | I9: 0
B10: 280 | D10: 0 | E10: 0 | F10: 0 | G10: 0 | H10: 0 | I10: 0
B11: 290 | D11: 0 | E11: 0 | F11: 0 | G11: 0 | H11: 0 | I11: 0
B12: 040 | D12: 0 | E12: 0 | F12: 0 | G12: 0 | H12: 0 | I12: 0
B13: 130 | D13: 0 | E13: 0 | F13: 0 | G13: 0 | H13: 0 | I13: 0
B14: 050 | G14: 79051 | H14: 79056 | I14: 79052 | J14: 79057
B15: 380 | G15: 79381 | H15: 79386 | I15: 79382 | J15: 79387
B16: 120 | G16: 79121 | H16: 79113 | I16: 79122 | J16: 79226
B17: 206 | G17: 79848 | H17: 79847 | I17: 79208 | J17: 79849
B18: 310 | G18: 79059 | H18: 79316 | I18: 79312 | J18: 79303
B19: 350 | G19: 79351 | H19: 79356 | I19: 79352 | J19: 79357
B20: 930 | G20: 79894 | H20: 79936 | I20: 79932 | J20: 79937
B21: 548 | G21: 79071 | H21: 79555 | I21: 79550 | J21: 79554
B22: 585 | G22: 79586 | H22: 79591 | I22: 79587 | J22: 79592
B23: 324 | G23: 79076 | H23: 79330 | I23: 79326 | J23: 79317
B24: 254 | G24: 79083 | H24: 79260 | I24: 79256 | J24: 79262
B25: 438 | G25: 79439 | H25: 79091 | I25: 79440 | J25: 79079
B26: 715 | G26: 79716 | H26: 79721 | I26: 79717 | J26: 79708
B27: 89 | G27: 79090 | H27: 79431 | I27: 79091 | J27: 79430
B28: 195 | G28: 79192 | H28: 79189 | I28: 79191 | J28: 79188
B29: 725 | G29: 79726 | H29: 79733 | I29: 79727 | J29: 79750
B30: 109 | G30: 79110 | H30: 79212 | I30: 79111 | J30: 79215
B31: 620 | G31: 79617 | H31: 79616 | I31: 79615 | J31: 79612
B32: 070 | G32: 79072 | H32: 79073 | I32: 79074 | J32: 79067
B33: 866 | G33: 79867 | H33: 79872 | I33: 79868 | J33: 79873
B34: 906 | G34: 79907 | H34: 79912 | I34: 79908 | J34: 79913
B35: 778 | G35: 79777 | H35: 79776 | I35: 79775 | J35: 79772
B36: 740 | G36: 79737 | H36: 79736 | I36: 79735 | J36: 79744
B37: 102 | G37: 79099 | H37: 79100 | I37: 79102 | J37: 79097
B38: 337 | I38: 79337 | J38: 79342

Sheet LI_Xflux_E (hidden)
D1: 60u | E1: 40u | F1: 26u
B2: 1808E | C2: 0.3179027911 | D2: 0.3179027911 | E2: 0.2332495984 | F2: 0.1746864486 | G2: 14.3542693
B3: 3515E | C3: 7.045763187 | D3: 7.045763187 | E3: 5.313633103 | F3: 4.076595584 | G3: 34.05796729
B4: 4317E | C4: 14.00169145 | D4: 14.00169145 | E4: 10.4835295 | F4: 7.965079772 | G4: 39.23379393
B5: 4020E | C5: 33.37056473 | D5: 33.37056473 | E5: 25.08674569 | F5: 19.40506834 | G5: 101.5187566
B6: 4017E | C6: 38.9483933 | D6: 38.9483933 | E6: 30.46432295 | F6: 24.15376433 | G6: 112.2662151
B7: 4022E | C7: 38.37910035 | D7: 38.37910035 | E7: 28.76284326 | F7: 22.20518307 | G7: 184.8931887
B8: 5528E | C8: 100.0311894 | D8: 100.0311894 | E8: 76.06589902 | F8: 59.50770178 | G8: 287.3958122
B9: 5530E | C9: 110.413944 | D9: 110.413944 | E9: 83.49751806 | F9: 64.96183648 | G9: 460.5475966
B10: 7228E | C10: 185.0424343 | D10: 185.0424343 | E10: 147.7903905 | F10: 120.3455603 | G10: 264.2645209
B11: 6527E | C11: 287.2072337 | D11: 287.2072337 | E11: 241.3711214 | F11: 185.1960248 | G11: 848.4144568
B12: 8020E | C12: 478.567378 | D12: 478.567378 | E12: 432.2575845 | F12: 357.4950842 | G12: 0
B13: 8044E | C13: 862.721907 | D13: 675.6722447 | E13: 801.6831904 | F13: 862.721907
B14: 114LE | C14: 1531.668277 | D14: 1531.668277 | E14: 1368.038761 | F14: 1119.746098

Sheet PN_XFlux_E (hidden)
D1: 60 | E1: 40 | F1: 26
C2: X1808E060 | D2: 00X1808E060 | E2: 00X1808E040 | F2: 00X1808E026
C3: X3515E060 | D3: 00X3515E060 | E3: 00X3515E040 | F3: 00X3515E026
C4: X4317E060 | D4: 00X4317E060 | E4: 00X4317E040 | F4: 00X4317E026
C5: X4020E060 | D5: 00X4020E060 | E5: 00X4020E040 | F5: 00X4020E026
C6: X4022E060 | D6: 00X4022E060 | E6: 00X4022E040 | F6: 00X4022E026
C7: X5528E060 | D7: 00X5528E060 | E7: 00X5528E040 | F7: 00X5528E026
C8: X5530E060 | D8: 00X5530E060 | E8: 00X5530E040 | F8: 00X5530E026
C9: X7228E060 | D9: 00X7228E060 | E9: 00X7228E040 | F9: 00X7228E026
C10: X6527E060 | D10: 00X6527E060 | E10: 00X6527E040 | F10: 00X6527E026
C11: X8020E060 | D11: 00X8020E060 | E11: 00X8020E040 | F11: 00X8020E026
C12: X8024E060 | D12: 00X8024E060 | E12: 00X8024E040 | F12: 00X8024E026
C13: X8044E026 | D13: 00X8044E060 | E13: 00X8044E040 | F13: 00X8044E026
C14: X114LE026 | D14: 00X114LE060 | E14: 00X114LE040 | F14: 00X114LE026

Sheet E Core Detail (hidden)
A1: Sales Part Number | B1: Base Part Number | C1: Perm | D1: Material | E1: AL [nH/T2] | F1: Shape | G1: Le [cm] | H1: Le [mm] | I1: A (mm) | J1: B (mm) | K1: C (mm) | L1: D (mm) | M1: E (mm) | N1: F (mm) | O1: L (mm) | P1: M (mm) | Q1: Ae [cm2] | R1: Ae [mm2] | S1: Ve [cm3] | T1: Ve [mm3] | U1: WA w/o bobbin (mm2) | V1: WA w/o bobbin (cm2) | W1: WA w/ PC bobbin (cm2) | X1: WA w/ Plain bobbin (cm2) | Y1: Bobbin Width (mm) | Z1: 2D | AA1: Bobbin Thickness
A2: 00K1808E026 | B2: 1808 | C2: 26 | D2: Kool Mu | E2: 26 | F2: E Core | G2: 4.01 | H2: 40.1 | I2: 19.3 | J2: 8.1 | K2: 4.78 | L2: 5.53 | M2: 13.9 | N2: 4.78 | O2: 2.39 | P2: 4.64 | Q2: 0.228 | R2: 22.8 | S2: 0.914 | T2: 914 | U2: =2*L2*P2 -> 51.3184 | V2: =0.01*U2 -> 0.513184 | W2: 0.316 | X2: 0.342 | Y2: 9.3 | Z2: =2*L2 -> 11.06 | AA2: =0.5*(Z2-Y2) -> 0.88
A3: 00K1808E040 | B3: 1808 | C3: 40 | D3: Kool Mu | E3: 35 | F3: E Core | G3: 4.01 | H3: 40.1 | I3: 19.3 | J3: 8.1 | K3: 4.78 | L3: 5.53 | M3: 13.9 | N3: 4.78 | O3: 2.39 | P3: 4.64 | Q3: 0.228 | R3: 22.8 | S3: 0.914 | T3: 914 | U3: =2*L3*P3 -> 51.3184 | V3: =0.01*U3 -> 0.513184 | W3: 0.316 | X3: 0.342 | Y3: 9.3 | Z3: =2*L3 -> 11.06 | AA3: =0.5*(Z3-Y3) -> 0.88
A4: 00K1808E060 | B4: 1808 | C4: 60 | D4: Kool Mu | E4: 48 | F4: E Core | G4: 4.01 | H4: 40.1 | I4: 19.3 | J4: 8.1 | K4: 4.78 | L4: 5.53 | M4: 13.9 | N4: 4.78 | O4: 2.39 | P4: 4.64 | Q4: 0.228 | R4: 22.8 | S4: 0.914 | T4: 914 | U4: 51.3184 | V4: 0.513184 | W4: 0.316 | X4: 0.342 | Y4: 9.3 | Z4: 11.06 | AA4: 0.88
A5: 00K1808E090 | B5: 1808 | C5: 90 | D5: Kool Mu | E5: 69 | F5: E Core | G5: 4.01 | H5: 40.1 | I5: 19.3 | J5: 8.1 | K5: 4.78 | L5: 5.53 | M5: 13.9 | N5: 4.78 | O5: 2.39 | P5: 4.64 | Q5: 0.228 | R5: 22.8 | S5: 0.914 | T5: 914 | U5: 51.3184 | V5: 0.513184 | W5: 0.316 | X5: 0.342 | Y5: 9.3 | Z5: 11.06 | AA5: 0.88
A6: 00K2510E026 | B6: 2510 | C6: 26 | D6: Kool Mu | E6: 39 | F6: E Core | G6: 4.85 | H6: 48.5 | I6: 25.4 | J6: 9.53 | K6: 6.35 | L6: 6.22 | M6: 18.7 | N6: 6.35 | O6: 3.18 | P6: 6.24 | Q6: 0.385 | R6: 38.5 | S6: 1.87 | T6: 1870 | U6: 77.6256 | V6: 0.776256 | W6: 0.406 | X6: 0.51 | Y6: 10.57 | Z6: 12.44 | AA6: 0.935
A7: 00K2510E040 | B7: 2510 | C7: 40 | D7: Kool Mu | E7: 52 | F7: E Core | G7: 4.85 | H7: 48.5 | I7: 25.4 | J7: 9.53 | K7: 6.35 | L7: 6.22 | M7: 18.7 | N7: 6.35 | O7: 3.18 | P7: 6.24 | Q7: 0.385 | R7: 38.5 | S7: 1.87 | T7: 1870 | U7: 77.6256 | V7: 0.776256 | W7: 0.406 | X7: 0.51 | Y7: 10.57 | Z7: 12.44 | AA7: 0.935
A8: 00K2510E060 | B8: 2510 | C8: 60 | D8: Kool Mu | E8: 70 | F8: E Core | G8: 4.85 | H8: 48.5 | I8: 25.4 | J8: 9.53 | K8: 6.35 | L8: 6.22 | M8: 18.7 | N8: 6.35 | O8: 3.18 | P8: 6.24 | Q8: 0.385 | R8: 38.5 | S8: 1.87 | T8: 1870 | U8: 77.6256 | V8: 0.776256 | W8: 0.406 | X8: 0.51 | Y8: 10.57 | Z8: 12.44 | AA8: 0.935
A9: 00K2510E090 | B9: 2510 | C9: 90 | D9: Kool Mu | E9: 100 | F9: E Core | G9: 4.85 | H9: 48.5 | I9: 25.4 | J9: 9.53 | K9: 6.35 | L9: 6.22 | M9: 18.7 | N9: 6.35 | O9: 3.18 | P9: 6.24 | Q9: 0.385 | R9: 38.5 | S9: 1.87 | T9: 1870 | U9: 77.6256 | V9: =0.01*U9 -> 0.776256 | W9: 0.406 | X9: 0.51 | Y9: 10.57 | Z9: 12.44 | AA9: 0.935
A10: 00K3007E026 | B10: 3007 | C10: 26 | D10: Kool Mu | E10: 33 | F10: E Core | G10: 6.56 | H10: 65.6 | I10: 30.1 | J10: 15 | K10: 7.06 | L10: 9.55 | M10: 19.8 | N10: 6.96 | O10: 5.11 | P10: 6.32 | Q10: 0.601 | R10: 60.1 | S10: 3.94 | T10: 3940 | U10: 120.712 | V10: 1.20712 | W10: 0.833 | X10: =W10 -> 0.833 | Y10: 17.27 | Z10: 19.1 | AA10: 0.915
A11: 00K3007E040 | B11: 3007 | C11: 40 | D11: Kool Mu | E11: 46 | F11: E Core | G11: 6.56 | H11: 65.6 | I11: 30.1 | J11: 15 | K11: 7.06 | L11: 9.55 | M11: 19.8 | N11: 6.96 | O11: 5.11 | P11: 6.32 | Q11: 0.601 | R11: 60.1 | S11: 3.94 | T11: 3940 | U11: 120.712 | V11: 1.20712 | W11: 0.833 | X11: =W11 -> 0.833 | Y11: 17.27 | Z11: 19.1 | AA11: 0.915
A12: 00K3007E060 | B12: 3007 | C12: 60 | D12: Kool Mu | E12: 71 | F12: E Core | G12: 6.56 | H12: 65.6 | I12: 30.1 | J12: 15 | K12: 7.06 | L12: 9.55 | M12: 19.8 | N12: 6.96 | O12: 5.11 | P12: 6.32 | Q12: 0.601 | R12: 60.1 | S12: 3.94 | T12: 3940 | U12: 120.712 | V12: 1.20712 | W12: 0.833 | X12: =W12 -> 0.833 | Y12: 17.27 | Z12: 19.1 | AA12: 0.915
A13: 00K3007E090 | B13: 3007 | C13: 90 | D13: Kool Mu | E13: 92 | F13: E Core | G13: 6.56 | H13: 65.6 | I13: 30.1 | J13: 15 | K13: 7.06 | L13: 9.55 | M13: 19.8 | N13: 6.96 | O13: 5.11 | P13: 6.32 | Q13: 0.601 | R13: 60.1 | S13: 3.94 | T13: 3940 | U13: 120.712 | V13: 1.20712 | W13: 0.833 | X13: =W13 -> 0.833 | Y13: 17.27 | Z13: 19.1 | AA13: 0.915
A14: 00K3515E026 | B14: 3515 | C14: 26 | D14: Kool Mu | E14: 56 | F14: E Core | G14: 6.94 | H14: 69.4 | I14: 34.54 | J14: 14.2 | K14: 9.35 | L14: 9.6 | M14: 25.2 | N14: 9.32 | O14: 4.45 | P14: 7.87 | Q14: 0.84 | R14: 84 | S14: 5.83 | T14: 5830 | U14: 151.104 | V14: 1.51104 | W14: 0.948 | X14: 1.13 | Y14: 16.59 | Z14: 19.2 | AA14: 1.305
A15: 00K3515E040 | B15: 3515 | C15: 40 | D15: Kool Mu | E15: 75 | F15: E Core | G15: 6.94 | H15: 69.4 | I15: 34.54 | J15: 14.2 | K15: 9.35 | L15: 9.6 | M15: 25.2 | N15: 9.32 | O15: 4.45 | P15: 7.87 | Q15: 0.84 | R15: 84 | S15: 5.83 | T15: 5830 | U15: 151.104 | V15: 1.51104 | W15: 0.948 | X15: 1.13 | Y15: 16.59 | Z15: 19.2 | AA15: 1.305
A16: 00K3515E060 | B16: 3515 | C16: 60 | D16: Kool Mu | E16: 102 | F16: E Core | G16: 6.94 | H16: 69.4 | I16: 34.54 | J16: 14.2 | K16: 9.35 | L16: 9.6 | M16: 25.2 | N16: 9.32 | O16: 4.45 | P16: 7.87 | Q16: 0.84 | R16: 84 | S16: 5.83 | T16: 5830 | U16: 151.104 | V16: 1.51104 | W16: 0.948 | X16: 1.13 | Y16: 16.59 | Z16: 19.2 | AA16: 1.305
A17: 00K3515E090 | B17: 3515 | C17: 90 | D17: Kool Mu | E17: 146 | F17: E Core | G17: 6.94 | H17: 69.4 | I17: 34.54 | J17: 14.2 | K17: 9.35 | L17: 9.6 | M17: 25.2 | N17: 9.32 | O17: 4.45 | P17: 7.87 | Q17: 0.84 | R17: 84 | S17: 5.83 | T17: 5830 | U17: 151.104 | V17: 1.51104 | W17: 0.948 | X17: 1.13 | Y17: 16.59 | Z17: 19.2 | AA17: 1.305
A18: 00K4017E026 | B18: 4017 | C18: 26 | D18: Kool Mu | E18: 56 | F18: E Core | G18: 9.84 | H18: 98.4 | I18: 42.85 | J18: 21.1 | K18: 10.8 | L18: 14.9 | M18: 30.35 | N18: 11.9 | O18: 5.94 | P18: 9.27 | Q18: 1.28 | R18: 128 | S18: 12.6 | T18: 12600 | U18: 276.246 | V18: 2.76246 | W18: =V18*0.7 -> 1.933722 | X18: =V18*0.7 -> 1.933722 | Y18: =0.85*Z18 -> 25.33 | Z18: 29.8 | AA18: 2.235
A19: 00K4017E040 | B19: 4017 | C19: 40 | D19: Kool Mu | E19: 76 | F19: E Core | G19: 9.84 | H19: 98.4 | I19: 42.85 | J19: 21.1 | K19: 10.8 | L19: 14.9 | M19: 30.35 | N19: 11.9 | O19: 5.94 | P19: 9.27 | Q19: 1.28 | R19: 128 | S19: 12.6 | T19: 12600 | U19: 276.246 | V19: 2.76246 | W19: =V19*0.7 -> 1.933722 | X19: =V19*0.7 -> 1.933722 | Y19: =0.85*Z19 -> 25.33 | Z19: 29.8 | AA19: 2.235
A20: 00K4017E060 | B20: 4017 | C20: 60 | D20: Kool Mu | E20: 105 | F20: E Core | G20: 9.84 | H20: 98.4 | I20: 42.85 | J20: 21.1 | K20: 10.8 | L20: 14.9 | M20: 30.35 | N20: 11.9 | O20: 5.94 | P20: 9.27 | Q20: 1.28 | R20: 128 | S20: 12.6 | T20: 12600 | U20: 276.246 | V20: 2.76246 | W20: =V20*0.7 -> 1.933722 | X20: =V20*0.7 -> 1.933722 | Y20: =0.85*Z20 -> 25.33 | Z20: 29.8 | AA20: 2.235
A21: 00K4017E090 | B21: 4017 | C21: 90 | D21: Kool Mu | E21: 151 | F21: E Core | G21: 9.84 | H21: 98.4 | I21: 42.85 | J21: 21.1 | K21: 10.8 | L21: 14.9 | M21: 30.35 | N21: 11.9 | O21: 5.94 | P21: 9.27 | Q21: 1.28 | R21: 128 | S21: 12.6 | T21: 12600 | U21: 276.246 | V21: 2.76246 | W21: =V21*0.7 -> 1.933722 | X21: =V21*0.7 -> 1.933722 | Y21: =0.85*Z21 -> 25.33 | Z21: 29.8 | AA21: 2.235
A22: 00K4020E026 | B22: 4020 | C22: 26 | D22: Kool Mu | E22: 80 | F22: E Core | G22: 9.84 | H22: 98.4 | I22: 42.85 | J22: 21.1 | K22: 15.4 | L22: 14.9 | M22: 30.35 | N22: 11.9 | O22: 5.94 | P22: 9.27 | Q22: 1.83 | R22: 183 | S22: 18 | T22: 18000 | U22: =2*L22*P22 -> 276.246 | V22: 2.76246 | W22: 1.94 | X22: 2.07 | Y22: 25.9 | Z22: 29.8 | AA22: 1.95
A23: 00K4020E040 | B23: 4020 | C23: 40 | D23: Kool Mu | E23: 108 | F23: E Core | G23: 9.84 | H23: 98.4 | I23: 42.85 | J23: 21.1 | K23: 15.4 | L23: 14.9 | M23: 30.35 | N23: 11.9 | O23: 5.94 | P23: 9.27 | Q23: 1.83 | R23: 183 | S23: 18 | T23: 18000 | U23: 276.246 | V23: 2.76246 | W23: 1.94 | X23: 2.07 | Y23: 25.9 | Z23: 29.8 | AA23: 1.95
A24: 00K4020E060 | B24: 4020 | C24: 60 | D24: Kool Mu | E24: 150 | F24: E Core | G24: 9.84 | H24: 98.4 | I24: 42.85 | J24: 21.1 | K24: 15.4 | L24: 14.9 | M24: 30.35 | N24: 11.9 | O24: 5.94 | P24: 9.27 | Q24: 1.83 | R24: 183 | S24: 18 | T24: 18000 | U24: 276.246 | V24: 2.76246 | W24: 1.94 | X24: 2.07 | Y24: 25.9 | Z24: 29.8 | AA24: 1.95
A25: 00K4020E090 | B25: 4020 | C25: 90 | D25: Kool Mu | E25: 217 | F25: E Core | G25: 9.84 | H25: 98.4 | I25: 42.85 | J25: 21.1 | K25: 15.4 | L25: 14.9 | M25: 30.35 | N25: 11.9 | O25: 5.94 | P25: 9.27 | Q25: 1.83 | R25: 183 | S25: 18 | T25: 18000 | U25: 276.246 | V25: 2.76246 | W25: 1.94 | X25: 2.07 | Y25: 25.9 | Z25: 29.8 | AA25: 1.95
A26: 00K4022E026 | B26: 4022 | C26: 26 | D26: Kool Mu | E26: 104 | F26: E Core | G26: 9.84 | H26: 98.4 | I26: 42.85 | J26: 21.1 | K26: 20 | L26: 14.9 | M26: 30.35 | N26: 11.9 | O26: 5.94 | P26: 9.27 | Q26: 2.37 | R26: 237 | S26: 23.3 | T26: 23300 | U26: 276.246 | V26: 2.76246 | W26: 1.94 | X26: =W26 -> 1.94 | Y26: 26 | Z26: 29.8 | AA26: 1.9
A27: 00K4022E040 | B27: 4022 | C27: 40 | D27: Kool Mu | E27: 140 | F27: E Core | G27: 9.84 | H27: 98.4 | I27: 42.85 | J27: 21.1 | K27: 20 | L27: 14.9 | M27: 30.35 | N27: 11.9 | O27: 5.94 | P27: 9.27 | Q27: 2.37 | R27: 237 | S27: 23.3 | T27: 23300 | U27: 276.246 | V27: 2.76246 | W27: 1.94 | X27: =W27 -> 1.94 | Y27: 26 | Z27: 29.8 | AA27: 1.9
A28: 00K4022E060 | B28: 4022 | C28: 60 | D28: Kool Mu | E28: 194 | F28: E Core | G28: 9.84 | H28: 98.4 | I28: 42.85 | J28: 21.1 | K28: 20 | L28: 14.9 | M28: 30.35 | N28: 11.9 | O28: 5.94 | P28: 9.27 | Q28: 2.37 | R28: 237 | S28: 23.3 | T28: 23300 | U28: 276.246 | V28: 2.76246 | W28: 1.94 | X28: =W28 -> 1.94 | Y28: 26 | Z28: 29.8 | AA28: 1.9
A29: 00K4022E090 | B29: 4022 | C29: 90 | D29: Kool Mu | E29: 281 | F29: E Core | G29: 9.84 | H29: 98.4 | I29: 42.85 | J29: 21.1 | K29: 20 | L29: 14.9 | M29: 30.35 | N29: 11.9 | O29: 5.94 | P29: 9.27 | Q29: 2.37 | R29: 237 | S29: 23.3 | T29: 23300 | U29: 276.246 | V29: 2.76246 | W29: 1.94 | X29: =W29 -> 1.94 | Y29: 26 | Z29: 29.8 | AA29: 1.9
A30: 00K4317E026 | B30: 4317 | C30: 26 | D30: Kool Mu | E30: 88 | F30: E Core | G30: 7.75 | H30: 77.5 | I30: 40.87 | J30: 16.5 | K30: 12.5 | L30: 10.3 | M30: 28.32 | N30: 12.5 | O30: 6.05 | P30: 7.87 | Q30: 1.52 | R30: 152 | S30: 11.8 | T30: 11800 | U30: 162.122 | V30: 1.62122 | W30: 1.01 | X30: 1.26 | Y30: 18.11 | Z30: 20.6 | AA30: 1.245
A31: 00K4317E040 | B31: 4317 | C31: 40 | D31: Kool Mu | E31: 119 | F31: E Core | G31: 7.75 | H31: 77.5 | I31: 40.87 | J31: 16.5 | K31: 12.5 | L31: 10.3 | M31: 28.32 | N31: 12.5 | O31: 6.05 | P31: 7.87 | Q31: 1.52 | R31: 152 | S31: 11.8 | T31: 11800 | U31: 162.122 | V31: 1.62122 | W31: 1.01 | X31: 1.26 | Y31: 18.11 | Z31: 20.6 | AA31: 1.245
A32: 00K4317E060 | B32: 4317 | C32: 60 | D32: Kool Mu | E32: 163 | F32: E Core | G32: 7.75 | H32: 77.5 | I32: 40.87 | J32: 16.5 | K32: 12.5 | L32: 10.3 | M32: 28.32 | N32: 12.5 | O32: 6.05 | P32: 7.87 | Q32: 1.52 | R32: 152 | S32: 11.8 | T32: 11800 | U32: 162.122 | V32: 1.62122 | W32: 1.01 | X32: 1.26 | Y32: 18.11 | Z32: 20.6 | AA32: 1.245
A33: 00K4317E090 | B33: 4317 | C33: 90 | D33: Kool Mu | E33: 234 | F33: E Core | G33: 7.75 | H33: 77.5 | I33: 40.87 | J33: 16.5 | K33: 12.5 | L33: 10.3 | M33: 28.32 | N33: 12.5 | O33: 6.05 | P33: 7.87 | Q33: 1.52 | R33: 152 | S33: 11.8 | T33: 11800 | U33: 162.122 | V33: 1.62122 | W33: 1.01 | X33: 1.26 | Y33: 18.11 | Z33: 20.6 | AA33: 1.245
A34: 00K5528E026 | B34: 5528 | C34: 26 | D34: Kool Mu | E34: 116 | F34: E Core | G34: 12.3 | H34: 123 | I34: 54.86 | J34: 27.56 | K34: 20.6 | L34: 18.5 | M34: 37.49 | N34: 16.8 | O34: 8.38 | P34: 10.2 | Q34: 3.5 | R34: 350 | S34: 43.1 | T34: 43100 | U34: 377.4 | V34: 3.774 | W34: 3.02 | X34: 3.02 | Y34: 33.4 | Z34: 37 | AA34: 1.8
A35: 00K5528E040 | B35: 5528 | C35: 40 | D35: Kool Mu | E35: 157 | F35: E Core | G35: 12.3 | H35: 123 | I35: 54.86 | J35: 27.56 | K35: 20.6 | L35: 18.5 | M35: 37.49 | N35: 16.8 | O35: 8.38 | P35: 10.2 | Q35: 3.5 | R35: 350 | S35: 43.1 | T35: 43100 | U35: 377.4 | V35: 3.774 | W35: 3.02 | X35: 3.02 | Y35: 33.4 | Z35: 37 | AA35: 1.8
A36: 00K5528E060 | B36: 5528 | C36: 60 | D36: Kool Mu | E36: 219 | F36: E Core | G36: 12.3 | H36: 123 | I36: 54.86 | J36: 27.56 | K36: 20.6 | L36: 18.5 | M36: 37.49 | N36: 16.8 | O36: 8.38 | P36: 10.2 | Q36: 3.5 | R36: 350 | S36: 43.1 | T36: 43100 | U36: 377.4 | V36: 3.774 | W36: 3.02 | X36: 3.02 | Y36: 33.4 | Z36: 37 | AA36: 1.8
A37: 00K5528E090 | B37: 5528 | C37: 90 | D37: Kool Mu | E37: 322 | F37: E Core | G37: 12.3 | H37: 123 | I37: 54.86 | J37: 27.56 | K37: 20.6 | L37: 18.5 | M37: 37.49 | N37: 16.8 | O37: 8.38 | P37: 10.2 | Q37: 3.5 | R37: 350 | S37: 43.1 | T37: 43100 | U37: 377.4 | V37: 3.774 | W37: 3.02 | X37: 3.02 | Y37: 33.4 | Z37: 37 | AA37: 1.8
A38: 00K5530E026 | B38: 5530 | C38: 26 | D38: Kool Mu | E38: 138 | F38: E Core | G38: 12.3 | H38: 123 | I38: 54.86 | J38: 27.56 | K38: 24.6 | L38: 18.5 | M38: 37.49 | N38: 16.8 | O38: 8.38 | P38: 10.2 | Q38: 4.17 | R38: 417 | S38: 51.3 | T38: 51300 | U38: 377.4 | V38: 3.774 | W38: 2.89 | X38: =W38 -> 2.89 | Y38: 33.4 | Z38: 37 | AA38: 1.8
A39: 00K5530E040 | B39: 5530 | C39: 40 | D39: Kool Mu | E39: 187 | F39: E Core | G39: 12.3 | H39: 123 | I39: 54.86 | J39: 27.56 | K39: 24.6 | L39: 18.5 | M39: 37.49 | N39: 16.8 | O39: 8.38 | P39: 10.2 | Q39: 4.17 | R39: 417 | S39: 51.3 | T39: 51300 | U39: 377.4 | V39: 3.774 | W39: 2.89 | X39: =W39 -> 2.89 | Y39: 33.4 | Z39: 37 | AA39: 1.8
A40: 00K5530E060 | B40: 5530 | C40: 60 | D40: Kool Mu | E40: 261 | F40: E Core | G40: 12.3 | H40: 123 | I40: 54.86 | J40: 27.56 | K40: 24.6 | L40: 18.5 | M40: 37.49 | N40: 16.8 | O40: 8.38 | P40: 10.2 | Q40: 4.17 | R40: 417 | S40: 51.3 | T40: 51300 | U40: 377.4 | V40: 3.774 | W40: 2.89 | X40: =W40 -> 2.89 | Y40: 33.4 | Z40: 37 | AA40: 1.8
A41: 00K5530E090 | B41: 5530 | C41: 90 | D41: Kool Mu | E41: 338 | F41: E Core | G41: 12.3 | H41: 123 | I41: 54.86 | J41: 27.56 | K41: 24.6 | L41: 18.5 | M41: 37.49 | N41: 16.8 | O41: 8.38 | P41: 10.2 | Q41: 4.17 | R41: 417 | S41: 51.3 | T41: 51300 | U41: 377.4 | V41: 3.774 | W41: 2.89 | X41: =W41 -> 2.89 | Y41: 33.4 | Z41: 37 | AA41: 1.8
A42: 00K6527E026 | B42: 6527 | C42: 26 | D42: Kool Mu | E42: 162 | F42: E Core | G42: 14.7 | H42: 147 | I42: 65.15 | J42: 32.51 | K42: 27 | L42: 22.1 | M42: 44.19 | N42: 19.7 | O42: 10 | P42: 12 | Q42: 5.4 | R42: 540 | S42: 79.4 | T42: 79400 | U42: 530.4 | V42: 5.304 | W42: =X42 -> 4.54 | X42: 4.54 | Y42: 39.5 | Z42: 44.2 | AA42: 2.35
A43: 00K6527E040 | B43: 6527 | C43: 40 | D43: Kool Mu | E43: 230 | F43: E Core | G43: 14.7 | H43: 147 | I43: 65.15 | J43: 32.51 | K43: 27 | L43: 22.1 | M43: 44.19 | N43: 19.7 | O43: 10 | P43: 12 | Q43: 5.4 | R43: 540 | S43: 79.4 | T43: 79400 | U43: 530.4 | V43: 5.304 | W43: 4.54 | X43: 4.54 | Y43: 39.5 | Z43: 44.2 | AA43: 2.35
A44: 00K6527E060 | B44: 6527 | C44: 60 | D44: Kool Mu | E44: 300 | F44: E Core | G44: 14.7 | H44: 147 | I44: 65.15 | J44: 32.51 | K44: 27 | L44: 22.1 | M44: 44.19 | N44: 19.7 | O44: 10 | P44: 12 | Q44: 5.4 | R44: 540 | S44: 79.4 | T44: 79400 | U44: 530.4 | V44: 5.304 | W44: 4.54 | X44: 4.54 | Y44: 39.5 | Z44: 44.2 | AA44: 2.35
A45: 00K7228E026 | B45: 7228 | C45: 26 | D45: Kool Mu | E45: 130 | F45: E Core | G45: 13.7 | H45: 137 | I45: 72.39 | J45: 27.94 | K45: 19.1 | L45: 17.7 | M45: 52.62 | N45: 19.1 | O45: 9.53 | P45: 16.8 | Q45: 3.68 | R45: 368 | S45: 50.4 | T45: 50400 | U45: 594.72 | V45: 5.9472 | W45: 4.08 | X45: 4.08 | Y45: 30.4 | Z45: 35.4 | AA45: 2.5
A46: 00K7228E040 | B46: 7228 | C46: 40 | D46: Kool Mu | E46: 173 | F46: E Core | G46: 13.7 | H46: 137 | I46: 72.39 | J46: 27.94 | K46: 19.1 | L46: 17.7 | M46: 52.62 | N46: 19.1 | O46: 9.53 | P46: 16.8 | Q46: 3.68 | R46: 368 | S46: 50.4 | T46: 50400 | U46: 594.72 | V46: 5.9472 | W46: 4.08 | X46: 4.08 | Y46: 30.4 | Z46: 35.4 | AA46: 2.5
A47: 00K7228E060 | B47: 7228 | C47: 60 | D47: Kool Mu | E47: 235 | F47: E Core | G47: 13.7 | H47: 137 | I47: 72.39 | J47: 27.94 | K47: 19.1 | L47: 17.7 | M47: 52.62 | N47: 19.1 | O47: 9.53 | P47: 16.8 | Q47: 3.68 | R47: 368 | S47: 50.4 | T47: 50400 | U47: 594.72 | V47: 5.9472 | W47: 4.08 | X47: 4.08 | Y47: 30.4 | Z47: 35.4 | AA47: 2.5
A48: 00K8020E026 | B48: 8020 | C48: 26 | D48: Kool Mu | E48: 103 | F48: E Core | G48: 18.5 | H48: 185 | I48: 80.01 | J48: 38.1 | K48: 19.8 | L48: 28.01 | M48: 59.28 | N48: 19.8 | O48: 9.91 | P48: 19.8 | Q48: 3.89 | R48: 389 | S48: 72 | T48: 72000 | U48: 1109.196 | V48: 11.09196 | W48: 8.06 | X48: 8.06 | Y48: 51 | Z48: 56.02 | AA48: 2.51
A49: 00K8020E040 | B49: 8020 | C49: 40 | D49: Kool Mu | E49: 145 | F49: E Core | G49: 18.5 | H49: 185 | I49: 80.01 | J49: 38.1 | K49: 19.8 | L49: 28.01 | M49: 59.28 | N49: 19.8 | O49: 9.91 | P49: 19.8 | Q49: 3.89 | R49: 389 | S49: 72 | T49: 72000 | U49: 1109.196 | V49: 11.09196 | W49: 8.06 | X49: 8.06 | Y49: 51 | Z49: 56.02 | AA49: 2.51
A50: 00K8020E060 | B50: 8020 | C50: 60 | D50: Kool Mu | E50: 190 | F50: E Core | G50: 18.5 | H50: 185 | I50: 80.01 | J50: 38.1 | K50: 19.8 | L50: 28.01 | M50: 59.28 | N50: 19.8 | O50: 9.91 | P50: 19.8 | Q50: 3.89 | R50: 389 | S50: 72 | T50: 72000 | U50: 1109.196 | V50: 11.09196 | W50: 8.06 | X50: 8.06 | Y50: 51 | Z50: 56.02 | AA50: 2.51
A51: 00K8044E026 | B51: 8044 | C51: 26 | D51: Kool Mu | E51: 91 | F51: E Core | G51: 20.8 | H51: 208 | I51: 80.01 | J51: 44.58 | K51: 19.8 | L51: 34.36 | M51: 59.28 | N51: 19.8 | O51: 9.91 | P51: 19.8 | Q51: 3.89 | R51: 389 | S51: 80.9 | T51: 80900 | U51: 1360.656 | V51: 13.60656 | W51: =V51*0.7 -> 9.524592 | X51: =W51 -> 9.524592 | Y51: =0.85*Z51 -> 58.412 | Z51: 68.72 | AA51: 5.154
A52: 00K130LE026 | B52: 130LE | C52: 26 | D52: Kool Mu | E52: 254 | F52: E Core | G52: 21.9 | H52: 219 | I52: 130.3 | J52: 32.51 | K52: 53.85 | L52: 22.1 | M52: 108.4 | N52: 20 | O52: 10 | P52: 44.22 | Q52: 10.8 | R52: 1080 | S52: 237 | T52: 237000 | U52: 1954.524 | V52: 19.54524 | W52: =V52*0.7 -> 13.681668 | X52: =W52 -> 13.681668 | Y52: =0.85*Z52 -> 37.57 | Z52: 44.2 | AA52: 3.315
A53: 00K160LE026 | B53: 160LE | C53: 26 | D53: Kool Mu | E53: 180 | F53: E Core | G53: 27.3 | H53: 273 | I53: 160 | J53: 38.1 | K53: 39.62 | L53: 28.14 | M53: 138.2 | N53: 19.8 | O53: 9.91 | P53: 59.28 | Q53: 7.78 | R53: 778 | S53: 212 | T53: 212000 | U53: 3336.2784 | V53: 33.362784 | W53: =V53*0.7 -> 23.3539488 | X53: =W53 -> 23.3539488 | Y53: =0.85*Z53 -> 47.838 | Z53: 56.28 | AA53: 4.221
A54: 00X4020E026 | B54: 4020 | C54: 26 | D54: Xflux | E54: 80 | F54: E Core | G54: 9.84 | H54: 98.4 | I54: 42.85 | J54: 21.1 | K54: 15.4 | L54: 14.9 | M54: 30.35 | N54: 11.9 | O54: 5.94 | P54: 9.27 | Q54: 1.83 | R54: 183 | S54: 18 | T54: 18000 | U54: =2*L54*P54 -> 276.246 | V54: 2.76246 | W54: 1.94 | X54: 2.07 | Y54: 25.9 | Z54: 29.8 | AA54: 1.95
A55: 00X4020E040 | B55: 4020 | C55: 40 | D55: Xflux | E55: 108 | F55: E Core | G55: 9.84 | H55: 98.4 | I55: 42.85 | J55: 21.1 | K55: 15.4 | L55: 14.9 | M55: 30.35 | N55: 11.9 | O55: 5.94 | P55: 9.27 | Q55: 1.83 | R55: 183 | S55: 18 | T55: 18000 | U55: =2*L55*P55 -> 276.246 | V55: 2.76246 | W55: 1.94 | X55: 2.07 | Y55: 25.9 | Z55: 29.8 | AA55: 1.95
A56: 00X4020E060 | B56: 4020 | C56: 60 | D56: Xflux | E56: 150 | F56: E Core | G56: 9.84 | H56: 98.4 | I56: 42.85 | J56: 21.1 | K56: 15.4 | L56: 14.9 | M56: 30.35 | N56: 11.9 | O56: 5.94 | P56: 9.27 | Q56: 1.83 | R56: 183 | S56: 18 | T56: 18000 | U56: =2*L56*P56 -> 276.246 | V56: =0.01*U56 -> 2.76246 | W56: 1.94 | X56: 2.07 | Y56: 25.9 | Z56: =2*L56 -> 29.8 | AA56: =0.5*(Z56-Y56) -> 1.95
A57: 00X4022E026 | B57: 4022 | C57: 26 | D57: Xflux | E57: 104 | F57: E Core | G57: 9.84 | H57: 98.4 | I57: 42.85 | J57: 21.1 | K57: 20 | L57: 14.9 | M57: 30.35 | N57: 11.9 | O57: 5.94 | P57: 9.27 | Q57: 2.37 | R57: 237 | S57: 23.3 | T57: 23300 | U57: =2*L57*P57 -> 276.246 | V57: 2.76246 | W57: 1.94 | X57: =W57 -> 1.94 | Y57: 26 | Z57: 29.8 | AA57: 1.9
A58: 00X4022E040 | B58: 4022 | C58: 40 | D58: Xflux | E58: 140 | F58: E Core | G58: 9.84 | H58: 98.4 | I58: 42.85 | J58: 21.1 | K58: 20 | L58: 14.9 | M58: 30.35 | N58: 11.9 | O58: 5.94 | P58: 9.27 | Q58: 2.37 | R58: 237 | S58: 23.3 | T58: 23300 | U58: 276.246 | V58: 2.76246 | W58: 1.94 | X58: =W58 -> 1.94 | Y58: 26 | Z58: 29.8 | AA58: 1.9
A59: 00X4022E060 | B59: 4022 | C59: 60 | D59: Xflux | E59: 194 | F59: E Core | G59: 9.84 | H59: 98.4 | I59: 42.85 | J59: 21.1 | K59: 20 | L59: 14.9 | M59: 30.35 | N59: 11.9 | O59: 5.94 | P59: 9.27 | Q59: 2.37 | R59: 237 | S59: 23.3 | T59: 23300 | U59: =2*L59*P59 -> 276.246 | V59: =0.01*U59 -> 2.76246 | W59: 1.94 | X59: =W59 -> 1.94 | Y59: 26 | Z59: =2*L59 -> 29.8 | AA59: =0.5*(Z59-Y59) -> 1.9
A60: 00X4317E026 | B60: 4317 | C60: 26 | D60: Xflux | E60: 88 | F60: E Core | G60: 7.75 | H60: 77.5 | I60: 40.87 | J60: 16.5 | K60: 12.5 | L60: 10.3 | M60: 28.32 | N60: 12.5 | O60: 6.05 | P60: 7.87 | Q60: 1.52 | R60: 152 | S60: 11.8 | T60: 11800 | U60: 162.122 | V60: 1.62122 | W60: 1.01 | X60: 1.26 | Y60: 18.11 | Z60: 20.6 | AA60: 1.245
A61: 00X4317E040 | B61: 4317 | C61: 40 | D61: Xflux | E61: 119 | F61: E Core | G61: 7.75 | H61: 77.5 | I61: 40.87 | J61: 16.5 | K61: 12.5 | L61: 10.3 | M61: 28.32 | N61: 12.5 | O61: 6.05 | P61: 7.87 | Q61: 1.52 | R61: 152 | S61: 11.8 | T61: 11800 | U61: 162.122 | V61: 1.62122 | W61: 1.01 | X61: 1.26 | Y61: 18.11 | Z61: 20.6 | AA61: 1.245
A62: 00X4317E060 | B62: 4317 | C62: 60 | D62: Xflux | E62: 163 | F62: E Core | G62: 7.75 | H62: 77.5 | I62: 40.87 | J62: 16.5 | K62: 12.5 | L62: 10.3 | M62: 28.32 | N62: 12.5 | O62: 6.05 | P62: 7.87 | Q62: 1.52 | R62: 152 | S62: 11.8 | T62: 11800 | U62: =2*L62*P62 -> 162.122 | V62: =0.01*U62 -> 1.62122 | W62: 1.01 | X62: 1.26 | Y62: 18.11 | Z62: =2*L62 -> 20.6 | AA62: =0.5*(Z62-Y62) -> 1.245
A63: 00X5528E026 | B63: 5528 | C63: 26 | D63: Xflux | E63: 116 | F63: E Core | G63: 12.3 | H63: 123 | I63: 54.86 | J63: 27.56 | K63: 20.6 | L63: 18.5 | M63: 37.49 | N63: 16.8 | O63: 8.38 | P63: 10.2 | Q63: 3.5 | R63: 350 | S63: 43.1 | T63: 43100 | U63: 377.4 | V63: 3.774 | W63: 3.02 | X63: 3.02 | Y63: 33.4 | Z63: 37 | AA63: 1.8
A64: 00X5528E040 | B64: 5528 | C64: 40 | D64: Xflux | E64: 157 | F64: E Core | G64: 12.3 | H64: 123 | I64: 54.86 | J64: 27.56 | K64: 20.6 | L64: 18.5 | M64: 37.49 | N64: 16.8 | O64: 8.38 | P64: 10.2 | Q64: 3.5 | R64: 350 | S64: 43.1 | T64: 43100 | U64: 377.4 | V64: 3.774 | W64: 3.02 | X64: 3.02 | Y64: 33.4 | Z64: 37 | AA64: 1.8
A65: 00X5528E060 | B65: 5528 | C65: 60 | D65: Xflux | E65: 219 | F65: E Core | G65: 12.3 | H65: 123 | I65: 54.86 | J65: 27.56 | K65: 20.6 | L65: 18.5 | M65: 37.49 | N65: 16.8 | O65: 8.38 | P65: 10.2 | Q65: 3.5 | R65: 350 | S65: 43.1 | T65: 43100 | U65: =2*L65*P65 -> 377.4 | V65: =0.01*U65 -> 3.774 | W65: 3.02 | X65: 3.02 | Y65: 33.4 | Z65: =2*L65 -> 37 | AA65: =0.5*(Z65-Y65) -> 1.8
A66: 00X5530E026 | B66: 5530 | C66: 26 | D66: Xflux | E66: 138 | F66: E Core | G66: 12.3 | H66: 123 | I66: 54.86 | J66: 27.56 | K66: 24.6 | L66: 18.5 | M66: 37.49 | N66: 16.8 | O66: 8.38 | P66: 10.2 | Q66: 4.17 | R66: 417 | S66: 51.3 | T66: 51300 | U66: 377.4 | V66: 3.774 | W66: 2.89 | X66: =W66 -> 2.89 | Y66: 33.4 | Z66: 37 | AA66: 1.8
A67: 00X5530E040 | B67: 5530 | C67: 40 | D67: Xflux | E67: 187 | F67: E Core | G67: 12.3 | H67: 123 | I67: 54.86 | J67: 27.56 | K67: 24.6 | L67: 18.5 | M67: 37.49 | N67: 16.8 | O67: 8.38 | P67: 10.2 | Q67: 4.17 | R67: 417 | S67: 51.3 | T67: 51300 | U67: 377.4 | V67: 3.774 | W67: 2.89 | X67: =W67 -> 2.89 | Y67: 33.4 | Z67: 37 | AA67: 1.8
A68: 00X5530E060 | B68: 5530 | C68: 60 | D68: Xflux | E68: 261 | F68: E Core | G68: 12.3 | H68: 123 | I68: 54.86 | J68: 27.56 | K68: 24.6 | L68: 18.5 | M68: 37.49 | N68: 16.8 | O68: 8.38 | P68: 10.2 | Q68: 4.17 | R68: 417 | S68: 51.3 | T68: 51300 | U68: =2*L68*P68 -> 377.4 | V68: =0.01*U68 -> 3.774 | W68: 2.89 | X68: =W68 -> 2.89 | Y68: 33.4 | Z68: =2*L68 -> 37 | AA68: =0.5*(Z68-Y68) -> 1.8
A69: 00X6527E026 | B69: 6527 | C69: 26 | D69: Xflux | E69: 162 | F69: E Core | G69: 14.7 | H69: 147 | I69: 65.15 | J69: 32.51 | K69: 27 | L69: 22.1 | M69: 44.19 | N69: 19.7 | O69: 10 | P69: 12 | Q69: 5.4 | R69: 540 | S69: 79.4 | T69: 79400 | U69: 530.4 | V69: 5.304 | W69: =X69 -> 4.54 | X69: 4.54 | Y69: 39.5 | Z69: 44.2 | AA69: 2.35
A70: 00X6527E040 | B70: 6527 | C70: 40 | D70: Xflux | E70: 230 | F70: E Core | G70: 14.7 | H70: 147 | I70: 65.15 | J70: 32.51 | K70: 27 | L70: 22.1 | M70: 44.19 | N70: 19.7 | O70: 10 | P70: 12 | Q70: 5.4 | R70: 540 | S70: 79.4 | T70: 79400 | U70: 530.4 | V70: 5.304 | W70: 4.54 | X70: 4.54 | Y70: 39.5 | Z70: 44.2 | AA70: 2.35
A71: 00X6527E060 | B71: 6527 | C71: 60 | D71: Xflux | E71: 300 | F71: E Core | G71: 14.7 | H71: 147 | I71: 65.15 | J71: 32.51 | K71: 27 | L71: 22.1 | M71: 44.19 | N71: 19.7 | O71: 10 | P71: 12 | Q71: 5.4 | R71: 540 | S71: 79.4 | T71: 79400 | U71: =2*L71*P71 -> 530.4 | V71: =0.01*U71 -> 5.304 | W71: =X71 -> 4.54 | X71: 4.54 | Y71: 39.5 | Z71: =2*L71 -> 44.2 | AA71: =0.5*(Z71-Y71) -> 2.35
A72: 00X7228E026 | B72: 7228 | C72: 26 | D72: Xflux | E72: 130 | F72: E Core | G72: 13.7 | H72: 137 | I72: 72.39 | J72: 27.94 | K72: 19.1 | L72: 17.7 | M72: 52.62 | N72: 19.1 | O72: 9.53 | P72: 16.8 | Q72: 3.68 | R72: 368 | S72: 50.4 | T72: 50400 | U72: 594.72 | V72: 5.9472 | W72: 4.08 | X72: 4.08 | Y72: 30.4 | Z72: 35.4 | AA72: 2.5
A73: 00X7228E040 | B73: 7228 | C73: 40 | D73: Xflux | E73: 173 | F73: E Core | G73: 13.7 | H73: 137 | I73: 72.39 | J73: 27.94 | K73: 19.1 | L73: 17.7 | M73: 52.62 | N73: 19.1 | O73: 9.53 | P73: 16.8 | Q73: 3.68 | R73: 368 | S73: 50.4 | T73: 50400 | U73: =2*L73*P73 -> 594.72 | V73: =0.01*U73 -> 5.9472 | W73: 4.08 | X73: 4.08 | Y73: 30.4 | Z73: =2*L73 -> 35.4 | AA73: =0.5*(Z73-Y73) -> 2.5
A74: 00X7228E060 | B74: 7228 | C74: 60 | D74: Xflux | E74: 235 | F74: E Core | G74: 13.7 | H74: 137 | I74: 72.39 | J74: 27.94 | K74: 19.1 | L74: 17.7 | M74: 52.62 | N74: 19.1 | O74: 9.53 | P74: 16.8 | Q74: 3.68 | R74: 368 | S74: 50.4 | T74: 50400 | U74: 594.72 | V74: 5.9472 | W74: =X74 -> 4.08 | X74: 4.08 | Y74: 30.4 | Z74: =2*L74 -> 35.4 | AA74: =0.5*(Z74-Y74) -> 2.5
A75: 00X8020E026 | B75: 8020 | C75: 26 | D75: Xflux | E75: 103 | F75: E Core | G75: 18.5 | H75: 185 | I75: 80.01 | J75: 38.1 | K75: 19.8 | L75: 28.01 | M75: 59.28 | N75: 19.8 | O75: 9.91 | P75: 19.8 | Q75: 3.89 | R75: 389 | S75: 72 | T75: 72000 | U75: 1109.196 | V75: 11.09196 | W75: 8.06 | X75: 8.06 | Y75: 51 | Z75: 56.02 | AA75: 2.51
A76: 00X8020E040 | B76: 8020 | C76: 40 | D76: Xflux | E76: 145 | F76: E Core | G76: 18.5 | H76: 185 | I76: 80.01 | J76: 38.1 | K76: 19.8 | L76: 28.01 | M76: 59.28 | N76: 19.8 | O76: 9.91 | P76: 19.8 | Q76: 3.89 | R76: 389 | S76: 72 | T76: 72000 | U76: 1109.196 | V76: 11.09196 | W76: 8.06 | X76: 8.06 | Y76: 51 | Z76: 56.02 | AA76: 2.51
A77: 00X8020E060 | B77: 8020 | C77: 60 | D77: Xflux | E77: 190 | F77: E Core | G77: 18.5 | H77: 185 | I77: 80.01 | J77: 38.1 | K77: 19.8 | L77: 28.01 | M77: 59.28 | N77: 19.8 | O77: 9.91 | P77: 19.8 | Q77: 3.89 | R77: 389 | S77: 72 | T77: 72000 | U77: 1109.196 | V77: 11.09196 | W77: =X77 -> 8.06 | X77: 8.06 | Y77: 51 | Z77: =2*L77 -> 56.02 | AA77: =0.5*(Z77-Y77) -> 2.51
A78: 00X8024E060 | B78: 8024 | C78: 26 | D78: Xflux | E78: 370 | F78: E Core | G78: 13.14 | H78: 131.4 | I78: 80.01 | J78: 24.05 | K78: 29.72 | L78: 14.02 | M78: 59.28 | N78: 19.8 | O78: 9.91 | P78: 19.8 | Q78: 6 | R78: 600 | S78: 78.8 | T78: 78840 | U78: 555.192 | V78: 5.55192 | W78: =V78*0.7 -> 3.886344 | X78: =W78 -> 3.886344 | Y78: =0.85*Z78 -> 23.834 | Z78: =2*L78 -> 28.04 | AA78: 2.103
A79: 00X8044E026 | B79: 8044 | C79: 26 | D79: Xflux | E79: 91 | F79: E Core | G79: 20.8 | H79: 208 | I79: 80.01 | J79: 44.58 | K79: 19.8 | L79: 34.36 | M79: 59.28 | N79: 19.8 | O79: 9.91 | P79: 19.8 | Q79: 3.89 | R79: 389 | S79: 80.9 | T79: 80900 | U79: 1360.656 | V79: 13.60656 | W79: =V79*0.7 -> 9.524592 | X79: =W79 -> 9.524592 | Y79: =0.85*Z79 -> 58.412 | Z79: 68.72 | AA79: 5.154
A80: 00K114LE060 | B80: 114LE | C80: 60 | D80: Kool Mu | E80: 445 | F80: E Core | G80: 21.5 | H80: 215 | I80: 114.3 | J80: 46.18 | K80: 34.93 | L80: 28.6 | M80: 79.5 | N80: 35.1 | O80: 17.2 | P80: 22.1 | Q80: 12.2 | R80: 1220 | S80: 262 | T80: 262000 | U80: 1264.12 | V80: 12.6412 | W80: =V80*0.7 -> 8.84884 | X80: =V80*0.7 -> 8.84884 | Y80: 53.09 | Z80: 57.2 | AA80: 1.65
A81: 00K114LE026 | B81: 114LE | C81: 26 | D81: Kool Mu | E81: 235 | F81: E Core | G81: 21.5 | H81: 215 | I81: 114.3 | J81: 46.18 | K81: 34.93 | L81: 28.6 | M81: 79.5 | N81: 35.1 | O81: 17.2 | P81: 22.1 | Q81: 12.2 | R81: 1220 | S81: 262 | T81: 262000 | U81: 1264.12 | V81: 12.6412 | W81: =V81*0.7 -> 8.84884 | X81: =V81*0.7 -> 8.84884 | Y81: 53.09 | Z81: 57.2 | AA81: 1.65
A82: 00K114LE026HT26 | B82: 114LE | C82: 26 | D82: Kool Mu | E82: 182 | F82: E Core | G82: 21.5 | H82: 215 | I82: 114.3 | J82: 46.18 | K82: 26.19 | L82: 28.6 | M82: 79.5 | N82: 35.1 | O82: 17.2 | P82: 22.1 | Q82: 9.14 | R82: 914 | S82: 197 | T82: 197000 | U82: 1264.12 | V82: 12.6412 | W82: =V82*0.7 -> 8.84884 | X82: =V82*0.7 -> 8.84884 | Y82: 53.09 | Z82: 57.2 | AA82: 1.65
A83: 00X1808E026 | B83: 1808 | C83: 26 | D83: Xflux | E83: 26 | F83: E Core | G83: 4.01 | H83: 40.1 | I83: 19.3 | J83: 8.1 | K83: 4.78 | L83: 5.53 | M83: 13.9 | N83: 4.78 | O83: 2.39 | P83: 4.64 | Q83: 0.228 | R83: 22.8 | S83: 0.914 | T83: 914 | U83: =2*L83*P83 -> 51.3184 | V83: =0.01*U83 -> 0.513184 | W83: 0.316 | X83: 0.342 | Y83: 9.3 | Z83: =2*L83 -> 11.06 | AA83: =0.5*(Z83-Y83) -> 0.88
A84: 00X1808E040 | B84: 1808 | C84: 40 | D84: Xflux | E84: 35 | F84: E Core | G84: 4.01 | H84: 40.1 | I84: 19.3 | J84: 8.1 | K84: 4.78 | L84: 5.53 | M84: 13.9 | N84: 4.78 | O84: 2.39 | P84: 4.64 | Q84: 0.228 | R84: 22.8 | S84: 0.914 | T84: 914 | U84: =2*L84*P84 -> 51.3184 | V84: =0.01*U84 -> 0.513184 | W84: 0.316 | X84: 0.342 | Y84: 9.3 | Z84: =2*L84 -> 11.06 | AA84: =0.5*(Z84-Y84) -> 0.88
A85: 00X1808E060 | B85: 1808 | C85: 60 | D85: Xflux | E85: 48 | F85: E Core | G85: 4.01 | H85: 40.1 | I85: 19.3 | J85: 8.1 | K85: 4.78 | L85: 5.53 | M85: 13.9 | N85: 4.78 | O85: 2.39 | P85: 4.64 | Q85: 0.228 | R85: 22.8 | S85: 0.914 | T85: 914 | U85: 51.3184 | V85: 0.513184 | W85: 0.316 | X85: 0.342 | Y85: 9.3 | Z85: 11.06 | AA85: 0.88
A86: 00X3515E026 | B86: 3515 | C86: 26 | D86: Xflux | E86: 56 | F86: E Core | G86: 6.94 | H86: 69.4 | I86: 34.54 | J86: 14.2 | K86: 9.35 | L86: 9.6 | M86: 25.2 | N86: 9.32 | O86: 4.45 | P86: 7.87 | Q86: 0.84 | R86: 84 | S86: 5.83 | T86: 5830 | U86: 151.104 | V86: 1.51104 | W86: 0.948 | X86: 1.13 | Y86: 16.59 | Z86: 19.2 | AA86: 1.305
A87: 00X3515E040 | B87: 3515 | C87: 40 | D87: Xflux | E87: 75 | F87: E Core | G87: 6.94 | H87: 69.4 | I87: 34.54 | J87: 14.2 | K87: 9.35 | L87: 9.6 | M87: 25.2 | N87: 9.32 | O87: 4.45 | P87: 7.87 | Q87: 0.84 | R87: 84 | S87: 5.83 | T87: 5830 | U87: 151.104 | V87: 1.51104 | W87: 0.948 | X87: 1.13 | Y87: 16.59 | Z87: 19.2 | AA87: 1.305
A88: 00X3515E060 | B88: 3515 | C88: 60 | D88: Xflux | E88: 102 | F88: E Core | G88: 6.94 | H88: 69.4 | I88: 34.54 | J88: 14.2 | K88: 9.35 | L88: 9.6 | M88: 25.2 | N88: 9.32 | O88: 4.45 | P88: 7.87 | Q88: 0.84 | R88: 84 | S88: 5.83 | T88: 5830 | U88: 151.104 | V88: 1.51104 | W88: 0.948 | X88: 1.13 | Y88: 16.59 | Z88: 19.2 | AA88: 1.305
A89: 00X4017E026 | B89: 4017 | C89: 26 | D89: Xflux | E89: 56 | F89: E Core | G89: 9.84 | H89: 98.4 | I89: 42.85 | J89: 21.1 | K89: 10.8 | L89: 14.9 | M89: 30.35 | N89: 11.9 | O89: 5.94 | P89: 9.27 | Q89: 1.28 | R89: 128 | S89: 12.6 | T89: 12600 | U89: 276.246 | V89: 2.76246 | W89: =V89*0.7 -> 1.933722 | X89: =V89*0.7 -> 1.933722 | Y89: =0.85*Z89 -> 25.33 | Z89: 29.8 | AA89: 2.235
A90: 00X4017E040 | B90: 4017 | C90: 40 | D90: Xflux | E90: 76 | F90: E Core | G90: 9.84 | H90: 98.4 | I90: 42.85 | J90: 21.1 | K90: 10.8 | L90: 14.9 | M90: 30.35 | N90: 11.9 | O90: 5.94 | P90: 9.27 | Q90: 1.28 | R90: 128 | S90: 12.6 | T90: 12600 | U90: 276.246 | V90: 2.76246 | W90: 1.933722 | X90: =V90*0.7 -> 1.933722 | Y90: 25.33 | Z90: 29.8 | AA90: 2.235
A91: 00X4017E060 | B91: 4017 | C91: 60 | D91: Xflux | E91: 105 | F91: E Core | G91: 9.84 | H91: 98.4 | I91: 42.85 | J91: 21.1 | K91: 10.8 | L91: 14.9 | M91: 30.35 | N91: 11.9 | O91: 5.94 | P91: 9.27 | Q91: 1.28 | R91: 128 | S91: 12.6 | T91: 12600 | U91: 276.246 | V91: 2.76246 | W91: 1.933722 | X91: =V91*0.7 -> 1.933722 | Y91: 25.33 | Z91: 29.8 | AA91: 2.235
A92: 00K8044E040 | B92: 8044 | C92: 40 | D92: Kool Mu | E92: 113 | F92: E Core | G92: 20.8 | H92: 208 | I92: 80.01 | J92: 44.58 | K92: 19.8 | L92: 34.36 | M92: 59.28 | N92: 19.8 | O92: 9.91 | P92: 19.8 | Q92: 3.89 | R92: 389 | S92: 80.9 | T92: 80900 | U92: 1360.656 | V92: 13.60656 | W92: 9.524592 | X92: =W92 -> 9.524592 | Y92: 58.412 | Z92: 68.72 | AA92: 5.154
A93: 00K8044E060 | B93: 8044 | C93: 60 | D93: Kool Mu | E93: 170 | F93: E Core | G93: 20.8 | H93: 208 | I93: 80.01 | J93: 44.58 | K93: 19.8 | L93: 34.36 | M93: 59.28 | N93: 19.8 | O93: 9.91 | P93: 19.8 | Q93: 3.89 | R93: 389 | S93: 80.9 | T93: 80900 | U93: 1360.656 | V93: 13.60656 | W93: 9.524592 | X93: =W93 -> 9.524592 | Y93: 58.412 | Z93: 68.72 | AA93: 5.154
A94: 00X8044E040 | B94: 8044 | C94: 40 | D94: Kool Mu | E94: 113 | F94: E Core | G94: 20.8 | H94: 208 | I94: 80.01 | J94: 44.58 | K94: 19.8 | L94: 34.36 | M94: 59.28 | N94: 19.8 | O94: 9.91 | P94: 19.8 | Q94: 3.89 | R94: 389 | S94: 80.9 | T94: 80900 | U94: 1360.656 | V94: 13.60656 | W94: 9.524592 | X94: =W94 -> 9.524592 | Y94: 58.412 | Z94: 68.72 | AA94: 5.154
A95: 00X8044E060 | B95: 8044 | C95: 60 | D95: Kool Mu | E95: 170 | F95: E Core | G95: 20.8 | H95: 208 | I95: 80.01 | J95: 44.58 | K95: 19.8 | L95: 34.36 | M95: 59.28 | N95: 19.8 | O95: 9.91 | P95: 19.8 | Q95: 3.89 | R95: 389 | S95: 80.9 | T95: 80900 | U95: 1360.656 | V95: 13.60656 | W95: 9.524592 | X95: =W95 -> 9.524592 | Y95: 58.412 | Z95: 68.72 | AA95: 5.154

Sheet Shape Core Weight (hidden)
A1: Part Number | B1: Perm | C1: Weight Ration | D1: Spec sheet weight (grams)
A2: 00K1808E090 | B2: 90 | C2: 0.97 | D2: 2.95 | E2: =D3/C3*C2 -> 2.940957447
A3: 00K1808E060 | B3: 60 | C3: 0.94 | D3: 2.85
A4: 00K1808E040 | B4: 40 | C4: 0.9 | D4: 2.74 | E4: =$D$3/$C$3*C4 -> 2.728723404
A5: 00K1808E026 | B5: 26 | C5: 0.86 | D5: 2.61 | E5: =$D$3/$C$3*C5 -> 2.607446809
A6: 00K2510E090 | B6: 90 | C6: 0.97 | D6: 7.62
A7: 00K2510E060 | B7: 60 | C7: 0.94 | D7: 7.39
A8: 00K2510E040 | B8: 40 | C8: 0.9 | D8: 7.07
A9: 00K2510E026 | B9: 26 | C9: 0.86 | D9: 6.75
A10: 00K3007E090 | B10: 90 | C10: 0.97 | D10: 13.6
A11: 00K3007E060 | B11: 60 | C11: 0.94 | D11: 12.9
A12: 00K3007E040 | B12: 40 | C12: 0.9 | D12: 11.7
A13: 00K3007E026 | B13: 26 | C13: 0.86 | D13: 11.3
A14: 00K3515E090 | B14: 90 | C14: 0.97 | D14: 17.3
A15: 00K3515E060 | B15: 60 | C15: 0.94 | D15: 16.7
A16: 00K3515E040 | B16: 40 | C16: 0.9 | D16: 16
A17: 00K3515E026 | B17: 26 | C17: 0.86 | D17: 15.6
A18: 00K4017E090 | B18: 90 | C18: 0.97 | D18: 35.1
A19: 00K4017E060 | B19: 60 | C19: 0.94 | D19: 34
A20: 00K4017E0040 | B20: 40 | C20: 0.9 | D20: 32.6
A21: 00K4017E026 | B21: 26 | C21: 0.86 | D21: 31.1
A22: 00K4317E090 | B22: 90 | C22: 0.97 | D22: =D25/C25*C22 -> 37.33372093
A23: 00K4317E060 | B23: 60 | C23: 0.94 | D23: =D25/C25*C23 -> 36.17906977
A24: 00K4317E040 | B24: 40 | C24: 0.9 | D24: 33.2
A25: 00K4317E026 | B25: 26 | C25: 0.86 | D25: 33.1
A26: 00K4020E090 | B26: 90 | C26: 0.97 | D26: 53.7
A27: 00K4020E060 | B27: 60 | C27: 0.94 | D27: 49.9
A28: 00K4020E040 | B28: 40 | C28: 0.9 | D28: 49.6
A29: 00K4020E026 | B29: 26 | C29: 0.86 | D29: 48
A30: 00K4022E090 | B30: 90 | C30: 0.97 | D30: 69
A31: 00K4022E060 | B31: 60 | C31: 0.94 | D31: 64.8
A32: 00K4022E040 | B32: 40 | C32: 0.9 | D32: 64.5
A33: 00K4022E026 | B33: 26 | C33: 0.86 | D33: 63.3
A35: 00K5528E060 | B35: 60 | C35: 0.94 | D35: =D37/C37*C35 -> 126.6813953
A36: 00K5528E040 | B36: 40 | C36: 0.9 | D36: 120.2
A37: 00K5528E026 | B37: 26 | C37: 0.86 | D37: 115.9
A39: 00K5530E060 | B39: 60 | C39: 0.94 | D39: =D41/C41*C39 -> 152.6953488
A40: 00K5530E040 | B40: 40 | C40: 0.9 | D40: 142
A41: 00K5530E026 | B41: 26 | C41: 0.86 | D41: 139.7
A43: 00K6527E060 | B43: 60 | C43: 0.94 | D43: =D45/C45*C43 -> 233.1418605
A44: 00K6527E040 | B44: 40 | C44: 0.9 | D44: 226.3
A45: 00K6527E026 | B45: 26 | C45: 0.86 | D45: 213.3
A47: 00K7228E060 | B47: 60 | C47: 0.94 | D47: 156
A48: 00K7228E040 | B48: 40 | C48: 0.9 | D48: 149.6
A49: 00K7228E026 | B49: 26 | C49: 0.86 | D49: 143
A51: 00K8020E060 | B51: 60 | C51: 0.94 | D51: =D53/C53*C51 -> 215.3255814
A52: 00K8020E040 | B52: 40 | C52: 0.9 | D52: 203
A53: 00K8020E026 | B53: 26 | C53: 0.86 | D53: 197
A57: 00K8044E026 | B57: 26 | C57: 0.86 | D57: 222
A58: 00K114LE026 | B58: 26 | D58: 690
A59: 00K114LE060 | B59: 60 | D59: 720
A60: 00K3112U090 | B60: 90 | C60: 0.97 | D60: 20.08266858
A61: 00K3112U060 | B61: 60 | C61: 0.94 | D61: 19.46155512
A62: 00K3112U040 | B62: 40 | C62: 0.9 | D62: 18.63340384
A64: 00K4110U090 | B64: 90 | C64: 0.97 | D64: 20.01671194
A65: 00K4110U060 | B65: 60 | C65: 0.94 | D65: 19.39763837
A66: 00K4110U040 | B66: 40 | C66: 0.9 | D66: 18.57220695
A68: 00K4111U090 | B68: 90 | C68: 0.97 | D68: 25.35170127
A69: 00K4111U060 | B69: 60 | C69: 0.94 | D69: 24.56762803
A70: 00K4111U040 | B70: 40 | C70: 0.9 | D70: 23.52219705
A71: 00K4119U090 | B71: 90 | C71: 0.97 | D71: 40.01241998
A72: 00K4119U060 | B72: 60 | C72: 0.94 | D72: 38.77492245
A73: 00K4119U040 | B73: 40 | C73: 0.9 | D73: 37.12492575
D74: 82.39764044
A75: 00K5527U026 | B75: 26 | C75: 0.86 | D75: 73.05357812
D76: 117.9037924
A77: 00K5529U026 | B77: 26 | C77: 0.86 | D77: 104.5332592
A79: 00K6527U026 | B79: 26 | C79: 0.86 | D79: 142.5999388
A81: 00K6533U026 | B81: 26 | C81: 0.86 | D81: 126.1209442
A83: 00K7236U026 | B83: 26 | C83: 0.86 | D83: 159.8952707
A85: 00K8020U026 | B85: 26 | C85: 0.86 | D85: 126.9310043
A87: 00K8038U026 | B87: 26 | C87: 0.86 | D87: 210.1076501
A88: 00K4741B014 | B88: 14 | C88: 0.8 | D88: 260
A89: 00K4741B026 | B89: 26 | C89: 0.86 | D89: 280
A90: 00K4741B040 | B90: 40 | C90: 0.9 | D90: 290
A91: 00K4741B060 | B91: 60 | C91: 0.94 | D91: 300
A92: 00K5030B014 | B92: 14 | C92: 0.8
A93: 00K5030B026 | B93: 26 | C93: 0.86
A94: 00K5030B040 | B94: 40 | C94: 0.9
A95: 00K5030B060 | B95: 60 | C95: 0.94
A96: 00K5528B014 | B96: 14 | C96: 0.8 | D96: =D97/C97*C96 -> 158.1395349
A97: 00K5528B026 | B97: 26 | C97: 0.86 | D97: 170
A98: 00K5528B040 | B98: 40 | C98: 0.9 | D98: 180
A99: 00K5528B060 | B99: 60 | C99: 0.94 | D99: 190
A100: 00K6030B014 | B100: 14 | C100: 0.8 | D100: =$D$101/$C$101*C100 -> 130.2325581
A101: 00K6030B026 | B101: 26 | C101: 0.86 | D101: 140
A102: 00K6030B040 | B102: 40 | C102: 0.9 | D102: =$D$101/$C$101*C102 -> 146.5116279
A103: 00K6030B060 | B103: 60 | C103: 0.94 | D103: =$D$101/$C$101*C103 -> 153.0232558
A104: 00K8030B014 | B104: 14 | C104: 0.8 | D104: =$D$105/$C$105*C104 -> 223.255814
A105: 00K8030B026 | B105: 26 | C105: 0.86 | D105: 240
A106: 00K8030B040 | B106: 40 | C106: 0.9 | D106: =$D$105/$C$105*C106 -> 251.1627907
A107: 00K8030B060 | B107: 60 | C107: 0.94 | D107: =$D$105/$C$105*C107 -> 262.3255814
A108: 00X4741B026 | B108: 26 | D108: 328
A109: 00X4741B040 | B109: 40 | D109: 336
A110: 00X5528B026 | B110: 26 | D110: 190
A111: 00X5528B040 | B111: 40 | D111: 196
A112: 00X5030B026 | B112: 26 | D112: 139
A113: 00X5030B040 | B113: 40 | D113: 143
A114: 00X6030B026 | B114: 26 | D114: 165
A115: 00X6030B040 | B115: 40 | D115: 170
A116: 00X8030B026 | B116: 26 | D116: 299
A117: 00X8030B040 | B117: 40 | D117: 307

Sheet Wire Resistivity (hidden)
A1: Type of Wire | C1: Resistivity
A2: Copper | C2: 10.371
A3: Aluminum | C3: 17
A4: Litz
A7: Temperature Coefficient of resistance
A8: Copper | C8: 0.004041
A9: Aluminum | C9: 0.004308

Sheet Powder Core Toroid OD (hidden)
A1: Base Part Number
A2: 140 | B2: 3.56
A3: 150 | B3: 3.94
A4: 180 | B4: 4.65
A5: 20 | B5: 6.35
A6: 240 | B6: 6.6
A7: 270 | B7: 6.6
A8: 410 | B8: 6.86
A9: 30 | B9: 7.87
A10: 280 | B10: 9.65
A11: 290 | B11: 9.65
A12: 40 | B12: 10.2
A13: 130 | B13: 11.2
A14: 50 | B14: 12.7
A15: 120 | B15: 16.6
A16: 380 | B16: 17.3
A17: 206 | B17: 20.3
A18: 310 | B18: 22.9
A19: 350 | B19: 23.6
A20: 930 | B20: 26.9
A21: 548 | B21: 32.8
A22: 585 | B22: 34.3
A23: 324 | B23: 35.8
A24: 254 | B24: 39.9
A25: 438 | B25: 46.7
A26: 89 | B26: 46.7
A27: 715 | B27: 50.8
A28: 195 | B28: 57.2
A29: 109 | B29: 57.2
A30: 620 | B30: 62
A31: 740 | B31: 74.1
A32: 866 | B32: 77.8
A33: 906 | B33: 77.8
A34: 102 | B34: 101.6
A35: 337 | B35: 132.6
A36: 165 | B36: 165.1
A37: 725 | B37: 50.55
A38: 70 | B38: 68
A39: 778 | B39: 77.8

Sheet LI_KM_E (hidden)
B1: Size Code | C1: LI^2 max %ui=0.5min | D1: 90u | E1: 60u | F1: 40u | G1: 26u | H1: Perm, LI^2 max, %ui=0.5 min | I1: %ui limit | J1: P/N, pg
B2: 1808E | C2: 0.3634358358 | D2: 0.3634358358 | E2: 0.2845577978 | F2: 0.2194334724 | G2: 0.1693307756 | H2: 90 | I2: 0.7818149332 | J2: K1808E090, pg 4-???37-2
B3: 2510E | C3: 1.089130222 | D3: 1.089130222 | E3: 0.8873567609 | F3: 0.710139342 | G3: 0.5591307601 | H3: 90 | I3: 0.726970811 | J3: K2510E090, pg 4-???37-3
B4: 3007E | C4: 2.454211294 | D4: 2.454211294 | E4: 2.291830108 | F4: 1.635659067 | G4: 1.247045957 | H4: 90 | I4: 0.6674390875 | J4: K3007E090, pg 4-???37-4
B5: 3515E | C5: 6.163098722 | D5: 6.163098722 | E5: 5.572141625 | F5: 4.699384882 | G5: 3.81046891 | H5: 90 | I5: 0.5739405351 | J5: K3515E090, pg 4-???37-5
B6: 4317E | C6: 12.29442052 | D6: 12.29442052 | E6: 11.07779058 | F6: 9.273525318 | G6: 7.446032642 | H6: 90 | I6: 0.5745510632 | J6: K4317E090, pg 4-???37-9
B7: 4020E | C7: 24.31494715 | D7: 22.43691398 | E7: 24.31494715 | F7: 21.30759923 | G7: 17.68414553 | H7: 60 | I7: 0.6567784533 | J7: K4020E060, pg 4-???37-7
B8: 4017E | C8: 25.00180727 | D8: 15.61278346 | E8: 25.00180727 | F8: 24.2538204 | G8: 21.10325205 | H8: 60 | I8: 0.5348968356 | J8: K4017E060, pg 4-???37-6
B9: 4022E | C9: 29.05425266 | D9: 29.05425266 | E9: 28.61642135 | F9: 24.71046123 | G9: 20.38327201 | H9: 90 | I9: Set to 0.5 | J9: K4022E090, pg 4-???37-8
B10: 5528E | C10: 68.51411434 | D10: 0 | E10: 68.51411434 | F10: 62.63193269 | G10: 53.15485178 | H10: 60 | I10: 0.5955244051 | J10: K5528E060, pg 4-???37-10
B11: 5530E | C11: 77.04764565 | D11: 0 | E11: 77.04764565 | F11: 69.40255786 | G11: 58.3833505 | H11: 60 | I11: 0.6136216812 | J11: K5530E060, pg 4-???37-11
B12: 7228E | C12: 116.0032136 | D12: 0 | E12: 115.6910473 | F12: 116.0032136 | G12: 104.1597437 | H12: 40 | I12: 0.6993283074 | J12: K7228E040, pg 4-???37-13
B13: 6527E | C13: 187.5071198 | D13: 0 | E13: 173.322418 | F13: 187.5071198 | G13: 159.1857622 | H13: 40 | I13: 0.6866821178 | J13: K6527E040, pg 4-???37-12
B14: 8020E | C14: 296.6997623 | D14: 0 | E14: 173.8584778 | F14: 296.6997623 | G14: 282.4323433 | H14: 40 | I14: 0.5468354099 | J14: K8020E040, pg 4-???37-14
B15: 8044E | C15: 574.0073471 | D15: 0 | E15: 0 | F15: 0 | G15: 574.0073471 | H15: 26 | I15: 0.558724228 | J15: K8044E026, pg 4-???37-15
B16: 130LE | C16: 2042.011766 | D16: 0 | E16: 0 | F16: 0 | G16: 2042.011766 | H16: 26 | I16: Set to 0.5 | J16: K130LE026, pg 4-???37-16
B17: 160LE | C17: 2248.713323 | D17: 0 | E17: 0 | F17: 0 | G17: 2248.713323 | H17: 26 | I17: Set to 0.5 | J17: K160LE026, pg 4-???37-17

Sheet LI_MPP (hidden)
B1: Size Code | C1: LI^2 max (%ui=0.5min) | D1: 550u | E1: 300u | F1: 200u | G1: 173u | H1: 160u | I1: 147u | J1: 125u | K1: 60u | L1: 26u | M1: 14u | N1: LI^2 min (%ui=0.5min) | O1: P/N, page | P1: %ui win limit | Q1: %ui limit
B2: 140 | C2: =MAX(D2:M2) -> 0.0004791566832 | D2: 0 | E2: 0.0004791566832 | F2: 0.0003322877761 | G2: 0.0002854619503 | H2: 0.0002616379825 | I2: 0.0002458796992 | J2: 0.0002062279383 | K2: 0 | L2: 0 | M2: 0 | N2: 0.0002072327896 | O2: 55135 (300µ), pg 4-1 | P2: 0.9822141734 | Q2: 0.9822141734
B3: 150 | C3: =MAX(D3:M3) -> 0.0018811111 | D3: 0 | E3: 0.0018811111 | F3: 0.001322981393 | G3: 0.001140402469 | H3: 0.001069095793 | I3: 0.0009752607666 | J3: 0.0008330866912 | K3: 0 | L3: 0 | M3: 0 | N3: 0.0008388492278 | O3: 55145 (300µ), pg 4-2 | P3: 0.9498916403 | Q3: 0.9498916403
B4: 180 | C4: 0.00197204323 | D4: 0 | E4: 0.00197204323 | F4: 0.001383685924 | G4: 0.001181460355 | H4: 0.00109842059 | I4: 0.001016252103 | J4: 0.0008712849332 | K4: 0.0004167808547 | L4: 0 | M4: 0 | N4: 0.0004187318835 | O4: 55175 (300µ), pg 4-3 | P4: 0.9687837558 | Q4: 0.9687837558
B5: 020 | C5: 0.004832132842 | D5: 0.003966981154 | E5: 0.004832132842 | F5: 0.003370939901 | G5: 0.002921118152 | H5: 0.00270922686 | I5: 0.002500019301 | J5: 0.002119609481 | K5: 0.001023309793 | L5: 0.0004267328271 | M5: 0.0002560611897 | N5: 0.0002561477095 | O5: 55015 (300µ), pg 4-4 | P5: 0.9587526451 | Q5: 0.9587526451
B6: 240 | C6: 0.005250207072 | D6: 0.004376513613 | E6: 0.005250207072 | F6: 0.003634418506 | G6: 0.003184467034 | H6: 0.002929476043 | I6: 0.002719861472 | J6: 0.002295911113 | K6: 0.001111846153 | L6: 0.0004707867152 | M6: 0.0002568143104 | N6: 0.0002569010847 | O6: 55235 (300µ), pg 4-5 | P6: 0.9587526451 | Q6: 0.9587526451
B7: 270 | C7: 0.008833892697 | D7: 0.008427501421 | E7: 0.008833892697 | F7: 0.00614011845 | G7: 0.005380370593 | H7: 0.004931483562 | I7: 0.004561616937 | J7: 0.003852425201 | K7: 0.001879500682 | L7: 0.0007899502333 | M7: 0.0004514324017 | N7: 0.0004515382593 | O7: 55265 (300µ), pg 4-6 | P7: 0.9649154484 | Q7: 0.9649154484
B8: 030 | C8: 0.02233671547 | D8: 0.007142705602 | E8: 0.02233671547 | F8: 0.01705701399 | G8: 0.01524091907 | H8: 0.01379465108 | I8: 0.01301420335 | J8: 0.01095660206 | K8: 0.005367731971 | L8: 0.00236899016 | M8: 0.00129258781 | N8: 0.001294410674 | O8: 55025 (300µ), pg 4-8 | P8: 0.8640657425 | Q8: 0.8640657425
B9: 410 | C9: 0.02949985896 | D9: 0 | E9: 0.02949985896 | F9: 0.02328076869 | G9: 0.02013379816 | H9: 0.01889405235 | I9: 0.01729044726 | J9: 0.01501984291 | K9: 0.007246148618 | L9: 0.003085850607 | M9: 0.001764050892 | N9: 0.001766938538 | O9: 55405 (300µ), pg 4-7 | P9: 0.836707875 | Q9: 0.836707875
B10: 280 | C10: 0.0493998643 | D10: 0.01073302592 | E10: 0.0493998643 | F10: 0.03971722612 | G10: 0.03592845929 | H10: 0.03311659997 | I10: 0.03092965815 | J10: 0.02623479395 | K10: 0.01277254226 | L10: 0.00565036368 | M10: 0.003083789015 | N10: 0.00308999106 | O10: 55275 (300µ), pg 4-9 | P10: 0.7858066803 | Q10: 0.7858066803
B11: 290 | C11: 0.06136389393 | D11: 0.0134162824 | E11: 0.06136389393 | F11: 0.04964653265 | G11: 0.04466781425 | H11: 0.04090874114 | I11: 0.03829386248 | J11: 0.03266974341 | K11: 0.01634885409 | L11: 0.007191371956 | M11: 0.003597753851 | N11: 0.00360498957 | O11: 55285 (300µ), pg 4-10 | P11: 0.7858066803 | Q11: 0.7858066803
B12: 040 | C12: 0.07770508141 | D12: 0.01493395629 | E12: 0.07770508141 | F12: 0.06506928886 | G12: 0.05887593081 | H12: 0.0539899292 | I12: 0.05064892729 | J12: 0.04332642479 | K12: 0.02183299508 | L12: 0.009616587015 | M12: 0.004811768311 | N12: 0.004822649611 | O12: 55035 (300µ), pg 4-11 | P12: 0.7477453585 | Q12: 0.7477453585
B13: 130 | C13: 0.1279882676 | D13: 0 | E13: 0.127878393 | F13: 0.1279882676 | G13: 0.1188078371 | H13: 0.1107244323 | I13: 0.1051353148 | J13: 0.09113998393 | K13: 0.0485037733 | L13: 0.02084633092 | M13: 0.01139041874 | N13: 0.0114277173 | O13: 55125 (300µ), pg 4-12 | P13: 0.5600704657 | Q13: 0.5600704657
B14: 050 | C14: 0.2372262757 | D14: 0.02416409723 | E14: 0.2059484055 | F14: 0.2372262757 | G14: 0.2276102682 | H14: 0.2125834166 | I14: 0.2055086228 | J14: 0.1804866148 | K14: 0.09816347977 | L14: 0.04472566229 | M14: 0.02242502607 | N14: 0.02251061365 | O14: 55047 (200µ), pg 4-13 | P14: 0.7231781873 | Q14: 0.7231781873
B15: 120 | C15: 0.807900619 | D15: 0.05238113449 | E15: 0.4636443615 | F15: 0.807900619 | G15: 0.7834516931 | H15: 0.7332557738 | I15: 0.7568275509 | J15: 0.6913450459 | K15: 0.4246337608 | L15: 0.1924436199 | M15: 0.103304719 | N15: 0.05238113449 | O15: 55117 (200µ), pg 4-14 | P15: 0.5304038717 | Q15: 0.5304038717
B16: 380 | C16: 0.7639563002 | D16: 0 | E16: 0.5791071179 | F16: 0.7639563002 | G16: 0.736860848 | H16: 0.706552297 | I16: 0.6840304631 | J16: 0.6201740132 | K16: 0.3496906793 | L16: 0.1597666633 | M16: 0.08440643681 | N16: 0.08475593311 | O16: 55377 (200µ), pg 4-15 | P16: 0.6601885723 | Q16: 0.6601885723
B17: 206 | C17: 1.391247654 | D17: 0.08070617207 | E17: 0.6667570501 | F17: 1.168766435 | G17: 1.20996727 | H17: 1.303848489 | I17: 1.381194617 | J17: 1.391247654 | K17: 0.9453701903 | L17: 0.4579611438 | M17: 0.2649403779 | N17: 0.08070617207 | O17: 55206 (125µ), pg 4-16 | P17: 0.636147015 | Q17: 0.636147015
B18: 310 | C18: 2.55274169 | D18: 0.1239317293 | E18: 1.096388108 | F18: 1.915994589 | G18: 1.939343004 | H18: 2.138633024 | I18: 2.298001959 | J18: 2.55274169 | K18: 1.879135613 | L18: 0.9442695136 | M18: 0.5049544709 | N18: 0.1239317293 | O18: 55310 (125µ), pg 4-17 | P18: 0.575647263 | Q18: 0.575647263
B19: 350 | C19: 3.26713842 | D19: 0 | E19: 1.381082495 | F19: 2.418282456 | G19: 2.455694473 | H19: 2.699981145 | I19: 2.891044316 | J19: 3.26713842 | K19: 2.477496354 | L19: 1.222520724 | M19: 0.6780656117 | N19: 0.6811744611 | O19: 55350 (125µ), pg 4-18 | P19: 0.5634394869 | Q19: 0.5634394869
B20: 930 | C20: 5.52820886 | D20: 0.2904693925 | E20: 2.400121615 | F20: 4.188773145 | G20: 4.256709467 | H20: 4.688304584 | I20: 5.030342903 | J20: 5.52820886 | K20: 4.041980343 | L20: 1.955628357 | M20: 1.11724615 | N20: 0.2904693925 | O20: 55930 (125µ), pg 4-19 | P20: 0.5817825585 | Q20: 0.5817825585
B21: 548 | C21: 9.592177387 | D21: 0.3605635522 | E21: 3.190752341 | F21: 5.566862778 | G21: 5.67320272 | H21: 6.247535388 | I21: 6.702216929 | J21: 8.397802245 | K21: 9.592177387 | L21: 5.845076194 | M21: 3.039575405 | N21: 0.3605635522 | O21: 55071 (60µ), pg 4-20 | P21: 0.7685955651 | Q21: 0.7685955651
B22: 585 | C22: 9.339866749 | D22: 0.2713604312 | E22: 2.402946596 | F22: 4.177171288 | G22: 4.247558739 | H22: 4.679934287 | I22: 5.023511847 | J22: 6.315187867 | K22: 9.339866749 | L22: 6.052222802 | M22: 3.637872711 | N22: 0.2713604312 | O22: 55586 (60µ), pg 4-21 | P22: 0.6597966735 | Q22: 0.6597966735
B23: 324 | C23: 12.42600091 | D23: 0.4042789308 | E23: 3.577696043 | F23: 6.241082857 | G23: 6.355277415 | H23: 6.997070392 | I23: 7.50429972 | J23: 9.415679081 | K23: 12.42600091 | L23: 7.618675599 | M23: 4.34847012 | N23: 0.4042789308 | O23: 55076 (60µ), pg 4-22 | P23: 0.712746005 | Q23: 0.712746005
B24: 254 | C24: 23.29346532 | D24: 0.6974982505 | E24: 6.1608366 | F24: 10.77973651 | G24: 10.97521263 | H24: 12.04206501 | I24: 12.92807309 | J24: 16.23351592 | K24: 23.29346532 | L24: 15.12458326 | M24: 8.732248995 | N24: 0.6974982505 | O24: 55083 (60µ), pg 4-23 | P24: 0.6769626019 | Q24: 0.6769626019
B25: 438 | C25: 41.91914489 | D25: 0 | E25: 12.2747571 | F25: 21.4825952 | G25: 21.88466962 | H25: 24.02057361 | I25: 25.66852505 | J25: 32.34655213 | K25: 41.91914489 | L25: 25.88118173 | M25: 14.75751535 | N25: 12.2747571 | O25: 55439 (60µ), pg 4-24 | P25: 0.722028397 | Q25: 0.722028397
B26: 089 | C26: 49.68383824 | D26: 0 | E26: 9.118675307 | F26: 15.9540136 | G26: 16.18681344 | H26: 17.83883905 | I26: 19.15389648 | J26: 24.02661252 | K26: 49.68383824 | L26: 31.31190786 | M26: 18.63779166 | N26: 9.118675307 | O26: 55090 (60µ), pg 4-25 | P26: 0.5640274872 | Q26: 0.5640274872
B27: 715 | C27: 50.5285605 | D27: 0 | E27: 9.338865468 | F27: 16.29779119 | G27: 16.55552384 | H27: 18.27947546 | I27: 19.56087374 | J27: 24.58179021 | K27: 50.5285605 | L27: 39.3223549 | M27: 23.67682938 | N27: 9.338865468 | O27: 55716 (60µ), pg 4-26 | P27: 0.4888207536 | Q27: Set to 0.5
B28: 195 | C28: 60.28163098 | D28: 0 | E28: 0 | F28: 26.96632407 | G28: 27.36461559 | H28: 30.097926 | I28: 32.24184339 | J28: 44.75226652 | K28: 60.28163098 | L28: 37.85420477 | M28: 21.31075636 | N28: 21.34708543 | O28: 55192 (60µ), pg 4-27 | P28: 0.7057663599 | Q28: 0.7057663599
B29: 725 | C29: 60.80059482 | D29: 0 | E29: 0 | F29: 0 | G29: 0 | H29: 0 | I29: 0 | J29: 0 | K29: 60.80059482 | L29: 0 | M29: 0 | N29: 12.07502739 | O29: 55111 (26µ), pg 4-28 | P29: 0.813733462 | Q29: 0.813733462
B30: 109 | C30: 65.50743533 | D30: 0 | E30: 12.07502739 | F30: 21.15815294 | G30: 21.68679596 | H30: 23.65780137 | I30: 25.51069056 | J30: 31.83536152 | K30: 65.50743533 | L30: 65.26866557 | M30: 42.47432554 | N30: 68.03230911 | O30: 55617 (60µ), pg 4-29 | P30: 0.5369756433 | Q30: 0.5369756433
B31: 620 | C31: 167.3956033 | D31: 0 | E31: 0 | F31: 0 | G31: 0 | H31: 0 | I31: 0 | J31: 81.53316827 | K31: 167.3956033 | L31: 114.2661702 | M31: 68.17991574 | N31: 56.40105883 | O31: 55868 (26µ), pg 4-31 | P31: 0.6946660525 | Q31: 0.6946660525
B32: 866 | C32: 166.1165423 | D32: 0 | E32: 0 | F32: 0 | G32: 0 | H32: 0 | I32: 0 | J32: 56.40105883 | K32: 115.5984394 | L32: 166.1165423 | M32: 120.5846251 | N32: 71.05474847 | O32: 55908 (26µ), pg 4-32 | P32: 0.6957297057 | Q32: 0.6957297057
B33: 906 | C33: 205.4031543 | D33: 0 | E33: 0 | F33: 0 | G33: 0 | H33: 0 | I33: 0 | J33: 71.05474847 | K33: 145.2232579 | L33: 205.4031543 | M33: 150.9303059 | N33: 143.5944613 | O33: 55735 (26µ), pg 4-30 | P33: 0.7286602675 | Q33: 0.7286602675
B34: 778 | C34: 253.051527 | D34: 0 | E34: 0 | F34: 0 | G34: 0 | H34: 0 | I34: 0 | J34: 122.5744309 | K34: 253.051527 | L34: 239.9447256 | M34: 151.9466754 | N34: 136.7142061 | O34: 55102 (26µ), pg 4-33 | P34: 0.6294052538 | Q34: 0.6294052538
B35: 740 | C35: 381.1400223 | D35: 0 | E35: 0 | F35: 0 | G35: 0 | H35: 0 | I35: 0 | J35: 143.5944613 | K35: 295.0007173 | L35: 381.1400223 | M35: 272.0968019 | N35: 344.6664659 | O35: 55336 (14µ), pg 4-34 | P35: 0.7474555741 | Q35: 0.7474555741
B36: 102 | C36: 449.481677 | D36: 0 | E36: 0 | F36: 0 | G36: 0 | H36: 0 | I36: 0 | J36: 136.7142061 | K36: 279.9579369 | L36: 449.481677 | M36: 358.3179554 | N36: 636.9354039 | O36: 55164 (14µ), pg 4-35 | P36: 0.5899506842 | Q36: 0.5899506842
B37: 337 | C37: 1566.208097 | D37: 0 | E37: 0 | F37: 0 | G37: 0 | H37: 0 | I37: 268.9998443 | J37: 344.6664659 | K37: 708.4421067 | L37: 1441.436374 | M37: 1566.208097
B38: 165 | C38: 4013.961644 | D38: 0 | E38: 0 | F38: 0 | G38: 0 | H38: 0 | I38: 0 | J38: 636.9354039 | K38: 1305.041119 | L38: 2673.533182 | M38: 4013.961644

Sheet PN_MPP (hidden)
B1: Size Code | D1: 550u | E1: 300u | F1: 200u | G1: 173u | H1: 160u | I1: 147u | J1: 125u | K1: 60u | L1: 26u | M1: 14u
B2: 140, pg 4-1 | E2: 55135 | F2: 55137 | G2: 55134 | H2: 55138 | I2: 55139 | J2: 55140
B3: 150, pg 4-2 | E3: 55145 | F3: 55147 | G3: 55144 | H3: 55148 | I3: 55149 | J3: 55150
B4: 180, pg 4-3 | E4: 55175 | F4: 55177 | G4: 55174 | H4: 55178 | I4: 55179 | J4: 55180 | K4: 55181
B5: 020, pg 4-4 | D5: 55016 | E5: 55015 | F5: 55017 | G5: 55014 | H5: 55018 | I5: 55019 | J5: 55020 | K5: 55021 | L5: 55022 | M5: 55023
B6: 240, pg 4-5 | D6: 55236 | E6: 55235 | F6: 55237 | G6: 55234 | H6: 55238 | I6: 55239 | J6: 55240 | K6: 55241 | L6: 55242 | M6: 55243
B7: 270, pg 4-6 | D7: 55266 | E7: 55265 | F7: 55267 | G7: 55264 | H7: 55268 | I7: 55269 | J7: 55270 | K7: 55271 | L7: 55272 | M7: 55273
B8: 030, pg 4-8 | D8: 55026 | E8: 55025 | F8: 55027 | G8: 55024 | H8: 55028 | I8: 55029 | J8: 55030 | K8: 55031 | L8: 55032 | M8: 55033
B9: 410, pg 4-7 | E9: 55405 | F9: 55407 | G9: 55404 | H9: 55408 | I9: 55409 | J9: 55410 | K9: 55411 | L9: 55412 | M9: 55413
B10: 280, pg 4-9 | D10: 55276 | E10: 55275 | F10: 55277 | G10: 55274 | H10: 55278 | I10: 55279 | J10: 55280 | K10: 55281 | L10: 55282 | M10: 55283
B11: 290, pg 4-10 | D11: 55286 | E11: 55285 | F11: 55287 | G11: 55284 | H11: 55288 | I11: 55289 | J11: 55290 | K11: 55291 | L11: 55292 | M11: 55293
B12: 040, pg 4-11 | D12: 55036 | E12: 55035 | F12: 55037 | G12: 55034 | H12: 55038 | I12: 55039 | J12: 55040 | K12: 55041 | L12: 55042 | M12: 55043
B13: 130, pg 4-12 | E13: 55125 | F13: 55127 | G13: 55124 | H13: 55128 | I13: 55129 | J13: 55130 | K13: 55131 | L13: 55132 | M13: 55133
B14: 050, pg 4-13 | D14: 55046 | E14: 55045 | F14: 55047 | G14: 55044 | H14: 55048 | I14: 55049 | J14: 55050 | K14: 55051 | L14: 55052 | M14: 55053
B15: 120, pg 4-14 | D15: 55116 | E15: 55115 | F15: 55117 | G15: 55114 | H15: 55118 | I15: 55119 | J15: 55120 | K15: 55121 | L15: 55122 | M15: 55123
B16: 380, pg 4-15 | E16: 55375 | F16: 55377 | G16: 55374 | H16: 55378 | I16: 55379 | J16: 55380 | K16: 55381 | L16: 55382 | M16: 55383
B17: 206, pg 4-16 | D17: 55202 | E17: 55201 | F17: 55203 | G17: 55200 | H17: 55204 | I17: 55205 | J17: 55206 | K17: 55848 | L17: 55208 | M17: 55209
B18: 310, pg 4-17 | D18: 55306 | E18: 55305 | F18: 55307 | G18: 55304 | H18: 55308 | I18: 55309 | J18: 55310 | K18: 55059 | L18: 55312 | M18: 55313
B19: 350, pg 4-18 | E19: 55345 | F19: 55347 | G19: 55344 | H19: 55348 | I19: 55349 | J19: 55350 | K19: 55351 | L19: 55352 | M19: 55353
B20: 930, pg 4-19 | D20: 55926 | E20: 55925 | F20: 55927 | G20: 55924 | H20: 55928 | I20: 55929 | J20: 55930 | K20: 55894 | L20: 55932 | M20: 55933
B21: 548, pg 4-20 | D21: 55544 | E21: 55543 | F21: 55545 | G21: 55542 | H21: 55546 | I21: 55547 | J21: 55548 | K21: 55071 | L21: 55550 | M21: 55551
B22: 585, pg 4-21 | D22: 55581 | E22: 55580 | F22: 55582 | G22: 55579 | H22: 55583 | I22: 55584 | J22: 55585 | K22: 55586 | L22: 55587 | M22: 55588
B23: 324, pg 4-22 | D23: 55320 | E23: 55319 | F23: 55321 | G23: 55318 | H23: 55322 | I23: 55323 | J23: 55324 | K23: 55076 | L23: 55326 | M23: 55327
B24: 254, pg 4-23 | D24: 55250 | E24: 55249 | F24: 55251 | G24: 55248 | H24: 55252 | I24: 55253 | J24: 55254 | K24: 55083 | L24: 55256 | M24: 55257
B25: 438, pg 4-24 | E25: 55433 | F25: 55435 | G25: 55432 | H25: 55436 | I25: 55437 | J25: 55438 | K25: 55439 | L25: 55440 | M25: 55441
B26: 089, pg 4-25 | E26: 55084 | F26: 55086 | G26: 55082 | H26: 55087 | I26: 55088 | J26: 55089 | K26: 55090 | L26: 55091 | M26: 55092
B27: 715, pg 4-26 | E27: 55710 | F27: 55712 | G27: 55709 | H27: 55713 | I27: 55714 | J27: 55715 | K27: 55716 | L27: 55717 | M27: 55718
B28: 195, pg 4-27 | F28: 55199 | G28: 55198 | H28: 55197 | I28: 55196 | J28: 55195 | K28: 55192 | L28: 55191 | M28: 55190
B29: 725, | J29: 55725 | K29: 55726 | L29: 55727 | M29: 55728
B30: 109, pg 4-28 | E30: 55104 | F30: 55106 | G30: 55103 | H30: 55107 | I30: 55108 | J30: 55109 | K30: 55110 | L30: 55111 | M30: 55112
B31: 620, pg 4-29 | J31: 55620 | K31: 55617 | L31: 55615 | M31: 55614
B32: 866, pg 4-31 | J32: 55866 | K32: 55867 | L32: 55868 | M32: 55869
B33: 906, pg 4-32 | J33: 55906 | K33: 55907 | L33: 55908 | M33: 55909
B34: 777, | J34: 55778 | K34: 55777 | L34: 55775 | M34: 55774
B35: 740, pg 4-30 | J35: 55740 | K35: 55737 | L35: 55735 | M35: 55734
B36: 102, pg 4-33 | J36: 55098 | K36: 55099 | L36: 55102 | M36: 55101
B37: 337, pg 4-34 | J37: 55340 | K37: 55339 | L37: 55337 | M37: 55336
B38: 165, pg 4-35 | K38: 55167 | L38: 55165 | M38: 55164

Sheet LI_HF (hidden)
A1: Catalog page | B1: Size Code | C1: LI^2 max (%ui=0.5min) | D1: 550 | E1: 300 | F1: 200 | G1: 173 | H1: 160u | I1: 147u | J1: 125u | K1: 60u | L1: 40u | M1: 26u | N1: 14u
A2: 1 | B2: 140 | C2: 0 | D2: 0 | E2: 0 | F2: 0 | G2: 0 | H2: 0 | I2: 0 | J2: 0 | K2: 0 | M2: 0 | N2: 0
A3: 2 | B3: 150 | C3: 0 | D3: 0 | E3: 0 | F3: 0 | G3: 0 | H3: 0 | I3: 0 | J3: 0 | K3: 0 | M3: 0 | N3: 0
A4: 3 | B4: 180 | C4: 0 | D4: 0 | E4: 0 | F4: 0 | G4: 0 | H4: 0 | I4: 0 | J4: 0 | K4: 0 | M4: 0 | N4: 0
A5: 4 | B5: 20 | C5: 0.003362156921 | D5: 0 | E5: 0 | F5: 0 | G5: 0 | H5: 0.002736224295 | I5: 0.00250313524 | J5: 0.003362156921 | K5: 0.001625470512 | M5: 0.0006775251737 | N5: 0.0004064846951
A6: 5 | B6: 240 | C6: 0.003641809262 | D6: 0 | E6: 0 | F6: 0 | G6: 0 | H6: 0.00295866826 | I6: 0.002723251416 | J6: 0.003641809262 | K6: 0.00176610558 | M6: 0.0007474696831 | N6: 0.0004076802377
A7: 6 | B7: 270 | C7: 0.006112034677 | D7: 0 | E7: 0 | F7: 0 | G7: 0 | H7: 0.004977565615 | I7: 0.004566253042 | J7: 0.006112034677 | K7: 0.002985241727 | M7: 0.001254194318 | N7: 0.0007166344437
A8: 8 | B8: 030 | C8: 0.02365938533 | D8: 0 | E8: 0 | F8: 0 | G8: 0 | H8: 0.01406938481 | I8: 0.01310899661 | J8: 0.02365938533 | K8: 0.01153406774 | M8: 0.004900675681 | N8: 0.002799800077
A9: 7 | B9: 410 | C9: 0.01933498507 | D9: 0 | E9: 0 | F9: 0 | G9: 0 | H9: 0.01933498507 | I9: 0.01746024682 | J9: 0.01729341979 | K9: 0.008539425648 | M9: 0.003761965661 | N9: 0.002051610283
A10: 9 | B10: 280 | C10: 0.04114556297 | D10: 0 | E10: 0 | F10: 0 | G10: 0 | H10: 0.03412948674 | I10: 0.03140791639 | J10: 0.04114556297 | K10: 0.02035404755 | M10: 0.008974693275 | N10: 0.004894008782
A11: 10 | B11: 290 | C11: 0.05123787087 | D11: 0 | E11: 0 | F11: 0 | G11: 0 | H11: 0.0421599542 | I11: 0.03888599172 | J11: 0.05123787087 | K11: 0.02605318086 | M11: 0.0114223369 | N11: 0.005709676912
A12: 11 | B12: 040 | C12: 0.06769250464 | D12: 0 | E12: 0 | F12: 0 | G12: 0 | H12: 0.05597865173 | I12: 0.05168674141 | J12: 0.06769250464 | K12: 0.03482654399 | M12: 0.01527626803 | N12: 0.007635847287
A13: 12 | B13: 130 | C13: 0.1386374768 | D13: 0 | E13: 0 | F13: 0 | G13: 0 | H13: 0.1196651325 | I13: 0.1111494282 | J13: 0.1386374768 | K13: 0.07788731687 | M13: 0.03314312475 | N13: 0.01806928869
A14: 13 | B14: 050 | C14: 0.2672499782 | D14: 0 | E14: 0 | F14: 0 | G14: 0 | H14: 0.2394589407 | I14: 0.2252993917 | J14: 0.2672499782 | K14: 0.1587189625 | M14: 0.07117169479 | N14: 0.03556419481
A15: 14 | B15: 120 | C15: 0.9429936234 | D15: 0 | E15: 0 | F15: 0 | G15: 0 | H15: 0.9358578795 | I15: 0.9293966477 | J15: 0.9429936234 | K15: 0.7031738871 | M15: 0.3072164722 | N15: 0.1637161085
A16: 15 | B16: 380 | C16: 0.8962254741 | D16: 0 | E16: 0 | F16: 0 | G16: 0 | H16: 0.8260759416 | I16: 0.7752476413 | J16: 0.8962254741 | K16: 0.5691265621 | M16: 0.2544550723 | N16: 0.1338312634
A17: 16 | B17: 206 | C17: 1.941834059 | D17: 0 | E17: 0 | F17: 0 | G17: 0 | H17: 1.941834059 | I17: 1.940701578 | J17: 1.706769963 | K17: 1.622760929 | L17: 1.087687821 | M17: 0.734838942 | N17: 0.4195704766
A18: 17 | B18: 310 | C18: 3.624097006 | D18: 0 | E18: 0 | F18: 0 | G18: 0 | H18: 3.601991579 | I18: 3.624097006 | J18: 2.803103548 | K18: 3.294017847 | L18: 2.280796962 | M18: 1.51994928 | N18: 0.7994142475
A19: 18 | B19: 350 | C19: 4.677332051 | D19: 0 | E19: 0 | F19: 0 | G19: 0 | H19: 4.649154219 | I19: 4.677332051 | J19: 3.51701698 | K19: 4.362920274 | L19: 2.989567012 | M19: 1.969229992 | N19: 1.073407941
A20: 19 | B20: 930 | C20: 7.829536426 | D20: 0 | E20: 0 | F20: 0 | G20: 0 | H20: 7.806505364 | I20: 7.829536426 | J20: 6.133065697 | K20: 7.069352116 | L20: 4.835903664 | M20: 3.146801054 | N20: 1.768813459
A21: 20 | B21: 585 | C21: 18.99235648 | D21: 0 | E21: 0 | F21: 0 | G21: 0 | H21: 9.592718037 | I21: 11.03850273 | J21: 8.152354278 | K21: 18.99235648 | L21: 13.50726079 | M21: 9.606848616 | N21: 4.807657578
A22: 21 | B22: 548 | C22: 20.75797234 | D22: 0 | E22: 0 | F22: 0 | G22: 0 | H22: 12.80591601 | I22: 14.72723508 | J22: 6.13060981 | K22: 20.75797234 | L22: 14.89176154 | M22: 10.19370011 | N22: 5.755294889
A23: 22 | B23: 324 | C23: 26.08865205 | D23: 0 | E23: 0 | F23: 0 | G23: 0 | H23: 14.34227902 | I23: 16.48970591 | J23: 9.140480973 | K23: 26.08865205 | L23: 18.51500988 | M23: 12.6702375 | N23: 6.877838779
A24: 23 | B24: 254 | C24: 50.81695684 | D24: 0 | E24: 0 | F24: 0 | G24: 0 | H24: 24.68328124 | I24: 28.40773039 | J24: 15.75904851 | K24: 50.81695684 | L24: 36.7587307 | M24: 25.36520991 | N24: 13.81337713
A25: 24 | B25: 89 | C25: 87.1470875 | D25: 0 | E25: 0 | F25: 0 | G25: 0 | H25: 0 | I25: 0 | J25: 31.40113865 | K25: 87.1470875 | L25: 39.42226381 | M25: 42.95280718 | N25: 23.34112078
A26: 25 | B26: 438 | C26: 119.7425671 | D26: 0 | E26: 0 | F26: 0 | G26: 0 | H26: 0 | I26: 56.40318817 | J26: 23.32437126 | K26: 101.8831376 | L26: 119.7425671 | M26: 54.20074499 | N26: 29.52053771
A27: 26 | B27: 715 | C27: 122.2978404 | D27: 0 | E27: 0 | F27: 0 | G27: 0 | H27: 0 | I27: 42.98243239 | J27: 23.86332242 | K27: 122.2978404 | L27: 94.56468622 | M27: 69.88749027 | N27: 37.56876174
A28: 27 | B28: 725 | C28: 126.5038457 | J28: 45.67760476 | K28: 126.5038457 | L28: 90.63400545 | M28: 61.98297848 | N28: 33.50296817
A29: 28 | B29: 195 | C29: 127.5072204 | D29: 0 | E29: 0 | F29: 0 | G29: 0 | H29: 0 | I29: 0 | J29: 43.44426325 | K29: 127.5072204 | L29: 91.48388989 | M29: 63.05325664 | N29: 33.70713222
A30: 29 | B30: 109 | C30: 194.1577887 | D30: 0 | E30: 0 | F30: 0 | G30: 0 | H30: 0 | I30: 0 | J30: 30.90488893 | K30: 194.1577887 | L30: 155.1679768 | M30: 121.6036533 | N30: 67.69379505
A31: 30 | B31: 620 | C31: 365.2797299 | D31: 0 | E31: 0 | F31: 0 | G31: 0 | H31: 0 | I31: 0 | J31: 79.15014593 | K31: 365.2797299 | L31: 275.9285 | M31: 199.5680073 | N31: 108.0489178
A32: 31 | B32: 70 | C32: 376.6584128 | J32: 75.45695607 | K32: 376.6584128 | L32: 304.4956299 | M32: 224.8788374 | N32: 122.6076894
A33: 32 | B33: 866 | C33: 455.3604511 | D33: 0 | E33: 0 | F33: 0 | G33: 0 | H33: 0 | I33: 0 | J33: 54.75258881 | K33: 455.3604511 | L33: 391.487099 | M33: 349.6466865 | N33: 195.5640139
A34: 33 | B34: 906 | C34: 571.0121821 | D34: 0 | E34: 0 | F34: 0 | G34: 0 | H34: 0 | I34: 0 | J34: 68.97798564 | K34: 571.0121821 | L34: 497.1414679 | M34: 431.8395524 | N34: 244.7289007
A35: 34 | B35: 778 | C35: 734.9715184 | J35: 118.9918692 | K35: 734.9715184 | L35: 577.602446 | M35: 131.3280702 | N35: 242.0180525
A36: 35 | B36: 740 | C36: 1090.555147 | D36: 0 | E36: 0 | F36: 0 | G36: 0 | H36: 0 | I36: 0 | J36: 139.3975337 | K36: 1090.555147 | L36: 924.6825753 | M36: 773.5999405 | N36: 438.6249346
A37: 36 | B37: 102 | C37: 1115.231698 | D37: 0 | E37: 0 | F37: 0 | G37: 0 | H37: 0 | I37: 0 | J37: 132.7183721 | K37: 1115.231698 | L37: 1091.477951 | M37: 1017.525072 | N37: 589.4857646
A38: 37 | B38: 337 | C38: 4353.180806 | D38: 0 | E38: 0 | F38: 0 | G38: 0 | H38: 0 | I38: 0 | J38: 334.5926775 | K38: 2822.127861 | L38: 3194.380303 | M38: 4353.180806 | N38: 2802.194968
A39: 38 | B39: 165 | C39: 11183.09647 | D39: 0 | E39: 0 | F39: 0 | G39: 0 | H39: 0 | I39: 0 | J39: 618.3192833 | K39: 5198.721064 | M39: 11183.09647 | N39: 8267.997005

Sheet PN_HF (hidden)
A1: Catalog page | B1: Size Code | D1: 550 | E1: 300 | F1: 200 | G1: 173 | H1: 160u | I1: 147u | J1: 125u | K1: 60u | L1: 40u | M1: 26u | N1: 14u
A2: 1 | B2: 140
A3: 2 | B3: 150
A4: 3 | B4: 180
A5: 4 | B5: 020 | H5: 58018 | I5: 58019 | J5: 58020 | K5: 58021 | M5: 58022 | N5: 58023
A6: 5 | B6: 240 | H6: 58238 | I6: 58239 | J6: 58240 | K6: 58241 | M6: 58242 | N6: 58243
A7: 6 | B7: 270 | H7: 58268 | I7: 58269 | J7: 58270 | K7: 58271 | M7: 58272 | N7: 58273
A8: 7 | B8: 410 | H8: 58408 | I8: 58409 | J8: 58410 | K8: 58411 | M8: 58412 | N8: 58413
A9: 8 | B9: 030 | H9: 58028 | I9: 58029 | J9: 58030 | K9: 58031 | M9: 58032 | N9: 58033
A10: 9 | B10: 280 | H10: 58278 | I10: 58279 | J10: 58280 | K10: 58281 | M10: 58282 | N10: 58283
A11: 10 | B11: 290 | H11: 58288 | I11: 58289 | J11: 58290 | K11: 58291 | M11: 58292 | N11: 58293
A12: 11 | B12: 040 | H12: 58038 | I12: 58039 | J12: 58040 | K12: 58041 | M12: 58042 | N12: 58043
A13: 12 | B13: 130 | H13: 58128 | I13: 58129 | J13: 58130 | K13: 58131 | M13: 58132 | N13: 58133
A14: 13 | B14: 050 | H14: 58048 | I14: 58049 | J14: 58050 | K14: 58051 | M14: 58052 | N14: 58053
A15: 14 | B15: 120 | H15: 58118 | I15: 58119 | J15: 58120 | K15: 58121 | M15: 58122 | N15: 58123
A16: 15 | B16: 380 | H16: 58378 | I16: 58379 | J16: 58380 | K16: 58381 | M16: 58382 | N16: 58383
A17: 16 | B17: 206 | H17: 58204 | I17: 58205 | J17: 58206 | K17: 58848 | L17: 58847 | M17: 58208 | N17: 58209
A18: 17 | B18: 310 | H18: 58308 | I18: 58309 | J18: 58310 | K18: 58059 | L18: 58316 | M18: 58312 | N18: 58313
A19: 18 | B19: 350 | H19: 58348 | I19: 58349 | J19: 58350 | K19: 58351 | L19: 58356 | M19: 58352 | N19: 58353
A20: 19 | B20: 930 | H20: 58928 | I20: 58929 | J20: 58930 | K20: 58894 | L20: 58936 | M20: 58932 | N20: 58933
A21: 21 | B21: 585 | H21: 58583 | I21: 58584 | J21: 58585 | K21: 58586 | L21: 58591 | M21: 58587 | N21: 58588
A22: 20 | B22: 548 | H22: 58546 | I22: 58547 | J22: 58548 | K22: 58071 | L22: 58555 | M22: 58550 | N22: 58551
A23: 22 | B23: 324 | H23: 58322 | I23: 58323 | J23: 58324 | K23: 58076 | L23: 58330 | M23: 58326 | N23: 58327
A24: 23 | B24: 254 | H24: 58252 | I24: 58253 | J24: 58254 | K24: 58083 | L24: 58260 | M24: 58256 | N24: 58257
A25: 25 | B25: 089 | H25: 58087 | I25: N/A | J25: 58089 | K25: 58090 | L25: 58091 | M25: 58091 | N25: 58092
A26: 24 | B26: 438 | H26: 58436 | I26: 58437 | J26: 58438 | K26: 58439 | L26: 58431 | M26: 58440 | N26: 58441
A27: 27 | B27: 715 | H27: 58713 | I27: 58714 | J27: 58715 | K27: 58716 | L27: 58721 | M27: 58717 | N27: 58718
A28: 26 | B28: 725 | J28: 58725 | K28: 58726 | L28: 58733 | M28: 58727 | N28: 58728
A29: 28 | B29: 195 | H29: 58197 | J29: 58195 | K29: 58192 | L29: 58189 | M29: 58191 | N29: 58190
A30: 29 | B30: 109 | H30: 58107 | J30: 58109 | K30: 58110 | L30: 58212 | M30: 58111 | N30: 58112
A31: 30 | B31: 620 | J31: 58620 | K31: 58617 | L31: 58616 | M31: 58615 | N31: 58614
A32: 35 | B32: 070 | J32: 58070 | K32: 58072 | L32: 58073 | M32: 58074 | N32: 58075
A33: 33 | B33: 866 | J33: 58866 | K33: 58867 | L33: 58872 | M33: 58868 | N33: 58869
A34: 34 | B34: 906 | J34: 58906 | K34: 58907 | L34: 58912 | M34: 58908 | N34: 58909
A35: 31 | B35: 778 | J35: 58778 | K35: 58777 | L35: 58776 | M35: 58775 | N35: 58774
A36: 32 | B36: 740 | J36: 58740 | K36: 58737 | L36: 58736 | M36: 58735 | N36: 58734
A37: 36 | B37: 102 | J37: 58098 | K37: 58099 | L37: 58100 | M37: 58102 | N37: 58101
A38: 37 | B38: 337 | J38: 58340 | K38: 58339 | L38: 58338 | M38: 58337 | N38: 58336
A39: 38 | B39: 165 | J39: 58168 | K39: 58167 | M39: 58165 | N39: 58164

Sheet LI_KM (hidden)
B1: Size Code | C1: LI^2 max %ui=0.5min | D1: 173 | E1: 160 | F1: 147 | G1: 125u | H1: 90u | I1: 75u | J1: 60u | K1: 40u | L1: 26u | M1: 14u
B2: 140 | C2: =MAX(G2:M2) -> 0.0003159257293 | D2: 0 | E2: 0 | F2: 0 | G2: 0.0003159257293 | H2: 0.0002355559648 | I2: 0.0002000911167 | J2: 0.0001634826892 | K2: 0 | L2: 0 | M2: 0
B3: 150 | C3: 0.001244953522 | D3: 0 | E3: 0 | F3: 0 | G3: 0.001244953522 | H3: 0.0009198202949 | I3: 0.0007843872629 | J3: 0.0006416128761 | K3: 0 | L3: 0 | M3: 0
B4: 180 | C4: 0.001319614431 | D4: 0 | E4: 0 | F4: 0 | G4: 0.001319614431 | H4: 0.000967783888 | I4: 0.0008158813274 | J4: 0.0006577580467 | K4: 0 | L4: 0 | M4: 0
B5: 020 | C5: 0.003186646818 | D5: 0 | E5: 0 | F5: 0 | G5: 0.003186646818 | H5: 0.002365362165 | I5: 0.001997921216 | J5: 0.001613055762 | K5: 0 | L5: 0 | M5: 0
B6: 240 | C6: 0.003451700848 | D6: 0 | E6: 0 | F6: 0 | G6: 0.003451700848 | H6: 0.002570012367 | I6: 0.002137383949 | J6: 0.001752616711 | K6: 0 | L6: 0 | M6: 0
B7: 270 | C7: 0.00581763617 | D7: 0 | E7: 0 | F7: 0 | G7: 0.00581763617 | H7: 0.004298370563 | I7: 0.003646052164 | J7: 0.002964821724 | K7: 0 | L7: 0 | M7: 0
B8: 030 | C8: 0.01562829247 | D8: 0 | E8: 0 | F8: 0 | G8: 0.01562829247 | H8: 0.01180683688 | I8: 0.01017222879 | J8: 0.008377918688 | K8: 0 | L8: 0 | M8: 0
B9: 410 | C9: 0.02115977934 | D9: 0 | E9: 0 | F9: 0 | G9: 0.02115977934 | H9: 0.01616216148 | I9: 0.01401120366 | J9: 0.01127919219 | K9: 0 | L9: 0 | M9: 0
B10: 280 | C10: 0.03618038065 | D10: 0 | E10: 0 | F10: 0 | G10: 0.03618038065 | H10: 0.02808684054 | I10: 0.02456805088 | J10: 0.01978225313 | K10: 0 | L10: 0 | M10: 0
B11: 290 | C11: 0.04505481364 | D11: 0 | E11: 0 | F11: 0 | G11: 0.04505481364 | H11: 0.03547811436 | I11: 0.0307100636 | J11: 0.025321284 | K11: 0 | L11: 0 | M11: 0
B12: 040 | C12: 0.05887705665 | D12: 0 | E12: 0 | F12: 0 | G12: 0.05887705665 | H12: 0.04677306735 | I12: 0.04067652516 | J12: 0.0336884957 | K12: 0 | L12: 0 | M12: 0
B13: 130 | C13: 0.1163307101 | D13: 0 | E13: 0 | F13: 0 | G13: 0.1163307101 | H13: 0.09487023046 | I13: 0.08526179118 | J13: 0.07340029146 | K13: 0 | L13: 0 | M13: 0
B14: 050 | C14: 0.2225974619 | D14: 0 | E14: 0 | F14: 0 | G14: 0.2225974619 | H14: 0.1856211646 | I14: 0.170975393 | J14: 0.1464140352 | K14: 0 | L14: 0 | M14: 0
B15: 380 | C15: 0.7496283713 | D15: 0 | E15: 0 | F15: 0 | G15: 0.7496283713 | H15: 0.6408877193 | I15: 0.5815366337 | J15: 0.515836575 | K15: 0 | L15: 0 | M15: 0
B16: 120 | C16: 0.8147378082 | D16: 0 | E16: 0 | F16: 0 | G16: 0.8147378082 | H16: 0.7231299046 | I16: 0.6691144549 | J16: 0.6127624668 | K16: 0 | L16: 0 | M16: 0
B17: 206 | C17: 1.506920022 | D17: 0 | E17: 0 | F17: 0 | G17: 1.420202024 | H17: 1.506920022 | I17: 1.448485422 | J17: 1.326238256 | K17: 0.9681531795 | L17: 0 | M17: 0
B18: 310 | C18: 2.843303051 | D18: 0 | E18: 0 | F18: 0 | G18: 2.33246039 | H18: 2.843303051 | I18: 2.741418857 | J18: 2.608900139 | K18: 1.992027494 | L18: 1.435265941 | M18: 0
B19: 350 | C19: 3.668007155 | D19: 0 | E19: 0 | F19: 0 | G19: 2.926507229 | H19: 3.668007155 | I19: 3.535615799 | J19: 3.433230062 | K19: 2.600789755 | L19: 1.855845972 | M19: 0
B20: 930 | C20: 6.119082315 | D20: 0 | E20: 0 | F20: 0 | G20: 5.103319432 | H20: 6.119082315 | I20: 5.901743227 | J20: 5.617118735 | K20: 4.231940772 | L20: 2.974387474 | M20: 0
B21: 585 | C21: 12.94288975 | D21: 0 | E21: 0 | F21: 0 | G21: 5.10127589 | H21: 7.105034647 | I21: 8.949943737 | J21: 12.94288975 | K21: 11.10742335 | L21: 8.767663495 | M21: 0
B22: 548 | C22: 13.07272597 | D22: 0 | E22: 0 | F22: 0 | G22: 6.783567967 | H22: 9.382865174 | I22: 11.9712301 | J22: 13.07272597 | K22: 10.78941214 | L22: 8.638474987 | M22: 0
B23: 324 | C23: 17.03023614 | D23: 0 | E23: 0 | F23: 0 | G23: 7.60578746 | H23: 10.54088883 | I23: 13.41921435 | J23: 17.03023614 | K23: 14.26569665 | L23: 11.13928564 | M23: 0
B24: 254 | C24: 32.14616205 | D24: 0 | E24: 0 | F24: 0 | G24: 13.11309262 | H24: 18.23143448 | I24: 23.24812581 | J24: 32.14616205 | K24: 27.70305837 | L24: 21.97394543 | M24: 0
B25: 089 | C25: 53.52381243 | D25: 0 | E25: 0 | F25: 0 | G25: 19.40819208 | H25: 26.94105961 | I25: 34.40484327 | J25: 52.85605003 | K25: 53.52381243 | L25: 44.71646953 | M25: 0
B26: 438 | C26: 57.37144766 | D26: 0 | E26: 0 | F26: 0 | G26: 26.12886426 | H26: 36.25811365 | I26: 46.34166612 | J26: 57.37144766 | K26: 48.24154193 | L26: 37.90584942 | M26: 0
B27: 715 | C27: 64.07370674 | D27: 0 | E27: 0 | F27: 0 | G27: 19.85665294 | H27: 27.48707826 | I27: 35.05698608 | J27: 53.75470608 | K27: 64.07370674 | L27: 55.66081341 | M27: 0
B28: 195 | C28: 82.71390799 | D28: 0 | E28: 0 | F28: 0 | G28: 36.14993933 | H28: 50.33100996 | I28: 63.88881743 | J28: 82.71390799 | K28: 70.18045404 | L28: 55.27650025 | M28: 0
B29: 725 | C29: 83.2221187 | D29: 0 | E29: 0 | F29: 0 | G29: 38.00830115 | H29: 52.72210543 | I29: 67.06751491 | J29: 83.2221187 | K29: 70.20866019 | L29: 54.68280157 | M29: 0
B30: 109 | C30: 99.62802721 | D30: 0 | E30: 0 | F30: 0 | G30: 25.71593523 | H30: 35.63980928 | I30: 45.69580212 | J30: 69.68995154 | K30: 99.62802721 | L30: 91.65606272 | M30: 0
B31: 620 | C31: 191.8606735 | D31: 0 | E31: 0 | F31: 0 | G31: 65.86077791 | H31: 91.64074222 | I31: 116.8287437 | J31: 178.0834713 | K31: 191.8606735 | L31: 162.6219146 | M31: 101.4676469
B32: 070 | C32: 205.2377581 | D32: 0 | E32: 0 | F32: 0 | G32: 62.78767736 | H32: 0 | I32: 0 | J32: 162.2135152 | K32: 205.2377581 | L32: 178.2300461 | M32: 113.8439924
B33: 866 | C33: 234.9057144 | D33: 0 | E33: 0 | F33: 0 | G33: 45.55958867 | H33: 0 | I33: 0 | J33: 122.9791641 | K33: 179.4871199 | L33: 234.9057144 | M33: 167.1901047
B34: 906 | C34: 290.4044725 | D34: 0 | E34: 0 | F34: 0 | G34: 57.39653085 | H34: 0 | I34: 0 | J34: 154.4954669 | K34: 228.4913807 | L34: 290.4044725 | M34: 209.3406816
B35: 778 | C35: 372.9184499 | D35: 0 | E35: 0 | F35: 0 | G35: 99.01304637 | H35: 0 | J35: 269.2083511 | K35: 372.9184499 | L35: 337.1342057 | M35: 220.4240866
B36: 740 | C36: 536.2166843 | D36: 0 | E36: 0 | F36: 0 | G36: 115.9925847 | H36: 161.2138487 | I36: 205.2353673 | J36: 313.8359117 | K36: 461.4339338 | L36: 536.2166843 | M36: 381.7522911
B37: 102 | C37: 645.8109898 | G37: 110.4348593 | H37: 0 | I37: 0 | J37: 297.8326805 | K37: 437.9043324 | L37: 645.8109898 | M37: 486.124303
B38: 337 | C38: 1998.894766 | G38: 0 | H38: 0 | I38: 0 | J38: 753.674691 | K38: 1104.623541 | L38: 1808.831381 | M38: 1998.894766
B39: 165 | C39: 4611.82304 | G39: 0 | H39: 0 | I39: 0 | J39: 0 | K39: 0 | L39: 3354.96648 | M39: 4611.82304

Sheet PN_KM (hidden)
B1: Size Code | C1: 200 | D1: 173 | E1: 160 | F1: 147 | G1: 125u | H1: 90u | I1: 75u | J1: 60u | K1: 40u | L1: 26u | M1: 14u
B2: 140 | G2: 77140 | H2: 77444 | I2: 77445 | J2: 77141
B3: 150 | G3: 77150 | H3: 77154 | I3: 77155 | J3: 77151
B4: 180 | G4: 77180 | H4: 77184 | I4: 77185 | J4: 77181
B5: 020 | G5: 77020 | H5: 77824 | I5: 77825 | J5: 77021
B6: 240 | G6: 77240 | H6: 77244 | I6: 77245 | J6: 77241
B7: 270 | G7: 77270 | H7: 77874 | I7: 77875 | J7: 77271
B8: 030 | G8: 77030 | H8: 77834 | I8: 77835 | J8: 77031
B9: 410 | G9: 77410 | H9: 77414 | I9: 77415 | J9: 77411
B10: 280 | G10: 77280 | H10: 77884 | I10: 77885 | J10: 77281
B11: 290 | G11: 77290 | H11: 77294 | I11: 77295 | J11: 77291
B12: 040 | G12: 77040 | H12: 77844 | I12: 77845 | J12: 77041
B13: 130 | G13: 77130 | H13: 77334 | I13: 77335 | J13: 77131
B14: 050 | G14: 77050 | H14: 77054 | I14: 77055 | J14: 77051
B15: 380 | G15: 77380 | H15: 77384 | I15: 77385 | J15: 77381
B16: 120 | G16: 77120 | H16: 77224 | I16: 77225 | J16: 77121
B17: 206 | G17: 77206 | H17: 77210 | I17: 77211 | J17: 77848 | K17: 77847
B18: 310 | G18: 77310 | H18: 77314 | I18: 77315 | J18: 77059 | K18: 77316 | L18: 77312 | M18: 77313
B19: 350 | G19: 77350 | H19: 77354 | I19: 77355 | J19: 77351 | K19: 77356 | L19: 77352 | M19: 77353
B20: 930 | G20: 77930 | H20: 77934 | I20: 77935 | J20: 77894 | K20: 77936 | L20: 77932 | M20: 77933
B21: 585 | G21: 77585 | H21: 77589 | I21: 77590 | J21: 77586 | K21: 77591 | L21: 77587 | M21: 77588
B22: 548 | G22: 77548 | H22: 77552 | I22: 77553 | J22: 77071 | K22: 77555 | L22: 77550 | M22: 77551
B23: 324 | G23: 77324 | H23: 77328 | I23: 77329 | J23: 77076 | K23: 77330 | L23: 77326 | M23: 77327
B24: 254 | G24: 77254 | H24: 77258 | I24: 77259 | J24: 77083 | K24: 77260 | L24: 77256 | M24: 77257
B25: 089 | G25: 77089 | H25: 77093 | I25: 77094 | J25: 77090 | K25: 77095 | L25: 77091 | M25: 77092
B26: 438 | G26: 77438 | H26: 77442 | I26: 77443 | J26: 77439 | K26: 77431 | L26: 77440 | M26: 77441
B27: 715 | G27: 77715 | H27: 77719 | I27: 77720 | J27: 77716 | K27: 77721 | L27: 77717 | M27: 77718
B28: 195 | G28: 77195 | H28: 77194 | I28: 77193 | J28: 77192 | K28: 77189 | L28: 77191 | M28: 77190
B29: 725 | G29: 77725 | H29: 77730 | I29: 77729 | J29: 77726 | K29: 77733 | L29: 77727
B30: 109 | G30: 77109 | H30: 77213 | I30: 77214 | J30: 77110 | K30: 77212 | L30: 77111 | M30: 77112
B31: 620 | H31: 77619 | I31: 77618 | J31: 77617 | K31: 77616 | L31: 77615 | M31: 77614
B32: 070 | G32: 77070 | H32: 77068 | I32: 77069 | J32: 77072 | K32: 77073 | L32: 77074 | M32: 77075
B33: 866 | G33: 77866 | J33: 77867 | K33: 77872 | L33: 77868 | M33: 77869
B34: 906 | G34: 77906 | J34: 77907 | K34: 77912 | L34: 77908 | M34: 77907
B35: 778 | G35: 77778 | J35: 77777 | K35: 77776 | L35: 77775 | M35: 77774
B36: 740 | H36: 77739 | I36: 77738 | J36: 77737 | K36: 77736 | L36: 77735 | M36: 77734
B37: 102 | G37: 77098 | J37: 77099 | K37: 77100 | L37: 77102 | M37: 77101
B38: 337 | J38: 77339 | K38: 77338 | L38: 77337 | M38: 77336
B39: 165 | K39: 77166 | L39: 77165 | M39: 77164

Sheet LI_XF (hidden)
B1: Size Code | C1: Max | D1: 90u | E1: 75u | F1: 60u | G1: 40u | H1: 26u | I1: 19u
B2: 140 | C2: 0 | D2: 0
B3: 150 | C3: 0 | D3: 0
B4: 180 | C4: 0 | D4: 0
B5: 020 | C5: 0 | D5: 0
B6: 240 | C6: 0 | D6: 0
B7: 270 | C7: 0 | D7: 0
B8: 410 | C8: 0 | D8: 0
B9: 030 | C9: 0 | D9: 0
B10: 280 | C10: 0 | D10: 0
B11: 290 | C11: 0 | D11: 0
B12: 040 | C12: 0 | D12: 0
B13: 130 | C13: 0 | D13: 0
B14: 050 | C14: 0.2265070801 | D14: 0.2265070801 | E14: 0.1979144011 | F14: 0.1464140352 | G14: 0.1061623106 | H14: 0.07097989578 | I14: 0.05221673911
B15: 380 | C15: 0.8071778003 | D15: 0.8071778003 | E15: 0.6923840737 | F15: 0.515836575 | G15: 0.3722610465 | H15: 0.2535991483 | I15: 0.1876120968
B16: 120 | C16: 0.9694622513 | D16: 0.9694622513 | E16: 0.8456369196 | F16: 0.6127624668 | G16: 0.4656352891 | H16: 0.3057019947 | I16: 0.2255394178
B17: 206 | C17: 2.194889673 | D17: 2.194889673 | E17: 2.001461374 | F17: 1.326238256 | G17: 1.080324967 | H17: 0.7291817549 | I17: 0.5259935952
B18: 310 | C18: 4.282749238 | D18: 4.282749238 | E18: 3.943992629 | F18: 2.608900139 | G18: 2.26269629 | H18: 1.506036261 | I18: 1.123029302
B19: 350 | C19: 5.560453445 | D19: 5.560453445 | E19: 5.127693147 | F19: 3.433230062 | G19: 2.965121101 | H19: 1.950597927 | I19: 1.436290082
B20: 930 | C20: 9.186895396 | D20: 9.186895396 | E20: 8.456282457 | F20: 5.617118735 | G20: 4.798107415 | H20: 3.1184774 | I20: 2.267801028
B21: 548 | C21: 21.34673287 | D21: 21.24321969 | E21: 21.34673287 | F21: 13.07272597 | G21: 13.33018815 | H21: 9.447481792 | I21: 6.909509853
B22: 585 | C22: 21.96430853 | D22: 20.81887688 | E22: 21.96430853 | F22: 12.94288975 | G22: 14.64831298 | H22: 9.959324755 | I22: 7.736555893
B23: 324 | C23: 28.64142768 | D23: 27.64593748 | E23: 28.64142768 | F23: 17.03023614 | G23: 18.23864456 | H23: 12.41839566 | I23: 9.591223234
B24: 254 | C24: 54.67679036 | D24: 51.66298773 | E24: 54.67679036 | F24: 32.14616205 | G24: 36.17351918 | H24: 24.80765164 | I24: 19.05093167
B25: 438 | C25: 96.25037749 | D25: 93.02690961 | E25: 96.25037749 | F25: 57.37144766 | G25: 61.33398519 | H25: 42.12249222 | I25: 19.83120216
B26: 089 | C26: 103.1979598 | D26: 88.748989 | E26: 103.1979598 | F26: 52.9173445 | G26: 74.46483339 | H26: 52.64657239 | I26: 64.10665756
B27: 715 | C27: 119.1432776 | D27: 90.54767858 | E27: 119.1432776 | F27: 53.81704268 | G27: 92.80814321 | H27: 67.56556874 | I27: 51.41221339
B28: 195 | C28: 139.1019258 | D28: 134.1314778 | E28: 139.1019258 | F28: 82.71390799 | G28: 90.09964181 | H28: 61.77409435 | I28: 46.68494389
B29: 725 | C29: 139.6186616 | D29: 135.5205798 | E29: 139.6186616 | F29: 83.2221187 | G29: 89.30437395 | H29: 60.78197874 | I29: 46.07948459
B30: 109 | C30: 175.9761303 | D30: 117.4043296 | E30: 175.9761303 | F30: 69.77076743 | G30: 152.4605434 | H30: 116.7643281 | I30: 91.47518853
B31: 620 | C31: 367.5375003 | D31: 301.8820841 | E31: 367.5375003 | F31: 178.2899856 | G31: 270.8604505 | H31: 193.5212095 | I31: 148.8960225
B32: 866 | C32: 388.6531422 | D32: 208.1037888 | E32: 309.7123764 | F32: 123.1217768 | G32: 388.6531422 | H32: 331.8879934 | I32: 273.2827849
B33: 070 | C33: 403.4360838 | D33: 287.9325128 | E33: 382.8054427 | F33: 162.4016259 | G33: 403.4360838 | H33: 217.2705586 | I33: 170.1111947
B34: 906 | C34: 493.4769554 | D34: 262.4605148 | E34: 388.1679655 | F34: 154.6746274 | G34: 493.4769554 | H34: 409.937582 | I34: 335.7637321
B35: 778 | C35: 567.3820813 | F35: 269.5205383 | G35: 567.3820813 | H35: 427.1219918 | I35: 333.9304219
B36: 740 | C36: 914.4018189 | D36: 531.0691671 | E36: 790.3685692 | F36: 314.1998512 | G36: 914.4018189 | H36: 736.2793075 | I36: 594.0461554
B37: 102 | C37: 1093.833858 | D37: 505.5021809 | E37: 0 | F37: 298.1780619 | G37: 1093.833858 | H37: 962.2389118 | I37: 806.8012876
B38: 337 | C38: 5200.099824 | D38: 0 | E38: 0 | G38: 3288.287446 | H38: 4134.544354 | I38: 5200.099824

Sheet PN_XF (hidden)
C1: Size Code | D1: 90u | E1: 75u | F1: 60u | G1: 40u | H1: 26u | I1: 19u
C2: 140
C3: 150
C4: 180
C5: 020
C6: 240
C7: 270
C8: 030
C9: 410
C10: 280
C11: 290
C12: 040
C13: 130
C14: 050 | D14: 78054 | E14: 78055 | F14: 78051 | G14: 78056 | H14: 78052 | I14: 78057
C15: 380 | D15: 78384 | E15: 78385 | F15: 78381 | G15: 78386 | H15: 78382 | I15: 78387
C16: 120 | D16: 78224 | E16: 78225 | F16: 78121 | G16: 78113 | H16: 78122 | I16: 78226
C17: 206 | D17: 78210 | E17: 78211 | F17: 78848 | G17: 78847 | H17: 78208 | I17: 78849
C18: 310 | D18: 78314 | E18: 78315 | F18: 78059 | G18: 78316 | H18: 78312 | I18: 78303
C19: 350 | D19: 78354 | E19: 78355 | F19: 78351 | G19: 78356 | H19: 78352 | I19: 78357
C20: 930 | D20: 78934 | E20: 78935 | F20: 78894 | G20: 78936 | H20: 78932 | I20: 78937
C21: 548 | D21: 78552 | E21: 78553 | F21: 78071 | G21: 78555 | H21: 78550 | I21: 78554
C22: 585 | D22: 78589 | E22: 78590 | F22: 78586 | G22: 78591 | H22: 78587 | I22: 78592
C23: 324 | D23: 78328 | E23: 78329 | F23: 78076 | G23: 78330 | H23: 78326 | I23: 78317
C24: 254 | D24: 78258 | E24: 78259 | F24: 78083 | G24: 78260 | H24: 78256 | I24: 78262
C25: 438 | D25: 78442 | E25: 78443 | F25: 78439 | G25: 78431 | H25: 78440 | I25: 78079
C26: 089 | D26: 78093 | E26: 78094 | F26: 78090 | G26: 78095 | H26: 78091 | I26: 78430
C27: 715 | D27: 78719 | E27: 78720 | F27: 78716 | G27: 78721 | H27: 78717 | I27: 78750
C28: 195 | D28: 78194 | E28: 78193 | F28: 78192 | G28: 78189 | H28: 78191 | I28: 78708
C29: 725 | D29: 78730 | E29: 78729 | F29: 78726 | G29: 78733 | H29: 78727 | I29: 78188
C30: 109 | D30: 78213 | E30: 78214 | F30: 78110 | G30: 78212 | H30: 78111 | I30: 78215
C31: 620 | D31: 78619 | E31: 78618 | F31: 78617 | G31: 78616 | H31: 78615 | I31: 78772
C32: 866 | D32: 78870 | E32: 78871 | F32: 78867 | G32: 78872 | H32: 78868 | I32: 78744
C33: 070 | D33: 78068 | E33: 78069 | F33: 78072 | G33: 78073 | H33: 78074 | I33: 78612
C34: 906 | D34: 78910 | E34: 78911 | F34: 78907 | G34: 78912 | H34: 78908 | I34: 78873
C35: 778 | F35: 78777 | G35: 78776 | H35: 78775 | I35: 78913
C36: 740 | D36: 78739 | E36: 78738 | F36: 78737 | G36: 78736 | H36: 78735 | I36: 78067
C37: 102 | D37: 78096 | E37: 78159 | F37: 78099 | G37: 78100 | H37: 78102 | I37: 78097
C38: 337 | G38: 78338 | H38: 78337 | I38: 78342
C39: 165 | H39: 78165

Sheet Wire Table (hidden)
A2: AWG Wire Size | B2: Cir Mils | C2: Wire O.D. (cm) Heavy Build | D2: Wire Area sq. cm (x0.001) | F2: Current Capacity, Amps (listed by columns of amps/sq.cm.) | M2: Bare Wire OD (Inches) | N2: Bare Wire Radius (mm)
F3: 200 | G3: 400 | H3: 500 | I3: 600 | J3: 800 | K3: Feet per Pound | L3: $/pound
A4: 6 | B4: 26240 | C4: 0.421 | D4: 139.2 | E4: =D4*0.001 -> 0.1392 | F4: 26.59606216 | G4: 53.19212433 | H4: 66.49015541 | I4: 79.78818649 | J4: 106.3842487 | K4: 12.5 | L4: 10.06 | M4: 0.162 | N4: =M4*25.4*0.5 -> 2.0574
A5: 7 | B5: 20820 | C5: 0.376 | D5: 111 | E5: =D5*0.001 -> 0.111 | F5: 21.10182283 | G5: 42.20364567 | H5: 52.75455708 | I5: 63.3054685 | J5: 84.40729133 | K5: 15.75 | L5: 10.15 | M5: 0.1443 | N5: =M5*25.4*0.5 -> 1.83261
A6: 8 | B6: 16510 | C6: 0.336 | D6: 88.7 | E6: 0.0887 | F6: 16.73376114 | G6: 33.46752229 | H6: 41.83440286 | I6: 50.20128343 | J6: 66.93504457 | K6: 19.85 | L6: 10.27 | M6: 0.1285 | N6: 1.63195
A7: 9 | B7: 13090 | C7: 0.299 | D7: 70.2 | E7: 0.0702 | F7: 13.26292639 | G7: 26.52585277 | H7: 33.15731597 | I7: 39.78877916 | J7: 53.05170555 | K7: 25 | L7: 10.31 | M7: 0.1144 | N7: 1.45288
A8: 10 | B8: 10380 | C8: 0.267 | D8: 56 | E8: 0.056 | F8: 10.52290569 | G8: 21.04581139 | H8: 26.30726424 | I8: 31.56871708 | J8: 42.09162278 | K8: 31.5 | L8: 7.57 | M8: 0.1019 | N8: 1.29413
A9: 11 | B9: 8226 | C9: 0.238 | D9: 44.5 | E9: 0.0445 | F9: 8.336848019 | G9: 16.67369604 | H9: 20.84212005 | I9: 25.01054406 | J9: 33.34739208 | K9: 39 | L9: 7.58 | M9: 0.0907 | N9: 1.15189
A10: 12 | B10: 6529 | C10: 0.213 | D10: 35.6 | E10: 0.0356 | F10: 6.616221433 | G10: 13.23244287 | H10: 16.54055358 | I10: 19.8486643 | J10: 26.46488573 | K10: 49.9 | L10: 7.59 | M10: 0.0808 | N10: 1.02616
A11: 13 | B11: 5184 | C11: 0.1902 | D11: 28.4 | E11: 0.0284 | F11: 5.253543143 | G11: 10.50708629 | H11: 13.13385786 | I11: 15.76062943 | J11: 21.01417257 | K11: 62.9 | L11: 7.6 | M11: 0.072 | N11: 0.9144
A12: 14 | B12: 4109 | C12: 0.1715 | D12: 23.1 | E12: 0.0231 | F12: 4.163929514 | G12: 8.327859029 | H12: 10.40982379 | I12: 12.49178854 | J12: 16.65571806 | K12: 79.18 | L12: 7.94 | M12: 0.0641 | N12: 0.81407
A13: 15 | B13: 3260 | C13: 0.1529 | D13: 18.4 | E13: 0.0184 | F13: 3.304148264 | G13: 6.608296528 | H13: 8.26037066 | I13: 9.912444792 | J13: 13.21659306 | K13: 99.7 | L13: 7.98 | M13: 0.0571 | N13: 0.72517
A14: 16 | B14: 2581 | C14: 0.1369 | D14: 14.72 | E14: 0.01472 | F14: 2.615259178 | G14: 5.230518355 | H14: 6.538147944 | I14: 7.845777533 | J14: 10.46103671 | K14: 125.6 | L14: 8.08 | M14: 0.0508 | N14: 0.64516
A15: 17 | B15: 2052 | C15: 0.1224 | D15: 11.77 | E15: 0.01177 | F15: 2.079618702 | G15: 4.159237403 | H15: 5.199046754 | I15: 6.238856105 | J15: 8.318474806 | K15: 157.7 | L15: 8.19 | M15: 0.0453 | N15: 0.57531
A16: 18 | B16: 1624 | C16: 0.1095 | D16: 9.42 | E16: 0.00942 | F16: 1.645877099 | G16: 3.291754199 | H16: 4.114692749 | I16: 4.937631298 | J16: 6.583508398 | K16: 199.2 | L16: 8.3 | M16: 0.0403 | N16: 0.51181
A17: 19 | B17: 1289 | C17: 0.098 | D17: 7.54 | E17: 0.00754 | F17: 1.306099332 | G17: 2.612198665 | H17: 3.265248331 | I17: 3.918297997 | J17: 5.224397329 | K17: 250.6 | L17: 8.38 | M17: 0.0359 | N17: 0.45593
A18: 20 | B18: 1024 | C18: 0.0879 | D18: 6.07 | E18: 0.00607 | F18: 1.037736917 | G18: 2.075473834 | H18: 2.594342293 | I18: 3.113210752 | J18: 4.150947669 | K18: 314.5 | L18: 8.27 | M18: 0.032 | N18: 0.4064
A19: 21 | B19: 812.3 | C19: 0.0785 | D19: 4.84 | E19: 0.00484 | F19: 0.8231462998 | G19: 1.6462926 | H19: 2.057865749 | I19: 2.469438899 | J19: 3.292585199 | K19: 395.3 | L19: 8.37 | M19: 0.0285 | N19: 0.36195
A20: 22 | B20: 640.1 | C20: 0.0701 | D20: 3.86 | E20: 0.00386 | F20: 0.6486767806 | G20: 1.297353561 | H20: 1.621691951 | I20: 1.946030342 | J20: 2.594707122 | K20: 502.5 | L20: 8.53 | M20: 0.0253 | N20: 0.32131
A21: 23 | B21: 510.8 | C21: 0.0632 | D21: 3.14 | E21: 0.00314 | F21: 0.517611824 | G21: 1.035223648 | H21: 1.29402956 | I21: 1.552835472 | J21: 2.070447296 | K21: 625 | L21: 8.8 | M21: 0.0226 | N21: 0.28702
A22: 24 | B22: 404 | C22: 0.0566 | D22: 2.52 | E22: 0.00252 | F22: 0.4094297773 | G22: 0.8188595545 | H22: 1.023574443 | I22: 1.228289332 | J22: 1.637719109 | K22: 790.5 | L22: 9.01 | M22: 0.0201 | N22: 0.25527
A23: 25 | B23: 320.4 | C23: 0.0505 | D23: 2 | E23: 0.002 | F23: 0.3247082868 | G23: 0.6494165735 | H23: 0.8117707169 | I23: 0.9741248603 | J23: 1.298833147 | K23: 992.1 | L23: 9.32 | M23: 0.0179 | N23: 0.22733
A24: 26 | B24: 252.8 | C24: 0.0452 | D24: 1.6 | E24: 0.0016 | F24: 0.2562014356 | G24: 0.5124028712 | H24: 0.640503589 | I24: 0.7686043067 | J24: 1.024805742 | K24: 1254 | L24: 9.06 | M24: 0.0159 | N24: 0.20193
A25: 27 | B25: 201.6 | C25: 0.0409 | D25: 1.31 | E25: 0.00131 | F25: 0.2043449922 | G25: 0.4086899843 | H25: 0.5108624804 | I25: 0.6130349765 | J25: 0.8173799687 | K25: 1571 | L25: 9 | M25: 0.0142 | N25: 0.18034
A26: 28 | B26: 158.8 | C26: 0.0366 | D26: 1.05 | E26: 0.00105 | F26: 0.1608897588 | G26: 0.3217795175 | H26: 0.4022243969 | I26: 0.4826692763 | J26: 0.6435590351 | K26: 1987 | L26: 9 | M26: 0.0126 | N26: 0.16002
A27: 29 | B27: 127.7 | C27: 0.033 | D27: 0.855 | E27: 0.000855 | F27: 0.129402956 | G27: 0.258805912 | H27: 0.32350739 | I27: 0.388208868 | J27: 0.517611824 | K27: 2463 | L27: 9 | M27: 0.0113 | N27: 0.14351
A28: 30 | B28: 100 | C28: 0.0295 | D28: 0.683 | E28: 0.000683 | F28: 0.1013414958 | G28: 0.2026829916 | H28: 0.2533537395 | I28: 0.3040244875 | J28: 0.4053659833 | K28: 3136 | L28: 9 | M28: 0.01 | N28: 0.127
A29: 31 | B29: 79.21 | C29: 0.0267 | D29: 0.56 | E29: 0.00056 | F29: 0.08027259884 | G29: 0.1605451977 | H29: 0.2006814971 | I29: 0.2408177965 | J29: 0.3210903954 | K29: 3948 | L29: 9 | M29: 0.0089 | N29: 0.11303
A30: 32 | B30: 64 | C30: 0.0241 | D30: 0.456 | E30: 0.000456 | F30: 0.06485855732 | G30: 0.1297171146 | H30: 0.1621463933 | I30: 0.194575672 | J30: 0.2594342293 | K30: 4873 | L30: 9 | M30: 0.008 | N30: 0.1016
A31: 33 | B31: 50.41 | C31: 0.0216 | D31: 0.366 | E31: 0.000366 | F31: 0.05108624804 | G31: 0.1021724961 | H31: 0.1277156201 | I31: 0.1532587441 | J31: 0.2043449922 | K31: 6161 | L31: 9 | M31: 0.0071 | N31: 0.09017
A32: 34 | B32: 39.69 | C32: 0.01905 | D32: 0.285 | E32: 0.000285 | F32: 0.04022243969 | G32: 0.08044487938 | H32: 0.1005560992 | I32: 0.1206673191 | J32: 0.1608897588 | K32: 7837 | L32: 9 | M32: 0.0063 | N32: 0.08001
A33: 35 | B33: 31.36 | C33: 0.01702 | D33: 0.228 | E33: 0.000228 | F33: 0.03178069309 | G33: 0.06356138618 | H33: 0.07945173272 | I33: 0.09534207927 | J33: 0.1271227724 | K33: 9891 | L33: 9 | M33: 0.0056 | N33: 0.07112
A34: 36 | B34: 25 | C34: 0.01524 | D34: 0.182 | E34: 0.000182 | F34: 0.02533537395 | G34: 0.05067074791 | H34: 0.06333843489 | I34: 0.07600612186 | J34: 0.1013414958 | K34: 12380 | L34: 9 | M34: 0.005 | N34: 0.0635
A35: 37 | B35: 20.25 | C35: 0.01397 | D35: 0.153 | E35: 0.000153 | F35: 0.0205216529 | G35: 0.04104330581 | H35: 0.05130413226 | I35: 0.06156495871 | J35: 0.08208661161 | K35: 15290 | L35: 9 | M35: 0.0045 | N35: 0.05715
A36: 38 | B36: 16 | C36: 0.01245 | D36: 0.122 | E36: 0.000122 | F36: 0.01621463933 | G36: 0.03242927866 | H36: 0.04053659833 | I36: 0.04864391799 | J36: 0.06485855732 | K36: 19360 | L36: 9 | M36: 0.004 | N36: 0.0508
A37: 39 | B37: 12.25 | C37: 0.01092 | D37: 0.094 | E37: 9.4e-05 | F37: 0.01241433324 | G37: 0.02482866648 | H37: 0.03103583309 | I37: 0.03724299971 | J37: 0.04965733295 | K37: 25270 | L37: 9 | M37: 0.0035 | N37: 0.04445
A38: 40 | B38: 9.61 | C38: 0.00965 | D38: 0.073 | E38: 7.3e-05 | F38: 0.009738917748 | G38: 0.0194778355 | H38: 0.02434729437 | I38: 0.02921675324 | J38: 0.03895567099 | K38: 31940 | L38: 9 | M38: 0.0031 | N38: 0.03937
A39: 41 | B39: 7.84 | C39: 0.00864 | D39: 0.059 | E39: 5.9e-05 | F39: 0.007945173272 | G39: 0.01589034654 | H39: 0.01986293318 | I39: 0.02383551982 | J39: 0.03178069309 | K39: 39340 | L39: 9 | M39: 0.0028 | N39: 0.03556
A40: 42 | B40: 6.25 | C40: 0.00762 | D40: 0.046 | E40: 4.6e-05 | F40: 0.006333843489 | G40: 0.01266768698 | H40: 0.01583460872 | I40: 0.01900153047 | J40: 0.02533537395 | K40: 49600 | L40: 9 | M40: 0.0025 | N40: 0.03175
A41: 43 | B41: 4.84 | C41: 0.00686 | D41: 0.037 | E41: 3.7e-05 | F41: 0.004904928398 | G41: 0.009809856795 | H41: 0.01226232099 | I41: 0.01471478519 | J41: 0.01961971359 | K41: 63170 | L41: 9 | M41: 0.0022 | N41: 0.02794
A42: 44 | B42: 4 | C42: 0.00635 | D42: 0.032 | E42: 3.2e-05 | F42: 0.004053659833 | G42: 0.008107319666 | H42: 0.01013414958 | I42: 0.0121609795 | J42: 0.01621463933 | K42: 76160 | L42: 9 | M42: 0.002 | N42: 0.0254
A43: 45 | B43: 3.1 | C43: 0.00546 | D43: 0.023 | E43: 2.3e-05 | F43: 0.003139154175 | G43: 0.006278308349 | H43: 0.007847885436 | I43: 0.009417462524 | J43: 0.0125566167 | K43: 99110 | L43: 9 | M43: 0.00176 | N43: 0.022352
A44: 46 | B44: 2.47 | C44: 0.00498 | D44: 0.019 | E44: 1.9e-05 | F44: 0.00249796653 | G44: 0.004995933061 | H44: 0.006244916326 | I44: 0.007493899591 | J44: 0.009991866122 | K44: 123800 | L44: 9 | M44: 0.00157 | N44: 0.019939
A45: 47 | B45: 1.96 | C45: 0.00452 | D45: 0.016 | E45: 1.6e-05 | F45: 0.001986293318 | G45: 0.003972586636 | H45: 0.004965733295 | I45: 0.005958879954 | J45: 0.007945173272 | K45: 154600 | L45: 9 | M45: 0.0014 | N45: 0.01778
A46: 48 | B46: 1.54 | C46: 0.00394 | D46: 0.012 | E46: 1.2e-05 | F46: 0.00155822684 | G46: 0.003116453679 | H46: 0.003895567099 | I46: 0.004674680519 | J46: 0.006232907359 | K46: 196600 | L46: 9 | M46: 0.00124 | N46: 0.015748
A47: 49 | B47: 1.23 | C47: 0.00353 | D47: 0.01 | E47: 1e-05 | F47: 0.00124862857 | G47: 0.00249725714 | H47: 0.003121571425 | I47: 0.00374588571 | J47: 0.00499451428 | K47: 247500 | L47: 9 | M47: 0.00111 | N47: 0.014097

Sheet Surface Area (hidden)
A1: Core | B1: 0 | C1: 0.004 | D1: Slope | E1: Intercept | F1: Design 1 | G1: Design 2 | H1: Design 3
A2: 140 | B2: 48.4 | C2: 65.2 | D2: 4200 | E2: 48.4 | F2: 48.4 | G2: 156.4885246 | H2: 48.4
A3: 150 | B3: 76.1 | C3: 120 | D3: 10975 | E3: 76.1 | F3: 76.1 | G3: 358.5456089 | H3: 76.1
A4: 180 | B4: 111 | C4: 150 | D4: 9750 | E4: 111 | F4: 111 | G4: 361.9197892 | H4: 111
A5: 20 | B5: 168 | C5: 220 | D5: 13000 | E5: 168 | F5: 168 | G5: 502.559719 | H5: 168 | L5: Determined using slope of line by plotting 0% and 40% winding factor.
A6: 240 | B6: 170 | C6: 230 | D6: 15000 | E6: 170 | F6: 170 | G6: 556.030445 | H6: 170
A7: 270 | B7: 242 | C7: 290 | D7: 12000 | E7: 242 | F7: 242 | G7: 550.824356 | H7: 242
A8: 410 | B8: 270 | C8: 320 | D8: 12500 | E8: 270 | F8: 270 | G8: 591.6920375 | H8: 270
A9: 030 | B9: 238 | C9: 320 | D9: 20500 | E9: 238 | F9: 238 | G9: 765.5749415 | H9: 238
A10: 280 | B10: 312 | C10: 440 | D10: 32000 | E10: 312 | F10: 312 | G10: 1135.531616 | H10: 312
A11: 290 | B11: 346 | C11: 470 | D11: 31000 | E11: 346 | F11: 346 | G11: 1143.796253 | H11: 346
A12: 040 | B12: 370 | C12: 510 | D12: 35000 | E12: 370 | F12: 370 | G12: 1270.737705 | H12: 370
A13: 130 | B13: 431 | C13: 604 | D13: 43250 | E13: 431 | F13: 431 | G13: 1544.05445 | H13: 431
A14: 50 | B14: 561 | C14: 813 | D14: 63000 | E14: 561 | F14: 561 | G14: 2182.327869 | H14: 561
A15: 120 | B15: 922 | C15: 1360 | D15: 109500 | E15: 922 | F15: 922 | G15: 3740.022248 | H15: 922
A16: 380 | B16: 987 | C16: 1470 | D16: 120750 | E16: 987 | F16: 987 | G16: 4094.545082 | H16: 987
A17: 206 | B17: 1210 | C17: 1890 | D17: 170000 | E17: 1210 | F17: 1210 | G17: 5585.01171 | H17: 1210
A18: 310 | B18: 1570 | C18: 2380 | D18: 202500 | E18: 1570 | F18: 1570 | G18: 6781.411007 | H18: 1570
A19: 350 | B19: 1790 | C19: 2630 | D19: 210000 | E19: 1790 | F19: 1790 | G19: 7194.42623 | H19: 1790
A20: 930 | B20: 2470 | C20: 3380 | D20: 227500 | E20: 2470 | F20: 2470 | G20: 8324.795082 | H20: 2470
A21: 548 | B21: 3150 | C21: 4800 | D21: 412500 | E21: 3150 | F21: 3150 | G21: 13765.83724 | H21: 3150
A22: 585 | B22: 2930 | C22: 5130 | D22: 550000 | E22: 2930 | F22: 2930 | G22: 17084.44965 | H22: 2930
A23: 324 | B23: 3450 | C23: 5510 | D23: 515000 | E23: 3450 | F23: 3450 | G23: 16703.71194 | H23: 3450
A24: 254 | B24: 4840 | C24: 7160 | D24: 580000 | E24: 4840 | F24: 4840 | G24: 19766.51054 | H24: 4840
A25: 438 | B25: 6900 | C25: 9420 | D25: 630000 | E25: 6900 | F25: 6900 | G25: 23113.27869 | H25: 6900
A26: 089 | B26: 6170 | C26: 9510 | D26: 835000 | E26: 6170 | F26: 6170 | G26: 27659.0281 | H26: 6170
A27: 715 | B27: 6420 | C27: 10600 | D27: 1045000 | E27: 6420 | F27: 6420 | G27: 33313.45433 | H27: 6420
A28: 195 | B28: 9100 | C28: 11500 | D28: 600000 | E28: 9100 | F28: 9100 | G28: 24541.2178 | H28: 9100
A29: 109 | B29: 7680 | C29: 13100 | D29: 1355000 | E29: 7680 | F29: 7680 | G29: 42551.41686 | H29: 7680
A30: 620 | B30: 12300 | C30: 16800 | D30: 1125000 | E30: 12300 | F30: 12300 | G30: 41252.28337 | H30: 12300
A31: 740 | B31: 18800 | C31: 27100 | D31: 2075000 | E31: 18800 | F31: 18800 | G31: 72200.87822 | H31: 18800
A32: 866 | B32: 11700 | C32: 20300 | D32: 2150000 | E32: 11700 | F32: 11700 | G32: 67031.03044 | H32: 11700
A33: 906 | B33: 13000 | C33: 22500 | D33: 2375000 | E33: 13000 | F33: 13000 | G33: 74121.48712 | H33: 13000
A34: 102 | B34: 20700 | C34: 34600 | D34: 3475000 | E34: 20700 | F34: 20700 | G34: 110130.3864 | H34: 20700
A35: 337 | B35: 36600 | C35: 62000 | D35: 6350000 | E35: 36600 | F35: 36600 | G35: 200019.555 | H35: 36600
A36: 165 | B36: 55400 | C36: 101000 | D36: 11400000 | E36: 55400 | F36: 55400 | G36: 348783.1382 | H36: 55400
A37: 070 | B37: 12672 | C37: 23000 | D37: 2582000 | E37: 12672 | F37: 12672 | G37: 79120.70726 | H37: 12672
A38: 778 | B38: 19000 | C38: 32000 | D38: 3250000 | E38: 19000 | F38: 19000 | G38: 102639.9297 | H38: 19000
A39: 725 | B39: 23310 | C39: 33600 | D39: 2572500 | E39: 23310 | F39: 23310 | G39: 89514.22131 | H39: 23310

Sheet PN_KM_E (hidden)
D1: 90u | E1: 60u | F1: 40u | G1: 26u
C2: 1808E | D2: 00K1808E090 | E2: 00K1808E060 | F2: 00K1808E040 | G2: 00K1808E026
C3: 2510E | D3: 00K2510E090 | E3: 00K2510E060 | F3: 00K2510E040 | G3: 00K2510E026
C4: 3007E | D4: 00K3007E090 | E4: 00K3007E060 | F4: 00K3007E040 | G4: 00K3007E026
C5: 3515E | D5: 00K3515E090 | E5: 00K3515E060 | F5: 00K3515E040 | G5: 00K3515E026
C6: 4317E | D6: 00K4317E090 | E6: 00K4317E060 | F6: 00K4317E040 | G6: 00K4317E026
C7: 4020E | D7: 00K4020E090 | E7: 00K4020E060 | F7: 00K4020E040 | G7: 00K4020E026
C8: 4017E | D8: 00K4017E090 | E8: 00K4017E060 | F8: 00K4017E040 | G8: 00K4017E026
C9: 4022E | D9: 00K4022E090 | E9: 00K4022E060 | F9: 00K4022E040 | G9: 00K4022E026
C10: 5528E | D10: 0 | E10: 00K5528E060 | F10: 00K5528E040 | G10: 00K5528E026
C11: 5530E | D11: 0 | E11: 00K5530E060 | F11: 00K5530E040 | G11: 00K5530E026
C12: 7228E | D12: 0 | E12: 00K7228E060 | F12: 00K7228E040 | G12: 00K7228E026
C13: 6527E | D13: 0 | E13: 00K6527E060 | F13: 00K6527E040 | G13: 00K6527E026
C14: 8020E | D14: 0 | E14: 00K8020E060 | F14: 00K8020E040 | G14: 00K8020E026
C15: 8044E | D15: 0 | E15: 0 | F15: 0 | G15: 00K8044E026
C16: 130LE | D16: 0 | E16: 0 | F16: 0 | G16: 00K130LE026
C17: 160LE | D17: 0 | E17: 0 | F17: 0 | G17: 00K160LE026

Sheet Curve Fit Equations (hidden)
A1: Kool Mu
A2: DC Bias | B2: a | C2: b | D2: c | E2: d | F2: e
A3: 14
A4: 26 | B4: 1 | C4: -0.001248 | D4: -2.02e-05 | E4: 8.354e-08 | F4: -9.503e-11
A5: 40 | B5: 1 | C5: -0.002799 | D5: -3.312e-05 | E5: 2.126e-07 | F5: -3.466e-10
A6: 60 | B6: 1 | C6: -0.004445 | D6: -8.763e-05 | E6: 9.446e-07 | F6: -2.616e-09
A7: 75 | B7: 1 | C7: -0.00612 | D7: -0.000138 | E7: 1.943e-06 | F7: -6.956e-09
A8: 90 | B8: 1 | C8: -0.009031 | D8: -0.0001218 | E8: 2.254e-06 | F8: -9.287e-09
A9: 125 | B9: 1 | C9: -0.009918 | D9: -0.0005044 | E9: 1.267e-05 | F9: -8.284e-08
A10: Norm Mag | B10: a | C10: b | D10: c | E10: d | F10: e | G10: x
A11: 14
A12: 26 | B12: 5.868e-05 | C12: 9.362e-05 | D12: 9.011e-06 | E12: -0.0003682 | F12: 8.747e-06 | G12: 0.5
A13: 40 | B13: 8.87e-05 | C13: 5.592e-05 | D13: 2.7e-05 | E13: 0.0002928 | F13: 2.574e-05 | G13: 0.5
A14: 60 | B14: 0.0001658 | C14: 2.301e-05 | D14: 7.297e-05 | E14: 0.005906 | F14: 6.053e-05 | G14: 0.5
A15: 75 | B15: 1.433e-05 | C15: 9.724e-05 | D15: 0.0001323 | E15: 0.007255 | F15: 0.0001131 | G15: 0.5
A16: 90 | B16: 0.000566 | C16: -0.0001216 | D16: 0.0001974 | E16: 0.007278 | F16: 0.0001698 | G16: 0.5
A17: 125 | B17: 7.808e-05 | C17: 0.0005088 | D17: 0.0002595 | E17: 0.003922 | F17: 0.0002285 | G17: 0.5
A18: Core Loss | B18: a | C18: b | D18: c
A19: 14
A20: 26 | B20: 120 | C20: 2.09 | D20: 1.46
A21: 40 | B21: 120 | C21: 2.09 | D21: 1.46
A22: 60 | B22: 193 | C22: 2.01 | D22: 1.29
A23: 75 | B23: 193 | C23: 2.01 | D23: 1.29
A24: 90 | B24: 193 | C24: 2.01 | D24: 1.29
A25: 125 | B25: 91.58 | C25: 2.2 | D25: 1.63
A26: MPP
A27: DC Bias | B27: a | C27: b | D27: c | E27: d | F27: e
A28: 14 | B28: 0.9985 | C28: 0.0004257 | D28: -9.611e-06 | E28: 1.491e-08 | F28: -6.25e-12
A29: 26 | B29: 0.9985 | C29: 0.001142 | D29: -3.762e-05 | E29: 1.222e-07 | F29: -1.218e-10
A30: 60 | B30: 0.9971 | C30: 0.002276 | D30: -0.0001623 | E30: 1.048e-06 | F30: -2.013e-09
A31: 125 | B31: 0.9966 | C31: 0.003597 | D31: -0.000653 | E31: 8.8554e-06 | F31: -3.569e-08
A32: 147 | B32: 0.9968 | C32: 0.004036 | D32: -0.0009462 | E32: 1.56e-05 | F32: -7.66e-08
A33: 160 | B33: 0.9973 | C33: 0.003442 | D33: -0.00106 | E33: 1.897e-05 | F33: -1.004e-07
A34: 173 | B34: 0.9987 | C34: 0.0025 | D34: -0.001152 | E34: 2.22e-05 | F34: -1.305e-07
A35: 200 | B35: 0.9958 | C35: 0.005128 | D35: -0.001499 | E35: 3.055e-05 | F35: -1.85e-07
A36: 300 | B36: 0.9942 | C36: 0.009403 | D36: -0.00414 | E36: 0.0001407 | F36: -1.425e-06
A37: 550 | B37: 1.025 | C37: -0.1462 | D37: 0.005685 | E37: 0.0001753 | F37: -1.038e-05
A38: Norm Mag | B38: a | C38: b | D38: c | E38: d | F38: e | G38: x
A39: 14 | B39: -7.507 | C39: 6.573 | D39: 0.4619 | E39: 77.77 | F39: 0.4987 | G39: 2
A40: 26 | B40: 0.06679 | C40: 0.01105 | D40: -1.136e-05 | E40: 0.01112 | F40: -1.233e-05 | G40: 2
A41: 60 | B41: 0.08146 | C41: 0.02345 | D41: 6.032e-05 | E41: 0.02476 | F41: 7.185e-05 | G41: 2
A42: 125 | B42: 0.000642 | C42: -0.0006271 | D42: 0.0003253 | E42: 0.009901 | F42: 0.0005366 | G42: 0.5
A43: 147 | B43: 0.000653 | C43: -0.0007301 | D43: 0.0004516 | E43: 0.01583 | F43: 0.0007185 | G43: 0.5
A44: 160 | B44: 0.000447 | C44: -0.0005579 | D44: 0.0005211 | E44: 0.01002 | F44: 0.0008164 | G44: 0.5
A45: 173 | B45: 0.000545 | C45: -0.0007716 | D45: 0.0006506 | E45: 0.006875 | F45: 0.001019 | G45: 0.5
A46: 200 | B46: 0.001001 | C46: -0.00145 | D46: 0.0009127 | E46: 0.006057 | F46: 0.001428 | G46: 0.5
A47: 300 | B47: 0.00094 | C47: -0.001543 | D47: 0.00199 | E47: 0.024 | F47: 0.003073 | G47: 0.5
A48: 550 | B48: 0.00073 | C48: -0.001509 | D48: 0.006482 | E48: 0.06371 | F48: 0.009933 | G48: 0.5
A49: Core Loss | B49: a | C49: b | D49: c
A50: 14 | B50: 115.9 | C50: 2.5 | D50: 1.87
A51: 26 | B51: 70.83 | C51: 2.34 | D51: 1.65
A52: 60 | B52: 357.1 | C52: 2.05 | D52: 1.12
A53: 125 | B53: 53.05 | C53: 2.06 | D53: 1.56
A54: 147 | B54: 52.16 | C54: 2 | D54: 1.57
A55: 160 | B55: 52.16 | C55: 2 | D55: 1.57
A56: 173 | B56: 52.16 | C56: 2 | D56: 1.57
A57: 200 | B57: 37.97 | C57: 2.09 | D57: 1.68
A58: 300 | B58: 37.97 | C58: 2.09 | D58: 1.68
A59: 550 | B59: 181 | C59: 2.13 | D59: 1.47
A60: High Flux
A61: DC Bias | B61: a | C61: b | D61: c | E61: d | F61: e
A62: 14 | B62: 1 | C62: -0.0003954 | D62: 4.27e-07 | E62: -6.515e-09 | F62: 6.938e-12
A63: 26 | B63: 1 | C63: -8.078e-05 | D63: -1.111e-05 | E63: 2.344e-08 | F63: -1.392e-11
A64: 60 | B64: 1 | C64: 0.0009701 | D64: -7.57e-05 | E64: 3.849e-07 | F64: -5.977e-10
A65: 125 | B65: 1 | C65: 0.0001236 | D65: -0.0002238 | E65: 2.065e-06 | F65: -5.613e-09
A66: 147 | B66: 1 | C66: 0.0003976 | D66: -0.000358 | E66: 4.116e-06 | F66: -1.382e-08
A67: 160 | B67: 1 | C67: 0.003016 | D67: -0.0005897 | E67: 8.228e-06 | F67: -3.502e-08
A68: Norm Mag | B68: a | C68: b | D68: c | E68: d | F68: e | G68: x
A69: 14 | B69: -0.05945 | C69: 0.008703 | D69: 0.0003623 | E69: 0.0529 | F69: 0.0003474 | G69: 2
A70: 26 | B70: -0.04067 | C70: 0.01637 | D70: 0.0003742 | E70: 0.05316 | F70: 0.0003413 | G70: 2
A71: 60 | B71: -0.1695 | C71: 0.1215 | D71: 0.01213 | E71: 0.6938 | F71: 0.01016 | G71: 2
A72: 125 | B72: 0.000532 | C72: -0.0006811 | D72: 0.0003506 | E72: 0.01052 | F72: 0.0001694 | G72: 0.5
A73: 147 | B73: 0.000267 | C73: -0.0007829 | D73: 0.000529 | E73: 0.002215 | F73: 0.0002606 | G73: 0.5
A74: 160 | B74: 0.000267 | C74: -0.0007829 | D74: 0.000529 | E74: 0.002215 | F74: 0.0002606 | G74: 0.5
A75: Core Loss | B75: a | C75: b | D75: c
A76: 14 | B76: 388.8 | C76: 2.31 | D76: 1.54
A77: 26 | B77: 374.9 | C77: 2.21 | D77: 1.49
A78: 60 | B78: 492 | C78: 2.22 | D78: 1.32
A79: 125 | B79: 246 | C79: 2.23 | D79: 1.47
A80: 147 | B80: 447.6 | C80: 2.3 | D80: 1.41
A81: 160 | B81: 447.6 | C81: 2.3 | D81: 1.41
A82: Xflux
A83: DC Bias | B83: a | C83: b | D83: c | E83: d | F83: e
A84: 26 | B84: 1 | C84: 0.00075 | D84: -2.53e-05 | E84: 8.42e-08 | F84: -9.1e-11
A85: 60 | B85: 1 | C85: -0.0012 | D85: -3e-05 | E85: 1e-07 | F85: -1e-10
A86: Norm Mag | B86: a | C86: b | D86: c | E86: d | F86: e | G86: x
A87: 26
A88: 60 | B88: -0.1695 | C88: 0.1315 | D88: 0.0122 | E88: 0.7434 | F88: 0.008891 | G88: 2
A89: Core Loss | B89: a | C89: b | D89: c
A90: 26 | B90: 665 | C90: 2.05 | D90: 1.2
A91: 60 | B91: 665 | C91: 2.05 | D91: 1.2
